{"text_format":"1","workbook":"xlsx","n_sheets":27,"sheets":["Инструкция","Титульный","Параметры","Форма 1. Актив","Форма 1. Пассив","Форма1. Расшифровка показателей","Форма 2. Доходы-расходы","Форма2. Расшифровка показателей","Форма 3. Движение капитала","Форма 3. Корректировки","Форма 3. Чистые активы","Форма 4. Отчет о ДДС","Форма4. Расшифровка показателей","Форма 5. НА и НИОКР","Форма 5. Основные средства","Форма 5. Фин.вложения и запасы","Форма 5. ДиКЗ и запасы","Форма 5. Обязательства","Форма 5. Гос.помощь","Форма 6. Отчет о ЦИС","Комментарий","Ошибки и предупреждения","Columns","Rows","Reference","RegistryMunicipal","SheetList"],"not_rendered":{"charts":0,"images":14,"macros":1,"external_links":0,"defined_names":206,"comments":0,"pivot_tables":0},"unopened":[],"bounds":{"document_bytes":16777216,"sheet_cells":100000,"rows_first":2000,"rows_last":500,"rows_between":2000,"halvings":0,"cell_chars":16384,"cell_head_chars":4096},"cells_cut":0,"cells_raw":0,"read":"whole","date_system":"1900"}

{"sheet":"Инструкция","index":0,"n_rows":228,"n_cols":16,"rows_kept":228,"cut":false,"hidden":false,"merged":[[1,1,1,6],[2,1,2,2],[4,1,4,24],[227,4,227,16],[225,1,225,24],[226,1,226,24],[83,5,83,23],[84,5,84,23],[85,5,85,23],[86,5,86,23],[87,4,87,23],[53,4,53,5],[51,4,51,23],[36,4,48,23],[22,5,22,12],[22,15,22,23],[207,5,209,22],[210,5,216,22],[217,5,223,22],[157,5,163,22],[164,4,166,23],[167,5,168,22],[169,5,172,22],[206,5,206,22],[173,5,177,22],[178,5,183,22],[203,4,205,23],[187,5,189,22],[190,5,192,22],[193,5,196,22],[197,5,202,22],[66,4,78,23],[6,4,20,23],[102,5,104,22],[105,5,107,22],[108,5,111,22],[54,4,54,5],[53,6,53,10],[54,6,54,9],[81,4,82,23],[90,5,91,23],[93,4,94,23],[95,4,99,23],[100,4,101,22],[23,5,23,12],[23,15,23,23],[24,15,24,23],[88,5,89,23],[184,4,186,23],[147,5,149,22],[150,5,152,22],[153,5,156,22],[122,4,123,22],[124,5,126,22],[127,5,129,22],[130,5,133,21],[134,5,139,22],[112,5,116,22],[117,4,121,23],[140,4,144,23],[145,4,146,22]]}
[]
[null,{"$f":"\"Код шаблона: \" & Getcode()","v":"Код шаблона: ELPASS.FORMS.BH"}]
[null,{"$f":"\"Версия \" & Getversion() & \" от \" & GetTemplateDate()","v":"Версия 1.0 от 01.10.2017"}]
[]
[null,{"$f":"GetTemplateName()","v":"Формы бухгалтерского баланса, отчета о финансовых результатах и отчета о целевом использовании средств"}]
[]
[null,null,null,null,"• На рабочем месте должна быть установлена полная версия приложения Microsoft Office Excel 2007 SP3, 2010, 2013, 2016. Microsoft Office Excel 2003 или иные офисные пакеты не поддерживаются.\n\n• Для корректной работы отчёта требуется включить макросы и выбрать низкий уровень безопасности:\nВ меню MS Excel 2007/2010: Параметры Excel | Центр управления безопасностью | Параметры центра управления безопасностью | Параметры макросов | Включить все макросы | ОК\n\n• Не рекомендуется снимать защиту с листов и каким-либо образом модифицировать защищаемые формулы и расчётные поля. В случае внесения несанкционированных изменений отчёт будет отклонён системой\n\n• При сохранении не следует выбирать формат XLSX (Книга Excel), так как в указанном формате макросы, необходимые для работы отчёта, безвозвратно удаляются, а также форматы XLS или XLSB. Должен использоваться формат XLSM\n\n"]
[]
[]
[]
[]
[]
[]
[]
[]
[]
[]
[]
[]
[]
[]
[]
[null,null,null,null,"A"," - не обязательные для заполнения",null,null,null,null,null,null,null,null,"A"," - обязательные для заполнения"]
[null,null,null,null,"A"," - заполняемые автоматически",null,null,null,null,null,null,null,null,"A"," - незаполняемые поля"]
[]
[]
[]
[]
[]
[]
[]
[]
[]
[]
[]
[]
[null,null,null,null,"• При сохранении отчета осуществляется проверка корректности данных, в том числе на наличие значений в ячейках, обязательных для заполнения\n\n• Если какая-то ячейка не удовлетворяет условию проверки, на лист «Ошибки и предупреждения» добавляется гиперссылка на данную ячейку и указывается причина ошибки\n\n• В колонке «Статус» для каждого сообщения возможны 2 значения: ошибка и предупреждение\n\n• При наличии сообщений со статусом «Ошибка» отчет будет отклонён системой\n\n• Сообщения со статусом «Предупреждение» носят информационный характер, и такой отчет будет принят системой"]
[]
[]
[]
[]
[]
[]
[]
[]
[]
[]
[]
[]
[]
[]
[null,null,null,null,"Служба технической поддержки группы компаний \"Экстрим\""]
[]
[null,null,null,null,"E-mail:",null,"rek@xrm.ru"]
[null,null,null,null,"Телефон:",null,"(343) 2222-139"]
[]
[]
[]
[]
[]
[]
[]
[]
[]
[]
[]
[null,null,null,null,"• На листах «Титульный»  и «Параметры» обязательно заполните все ячейки голубого цвета. \nДалее нажмите кнопку «Начать заполнение отчета». Отобразятся листы для заполнения.\n\n• Если в поле, обязательном для заполнении, для вашей организации показатель отсутствует, введите в поле «0» (для числовых показателей) и «-» (для текстовых).\n\n• Вводите дату непосредственно в ячейку в формате - 'ДД.ММ.ГГГГ'.\n\n• Для добавления гиперссылки дважды щелкните левой кнопкой мыши по ячейке и только после этого  вставьте скопированный элемент.\n\n• Добавьте комментарии к раскрываемым сведениям на листе «Комментарии» (при необходимости).\n"]
[]
[]
[]
[]
[]
[]
[]
[]
[]
[]
[]
[]
[]
[]
[null,null,null,null,"В шаблоне раскрывается упрощенная бухгалтерская отчетность. В шаблон включены следующие упрощенные формы:"]
[]
[null,null,null,null,"   •","бухгалтерский баланс (форма 1)"]
[null,null,null,null,"   •","отчет о финансовых результатах (форма 2)"]
[null,null,null,null,"   •","отчет о целевом использовании средств (форма 6)"]
[]
[null,null,null,null,"Данный шаблон разработан в соответствии с:"]
[null,null,null,null,"   •","Приказом Минфина РФ от 02.07.2010 г. N 66н «О формах бухгалтерской отчетности организаций»"]
[]
[null,null,null,null,"   •","Приказом Минфина РФ от 06.07.1999 N 43н (ред. от 08.11.2010) «Об утверждении Положения по бухгалтерскому учету «Бухгалтерская отчетность организации» (ПБУ 4/99)»"]
[]
[]
[null,null,null,null,"Обязательность раскрытия информации по бухгалтерской отчетности и сроки раскрытия устанавливаются в соответствие с: "]
[]
[null,null,null,"   •","пунктом 18 подпунктом \"е\", пунктами 28, 30 Постановления Правительства РФ от 17.01.2013 г. N 6 «О стандартах раскрытия информации в сфере водоснабжения и водоотведения\" в рамках информации об основных показателях финансово-хозяйственной деятельности регулируемой организации, включая структуру основных производственных затрат (в части регулируемой деятельности)»"]
[]
[]
[]
[]
[null,null,null,null,"II. Стандарты раскрытия информации регулируемыми организациями, осуществляющими холодное водоснабжение"]
[]
[null,null,null,null,null,"18. Информация об основных показателях финансово-хозяйственной деятельности регулируемой организации, включая структуру основных производственных затрат (в части регулируемой деятельности), содержит сведения:"]
[]
[]
[null,null,null,null,null,"е) о годовой бухгалтерской отчетности, включая бухгалтерский баланс и приложения к нему (раскрывается регулируемой организацией, выручка от регулируемой деятельности которой превышает 80 процентов совокупной выручки за отчетный год);"]
[]
[]
[null,null,null,null,null,"28. Информация, указанная в пунктах 18 - 20 настоящего документа, раскрывается регулируемой организацией не позднее 30 календарных дней со дня направления годового бухгалтерского баланса в налоговые органы, за исключением информации, указанной в подпункте \"з\" пункта 20 настоящего документа."]
[]
[]
[]
[null,null,null,null,null,"30. Регулируемая организация, не осуществляющая сдачу годового бухгалтерского баланса в налоговые органы, информацию, указанную в пунктах 18 - 20, за исключением информации, указанной в подпункте \"з\" пункта 20 настоящего документа, раскрывает не позднее 30 календарных дней со дня истечения срока, установленного законодательством Российской Федерации для сдачи годового бухгалтерского баланса в налоговые органы."]
[]
[]
[]
[]
[null,null,null,"   •","пунктом 39 подпунктом \"ж\", пунктами 49, 51 Постановления Правительства РФ от 17.01.2013 г. N 6 «О стандартах раскрытия информации в сфере водоснабжения и водоотведения\" в рамках информации об основных показателях финансово-хозяйственной деятельности регулируемой организации, включая структуру основных производственных затрат (в части регулируемой деятельности)»"]
[]
[]
[]
[]
[null,null,null,null,"III. Стандарты раскрытия информации регулируемыми организациями, осуществляющими водоотведение"]
[]
[null,null,null,null,null,"39. Информация об основных показателях финансово-хозяйственной деятельности регулируемой организации, включая структуру основных производственных затрат (в части регулируемой деятельности), содержит сведения:"]
[]
[]
[null,null,null,null,null,"ж) о годовой бухгалтерской отчетности, включая бухгалтерский баланс и приложения к нему (раскрывается регулируемой организацией, выручка от регулируемой деятельности которых превышает 80 процентов совокупной выручки за отчетный год);"]
[]
[]
[null,null,null,null,null,"49. Информация, указанная в пунктах 39 - 41 настоящего документа, раскрывается регулируемой организацией не позднее 30 календарных дней со дня направления годового бухгалтерского баланса в налоговые органы, за исключением информации, указанной в подпункте \"з\" пункта 41 настоящего документа."]
[]
[]
[]
[null,null,null,null,null,"51. Регулируемая организация, не осуществляющая сдачу годового бухгалтерского баланса в налоговые органы, информацию, указанную в пунктах 39 - 41, за исключением информации, указанной в подпункте \"з\" пункта 41 настоящего документа, раскрывает не позднее 30 календарных дней со дня истечения срока, установленного законодательством Российской Федерации для сдачи годового бухгалтерского баланса в налоговые органы."]
[]
[]
[]
[]
[]
[null,null,null,"   •","пунктом 60 подпунктом \"е\", пунктами 70, 72 Постановления Правительства РФ от 17.01.2013 г. N 6 «О стандартах раскрытия информации в сфере водоснабжения и водоотведения\" в рамках информации об основных показателях финансово-хозяйственной деятельности регулируемой организации, включая структуру основных производственных затрат (в части регулируемой деятельности)»"]
[]
[]
[]
[]
[null,null,null,null,"IV. Стандарты раскрытия информации регулируемыми организациями, осуществляющими горячее водоснабжение"]
[]
[null,null,null,null,null,"60. Информация об основных показателях финансово-хозяйственной деятельности регулируемой организации, включая структуру основных производственных затрат (в части регулируемой деятельности), содержит сведения:"]
[]
[]
[null,null,null,null,null,"е) о годовой бухгалтерской отчетности, включая бухгалтерский баланс и приложения к нему (раскрывается регулируемой организацией, выручка от регулируемой деятельности которой превышает 80 процентов совокупной выручки за отчетный год);"]
[]
[]
[null,null,null,null,null,"70. Информация, указанная в пунктах 60 - 62 настоящего документа, раскрывается регулируемой организацией не позднее 30 календарных дней со дня сдачи годового бухгалтерского баланса в налоговые органы, за исключением информации, указанной в подпункте \"з\" пункта 62 настоящего документа."]
[]
[]
[]
[null,null,null,null,null,"72. Регулируемые организации, не осуществляющие сдачу годового бухгалтерского баланса в налоговые органы, информацию, указанную в пунктах 60 - 62 настоящего документа, за исключением информации, указанной в подпункте \"з\" пункта 62 настоящего документа, раскрывают не позднее 30 календарных дней со дня истечения срока, установленного законодательством Российской Федерации для сдачи годового бухгалтерского баланса в налоговые органы, за исключением информации, указанной в подпункте \"з\" пункта 62 настоящего документа."]
[]
[]
[]
[]
[]
[]
[null,null,null,"   •","пунктом 15 подпунктом \"д\", пунктами 21, 22 Постановления Правительства РФ от 21.06.2016 г. N 564 «Об утверждении стандартов раскрытия информации в области обращения с твердыми коммунальными отходами»"]
[]
[]
[null,null,null,null,null,"15. Информация об основных показателях финансово-хозяйственной деятельности регулируемой организации (в части регулируемой деятельности) содержит сведения:"]
[]
[null,null,null,null,null,"д) о годовой бухгалтерской отчетности, включая бухгалтерский баланс и приложения к нему в соответствии с законодательством Российской Федерации о бухгалтерском учете (раскрывается регулируемыми организациями, выручка от регулируемой деятельности которых превышает 80 процентов совокупной выручки за отчетный год);"]
[]
[]
[]
[null,null,null,null,null,"21. Информация, указанная в пункте 15, подпунктах \"д\" (в отношении фактических значений показателей эффективности) и \"е\" пункта 16 настоящего документа, раскрывается регулируемой организацией не позднее 30 календарных дней со дня истечения срока, установленного законодательством Российской Федерации для сдачи годового бухгалтерского баланса в налоговые органы."]
[]
[]
[]
[]
[null,null,null,null,null,"22. Регулируемая организация, не осуществляющая сдачу годового бухгалтерского баланса в налоговые органы, информацию, указанную в пункте 15, подпунктах \"д\" (в отношении фактических значений показателей эффективности) и \"е\" пункта 16 настоящего документа, раскрывает не позднее 30 календарных дней со дня истечения срока, установленного законодательством Российской Федерации для сдачи годового бухгалтерского баланса в налоговые органы."]
[]
[]
[]
[]
[]
[null,null,null,"   •","пунктом 19 подпунктом \"е\", пунктами 29, 30 Постановления Правительства РФ от 5 июля 2013 г. N 570 «О стандартах раскрытия информации теплоснабжающими организациями, теплосетевыми организациями и органами регулирования»"]
[]
[]
[null,null,null,null,null,"19. Информация об основных показателях финансово-хозяйственной деятельности регулируемой организации, включая структуру основных производственных затрат (в части регулируемых видов деятельности), содержит сведения:"]
[]
[]
[null,null,null,null,null,"е) о годовой бухгалтерской отчетности, включая бухгалтерский баланс и приложения к нему (раскрывается регулируемой организацией, выручка от регулируемой деятельности которой превышает 80 процентов совокупной выручки за отчетный год);"]
[]
[]
[null,null,null,null,null,"29. Информация, указанная в пунктах 19 - 21 настоящего документа, раскрывается регулируемой организацией не позднее 30 календарных дней со дня направления годового бухгалтерского баланса в налоговые органы, за исключением информации, указанной в подпункте \"з\" пункта 21 настоящего документа. "]
[]
[]
[]
[null,null,null,null,null,"30. Регулируемая организация, не осуществляющая сдачу годового бухгалтерского баланса в налоговые органы, раскрывает информацию, указанную в пунктах 19 - 21 настоящего документа, за исключением информации, указанной в подпункте \"з\" пункта 21 настоящего документа, не позднее 30 календарных дней со дня истечения срока, установленного законодательством Российской Федерации для сдачи годового бухгалтерского баланса в налоговые органы. "]
[]
[]
[]
[]
[]
[null,null,null,"   •","пунктом 9 подпунктом \"а\", пунктом 10 Постановления Правительства РФ от 21 января 2004 г. N 24 «Об утверждении стандартов раскрытия информации субъектами оптового и розничных рынков электрической энергии»"]
[]
[]
[null,null,null,null,null,"9. Субъекты рынков электрической энергии раскрывают следующую информацию:"]
[null,null,null,null,null,"а) годовая финансовая (бухгалтерская) отчетность, а также аудиторское заключение (в случае, если в соответствии с законодательством Российской Федерации осуществлялась аудиторская проверка);"]
[]
[]
[null,null,null,null,null,"10. Субъекты рынков электрической энергии, отнесенные к числу субъектов электроэнергетики, инвестиционные программы которых утверждаются федеральным органом исполнительной власти и (или) органами исполнительной власти субъектов Российской Федерации, раскрывают информацию, указанную в подпункте \"а\" пункта 9 настоящего документа, на официальном сайте в сети \"Интернет\", определяемом Правительством Российской Федерации для раскрытия информации об инвестиционных программах указанных субъектов электроэнергетики, ежегодно, не позднее 1 апреля."]
[]
[]
[]
[]
[]
[]
[null,null,null,null,null,"Субъекты рынков электрической энергии, за исключением субъектов рынков электрической энергии, указанных в абзаце первом настоящего пункта, раскрывают информацию, указанную в подпункте \"а\" пункта 9 настоящего документа, в электронных средствах массовой информации, на официальных сайтах субъектов рынков электрической энергии или на ином официальном сайте в сети \"Интернет\", определяемом Правительством Российской Федерации, и (или) в официальном печатном издании ежегодно, не позднее 1 июня."]
[]
[]
[]
[]
[]
[]
[]
[null,{"$f":"IF(GetMode()=\"DEBUG\", \"Режим отладки\", \"\")","v":""}]
[null,"2017 © Общество с ограниченной ответственностью \"Элвинг\""]
[null,null,null,null,"http://elpass.ru"]

{"sheet":"Титульный","index":1,"n_rows":45,"n_cols":5,"rows_kept":45,"cut":false,"hidden":false,"merged":[[3,3,3,4],[32,3,32,4],[26,3,26,4],[22,3,22,4],[38,3,38,4],[9,3,9,4],[17,3,17,4]]}
[]
[]
[null,null,null,{"$f":"Getcode()","v":"ELPASS.FORMS.BH"},{"$f":"version","v":"Версия 1.0 от 01.10.2017"}]
[null,null,null,{"$f":"GetTemplateName()","v":"Формы бухгалтерского баланса, отчета о финансовых результатах и отчета о целевом использовании средств"}]
[]
[null,null,null,"Субъект РФ","Республика Башкортостан"]
[]
[null,null,null,"Отчетный период","2017"]
[]
[null,null,null,"Сведения о регулируемой организации"]
[null,null,null,"Полное наименование организации","Ишимбайское муниципальное унитарное предприятие \"Межрайкоммунводоканал\""]
[null,null,null,"Сокращенное наименование организации","ИМУП \"Межрайкоммунводоканал\""]
[null,null,null,"ОГРН","1020201773349"]
[null,null,null,"ИНН","0261002348"]
[null,null,null,"КПП","026101001"]
[null,null,null,"Режим налогообложения","Общий"]
[]
[null,null,null,"Сведения о филиале"]
[null,null,null,"Является ли данное юридическое лицо филиалом другой организации",""]
[null,null,null,"Наименование филиала"]
[null,null,null,"КПП филиала",""]
[]
[null,null,null,"Адрес регулируемой организации"]
[null,null,null,"Юридический адрес","453204, РБ, г. Ишимбай, ул. Жукова, д. 16"]
[null,null,null,"Почтовый адрес","453204, РБ, г. Ишимбай, ул. Жукова, д. 16"]
[]
[null,null,null,"Руководитель регулируемой организации"]
[null,null,null,"Фамилия","Матросов "]
[null,null,null,"Имя","Александр"]
[null,null,null,"Отчество (при наличии)","Васильевич"]
[null,null,null,"Контактный телефон","34794 42323"]
[]
[null,null,null,"Главный бухгалтер регулируемой организации"]
[null,null,null,"Фамилия","Фаурян"]
[null,null,null,"Имя","Сергей"]
[null,null,null,"Отчество (при наличии)","Константинович"]
[null,null,null,"Контактный телефон","34794 42956"]
[]
[null,null,null,"Должностное лицо, ответственное за составление формы"]
["L11.1","Ответственный.ФИО",null,"Фамилия","Фаурян"]
[null,null,null,"Имя","Сергей"]
[null,null,null,"Отчество (при наличии)","Константинович"]
["L11.2","Ответственный.Должность",null,"Должность","Главный бухгалтер"]
["L11.3","Ответственный.Телефон",null,"Контактный телефон","34794 42956"]
["L11.4","Ответственный. E-Mail",null,"e-mail","GUP_IMRKVK@mail.ru"]

{"sheet":"Параметры","index":2,"n_rows":15,"n_cols":7,"rows_kept":15,"cut":false,"hidden":false,"merged":[[3,3,3,6]]}
[]
[]
[null,null,null,{"$f":"Getcode()","v":"ELPASS.FORMS.BH"},null,null,{"$f":"version","v":"Версия 1.0 от 01.10.2017"}]
[null,null,null,{"$f":"GetTemplateName()","v":"Формы бухгалтерского баланса, отчета о финансовых результатах и отчета о целевом использовании средств"}]
[null,null,null,null,null,null,"Коды"]
[null,null,null,"Дата отчетности","2018-02-20","Форма по ОКУД","0710001, 0710002, 0710006"]
[null,null,null,"Организация","Ишимбайское муниципальное унитарное предприятие \"Межрайкоммунводоканал\"","по ОКПО",3253871]
[null,null,null,"Вид экономической деятельности","Распределение воды для питьевых и промышленных нужд. Сбор и обработка сточных вод.","по ОКВЭД","36.00.2"]
[null,null,null,"Организационно-правовая форма","Унитарные предприятия, основанные на праве хозяйственного ведения","по ОКОПФ",42]
[null,null,null,"Форма собственности","Муниципалная","по ОКФС ",14]
[null,null,null,"Единица измерения","тыс.руб.","по ОКЕИ",{"$f":"IF(E11=\"тыс.руб.\",384,IF(E11=\"млн.руб.\",385,\"\"))","v":384}]
[]
[]
[null,null,null,"Выручка от регулируемой деятельности превышает 80 процентов совокупной выручки за отчетный год \nили\nорганизация является субъектом рынка электрической энергии?","да"]
[null,null,null,"Открыть отчетные формы для заполнение?\nЗаполнять отчет не требуется, если выручка от регулируемой деятельности менее 80% от совокупной выручки "]

{"sheet":"Форма 1. Актив","index":3,"n_rows":32,"n_cols":16,"rows_kept":32,"cut":false,"hidden":false,"merged":[[8,4,8,15],[7,4,7,15],[12,5,12,6],[23,5,23,6],[10,7,10,9],[10,10,10,12],[10,13,10,15],[11,7,11,9],[11,10,11,12],[11,13,11,15]]}
[]
[]
[]
[]
[null,null,null,null,{"$f":"Getcode()","v":"ELPASS.FORMS.BH"},null,null,null,null,null,null,null,null,null,null,{"$f":"version","v":"Версия 1.0 от 01.10.2017"}]
[]
[null,null,null,null,null,null,null,null,null,null,null,null,null,null,null,"Форма 0710001 с. 1"]
[null,null,null,null,"Бухгалтерский баланс"]
[null,null,null,null,"Актив"]
[]
[null,null,null,null,"Пояснения","Наименование показателя","Код",{"$f":"\"На 31 декабря \" & IF(List_01_reporting_period=\"\",\" отчётную дату отчётного года\",List_01_reporting_period&\" г.\")","v":"На 31 декабря 2017 г."},null,null,{"$f":"\"На 31 декабря \" & IF(List_01_reporting_period=\"\",\" предыдущего года\",List_01_reporting_period-1&\" г.\")","v":"На 31 декабря 2016 г."},null,null,{"$f":"\"На 31 декабря \" & IF(List_01_reporting_period=\"\",\" года, предшествующего предыдущему\",List_01_reporting_period-2&\" г.\")","v":"На 31 декабря 2015 г."}]
[null,null,null,null,1,"2","3","4",null,null,"5",null,null,"6"]
[null,null,null,null,null,"I. Внеоборотные активы",null,null,null," ",null,null," ",null,null," "]
[null,null,null,null,null,"Нематериальные активы","1110",null,null,{"$f":"IF(H14=\"(\",\")\",\"\")","v":""},null,null,{"$f":"IF(K14=\"(\",\")\",\"\")","v":""},null,null,{"$f":"IF(N14=\"(\",\")\",\"\")","v":""}]
[null,null,null,null,null,"Результаты исследований и разработок","1120",null,null,"",null,null,"",null,null,""]
[null,null,null,null,null,"Нематериальные поисковые активы","1130",null,null,"",null,null,"",null,null,""]
[null,null,null,null,null,"Материальные поисковые активы","1140",null,null,"",null,null,"",null,null,""]
[null,null,null,null,null,"Основные средства ","1150",null,80075,"",null,63377,"",null,55582,""]
[null,null,null,null,null,"Доходные вложения в материальные ценности","1160",null,null,"",null,null,"",null,null,""]
[null,null,null,null,null,"Финансовые вложения","1170",null,null,"",null,null,"",null,null,""]
[null,null,null,null,null,"Отложенные налоговые активы","1180",null,1860,"",null,2502,"",null,3980,""]
[null,null,null,null,null,"Прочие внеоборотные активы","1190",null,729,"",null,902,"",null,1026,""]
[null,null,null,null,null,"Итого по разделу I","1100",{"$f":"IF((SUMIF(OFFSET(SUM_1100_1,0,-1),\"\",SUM_1100_1)-SUMIF(OFFSET(SUM_1100_1,0,-1),\"(\",SUM_1100_1))<0,\"(\",\"\")","v":""},{"$f":"ABS(SUMIF(OFFSET(SUM_1100_1,0,-1),\"\",SUM_1100_1)-SUMIF(OFFSET(SUM_1100_1,0,-1),\"(\",SUM_1100_1))","v":82664},{"$f":"IF(H23=\"(\",\")\",\"\")","v":""},{"$f":"IF((SUMIF(OFFSET(SUM_1100_2,0,-1),\"\",SUM_1100_2)-SUMIF(OFFSET(SUM_1100_2,0,-1),\"(\",SUM_1100_2))<0,\"(\",\"\")","v":""},{"$f":"ABS(SUMIF(OFFSET(SUM_1100_2,0,-1),\"\",SUM_1100_2)-SUMIF(OFFSET(SUM_1100_2,0,-1),\"(\",SUM_1100_2))","v":66781},{"$f":"IF(K23=\"(\",\")\",\"\")","v":""},{"$f":"IF((SUMIF(OFFSET(SUM_1100_3,0,-1),\"\",SUM_1100_3)-SUMIF(OFFSET(SUM_1100_3,0,-1),\"(\",SUM_1100_3))<0,\"(\",\"\")","v":""},{"$f":"ABS(SUMIF(OFFSET(SUM_1100_3,0,-1),\"\",SUM_1100_3)-SUMIF(OFFSET(SUM_1100_3,0,-1),\"(\",SUM_1100_3))","v":60588},{"$f":"IF(N23=\"(\",\")\",\"\")","v":""}]
[null,null,null,null,null,"II. Оборотные активы"]
[null,null,null,null,null,"Запасы","1210",null,6312,{"$f":"IF(H25=\"(\",\")\",\"\")","v":""},null,6394,{"$f":"IF(K25=\"(\",\")\",\"\")","v":""},null,4787,{"$f":"IF(N25=\"(\",\")\",\"\")","v":""}]
[null,null,null,null,null,"Налог на добавленную стоимость по приобретенным ценностям","1220",null,null,"",null,null,"",null,12,""]
[null,null,null,null,null,"Дебиторская задолженность","1230",null,26509,"",null,18837,"",null,14955,""]
[null,null,null,null,null,"Финансовые вложения (за исключением денежных эквивалентов)","1240",null,null,"",null,null,"",null,null,""]
[null,null,null,null,null,"Денежные средства и денежные эквиваленты","1250",null,6062,"",null,7769,"",null,4798,""]
[null,null,null,null,null,"Прочие оборотные активы","1260",null,null,"",null,null,"",null,null,""]
[null,null,null,null,null,"Итого по разделу II","1200",{"$f":"IF((SUMIF(OFFSET(SUM_1200_1,0,-1),\"\",SUM_1200_1)-SUMIF(OFFSET(SUM_1200_1,0,-1),\"(\",SUM_1200_1))<0,\"(\",\"\")","v":""},{"$f":"ABS(SUMIF(OFFSET(SUM_1200_1,0,-1),\"\",SUM_1200_1)-SUMIF(OFFSET(SUM_1200_1,0,-1),\"(\",SUM_1200_1))","v":38883},{"$f":"IF(H31=\"(\",\")\",\"\")","v":""},{"$f":"IF((SUMIF(OFFSET(SUM_1200_2,0,-1),\"\",SUM_1200_2)-SUMIF(OFFSET(SUM_1200_2,0,-1),\"(\",SUM_1200_2))<0,\"(\",\"\")","v":""},{"$f":"ABS(SUMIF(OFFSET(SUM_1200_2,0,-1),\"\",SUM_1200_2)-SUMIF(OFFSET(SUM_1200_2,0,-1),\"(\",SUM_1200_2))","v":33000},{"$f":"IF(K31=\"(\",\")\",\"\")","v":""},{"$f":"IF((SUMIF(OFFSET(SUM_1200_3,0,-1),\"\",SUM_1200_3)-SUMIF(OFFSET(SUM_1200_3,0,-1),\"(\",SUM_1200_3))<0,\"(\",\"\")","v":""},{"$f":"ABS(SUMIF(OFFSET(SUM_1200_3,0,-1),\"\",SUM_1200_3)-SUMIF(OFFSET(SUM_1200_3,0,-1),\"(\",SUM_1200_3))","v":24552},{"$f":"IF(N31=\"(\",\")\",\"\")","v":""}]
[null,null,null,null,null,"Баланс","1600",{"$f":"IF((IF(H23=\"(\",-LINE_1100_1,LINE_1100_1)+IF(H31=\"(\",-LINE_1200_1,LINE_1200_1))<0,\"(\",\"\")","v":""},{"$f":"ABS(IF(H23=\"(\",-LINE_1100_1,LINE_1100_1)+IF(H31=\"(\",-LINE_1200_1,LINE_1200_1))","v":121547},{"$f":"IF(H32=\"(\",\")\",\"\")","v":""},{"$f":"IF((IF(K23=\"(\",-LINE_1100_2,LINE_1100_2)+IF(K31=\"(\",-LINE_1200_2,LINE_1200_2))<0,\"(\",\"\")","v":""},{"$f":"ABS(IF(K23=\"(\",-LINE_1100_2,LINE_1100_2)+IF(K31=\"(\",-LINE_1200_2,LINE_1200_2))","v":99781},{"$f":"IF(K32=\"(\",\")\",\"\")","v":""},{"$f":"IF((IF(N23=\"(\",-LINE_1100_3,LINE_1100_3)+IF(N31=\"(\",-LINE_1200_3,LINE_1200_3))<0,\"(\",\"\")","v":""},{"$f":"ABS(IF(N23=\"(\",-LINE_1100_3,LINE_1100_3)+IF(N31=\"(\",-LINE_1200_3,LINE_1200_3))","v":85140},{"$f":"IF(N32=\"(\",\")\",\"\")","v":""}]

{"sheet":"Форма 1. Пассив","index":4,"n_rows":34,"n_cols":16,"rows_kept":34,"cut":false,"hidden":false,"merged":[[7,4,7,15],[8,4,8,15],[12,5,12,6],[20,5,20,6],[26,5,26,6],[10,7,10,9],[10,10,10,12],[10,13,10,15],[11,7,11,9],[11,10,11,12],[11,13,11,15]]}
[]
[]
[]
[]
[null,null,null,null,{"$f":"Getcode()","v":"ELPASS.FORMS.BH"},null,null,null,null,null,null,null,null,null,null,{"$f":"version","v":"Версия 1.0 от 01.10.2017"}]
[]
[null,null,null,null,null,null,null,null,null,null,null,null,null,null,null,"Форма 0710001 с. 2"]
[null,null,null,null,"Бухгалтерский баланс"]
[null,null,null,null,"Пассив"]
[]
[null,null,null,null,"Пояснения","Наименование показателя","Код",{"$f":"\"На 31 декабря \" & IF(List_01_reporting_period=\"\",\" отчётную дату отчётного года\",List_01_reporting_period&\" г.\")","v":"На 31 декабря 2017 г."},null,null,{"$f":"\"На 31 декабря \" & IF(List_01_reporting_period=\"\",\" предыдущего года\",List_01_reporting_period-1&\" г.\")","v":"На 31 декабря 2016 г."},null,null,{"$f":"\"На 31 декабря \" & IF(List_01_reporting_period=\"\",\" года, предшествующего предыдущему\",List_01_reporting_period-2&\" г.\")","v":"На 31 декабря 2015 г."}]
[null,null,null,null,1,"2","3","4",null,null,"5",null,null,"6"]
[null,null,null,null,null,"III. Капитал и резервы"]
[null,null,null,null,null,"Уставный капитал (складочный капитал, уставный фонд, вклады товарищей)","1310",null,40732,{"$f":"IF(H14=\"(\",\")\",\"\")","v":""},null,40732,{"$f":"IF(K14=\"(\",\")\",\"\")","v":""},null,40732,{"$f":"IF(N14=\"(\",\")\",\"\")","v":""}]
[null,null,null,null,null,"Собственные акции, выкупленные у акционеров","1320","(",null,")","(",null,")","(",null,")"]
[null,null,null,null,null,"Переоценка внеоборотных активов","1340",null,15079,"",null,15079,{"$f":"IF(K16=\"(\",\")\",\"\")","v":""},null,15083,""]
[null,null,null,null,null,"Добавочный капитал (без переоценки)","1350",null,35923,"",null,15716,{"$f":"IF(K17=\"(\",\")\",\"\")","v":""},null,15716,""]
[null,null,null,null,null,"Резервный капитал","1360",null,null,"",null,null,{"$f":"IF(K18=\"(\",\")\",\"\")","v":""},null,null,""]
[null,null,null,null,null,"Нераспределенная прибыль (непокрытый убыток)","1370",null,6142,"",null,6042,{"$f":"IF(K19=\"(\",\")\",\"\")","v":""},"(",3893,")"]
[null,null,null,null,null,"Итого по разделу III","1300",{"$f":"IF((SUMIF(OFFSET(SUM_1300_1,0,-1),\"\",SUM_1300_1)-SUMIF(OFFSET(SUM_1300_1,0,-1),\"(\",SUM_1300_1))<0,\"(\",\"\")","v":""},{"$f":"ABS(SUMIF(OFFSET(SUM_1300_1,0,-1),\"\",SUM_1300_1)-SUMIF(OFFSET(SUM_1300_1,0,-1),\"(\",SUM_1300_1))","v":97876},{"$f":"IF(H20=\"(\",\")\",\"\")","v":""},{"$f":"IF((SUMIF(OFFSET(SUM_1300_2,0,-1),\"\",SUM_1300_2)-SUMIF(OFFSET(SUM_1300_2,0,-1),\"(\",SUM_1300_2))<0,\"(\",\"\")","v":""},{"$f":"ABS(SUMIF(OFFSET(SUM_1300_2,0,-1),\"\",SUM_1300_2)-SUMIF(OFFSET(SUM_1300_2,0,-1),\"(\",SUM_1300_2))","v":77569},{"$f":"IF(K20=\"(\",\")\",\"\")","v":""},{"$f":"IF((SUMIF(OFFSET(SUM_1300_3,0,-1),\"\",SUM_1300_3)-SUMIF(OFFSET(SUM_1300_3,0,-1),\"(\",SUM_1300_3))<0,\"(\",\"\")","v":""},{"$f":"ABS(SUMIF(OFFSET(SUM_1300_3,0,-1),\"\",SUM_1300_3)-SUMIF(OFFSET(SUM_1300_3,0,-1),\"(\",SUM_1300_3))","v":67638},{"$f":"IF(N20=\"(\",\")\",\"\")","v":""}]
[null,null,null,null,null,"IV. Долгосрочные обязательства"]
[null,null,null,null,null,"Заемные средства",1410,null,null,{"$f":"IF(H22=\"(\",\")\",\"\")","v":""},null,null,{"$f":"IF(K22=\"(\",\")\",\"\")","v":""},null,null,{"$f":"IF(N22=\"(\",\")\",\"\")","v":""}]
[null,null,null,null,null,"Отложенные налоговые обязательства",1420,null,1535,{"$f":"IF(H23=\"(\",\")\",\"\")","v":""},null,1513,{"$f":"IF(K23=\"(\",\")\",\"\")","v":""},null,1273,{"$f":"IF(N23=\"(\",\")\",\"\")","v":""}]
[null,null,null,null,null,"Оценочные обязательства",1430,null,null,{"$f":"IF(H24=\"(\",\")\",\"\")","v":""},null,null,{"$f":"IF(K24=\"(\",\")\",\"\")","v":""},null,null,{"$f":"IF(N24=\"(\",\")\",\"\")","v":""}]
[null,null,null,null,null,"Прочие обязательства",1450,null,null,{"$f":"IF(H25=\"(\",\")\",\"\")","v":""},null,null,{"$f":"IF(K25=\"(\",\")\",\"\")","v":""},null,null,{"$f":"IF(N25=\"(\",\")\",\"\")","v":""}]
[null,null,null,null,null,"Итого по разделу IV",1400,{"$f":"IF((SUMIF(OFFSET(SUM_1400_1,0,-1),\"\",SUM_1400_1)-SUMIF(OFFSET(SUM_1400_1,0,-1),\"(\",SUM_1400_1))<0,\"(\",\"\")","v":""},{"$f":"ABS(SUMIF(OFFSET(SUM_1400_1,0,-1),\"\",SUM_1400_1)-SUMIF(OFFSET(SUM_1400_1,0,-1),\"(\",SUM_1400_1))","v":1535},{"$f":"IF(H26=\"(\",\")\",\"\")","v":""},{"$f":"IF((SUMIF(OFFSET(SUM_1400_2,0,-1),\"\",SUM_1400_2)-SUMIF(OFFSET(SUM_1400_2,0,-1),\"(\",SUM_1400_2))<0,\"(\",\"\")","v":""},{"$f":"ABS(SUMIF(OFFSET(SUM_1400_2,0,-1),\"\",SUM_1400_2)-SUMIF(OFFSET(SUM_1400_2,0,-1),\"(\",SUM_1400_2))","v":1513},{"$f":"IF(K26=\"(\",\")\",\"\")","v":""},{"$f":"IF((SUMIF(OFFSET(SUM_1400_3,0,-1),\"\",SUM_1400_3)-SUMIF(OFFSET(SUM_1400_3,0,-1),\"(\",SUM_1400_3))<0,\"(\",\"\")","v":""},{"$f":"ABS(SUMIF(OFFSET(SUM_1400_3,0,-1),\"\",SUM_1400_3)-SUMIF(OFFSET(SUM_1400_3,0,-1),\"(\",SUM_1400_3))","v":1273},{"$f":"IF(N26=\"(\",\")\",\"\")","v":""}]
[null,null,null,null,null,"V. Краткосрочные обязательства"]
[null,null,null,null,null,"Заемные средства",1510,null,null,{"$f":"IF(H28=\"(\",\")\",\"\")","v":""},null,null,{"$f":"IF(K28=\"(\",\")\",\"\")","v":""},null,null,{"$f":"IF(N28=\"(\",\")\",\"\")","v":""}]
[null,null,null,null,null,"Кредиторская задолженность",1520,null,15336,"",null,11382,"",null,11036,""]
[null,null,null,null,null,"Доходы будущих периодов ",1530,null,6800,"",null,9317,"",null,5193,""]
[null,null,null,null,null,"Оценочные обязательства",1540,null,null,"",null,null,"",null,null,""]
[null,null,null,null,null,"Прочие обязательства",1550,null,null,"",null,null,"",null,null,""]
[null,null,null,null,null,"Итого по разделу V",1500,{"$f":"IF((SUMIF(OFFSET(SUM_1500_1,0,-1),\"\",SUM_1500_1)-SUMIF(OFFSET(SUM_1500_1,0,-1),\"(\",SUM_1500_1))<0,\"(\",\"\")","v":""},{"$f":"ABS(SUMIF(OFFSET(SUM_1500_1,0,-1),\"\",SUM_1500_1)-SUMIF(OFFSET(SUM_1500_1,0,-1),\"(\",SUM_1500_1))","v":22136},"",{"$f":"IF((SUMIF(OFFSET(SUM_1500_2,0,-1),\"\",SUM_1500_2)-SUMIF(OFFSET(SUM_1500_2,0,-1),\"(\",SUM_1500_2))<0,\"(\",\"\")","v":""},{"$f":"ABS(SUMIF(OFFSET(SUM_1500_2,0,-1),\"\",SUM_1500_2)-SUMIF(OFFSET(SUM_1500_2,0,-1),\"(\",SUM_1500_2))","v":20699},"",{"$f":"IF((SUMIF(OFFSET(SUM_1500_3,0,-1),\"\",SUM_1500_3)-SUMIF(OFFSET(SUM_1500_3,0,-1),\"(\",SUM_1500_3))<0,\"(\",\"\")","v":""},{"$f":"ABS(SUMIF(OFFSET(SUM_1500_3,0,-1),\"\",SUM_1500_3)-SUMIF(OFFSET(SUM_1500_3,0,-1),\"(\",SUM_1500_3))","v":16229},""]
[null,null,null,null,null,"Баланс",1700,{"$f":"IF((IF(H20=\"(\",-LINE_1300_1,LINE_1300_1)+IF(H26=\"(\",-LINE_1400_1,LINE_1400_1)+IF(H33=\"(\",-LINE_1500_1,LINE_1500_1))<0,\"(\",\"\")","v":""},{"$f":"ABS(IF(H20=\"(\",-LINE_1300_1,LINE_1300_1)+IF(H26=\"(\",-LINE_1400_1,LINE_1400_1)+IF(H33=\"(\",-LINE_1500_1,LINE_1500_1))","v":121547},"",{"$f":"IF((IF(K20=\"(\",-LINE_1300_2,LINE_1300_2)+IF(K26=\"(\",-LINE_1400_2,LINE_1400_2)+IF(K33=\"(\",-LINE_1500_2,LINE_1500_2))<0,\"(\",\"\")","v":""},{"$f":"ABS(IF(K20=\"(\",-LINE_1300_2,LINE_1300_2)+IF(K26=\"(\",-LINE_1400_2,LINE_1400_2)+IF(K33=\"(\",-LINE_1500_2,LINE_1500_2))","v":99781},"",{"$f":"IF((IF(N20=\"(\",-LINE_1300_3,LINE_1300_3)+IF(N26=\"(\",-LINE_1400_3,LINE_1400_3)+IF(N33=\"(\",-LINE_1500_3,LINE_1500_3))<0,\"(\",\"\")","v":""},{"$f":"ABS(IF(N20=\"(\",-LINE_1300_3,LINE_1300_3)+IF(N26=\"(\",-LINE_1400_3,LINE_1400_3)+IF(N33=\"(\",-LINE_1500_3,LINE_1500_3))","v":85140},""]

{"sheet":"Форма1. Расшифровка показателей","index":5,"n_rows":163,"n_cols":17,"rows_kept":163,"cut":false,"hidden":false,"merged":[[11,7,11,9],[11,10,11,12],[11,13,11,15],[7,4,7,15],[8,4,8,15],[10,7,10,9],[10,10,10,12],[10,13,10,15]]}
[]
[]
[]
[]
[null,null,null,null,{"$f":"Getcode()","v":"ELPASS.FORMS.BH"},null,null,null,null,null,null,null,null,null,null,{"$f":"version","v":"Версия 1.0 от 01.10.2017"}]
[]
[null,null,null,null,null,null,null,null,null,null,null,null,null,null,null,"Форма 0710001 с. 2"]
[null,null,null,null,"Бухгалтерский баланс"]
[null,null,null,null,"Расшифровка отдельных показателей бухгалтерского баланса"]
[]
[null,null,null,null,"№\nп/п","Наименование показателя","Код",{"$f":"\"На 31 декабря \" & IF(List_01_reporting_period=\"\",\" отчётную дату отчётного года\",List_01_reporting_period&\" г.\")","v":"На 31 декабря 2017 г."},null,null,{"$f":"\"На 31 декабря \" & IF(List_01_reporting_period=\"\",\" предыдущего года\",List_01_reporting_period-1&\" г.\")","v":"На 31 декабря 2016 г."},null,null,{"$f":"\"На 31 декабря \" & IF(List_01_reporting_period=\"\",\" года, предшествующего предыдущему\",List_01_reporting_period-2&\" г.\")","v":"На 31 декабря 2015 г."}]
[null,null,null,null,1,"2","3","4",null,null,"5",null,null,"6"]
[null,null,null,null,"1","Нематериальные активы (стр.1110), в том числе:",null,{"$f":"IF('Форма 1. Актив'!H14=\"(\",\"(\",\"\")","v":""},{"$f":"'Форма 1. Актив'!I14","v":0},{"$f":"IF(H13=\"(\",\")\",\"\")","v":""},{"$f":"IF('Форма 1. Актив'!K14=\"(\",\"(\",\"\")","v":""},{"$f":"'Форма 1. Актив'!L14","v":0},{"$f":"IF(K13=\"(\",\")\",\"\")","v":""},{"$f":"IF('Форма 1. Актив'!N14=\"(\",\"(\",\"\")","v":""},{"$f":"'Форма 1. Актив'!O14","v":0},{"$f":"IF(N13=\"(\",\")\",\"\")","v":""}]
[null,null,null,null,"1.1",null,"11101",null,null,{"$f":"IF(H14=\"(\",\")\",\"\")","v":""},null,null,{"$f":"IF(K14=\"(\",\")\",\"\")","v":""},null,null,{"$f":"IF(N14=\"(\",\")\",\"\")","v":""}]
[null,null,null,null,"1.2",null,"11102",null,null,{"$f":"IF(H15=\"(\",\")\",\"\")","v":""},null,null,{"$f":"IF(K15=\"(\",\")\",\"\")","v":""},null,null,{"$f":"IF(N15=\"(\",\")\",\"\")","v":""}]
[null,null,null,null,"1.3",null,"11103",null,null,{"$f":"IF(H16=\"(\",\")\",\"\")","v":""},null,null,{"$f":"IF(K16=\"(\",\")\",\"\")","v":""},null,null,{"$f":"IF(N16=\"(\",\")\",\"\")","v":""}]
[null,null,null,null,null,"Добавить строку",null,null,null,null,null,null,null,null,null,null,"add_FORMA1_R1_range"]
[null,null,null,null,"2","Результаты исследований и разработок (стр.1120), в том числе:",null,{"$f":"IF('Форма 1. Актив'!H15=\"(\",\"(\",\"\")","v":""},{"$f":"'Форма 1. Актив'!I15","v":0},{"$f":"IF(H18=\"(\",\")\",\"\")","v":""},{"$f":"IF('Форма 1. Актив'!K15=\"(\",\"(\",\"\")","v":""},{"$f":"'Форма 1. Актив'!L15","v":0},{"$f":"IF(K18=\"(\",\")\",\"\")","v":""},{"$f":"IF('Форма 1. Актив'!N15=\"(\",\"(\",\"\")","v":""},{"$f":"'Форма 1. Актив'!O15","v":0},{"$f":"IF(N18=\"(\",\")\",\"\")","v":""}]
[null,null,null,null,"2.1",null,"11201",null,null,{"$f":"IF(H19=\"(\",\")\",\"\")","v":""},null,null,{"$f":"IF(K19=\"(\",\")\",\"\")","v":""},null,null,{"$f":"IF(N19=\"(\",\")\",\"\")","v":""}]
[null,null,null,null,"2.2",null,"11202",null,null,{"$f":"IF(H20=\"(\",\")\",\"\")","v":""},null,null,{"$f":"IF(K20=\"(\",\")\",\"\")","v":""},null,null,{"$f":"IF(N20=\"(\",\")\",\"\")","v":""}]
[null,null,null,null,null,"Добавить строку",null,null,null,null,null,null,null,null,null,null,"add_FORMA1_R1_range"]
[null,null,null,null,"3",{"$f":"\"Нематериальные поисковые активы (стр.\"&'Форма 1. Актив'!$G$16&\"), в том числе:\"","v":"Нематериальные поисковые активы (стр.1130), в том числе:"},null,{"$f":"IF('Форма 1. Актив'!H$16=\"(\",\"(\",\"\")","v":""},{"$f":"'Форма 1. Актив'!I$16","v":0},{"$f":"IF(H22=\"(\",\")\",\"\")","v":""},{"$f":"IF('Форма 1. Актив'!K$16=\"(\",\"(\",\"\")","v":""},{"$f":"'Форма 1. Актив'!L$16","v":0},{"$f":"IF(K22=\"(\",\")\",\"\")","v":""},{"$f":"IF('Форма 1. Актив'!N$16=\"(\",\"(\",\"\")","v":""},{"$f":"'Форма 1. Актив'!O$16","v":0},{"$f":"IF(N22=\"(\",\")\",\"\")","v":""}]
[null,null,null,null,"3.1",null,{"$f":"'Форма 1. Актив'!$G$16&\"1\"","v":"11301"},null,null,{"$f":"IF(H23=\"(\",\")\",\"\")","v":""},null,null,{"$f":"IF(K23=\"(\",\")\",\"\")","v":""},null,null,{"$f":"IF(N23=\"(\",\")\",\"\")","v":""}]
[null,null,null,null,"3.2",null,{"$f":"'Форма 1. Актив'!$G$16&\"2\"","v":"11302"},null,null,{"$f":"IF(H24=\"(\",\")\",\"\")","v":""},null,null,{"$f":"IF(K24=\"(\",\")\",\"\")","v":""},null,null,{"$f":"IF(N24=\"(\",\")\",\"\")","v":""}]
[null,null,null,null,null,"Добавить строку",null,null,null,null,null,null,null,null,null,null,"add_FORMA1_R1_range"]
[null,null,null,null,"4",{"$f":"\"Материальные поисковые активы (стр.\"&'Форма 1. Актив'!$G$17&\"), в том числе:\"","v":"Материальные поисковые активы (стр.1140), в том числе:"},null,{"$f":"IF('Форма 1. Актив'!H$17=\"(\",\"(\",\"\")","v":""},{"$f":"'Форма 1. Актив'!I$17","v":0},{"$f":"IF(H26=\"(\",\")\",\"\")","v":""},{"$f":"IF('Форма 1. Актив'!K$17=\"(\",\"(\",\"\")","v":""},{"$f":"'Форма 1. Актив'!L$17","v":0},{"$f":"IF(K26=\"(\",\")\",\"\")","v":""},{"$f":"IF('Форма 1. Актив'!N$17=\"(\",\"(\",\"\")","v":""},{"$f":"'Форма 1. Актив'!O$17","v":0},{"$f":"IF(N26=\"(\",\")\",\"\")","v":""}]
[null,null,null,null,"4.1",null,{"$f":"'Форма 1. Актив'!$G$17&\"1\"","v":"11401"},null,null,{"$f":"IF(H27=\"(\",\")\",\"\")","v":""},null,null,{"$f":"IF(K27=\"(\",\")\",\"\")","v":""},null,null,{"$f":"IF(N27=\"(\",\")\",\"\")","v":""}]
[null,null,null,null,"4.2",null,{"$f":"'Форма 1. Актив'!$G$17&\"2\"","v":"11402"},null,null,{"$f":"IF(H28=\"(\",\")\",\"\")","v":""},null,null,{"$f":"IF(K28=\"(\",\")\",\"\")","v":""},null,null,{"$f":"IF(N28=\"(\",\")\",\"\")","v":""}]
[null,null,null,null,null,"Добавить строку",null,null,null,null,null,null,null,null,null,null,"add_FORMA1_R1_range"]
[null,null,null,null,"5",{"$f":"\"Основные средства (стр.\"&'Форма 1. Актив'!$G$18&\"), в том числе:\"","v":"Основные средства (стр.1150), в том числе:"},null,{"$f":"IF('Форма 1. Актив'!H18=\"(\",\"(\",\"\")","v":""},{"$f":"'Форма 1. Актив'!I18","v":80075},{"$f":"IF(H30=\"(\",\")\",\"\")","v":""},{"$f":"IF('Форма 1. Актив'!K18=\"(\",\"(\",\"\")","v":""},{"$f":"'Форма 1. Актив'!L18","v":63377},{"$f":"IF(K30=\"(\",\")\",\"\")","v":""},{"$f":"IF('Форма 1. Актив'!N18=\"(\",\"(\",\"\")","v":""},{"$f":"'Форма 1. Актив'!O18","v":55582},{"$f":"IF(N30=\"(\",\")\",\"\")","v":""}]
[null,null,null,null,"5.1",null,{"$f":"'Форма 1. Актив'!$G$18&\"1\"","v":"11501"},null,null,{"$f":"IF(H31=\"(\",\")\",\"\")","v":""},null,null,{"$f":"IF(K31=\"(\",\")\",\"\")","v":""},null,null,{"$f":"IF(N31=\"(\",\")\",\"\")","v":""}]
[null,null,null,null,"5.2",null,{"$f":"'Форма 1. Актив'!$G$18&\"2\"","v":"11502"},null,null,{"$f":"IF(H32=\"(\",\")\",\"\")","v":""},null,null,{"$f":"IF(K32=\"(\",\")\",\"\")","v":""},null,null,{"$f":"IF(N32=\"(\",\")\",\"\")","v":""}]
[null,null,null,null,"5.3",null,{"$f":"'Форма 1. Актив'!$G$18&\"3\"","v":"11503"},null,null,{"$f":"IF(H33=\"(\",\")\",\"\")","v":""},null,null,{"$f":"IF(K33=\"(\",\")\",\"\")","v":""},null,null,{"$f":"IF(N33=\"(\",\")\",\"\")","v":""}]
[null,null,null,null,null,"Добавить строку",null,null,null,null,null,null,null,null,null,null,"add_FORMA1_R1_range"]
[null,null,null,null,"6",{"$f":"\"Доходные вложения (стр.\"&'Форма 1. Актив'!$G$19&\"), в том числе:\"","v":"Доходные вложения (стр.1160), в том числе:"},null,{"$f":"IF('Форма 1. Актив'!H19=\"(\",\"(\",\"\")","v":""},{"$f":"'Форма 1. Актив'!I19","v":0},{"$f":"IF(H35=\"(\",\")\",\"\")","v":""},{"$f":"IF('Форма 1. Актив'!K19=\"(\",\"(\",\"\")","v":""},{"$f":"'Форма 1. Актив'!L19","v":0},{"$f":"IF(K35=\"(\",\")\",\"\")","v":""},{"$f":"IF('Форма 1. Актив'!N19=\"(\",\"(\",\"\")","v":""},{"$f":"'Форма 1. Актив'!O19","v":0},{"$f":"IF(N35=\"(\",\")\",\"\")","v":""}]
[null,null,null,null,"6.1",null,{"$f":"'Форма 1. Актив'!$G$19&\"1\"","v":"11601"},null,null,{"$f":"IF(H36=\"(\",\")\",\"\")","v":""},null,null,{"$f":"IF(K36=\"(\",\")\",\"\")","v":""},null,null,{"$f":"IF(N36=\"(\",\")\",\"\")","v":""}]
[null,null,null,null,"6.2",null,{"$f":"'Форма 1. Актив'!$G$19&\"2\"","v":"11602"},null,null,{"$f":"IF(H37=\"(\",\")\",\"\")","v":""},null,null,{"$f":"IF(K37=\"(\",\")\",\"\")","v":""},null,null,{"$f":"IF(N37=\"(\",\")\",\"\")","v":""}]
[null,null,null,null,null,"Добавить строку",null,null,null,null,null,null,null,null,null,null,"add_FORMA1_R1_range"]
[null,null,null,null,"7",{"$f":"\"Финансовые вложения (стр.\"&'Форма 1. Актив'!$G$20&\"), в том числе:\"","v":"Финансовые вложения (стр.1170), в том числе:"},null,{"$f":"IF('Форма 1. Актив'!H20=\"(\",\"(\",\"\")","v":""},{"$f":"'Форма 1. Актив'!I20","v":0},{"$f":"IF(H39=\"(\",\")\",\"\")","v":""},{"$f":"IF('Форма 1. Актив'!K20=\"(\",\"(\",\"\")","v":""},{"$f":"'Форма 1. Актив'!L20","v":0},{"$f":"IF(K39=\"(\",\")\",\"\")","v":""},{"$f":"IF('Форма 1. Актив'!N20=\"(\",\"(\",\"\")","v":""},{"$f":"'Форма 1. Актив'!O20","v":0},{"$f":"IF(N39=\"(\",\")\",\"\")","v":""}]
[null,null,null,null,"7.1",null,{"$f":"'Форма 1. Актив'!$G$20&\"1\"","v":"11701"},null,null,{"$f":"IF(H40=\"(\",\")\",\"\")","v":""},null,null,{"$f":"IF(K40=\"(\",\")\",\"\")","v":""},null,null,{"$f":"IF(N40=\"(\",\")\",\"\")","v":""}]
[null,null,null,null,"7.2",null,{"$f":"'Форма 1. Актив'!$G$20&\"2\"","v":"11702"},null,null,{"$f":"IF(H41=\"(\",\")\",\"\")","v":""},null,null,{"$f":"IF(K41=\"(\",\")\",\"\")","v":""},null,null,{"$f":"IF(N41=\"(\",\")\",\"\")","v":""}]
[null,null,null,null,"7.3",null,{"$f":"'Форма 1. Актив'!$G$20&\"3\"","v":"11703"},null,null,{"$f":"IF(H42=\"(\",\")\",\"\")","v":""},null,null,{"$f":"IF(K42=\"(\",\")\",\"\")","v":""},null,null,{"$f":"IF(N42=\"(\",\")\",\"\")","v":""}]
[null,null,null,null,"7.4",null,{"$f":"'Форма 1. Актив'!$G$20&\"4\"","v":"11704"},null,null,{"$f":"IF(H43=\"(\",\")\",\"\")","v":""},null,null,{"$f":"IF(K43=\"(\",\")\",\"\")","v":""},null,null,{"$f":"IF(N43=\"(\",\")\",\"\")","v":""}]
[null,null,null,null,null,"Добавить строку",null,null,null,null,null,null,null,null,null,null,"add_FORMA1_R1_range"]
[null,null,null,null,"8",{"$f":"\"Отложенные налоговые активы (стр.\"&'Форма 1. Актив'!$G$21&\"), в том числе:\"","v":"Отложенные налоговые активы (стр.1180), в том числе:"},null,{"$f":"IF('Форма 1. Актив'!H21=\"(\",\"(\",\"\")","v":""},{"$f":"'Форма 1. Актив'!I21","v":1860},{"$f":"IF(H45=\"(\",\")\",\"\")","v":""},{"$f":"IF('Форма 1. Актив'!K21=\"(\",\"(\",\"\")","v":""},{"$f":"'Форма 1. Актив'!L21","v":2502},{"$f":"IF(K45=\"(\",\")\",\"\")","v":""},{"$f":"IF('Форма 1. Актив'!N21=\"(\",\"(\",\"\")","v":""},{"$f":"'Форма 1. Актив'!O21","v":3980},{"$f":"IF(N45=\"(\",\")\",\"\")","v":""}]
[null,null,null,null,"8.1","Вычитаемые временные разницы в т.ч. РБП, зарплата",{"$f":"'Форма 1. Актив'!$G$21&\"1\"","v":"11801"},null,199,{"$f":"IF(H46=\"(\",\")\",\"\")","v":""},null,246,{"$f":"IF(K46=\"(\",\")\",\"\")","v":""},null,180,{"$f":"IF(N46=\"(\",\")\",\"\")","v":""}]
[null,null,null,"ы","8.2","Полученная сумма прибыли (убытка)","11802",null,1661,{"$f":"IF(H47=\"(\",\")\",\"\")","v":""},null,2256,{"$f":"IF(K47=\"(\",\")\",\"\")","v":""},null,3800,{"$f":"IF(N47=\"(\",\")\",\"\")","v":""}]
[null,null,null,null,null,"Добавить строку",null,null,null,null,null,null,null,null,null,null,"add_FORMA1_R1_range"]
[null,null,null,null,"9",{"$f":"\"Вписываемые показатели (стр.\"&IF('Форма 1. Актив'!$G$21=\"1180\",\"1185\",\"1165\")&\"), в том числе:\"","v":"Вписываемые показатели (стр.1185), в том числе:"},null,{"$f":"IF((SUMIF(OFFSET(SUM_1185_1,0,-1),\"\",SUM_1185_1)-SUMIF(OFFSET(SUM_1185_1,0,-1),\"(\",SUM_1185_1))<0,\"(\",\"\")","v":""},{"$f":"ABS(SUMIF(OFFSET(SUM_1185_1,0,-1),\"\",SUM_1185_1)-SUMIF(OFFSET(SUM_1185_1,0,-1),\"(\",SUM_1185_1))","v":0},{"$f":"IF(H49=\"(\",\")\",\"\")","v":""},{"$f":"IF((SUMIF(OFFSET(SUM_1185_2,0,-1),\"\",SUM_1185_2)-SUMIF(OFFSET(SUM_1185_2,0,-1),\"(\",SUM_1185_2))<0,\"(\",\"\")","v":""},{"$f":"ABS(SUMIF(OFFSET(SUM_1185_2,0,-1),\"\",SUM_1185_2)-SUMIF(OFFSET(SUM_1185_2,0,-1),\"(\",SUM_1185_2))","v":0},{"$f":"IF(K49=\"(\",\")\",\"\")","v":""},{"$f":"IF((SUMIF(OFFSET(SUM_1185_3,0,-1),\"\",SUM_1185_3)-SUMIF(OFFSET(SUM_1185_3,0,-1),\"(\",SUM_1185_3))<0,\"(\",\"\")","v":""},{"$f":"ABS(SUMIF(OFFSET(SUM_1185_3,0,-1),\"\",SUM_1185_3)-SUMIF(OFFSET(SUM_1185_3,0,-1),\"(\",SUM_1185_3))","v":0},{"$f":"IF(N49=\"(\",\")\",\"\")","v":""}]
[null,null,null,null,"9.1",null,{"$f":"IF('Форма 1. Актив'!$G$21=\"1180\",\"1185\",\"1165\")&\"1\"","v":"11851"},null,null,{"$f":"IF(H50=\"(\",\")\",\"\")","v":""},null,null,{"$f":"IF(K50=\"(\",\")\",\"\")","v":""},null,null,{"$f":"IF(N50=\"(\",\")\",\"\")","v":""}]
[null,null,null,null,"9.2",null,{"$f":"IF('Форма 1. Актив'!$G$21=\"1180\",\"1185\",\"1165\")&\"2\"","v":"11852"},null,null,{"$f":"IF(H51=\"(\",\")\",\"\")","v":""},null,null,{"$f":"IF(K51=\"(\",\")\",\"\")","v":""},null,null,{"$f":"IF(N51=\"(\",\")\",\"\")","v":""}]
[null,null,null,null,null,"Добавить строку",null,null,null,null,null,null,null,null,null,null,"add_FORMA1_R1_range"]
[null,null,null,null,"10",{"$f":"\"Прочие внеоборотные активы (стр.\"&'Форма 1. Актив'!$G$22&\"), в том числе:\"","v":"Прочие внеоборотные активы (стр.1190), в том числе:"},null,{"$f":"IF('Форма 1. Актив'!H22=\"(\",\"(\",\"\")","v":""},{"$f":"'Форма 1. Актив'!I22","v":729},{"$f":"IF(H53=\"(\",\")\",\"\")","v":""},{"$f":"IF('Форма 1. Актив'!K22=\"(\",\"(\",\"\")","v":""},{"$f":"'Форма 1. Актив'!L22","v":902},{"$f":"IF(K53=\"(\",\")\",\"\")","v":""},{"$f":"IF('Форма 1. Актив'!N22=\"(\",\"(\",\"\")","v":""},{"$f":"'Форма 1. Актив'!O22","v":1026},{"$f":"IF(N53=\"(\",\")\",\"\")","v":""}]
[null,null,null,null,"10.1","незавершенное строительство",{"$f":"'Форма 1. Актив'!$G$22&\"1\"","v":"11901"},null,66,{"$f":"IF(H54=\"(\",\")\",\"\")","v":""},null,160,{"$f":"IF(K54=\"(\",\")\",\"\")","v":""},null,160,{"$f":"IF(N54=\"(\",\")\",\"\")","v":""}]
[null,null,null,null,"10.2","Расходы будущих периодов, срок списания свыше 12 месяцев",{"$f":"'Форма 1. Актив'!$G$22&\"2\"","v":"11902"},null,663,{"$f":"IF(H55=\"(\",\")\",\"\")","v":""},null,742,{"$f":"IF(K55=\"(\",\")\",\"\")","v":""},null,866,{"$f":"IF(N55=\"(\",\")\",\"\")","v":""}]
[null,null,null,null,"10.3",null,{"$f":"'Форма 1. Актив'!$G$22&\"3\"","v":"11903"},null,null,{"$f":"IF(H56=\"(\",\")\",\"\")","v":""},null,null,{"$f":"IF(K56=\"(\",\")\",\"\")","v":""},null,null,{"$f":"IF(N56=\"(\",\")\",\"\")","v":""}]
[null,null,null,null,null,"Добавить строку",null,null,null,null,null,null,null,null,null,null,"add_FORMA1_R1_range"]
[null,null,null,null,"11","Запасы (стр.1210), в том числе:",null,{"$f":"IF('Форма 1. Актив'!H25=\"(\",\"(\",\"\")","v":""},{"$f":"'Форма 1. Актив'!I25","v":6312},{"$f":"IF(H58=\"(\",\")\",\"\")","v":""},{"$f":"IF('Форма 1. Актив'!K25=\"(\",\"(\",\"\")","v":""},{"$f":"'Форма 1. Актив'!L25","v":6394},{"$f":"IF(K58=\"(\",\")\",\"\")","v":""},{"$f":"IF('Форма 1. Актив'!N25=\"(\",\"(\",\"\")","v":""},{"$f":"'Форма 1. Актив'!O25","v":4787},{"$f":"IF(N58=\"(\",\")\",\"\")","v":""}]
[null,null,null,null,"11.1","Сырье и материалы","12101",null,6065,"",null,6147,"",null,4534,""]
[null,null,null,null,"11.2","Товары","12102",null,247,"",null,247,"",null,253,""]
[null,null,null,null,"11.3",null,"12103",null,null,"",null,null,"",null,null,""]
[null,null,null,null,"11.4",null,"12104",null,null,"",null,null,"",null,null,""]
[null,null,null,null,"11.5",null,"12105",null,null,"",null,null,"",null,null,""]
[null,null,null,null,null,"Добавить строку",null,null,null,null,null,null,null,null,null,null,"add_FORMA1_R1_range"]
[null,null,null,null,"12","Налог на добавленную стоимость по приобретенным ценностям (стр.1220), в том числе:",null,{"$f":"IF('Форма 1. Актив'!H26=\"(\",\"(\",\"\")","v":""},{"$f":"'Форма 1. Актив'!I26","v":0},{"$f":"IF(H65=\"(\",\")\",\"\")","v":""},{"$f":"IF('Форма 1. Актив'!K26=\"(\",\"(\",\"\")","v":""},{"$f":"'Форма 1. Актив'!L26","v":0},{"$f":"IF(K65=\"(\",\")\",\"\")","v":""},{"$f":"IF('Форма 1. Актив'!N26=\"(\",\"(\",\"\")","v":""},{"$f":"'Форма 1. Актив'!O26","v":12},{"$f":"IF(N65=\"(\",\")\",\"\")","v":""}]
[null,null,null,null,"12.1","НДС не возмещенный по ОС","12201",null,null,{"$f":"IF(H66=\"(\",\")\",\"\")","v":""},null,null,{"$f":"IF(K66=\"(\",\")\",\"\")","v":""},null,12,{"$f":"IF(N66=\"(\",\")\",\"\")","v":""}]
[null,null,null,null,null,"Добавить строку",null,null,null,null,null,null,null,null,null,null,"add_FORMA1_R1_range"]
[null,null,null,null,"13","Дебиторская задолженность (стр.1230), в том числе:",null,{"$f":"IF('Форма 1. Актив'!H27=\"(\",\"(\",\"\")","v":""},{"$f":"'Форма 1. Актив'!I27","v":26509},{"$f":"IF(H68=\"(\",\")\",\"\")","v":""},{"$f":"IF('Форма 1. Актив'!K27=\"(\",\"(\",\"\")","v":""},{"$f":"'Форма 1. Актив'!L27","v":18837},{"$f":"IF(K68=\"(\",\")\",\"\")","v":""},{"$f":"IF('Форма 1. Актив'!N27=\"(\",\"(\",\"\")","v":""},{"$f":"'Форма 1. Актив'!O27","v":14955},{"$f":"IF(N68=\"(\",\")\",\"\")","v":""}]
[null,null,null,null,"13.1"," задолженность покупателей и заказчиков за поставленную продукцию","12301",null,25089,"",null,17881,"",null,13962,""]
[null,null,null,null,"13.2","прочие дебиторы","12302",null,1029,"",null,918,"",null,715,""]
[null,null,null,null,"13.3","расчеты по авансам выданным","12303",null,391,"",null,0,"",null,0,""]
[null,null,null,null,"13.4",null,"12304",null,null,"",null,null,"",null,null,""]
[null,null,null,null,"13.5",null,"12305",null,null,"",null,null,"",null,null,""]
[null,null,null,null,null,"Добавить строку",null,null,null,null,null,null,null,null,null,null,"add_FORMA1_R1_range"]
[null,null,null,null,"14","Финансовые вложения (за исключением денежных эквивалентов) (стр.1240), в том числе:",null,{"$f":"IF('Форма 1. Актив'!H28=\"(\",\"(\",\"\")","v":""},{"$f":"'Форма 1. Актив'!I28","v":0},{"$f":"IF(H75=\"(\",\")\",\"\")","v":""},{"$f":"IF('Форма 1. Актив'!K28=\"(\",\"(\",\"\")","v":""},{"$f":"'Форма 1. Актив'!L28","v":0},{"$f":"IF(K75=\"(\",\")\",\"\")","v":""},{"$f":"IF('Форма 1. Актив'!N28=\"(\",\"(\",\"\")","v":""},{"$f":"'Форма 1. Актив'!O28","v":0},{"$f":"IF(N75=\"(\",\")\",\"\")","v":""}]
[null,null,null,null,"14.1",null,"12401",null,null,{"$f":"IF(H76=\"(\",\")\",\"\")","v":""},null,null,{"$f":"IF(K76=\"(\",\")\",\"\")","v":""},null,null,{"$f":"IF(N76=\"(\",\")\",\"\")","v":""}]
[null,null,null,null,"14.2",null,"12402",null,null,{"$f":"IF(H77=\"(\",\")\",\"\")","v":""},null,null,{"$f":"IF(K77=\"(\",\")\",\"\")","v":""},null,null,{"$f":"IF(N77=\"(\",\")\",\"\")","v":""}]
[null,null,null,null,"14.3",null,"12403",null,null,{"$f":"IF(H78=\"(\",\")\",\"\")","v":""},null,null,{"$f":"IF(K78=\"(\",\")\",\"\")","v":""},null,null,{"$f":"IF(N78=\"(\",\")\",\"\")","v":""}]
[null,null,null,null,null,"Добавить строку",null,null,null,null,null,null,null,null,null,null,"add_FORMA1_R1_range"]
[null,null,null,null,"15","Денежные средства и денежные эквиваленты (стр.1250), в том числе:",null,{"$f":"IF('Форма 1. Актив'!H29=\"(\",\"(\",\"\")","v":""},{"$f":"'Форма 1. Актив'!I29","v":6062},{"$f":"IF(H80=\"(\",\")\",\"\")","v":""},{"$f":"IF('Форма 1. Актив'!K29=\"(\",\"(\",\"\")","v":""},{"$f":"'Форма 1. Актив'!L29","v":7769},{"$f":"IF(K80=\"(\",\")\",\"\")","v":""},{"$f":"IF('Форма 1. Актив'!N29=\"(\",\"(\",\"\")","v":""},{"$f":"'Форма 1. Актив'!O29","v":4798},{"$f":"IF(N80=\"(\",\")\",\"\")","v":""}]
[null,null,null,null,"15.1","сальдо денежных средств на расчетных счетах","12501",null,6062,{"$f":"IF(H81=\"(\",\")\",\"\")","v":""},null,7769,{"$f":"IF(K81=\"(\",\")\",\"\")","v":""},null,4798,{"$f":"IF(N81=\"(\",\")\",\"\")","v":""}]
[null,null,null,null,"15.2",null,"12502",null,null,{"$f":"IF(H82=\"(\",\")\",\"\")","v":""},null,null,{"$f":"IF(K82=\"(\",\")\",\"\")","v":""},null,null,{"$f":"IF(N82=\"(\",\")\",\"\")","v":""}]
[null,null,null,null,null,"Добавить строку",null,null,null,null,null,null,null,null,null,null,"add_FORMA1_R1_range"]
[null,null,null,null,"16","Вписываемые показатели (стр.1255), в том числе:",null,{"$f":"IF((SUMIF(OFFSET(SUM_1255_1,0,-1),\"\",SUM_1255_1)-SUMIF(OFFSET(SUM_1255_1,0,-1),\"(\",SUM_1255_1))<0,\"(\",\"\")","v":""},{"$f":"ABS(SUMIF(OFFSET(SUM_1255_1,0,-1),\"\",SUM_1255_1)-SUMIF(OFFSET(SUM_1255_1,0,-1),\"(\",SUM_1255_1))","v":0},{"$f":"IF(H84=\"(\",\")\",\"\")","v":""},{"$f":"IF((SUMIF(OFFSET(SUM_1255_2,0,-1),\"\",SUM_1255_2)-SUMIF(OFFSET(SUM_1255_2,0,-1),\"(\",SUM_1255_2))<0,\"(\",\"\")","v":""},{"$f":"ABS(SUMIF(OFFSET(SUM_1255_2,0,-1),\"\",SUM_1255_2)-SUMIF(OFFSET(SUM_1255_2,0,-1),\"(\",SUM_1255_2))","v":0},{"$f":"IF(K84=\"(\",\")\",\"\")","v":""},{"$f":"IF((SUMIF(OFFSET(SUM_1255_3,0,-1),\"\",SUM_1255_3)-SUMIF(OFFSET(SUM_1255_3,0,-1),\"(\",SUM_1255_3))<0,\"(\",\"\")","v":""},{"$f":"ABS(SUMIF(OFFSET(SUM_1255_3,0,-1),\"\",SUM_1255_3)-SUMIF(OFFSET(SUM_1255_3,0,-1),\"(\",SUM_1255_3))","v":0},{"$f":"IF(N84=\"(\",\")\",\"\")","v":""}]
[null,null,null,null,"16.1",null,12551]
[null,null,null,null,"16.2",null,12552]
[null,null,null,null,null,"Добавить строку",null,null,null,null,null,null,null,null,null,null,"add_FORMA1_R1_range"]
[null,null,null,null,"17","Прочие оборотные активы (стр.1260), в том числе:",null,{"$f":"IF('Форма 1. Актив'!H30=\"(\",\"(\",\"\")","v":""},{"$f":"'Форма 1. Актив'!I30","v":0},{"$f":"IF(H88=\"(\",\")\",\"\")","v":""},{"$f":"IF('Форма 1. Актив'!K30=\"(\",\"(\",\"\")","v":""},{"$f":"'Форма 1. Актив'!L30","v":0},{"$f":"IF(K88=\"(\",\")\",\"\")","v":""},{"$f":"IF('Форма 1. Актив'!N30=\"(\",\"(\",\"\")","v":""},{"$f":"'Форма 1. Актив'!O30","v":0},{"$f":"IF(N88=\"(\",\")\",\"\")","v":""}]
[null,null,null,null,"17.1",null,"12601",null,null,{"$f":"IF(H89=\"(\",\")\",\"\")","v":""},null,null,{"$f":"IF(K89=\"(\",\")\",\"\")","v":""},null,null,{"$f":"IF(N89=\"(\",\")\",\"\")","v":""}]
[null,null,null,null,"17.2",null,"12602",null,null,{"$f":"IF(H90=\"(\",\")\",\"\")","v":""},null,null,{"$f":"IF(K90=\"(\",\")\",\"\")","v":""},null,null,{"$f":"IF(N90=\"(\",\")\",\"\")","v":""}]
[null,null,null,null,"17.3",null,"12603",null,null,{"$f":"IF(H91=\"(\",\")\",\"\")","v":""},null,null,{"$f":"IF(K91=\"(\",\")\",\"\")","v":""},null,null,{"$f":"IF(N91=\"(\",\")\",\"\")","v":""}]
[null,null,null,null,null,"Добавить строку",null,null,null,null,null,null,null,null,null,null,"add_FORMA1_R1_range"]
[null,null,null,null,"18","Уставный капитал (складочный капитал, уставный фонд, вклады товарищей) (стр.1310), в том числе:",null,{"$f":"IF('Форма 1. Пассив'!H14=\"(\",\"(\",\"\")","v":""},{"$f":"'Форма 1. Пассив'!I14","v":40732},{"$f":"IF(H93=\"(\",\")\",\"\")","v":""},{"$f":"IF('Форма 1. Пассив'!K14=\"(\",\"(\",\"\")","v":""},{"$f":"'Форма 1. Пассив'!L14","v":40732},{"$f":"IF(K93=\"(\",\")\",\"\")","v":""},{"$f":"IF('Форма 1. Пассив'!N14=\"(\",\"(\",\"\")","v":""},{"$f":"'Форма 1. Пассив'!O14","v":40732},{"$f":"IF(N93=\"(\",\")\",\"\")","v":""}]
[null,null,null,null,"18.1","Уставный капитал ","13101",null,40732,{"$f":"IF(H94=\"(\",\")\",\"\")","v":""},null,40732,{"$f":"IF(K94=\"(\",\")\",\"\")","v":""},null,40732,{"$f":"IF(N94=\"(\",\")\",\"\")","v":""}]
[null,null,null,null,null,"Добавить строку",null,null,null,null,null,null,null,null,null,null,"add_FORMA1_R1_range"]
[null,null,null,null,"19","Собственные акции, выкупленные у акционеров (стр.1320), в том числе:",null,{"$f":"IF('Форма 1. Пассив'!H15=\"(\",\"(\",\"\")","v":"("},{"$f":"'Форма 1. Пассив'!I15","v":0},{"$f":"IF(H96=\"(\",\")\",\"\")","v":")"},{"$f":"IF('Форма 1. Пассив'!K15=\"(\",\"(\",\"\")","v":"("},{"$f":"'Форма 1. Пассив'!L15","v":0},{"$f":"IF(K96=\"(\",\")\",\"\")","v":")"},{"$f":"IF('Форма 1. Пассив'!N15=\"(\",\"(\",\"\")","v":"("},{"$f":"'Форма 1. Пассив'!O15","v":0},{"$f":"IF(N96=\"(\",\")\",\"\")","v":")"}]
[null,null,null,null,"19.1",null,"13201","(",null,")","(",null,")","(",null,")"]
[null,null,null,null,null,"Добавить строку",null,null,null,null,null,null,null,null,null,null,"add_FORMA1_R2_range"]
[null,null,null,null,"20","Целевой капитал (стр.1320), в том числе:",null,{"$f":"IF((SUMIF(OFFSET(SUM__1320_1,0,-1),\"\",SUM__1320_1)-SUMIF(OFFSET(SUM__1320_1,0,-1),\"(\",SUM__1320_1))<0,\"(\",\"\")","v":""},{"$f":"ABS(SUMIF(OFFSET(SUM__1320_1,0,-1),\"\",SUM__1320_1)-SUMIF(OFFSET(SUM__1320_1,0,-1),\"(\",SUM__1320_1))","v":0},{"$f":"IF(H99=\"(\",\")\",\"\")","v":""},{"$f":"IF((SUMIF(OFFSET(SUM__1320_2,0,-1),\"\",SUM__1320_2)-SUMIF(OFFSET(SUM__1320_2,0,-1),\"(\",SUM__1320_2))<0,\"(\",\"\")","v":""},{"$f":"ABS(SUMIF(OFFSET(SUM__1320_2,0,-1),\"\",SUM__1320_2)-SUMIF(OFFSET(SUM__1320_2,0,-1),\"(\",SUM__1320_2))","v":0},{"$f":"IF(K99=\"(\",\")\",\"\")","v":""},{"$f":"IF((SUMIF(OFFSET(SUM__1320_3,0,-1),\"\",SUM__1320_3)-SUMIF(OFFSET(SUM__1320_3,0,-1),\"(\",SUM__1320_3))<0,\"(\",\"\")","v":""},{"$f":"ABS(SUMIF(OFFSET(SUM__1320_3,0,-1),\"\",SUM__1320_3)-SUMIF(OFFSET(SUM__1320_3,0,-1),\"(\",SUM__1320_3))","v":0},{"$f":"IF(N99=\"(\",\")\",\"\")","v":""}]
[null,null,null,null,"20.1",null,"13201",null,null,{"$f":"IF(H100=\"(\",\")\",\"\")","v":""},null,null,{"$f":"IF(K100=\"(\",\")\",\"\")","v":""},null,null,{"$f":"IF(N100=\"(\",\")\",\"\")","v":""}]
[null,null,null,null,null,"Добавить строку",null,null,null,null,null,null,null,null,null,null,"add_FORMA1_R1_range"]
[null,null,null,null,"21","Переоценка внеоборотных активов (стр.1340), в том числе:",null,{"$f":"IF('Форма 1. Пассив'!H16=\"(\",\"(\",\"\")","v":""},{"$f":"'Форма 1. Пассив'!I16","v":15079},{"$f":"IF(H102=\"(\",\")\",\"\")","v":""},{"$f":"IF('Форма 1. Пассив'!K16=\"(\",\"(\",\"\")","v":""},{"$f":"'Форма 1. Пассив'!L16","v":15079},{"$f":"IF(K102=\"(\",\")\",\"\")","v":""},{"$f":"IF('Форма 1. Пассив'!N16=\"(\",\"(\",\"\")","v":""},{"$f":"'Форма 1. Пассив'!O16","v":15083},{"$f":"IF(N102=\"(\",\")\",\"\")","v":""}]
[null,null,null,null,"21.1","Имущество, переданное по переоценке до 2002 года","13401",null,15079,{"$f":"IF(H103=\"(\",\")\",\"\")","v":""},null,15079,{"$f":"IF(K103=\"(\",\")\",\"\")","v":""},null,15083,{"$f":"IF(N103=\"(\",\")\",\"\")","v":""}]
[null,null,null,null,null,"Добавить строку",null,null,null,null,null,null,null,null,null,null,"add_FORMA1_R1_range"]
[null,null,null,null,"22","Добавочный капитал (без переоценки)/Целевые средства (стр.1350), в том числе:",null,{"$f":"IF('Форма 1. Пассив'!H17=\"(\",\"(\",\"\")","v":""},{"$f":"'Форма 1. Пассив'!I17","v":35923},{"$f":"IF(H105=\"(\",\")\",\"\")","v":""},{"$f":"IF('Форма 1. Пассив'!K17=\"(\",\"(\",\"\")","v":""},{"$f":"'Форма 1. Пассив'!L17","v":15716},{"$f":"IF(K105=\"(\",\")\",\"\")","v":""},{"$f":"IF('Форма 1. Пассив'!N17=\"(\",\"(\",\"\")","v":""},{"$f":"'Форма 1. Пассив'!O17","v":15716},{"$f":"IF(N105=\"(\",\")\",\"\")","v":""}]
[null,null,null,null,"22.1","Муниципальное имущество, переданное по переоценке до 2002 года","13501",null,35923,{"$f":"IF(H106=\"(\",\")\",\"\")","v":""},null,15716,{"$f":"IF(K106=\"(\",\")\",\"\")","v":""},null,15716,{"$f":"IF(N106=\"(\",\")\",\"\")","v":""}]
[null,null,null,null,"22.2",null,"13502",null,null,{"$f":"IF(H107=\"(\",\")\",\"\")","v":""},null,null,{"$f":"IF(K107=\"(\",\")\",\"\")","v":""},null,null,{"$f":"IF(N107=\"(\",\")\",\"\")","v":""}]
[null,null,null,null,null,"Добавить строку",null,null,null,null,null,null,null,null,null,null,"add_FORMA1_R1_range"]
[null,null,null,null,"23","Резервный капитал/Фонд недвижимого и особо ценного движимого имущества (стр.1360), в том числе:",null,{"$f":"IF('Форма 1. Пассив'!H18=\"(\",\"(\",\"\")","v":""},{"$f":"'Форма 1. Пассив'!I18","v":0},{"$f":"IF(H109=\"(\",\")\",\"\")","v":""},{"$f":"IF('Форма 1. Пассив'!K18=\"(\",\"(\",\"\")","v":""},{"$f":"'Форма 1. Пассив'!L18","v":0},{"$f":"IF(K109=\"(\",\")\",\"\")","v":""},{"$f":"IF('Форма 1. Пассив'!N18=\"(\",\"(\",\"\")","v":""},{"$f":"'Форма 1. Пассив'!O18","v":0},{"$f":"IF(N109=\"(\",\")\",\"\")","v":""}]
[null,null,null,null,"23.1",null,"13601",null,null,{"$f":"IF(H110=\"(\",\")\",\"\")","v":""},null,null,{"$f":"IF(K110=\"(\",\")\",\"\")","v":""},null,null,{"$f":"IF(N110=\"(\",\")\",\"\")","v":""}]
[null,null,null,null,"23.2",null,"13602",null,null,{"$f":"IF(H111=\"(\",\")\",\"\")","v":""},null,null,{"$f":"IF(K111=\"(\",\")\",\"\")","v":""},null,null,{"$f":"IF(N111=\"(\",\")\",\"\")","v":""}]
[null,null,null,null,null,"Добавить строку",null,null,null,null,null,null,null,null,null,null,"add_FORMA1_R1_range"]
[null,null,null,null,"24","Нераспределенная прибыль (непокрытый убыток)/Резервные и иные целевые фонды (стр.1370), в том числе:",null,{"$f":"IF('Форма 1. Пассив'!H19=\"(\",\"(\",\"\")","v":""},{"$f":"'Форма 1. Пассив'!I19","v":6142},{"$f":"IF(H113=\"(\",\")\",\"\")","v":""},{"$f":"IF('Форма 1. Пассив'!K19=\"(\",\"(\",\"\")","v":""},{"$f":"'Форма 1. Пассив'!L19","v":6042},{"$f":"IF(K113=\"(\",\")\",\"\")","v":""},{"$f":"IF('Форма 1. Пассив'!N19=\"(\",\"(\",\"\")","v":"("},{"$f":"'Форма 1. Пассив'!O19","v":3893},{"$f":"IF(N113=\"(\",\")\",\"\")","v":")"}]
[null,null,null,null,"24.1","прибыль, убыток","13701",null,331,{"$f":"IF(H114=\"(\",\")\",\"\")","v":""},null,3871,{"$f":"IF(K114=\"(\",\")\",\"\")","v":""},null,67,{"$f":"IF(N114=\"(\",\")\",\"\")","v":""}]
[null,null,null,null,"24.2",null,"13702",null,null,{"$f":"IF(H115=\"(\",\")\",\"\")","v":""},null,null,{"$f":"IF(K115=\"(\",\")\",\"\")","v":""},null,null,{"$f":"IF(N115=\"(\",\")\",\"\")","v":""}]
[null,null,null,null,null,"Добавить строку",null,null,null,null,null,null,null,null,null,null,"add_FORMA1_R1_range"]
[null,null,null,null,"25","Вписываемые показатели (стр.1375), в том числе:",null,{"$f":"IF((SUMIF(OFFSET(SUM_1375_1,0,-1),\"\",SUM_1375_1)-SUMIF(OFFSET(SUM_1375_1,0,-1),\"(\",SUM_1375_1))<0,\"(\",\"\")","v":""},{"$f":"ABS(SUMIF(OFFSET(SUM_1375_1,0,-1),\"\",SUM_1375_1)-SUMIF(OFFSET(SUM_1375_1,0,-1),\"(\",SUM_1375_1))","v":0},{"$f":"IF(H117=\"(\",\")\",\"\")","v":""},{"$f":"IF((SUMIF(OFFSET(SUM_1375_2,0,-1),\"\",SUM_1375_2)-SUMIF(OFFSET(SUM_1375_2,0,-1),\"(\",SUM_1375_2))<0,\"(\",\"\")","v":""},{"$f":"ABS(SUMIF(OFFSET(SUM_1375_2,0,-1),\"\",SUM_1375_2)-SUMIF(OFFSET(SUM_1375_2,0,-1),\"(\",SUM_1375_2))","v":0},{"$f":"IF(K117=\"(\",\")\",\"\")","v":""},{"$f":"IF((SUMIF(OFFSET(SUM_1375_3,0,-1),\"\",SUM_1375_3)-SUMIF(OFFSET(SUM_1375_3,0,-1),\"(\",SUM_1375_3))<0,\"(\",\"\")","v":""},{"$f":"ABS(SUMIF(OFFSET(SUM_1375_3,0,-1),\"\",SUM_1375_3)-SUMIF(OFFSET(SUM_1375_3,0,-1),\"(\",SUM_1375_3))","v":0},{"$f":"IF(N117=\"(\",\")\",\"\")","v":""}]
[null,null,null,null,"25.1",null,13751,null,null,{"$f":"IF(H118=\"(\",\")\",\"\")","v":""},null,null,{"$f":"IF(K118=\"(\",\")\",\"\")","v":""},null,null,{"$f":"IF(N118=\"(\",\")\",\"\")","v":""}]
[null,null,null,null,"25.2",null,13752,null,null,{"$f":"IF(H119=\"(\",\")\",\"\")","v":""},null,null,{"$f":"IF(K119=\"(\",\")\",\"\")","v":""},null,null,{"$f":"IF(N119=\"(\",\")\",\"\")","v":""}]
[null,null,null,null,null,"Добавить строку",null,null,null,null,null,null,null,null,null,null,"add_FORMA1_R1_range"]
[null,null,null,null,"26","Заемные средства (стр.1410), в том числе:",null,{"$f":"IF('Форма 1. Пассив'!H22=\"(\",\"(\",\"\")","v":""},{"$f":"'Форма 1. Пассив'!I22","v":0},{"$f":"IF(H121=\"(\",\")\",\"\")","v":""},{"$f":"IF('Форма 1. Пассив'!K22=\"(\",\"(\",\"\")","v":""},{"$f":"'Форма 1. Пассив'!L22","v":0},{"$f":"IF(K121=\"(\",\")\",\"\")","v":""},{"$f":"IF('Форма 1. Пассив'!N22=\"(\",\"(\",\"\")","v":""},{"$f":"'Форма 1. Пассив'!O22","v":0},{"$f":"IF(N121=\"(\",\")\",\"\")","v":""}]
[null,null,null,null,"26.1",null,"14101",null,null,{"$f":"IF(H122=\"(\",\")\",\"\")","v":""},null,null,{"$f":"IF(K122=\"(\",\")\",\"\")","v":""},null,null,{"$f":"IF(N122=\"(\",\")\",\"\")","v":""}]
[null,null,null,null,"26.2",null,"14102",null,null,{"$f":"IF(H123=\"(\",\")\",\"\")","v":""},null,null,{"$f":"IF(K123=\"(\",\")\",\"\")","v":""},null,null,{"$f":"IF(N123=\"(\",\")\",\"\")","v":""}]
[null,null,null,null,null,"Добавить строку",null,null,null,null,null,null,null,null,null,null,"add_FORMA1_R1_range"]
[null,null,null,null,"27","Отложенные налоговые обязательства (стр.1420), в том числе:",null,{"$f":"IF('Форма 1. Пассив'!H23=\"(\",\"(\",\"\")","v":""},{"$f":"'Форма 1. Пассив'!I23","v":1535},{"$f":"IF(H125=\"(\",\")\",\"\")","v":""},{"$f":"IF('Форма 1. Пассив'!K23=\"(\",\"(\",\"\")","v":""},{"$f":"'Форма 1. Пассив'!L23","v":1513},{"$f":"IF(K125=\"(\",\")\",\"\")","v":""},{"$f":"IF('Форма 1. Пассив'!N23=\"(\",\"(\",\"\")","v":""},{"$f":"'Форма 1. Пассив'!O23","v":1273},{"$f":"IF(N125=\"(\",\")\",\"\")","v":""}]
[null,null,null,null,"27.1","Налогооблагаемые временные разницы между бух. и нал. Учетом (амортизация ОС)","14201",null,1535,{"$f":"IF(H126=\"(\",\")\",\"\")","v":""},null,1513,{"$f":"IF(K126=\"(\",\")\",\"\")","v":""},null,1273,{"$f":"IF(N126=\"(\",\")\",\"\")","v":""}]
[null,null,null,null,null,"Добавить строку",null,null,null,null,null,null,null,null,null,null,"add_FORMA1_R1_range"]
[null,null,null,null,"28","Оценочные обязательства (стр.1430), в том числе:",null,{"$f":"IF('Форма 1. Пассив'!H24=\"(\",\"(\",\"\")","v":""},{"$f":"'Форма 1. Пассив'!I24","v":0},{"$f":"IF(H128=\"(\",\")\",\"\")","v":""},{"$f":"IF('Форма 1. Пассив'!K24=\"(\",\"(\",\"\")","v":""},{"$f":"'Форма 1. Пассив'!L24","v":0},{"$f":"IF(K128=\"(\",\")\",\"\")","v":""},{"$f":"IF('Форма 1. Пассив'!N24=\"(\",\"(\",\"\")","v":""},{"$f":"'Форма 1. Пассив'!O24","v":0},{"$f":"IF(N128=\"(\",\")\",\"\")","v":""}]
[null,null,null,null,"28.1",null,"14301",null,null,{"$f":"IF(H129=\"(\",\")\",\"\")","v":""},null,null,{"$f":"IF(K129=\"(\",\")\",\"\")","v":""},null,null,{"$f":"IF(N129=\"(\",\")\",\"\")","v":""}]
[null,null,null,null,"28.2",null,"14302",null,null,{"$f":"IF(H130=\"(\",\")\",\"\")","v":""},null,null,{"$f":"IF(K130=\"(\",\")\",\"\")","v":""},null,null,{"$f":"IF(N130=\"(\",\")\",\"\")","v":""}]
[null,null,null,null,null,"Добавить строку",null,null,null,null,null,null,null,null,null,null,"add_FORMA1_R1_range"]
[null,null,null,null,"29","Вписываемые показатели (стр.1435), в том числе:",null,{"$f":"IF((SUMIF(OFFSET(SUM_1435_1,0,-1),\"\",SUM_1435_1)-SUMIF(OFFSET(SUM_1435_1,0,-1),\"(\",SUM_1435_1))<0,\"(\",\"\")","v":""},{"$f":"ABS(SUMIF(OFFSET(SUM_1435_1,0,-1),\"\",SUM_1435_1)-SUMIF(OFFSET(SUM_1435_1,0,-1),\"(\",SUM_1435_1))","v":0},{"$f":"IF(H132=\"(\",\")\",\"\")","v":""},{"$f":"IF((SUMIF(OFFSET(SUM_1435_2,0,-1),\"\",SUM_1435_2)-SUMIF(OFFSET(SUM_1435_2,0,-1),\"(\",SUM_1435_2))<0,\"(\",\"\")","v":""},{"$f":"ABS(SUMIF(OFFSET(SUM_1435_2,0,-1),\"\",SUM_1435_2)-SUMIF(OFFSET(SUM_1435_2,0,-1),\"(\",SUM_1435_2))","v":0},{"$f":"IF(K132=\"(\",\")\",\"\")","v":""},{"$f":"IF((SUMIF(OFFSET(SUM_1435_3,0,-1),\"\",SUM_1435_3)-SUMIF(OFFSET(SUM_1435_3,0,-1),\"(\",SUM_1435_3))<0,\"(\",\"\")","v":""},{"$f":"ABS(SUMIF(OFFSET(SUM_1435_3,0,-1),\"\",SUM_1435_3)-SUMIF(OFFSET(SUM_1435_3,0,-1),\"(\",SUM_1435_3))","v":0},{"$f":"IF(N132=\"(\",\")\",\"\")","v":""}]
[null,null,null,null,"29.1",null,14351,null,null,{"$f":"IF(H133=\"(\",\")\",\"\")","v":""},null,null,{"$f":"IF(K133=\"(\",\")\",\"\")","v":""},null,null,{"$f":"IF(N133=\"(\",\")\",\"\")","v":""}]
[null,null,null,null,"29.2",null,14352,null,null,{"$f":"IF(H134=\"(\",\")\",\"\")","v":""},null,null,{"$f":"IF(K134=\"(\",\")\",\"\")","v":""},null,null,{"$f":"IF(N134=\"(\",\")\",\"\")","v":""}]
[null,null,null,null,null,"Добавить строку",null,null,null,null,null,null,null,null,null,null,"add_FORMA1_R1_range"]
[null,null,null,null,"30","Прочие долгосрочные обязательства (стр.1450), в том числе:",null,{"$f":"IF('Форма 1. Пассив'!H25=\"(\",\"(\",\"\")","v":""},{"$f":"'Форма 1. Пассив'!I25","v":0},{"$f":"IF(H136=\"(\",\")\",\"\")","v":""},{"$f":"IF('Форма 1. Пассив'!K25=\"(\",\"(\",\"\")","v":""},{"$f":"'Форма 1. Пассив'!L25","v":0},{"$f":"IF(K136=\"(\",\")\",\"\")","v":""},{"$f":"IF('Форма 1. Пассив'!N25=\"(\",\"(\",\"\")","v":""},{"$f":"'Форма 1. Пассив'!O25","v":0},{"$f":"IF(N136=\"(\",\")\",\"\")","v":""}]
[null,null,null,null,"30.1",null,"14501",null,null,{"$f":"IF(H137=\"(\",\")\",\"\")","v":""},null,null,{"$f":"IF(K137=\"(\",\")\",\"\")","v":""},null,null,{"$f":"IF(N137=\"(\",\")\",\"\")","v":""}]
[null,null,null,null,null,"Добавить строку",null,null,null,null,null,null,null,null,null,null,"add_FORMA1_R1_range"]
[null,null,null,null,"31","Заемные средства (стр.1510), в том числе:",null,{"$f":"IF('Форма 1. Пассив'!H28=\"(\",\"(\",\"\")","v":""},{"$f":"'Форма 1. Пассив'!I28","v":0},{"$f":"IF(H139=\"(\",\")\",\"\")","v":""},{"$f":"IF('Форма 1. Пассив'!K28=\"(\",\"(\",\"\")","v":""},{"$f":"'Форма 1. Пассив'!L28","v":0},{"$f":"IF(K139=\"(\",\")\",\"\")","v":""},{"$f":"IF('Форма 1. Пассив'!N28=\"(\",\"(\",\"\")","v":""},{"$f":"'Форма 1. Пассив'!O28","v":0},{"$f":"IF(N139=\"(\",\")\",\"\")","v":""}]
[null,null,null,null,"31.1",null,"15101",null,null,{"$f":"IF(H140=\"(\",\")\",\"\")","v":""},null,null,{"$f":"IF(K140=\"(\",\")\",\"\")","v":""},null,null,{"$f":"IF(N140=\"(\",\")\",\"\")","v":""}]
[null,null,null,null,null,"Добавить строку",null,null,null,null,null,null,null,null,null,null,"add_FORMA1_R1_range"]
[null,null,null,null,"32","Кредиторская задолженность (стр.1520), в том числе:",null,{"$f":"IF('Форма 1. Пассив'!H29=\"(\",\"(\",\"\")","v":""},{"$f":"'Форма 1. Пассив'!I29","v":15336},{"$f":"IF(H142=\"(\",\")\",\"\")","v":""},{"$f":"IF('Форма 1. Пассив'!K29=\"(\",\"(\",\"\")","v":""},{"$f":"'Форма 1. Пассив'!L29","v":11382},{"$f":"IF(K142=\"(\",\")\",\"\")","v":""},{"$f":"IF('Форма 1. Пассив'!N29=\"(\",\"(\",\"\")","v":""},{"$f":"'Форма 1. Пассив'!O29","v":11036},{"$f":"IF(N142=\"(\",\")\",\"\")","v":""}]
[null,null,null,null,"32.1","поставщики и подрядчикизадолженность перед персоналом по зарплате - текущая на 31.12.2017","15201",null,4184,{"$f":"IF(H143=\"(\",\")\",\"\")","v":""},null,2936,{"$f":"IF(K143=\"(\",\")\",\"\")","v":""},null,3228,{"$f":"IF(N143=\"(\",\")\",\"\")","v":""}]
[null,null,null,null,"32.2","задолженность перед гос. Внебюджнтными фондами, текущая","15202",null,3227,"",null,3300,"",null,3441,""]
[null,null,null,null,"32.3","задолженность по налогам и сборам текущая","15203",null,1694,"",null,1689,"",null,1174,""]
[null,null,null,null,"32.4",null,"15204",null,6231,"",null,3457,"",null,3193,""]
[null,null,null,null,"32.5",null,"15205",null,null,"",null,null,"",null,null,""]
[null,null,null,null,"32.6",null,"15206",null,null,"",null,null,"",null,null,""]
[null,null,null,null,"32.7",null,"15207",null,null,"",null,null,"",null,null,""]
[null,null,null,null,null,"Добавить строку",null,null,null,null,null,null,null,null,null,null,"add_FORMA1_R1_range"]
[null,null,null,null,"33","Доходы будущих периодов (стр.1530), в том числе:",null,{"$f":"IF('Форма 1. Пассив'!H30=\"(\",\"(\",\"\")","v":""},{"$f":"'Форма 1. Пассив'!I30","v":6800},{"$f":"IF(H151=\"(\",\")\",\"\")","v":""},{"$f":"IF('Форма 1. Пассив'!K30=\"(\",\"(\",\"\")","v":""},{"$f":"'Форма 1. Пассив'!L30","v":9317},{"$f":"IF(K151=\"(\",\")\",\"\")","v":""},{"$f":"IF('Форма 1. Пассив'!N30=\"(\",\"(\",\"\")","v":""},{"$f":"'Форма 1. Пассив'!O30","v":5193},{"$f":"IF(N151=\"(\",\")\",\"\")","v":""}]
[null,null,null,null,"33.1","Стоимость ОС и материалов, которая будет погашаться через начисление амортизации и списание материалов в расход","15301",null,6800,{"$f":"IF(H152=\"(\",\")\",\"\")","v":""},null,9317,{"$f":"IF(K152=\"(\",\")\",\"\")","v":""},null,5193,{"$f":"IF(N152=\"(\",\")\",\"\")","v":""}]
[null,null,null,null,null,"Добавить строку",null,null,null,null,null,null,null,null,null,null,"add_FORMA1_R1_range"]
[null,null,null,null,"34","Оценочные обязательства (стр.1540), в том числе:",null,{"$f":"IF('Форма 1. Пассив'!H31=\"(\",\"(\",\"\")","v":""},{"$f":"'Форма 1. Пассив'!I31","v":0},{"$f":"IF(H154=\"(\",\")\",\"\")","v":""},{"$f":"IF('Форма 1. Пассив'!K31=\"(\",\"(\",\"\")","v":""},{"$f":"'Форма 1. Пассив'!L31","v":0},{"$f":"IF(K154=\"(\",\")\",\"\")","v":""},{"$f":"IF('Форма 1. Пассив'!N31=\"(\",\"(\",\"\")","v":""},{"$f":"'Форма 1. Пассив'!O31","v":0},{"$f":"IF(N154=\"(\",\")\",\"\")","v":""}]
[null,null,null,null,"34.1",null,"15401",null,null,{"$f":"IF(H155=\"(\",\")\",\"\")","v":""},null,null,{"$f":"IF(K155=\"(\",\")\",\"\")","v":""},null,null,{"$f":"IF(N155=\"(\",\")\",\"\")","v":""}]
[null,null,null,null,null,"Добавить строку",null,null,null,null,null,null,null,null,null,null,"add_FORMA1_R1_range"]
[null,null,null,null,"35","Вписываемые показатели (стр.1545), в том числе:",null,{"$f":"IF((SUMIF(OFFSET(SUM_1545_1,0,-1),\"\",SUM_1545_1)-SUMIF(OFFSET(SUM_1545_1,0,-1),\"(\",SUM_1545_1))<0,\"(\",\"\")","v":""},{"$f":"ABS(SUMIF(OFFSET(SUM_1545_1,0,-1),\"\",SUM_1545_1)-SUMIF(OFFSET(SUM_1545_1,0,-1),\"(\",SUM_1545_1))","v":0},{"$f":"IF(H157=\"(\",\")\",\"\")","v":""},{"$f":"IF((SUMIF(OFFSET(SUM_1545_2,0,-1),\"\",SUM_1545_2)-SUMIF(OFFSET(SUM_1545_2,0,-1),\"(\",SUM_1545_2))<0,\"(\",\"\")","v":""},{"$f":"ABS(SUMIF(OFFSET(SUM_1545_2,0,-1),\"\",SUM_1545_2)-SUMIF(OFFSET(SUM_1545_2,0,-1),\"(\",SUM_1545_2))","v":0},{"$f":"IF(K157=\"(\",\")\",\"\")","v":""},{"$f":"IF((SUMIF(OFFSET(SUM_1545_3,0,-1),\"\",SUM_1545_3)-SUMIF(OFFSET(SUM_1545_3,0,-1),\"(\",SUM_1545_3))<0,\"(\",\"\")","v":""},{"$f":"ABS(SUMIF(OFFSET(SUM_1545_3,0,-1),\"\",SUM_1545_3)-SUMIF(OFFSET(SUM_1545_3,0,-1),\"(\",SUM_1545_3))","v":0},{"$f":"IF(N157=\"(\",\")\",\"\")","v":""}]
[null,null,null,null,"35.1",null,15451,null,null,{"$f":"IF(H158=\"(\",\")\",\"\")","v":""},null,null,{"$f":"IF(K158=\"(\",\")\",\"\")","v":""},null,null,{"$f":"IF(N158=\"(\",\")\",\"\")","v":""}]
[null,null,null,null,"35.2",null,15452,null,null,{"$f":"IF(H159=\"(\",\")\",\"\")","v":""},null,null,{"$f":"IF(K159=\"(\",\")\",\"\")","v":""},null,null,{"$f":"IF(N159=\"(\",\")\",\"\")","v":""}]
[null,null,null,null,null,"Добавить строку",null,null,null,null,null,null,null,null,null,null,"add_FORMA1_R1_range"]
[null,null,null,null,"36","Прочие краткосрочные обязательства (стр.1550), в том числе:",null,{"$f":"IF('Форма 1. Пассив'!H32=\"(\",\"(\",\"\")","v":""},{"$f":"'Форма 1. Пассив'!I32","v":0},{"$f":"IF(H161=\"(\",\")\",\"\")","v":""},{"$f":"IF('Форма 1. Пассив'!K32=\"(\",\"(\",\"\")","v":""},{"$f":"'Форма 1. Пассив'!L32","v":0},{"$f":"IF(K161=\"(\",\")\",\"\")","v":""},{"$f":"IF('Форма 1. Пассив'!N32=\"(\",\"(\",\"\")","v":""},{"$f":"'Форма 1. Пассив'!O32","v":0},{"$f":"IF(N161=\"(\",\")\",\"\")","v":""}]
[null,null,null,null,"36.1",null,"15501",null,null,{"$f":"IF(H162=\"(\",\")\",\"\")","v":""},null,null,{"$f":"IF(K162=\"(\",\")\",\"\")","v":""},null,null,{"$f":"IF(N162=\"(\",\")\",\"\")","v":""}]
[null,null,null,null,null,"Добавить строку",null,null,null,null,null,null,null,null,null,null,"add_FORMA1_R1_range"]

{"sheet":"Форма 2. Доходы-расходы","index":6,"n_rows":39,"n_cols":13,"rows_kept":39,"cut":false,"hidden":false,"merged":[[8,4,8,12],[11,7,11,9],[11,10,11,12],[12,7,12,9],[12,10,12,12]]}
[]
[]
[]
[]
[]
[null,null,null,null,{"$f":"Getcode()","v":"ELPASS.FORMS.BH"},null,null,null,null,null,null,null,{"$f":"version","v":"Версия 1.0 от 01.10.2017"}]
[]
[null,null,null,null,null,null,null,null,null,null,null,null,"Форма 0710002 с. 1-2"]
[null,null,null,null,"Отчёт о финансовых результатах "]
[]
[]
[null,null,null,null,"Пояснения","Наименование ","Код ",{"$f":"\"За \"&IF(List_01_reporting_period=\"\",\"отчётный период\",List_01_reporting_period&\" г.\")","v":"За 2017 г."},null,null,{"$f":"\"За \"&IF(List_01_reporting_period=\"\",\"отчётный период\",List_01_reporting_period-1&\" г.\")","v":"За 2016 г."}]
[null,null,null,null,1,"2","3","4",null,null,"5"]
[null,null,null,null,null,"Выручка (за минусом налога на добавленную стоимость, акцизов)","2110",null,140296,{"$f":"IF(H14=\"(\",\")\",\"\")","v":""},null,129282,{"$f":"IF(K14=\"(\",\")\",\"\")","v":""}]
[null,null,null,null,null,"Себестоимость продаж","2120","(",153198,")","(",149353,")"]
[null,null,null,null,null,"Валовая прибыль (убыток)","2100","(",12902,{"$f":"IF(H16=\"(\",\")\",\"\")","v":")"},"(",20071,{"$f":"IF(K16=\"(\",\")\",\"\")","v":")"}]
[null,null,null,null,null,"Коммерческие расходы","2210","(",null,")","(",null,")"]
[null,null,null,null,null,"Управленческие расходы","2220","(",null,")","(",null,")"]
[null,null,null,null,null,"Прибыль (убыток) от продаж ","2200","(",12902,{"$f":"IF(H19=\"(\",\")\",\"\")","v":")"},"(",20071,{"$f":"IF(K19=\"(\",\")\",\"\")","v":")"}]
[null,null,null,null,null,"Доходы от участия в других организациях","2310",null,null,{"$f":"IF(H20=\"(\",\")\",\"\")","v":""},null,null,{"$f":"IF(K20=\"(\",\")\",\"\")","v":""}]
[null,null,null,null,null,"Проценты к получению","2320",null,236,{"$f":"IF(H21=\"(\",\")\",\"\")","v":""},null,124,{"$f":"IF(K21=\"(\",\")\",\"\")","v":""}]
[null,null,null,null,null,"Проценты к уплате","2330","(",null,")","(",null,")"]
[null,null,null,null,null,"Прочие доходы","2340",null,23148,null,null,29343,{"$f":"IF(K23=\"(\",\")\",\"\")","v":""}]
[null,null,null,null,null,"Прочие расходы","2350","(",8891,")","(",3733,")"]
[null,null,null,null,null,"Прибыль (убыток) до налогообложения ","2300",null,1591,{"$f":"IF(H25=\"(\",\")\",\"\")","v":""},null,5663,{"$f":"IF(K25=\"(\",\")\",\"\")","v":""}]
[null,null,null,null,null,"Текущий налог на прибыль","2410","(",594,")","(",null,")"]
[null,null,null,null,null,"в т.ч. постоянные налоговые обязательства (активы)","2421","(",830,{"$f":"IF(H27=\"(\",\")\",\"\")","v":")"},null,null,""]
[null,null,null,null,null,"Изменение отложенных налоговых обязательствов","2430","(",22,{"$f":"IF(H28=\"(\",\")\",\"\")","v":")"},"(",240,")"]
[null,null,null,null,null,"Изменение отложенных налоговых активов","2450","(",643,{"$f":"IF(H29=\"(\",\")\",\"\")","v":")"},"(",1478,")"]
[null,null,null,null,null,"Прочее","2460","(",1,{"$f":"IF(H30=\"(\",\")\",\"\")","v":")"},"(",74,")"]
[null,null,null,null,null,"Чистая прибыль (убыток)","2400",null,331,{"$f":"IF(H31=\"(\",\")\",\"\")","v":""},null,3871,""]
[null,null,null,null,null,"Справочно"]
[null,null,null,null,null,"Результат от переоценки внеоборотных активов, не включаемый в чистую прибыль (убыток) периода","2510",null,null,{"$f":"IF(H33=\"(\",\")\",\"\")","v":""},null,null,{"$f":"IF(K33=\"(\",\")\",\"\")","v":""}]
[null,null,null,null,null,"Результат от прочих операций, не включаемый в чистую прибыль (убыток) периода","2520",null,null,{"$f":"IF(H34=\"(\",\")\",\"\")","v":""},null,null,{"$f":"IF(K34=\"(\",\")\",\"\")","v":""}]
[null,null,null,null,null,"Совокупный финансовый результат периода","2500",{"$f":"IF((SUMIF(H31:H34,\"\",I31:I34)-SUMIF(H31:H34,\"(\",I31:I34))<0,\"(\",\"\")","v":""},{"$f":"ABS(SUMIF(H31:H34,\"\",I31:I34)-SUMIF(H31:H34,\"(\",I31:I34))","v":331},{"$f":"IF(H35=\"(\",\")\",\"\")","v":""},{"$f":"IF((SUMIF(K31:K34,\"\",L31:L34)-SUMIF(K31:K34,\"(\",L31:L34))<0,\"(\",\"\")","v":""},{"$f":"ABS(SUMIF(K31:K34,\"\",L31:L34)-SUMIF(K31:K34,\"(\",L31:L34))","v":3871},{"$f":"IF(K35=\"(\",\")\",\"\")","v":""}]
[null,null,null,null,null,"Базовая прибыль (убыток) на акцию","2900",null,null,{"$f":"IF(H36=\"(\",\")\",\"\")","v":""},null,null,{"$f":"IF(K36=\"(\",\")\",\"\")","v":""}]
[null,null,null,null,null,"Единица измерения по строке 2900"]
[null,null,null,null,null,"Разводненная прибыль (убыток) на акцию","2910",null,null,{"$f":"IF(H38=\"(\",\")\",\"\")","v":""},null,null,{"$f":"IF(K38=\"(\",\")\",\"\")","v":""}]
[null,null,null,null,null,"Единица измерения по строке 2910"]

{"sheet":"Форма2. Расшифровка показателей","index":7,"n_rows":77,"n_cols":14,"rows_kept":77,"cut":false,"hidden":false,"merged":[[10,7,10,9],[10,10,10,12],[11,7,11,9],[11,10,11,12],[7,4,7,12],[8,4,8,12]]}
[]
[]
[]
[]
[null,null,null,null,{"$f":"Getcode()","v":"ELPASS.FORMS.BH"},null,null,null,null,null,null,null,{"$f":"version","v":"Версия 1.0 от 01.10.2017"}]
[]
[null,null,null,null,null,null,null,null,null,null,null,null,"Форма 0710002 с. 3"]
[null,null,null,null,"Отчёт о финансовых результатах "]
[null,null,null,null,"Расшифровка отдельных показателей"]
[]
[null,null,null,null,"№\nп/п","Наименование","Код",{"$f":"\"За \"&IF(List_01_reporting_period=\"\",\"отчётный период\",List_01_reporting_period&\" г.\")","v":"За 2017 г."},null,null,{"$f":"\"За \"&IF(List_01_reporting_period=\"\",\"отчётный период\",List_01_reporting_period-1&\" г.\")","v":"За 2016 г."}]
[null,null,null,null,1,"2","3","4",null,null,"5"]
[null,null,null,null,"1","Выручка (стр.2110), в том числе:",null,{"$f":"IF('Форма 2. Доходы-расходы'!H14=\"(\",\"(\",\"\")","v":""},{"$f":"'Форма 2. Доходы-расходы'!I14","v":140296},{"$f":"IF(H13=\"(\",\")\",\"\")","v":""},{"$f":"IF('Форма 2. Доходы-расходы'!K14=\"(\",\"(\",\"\")","v":""},{"$f":"'Форма 2. Доходы-расходы'!L14","v":129282},{"$f":"IF(K13=\"(\",\")\",\"\")","v":""}]
[null,null,null,null,"1.1","Доходы от реализации продукции, работ, услуг без НДС","21101",null,140296,{"$f":"IF(H14=\"(\",\")\",\"\")","v":""},null,129282,{"$f":"IF(K14=\"(\",\")\",\"\")","v":""}]
[null,null,null,null,"1.2",null,"21102",null,null,{"$f":"IF(H15=\"(\",\")\",\"\")","v":""},null,null,{"$f":"IF(K15=\"(\",\")\",\"\")","v":""}]
[null,null,null,null,null,"Добавить строку",null,null,null,null,null,null,null,"add_FORMA2_R1_range"]
[null,null,null,null,"2","Себестоимость продаж (стр.2120), в том числе:",null,{"$f":"IF('Форма 2. Доходы-расходы'!H15=\"(\",\"(\",\"\")","v":"("},{"$f":"'Форма 2. Доходы-расходы'!I15","v":153198},{"$f":"IF(H17=\"(\",\")\",\"\")","v":")"},{"$f":"IF('Форма 2. Доходы-расходы'!K15=\"(\",\"(\",\"\")","v":"("},{"$f":"'Форма 2. Доходы-расходы'!L15","v":149353},{"$f":"IF(K17=\"(\",\")\",\"\")","v":")"}]
[null,null,null,null,"2.1","Затраты на производство продукции, работ, услуг","21201","(",153198,")","(",149353,")"]
[null,null,null,null,"2.2",null,21202,"(",null,")","(",null,")"]
[null,null,null,null,null,"Добавить строку",null,null,null,null,null,null,null,"add_FORMA2_R2_range"]
[null,null,null,null,"3","Валовая прибыль (убыток) (стр.2100), в том числе:",null,{"$f":"IF('Форма 2. Доходы-расходы'!H16=\"(\",\"(\",\"\")","v":"("},{"$f":"'Форма 2. Доходы-расходы'!I16","v":12902},{"$f":"IF(H21=\"(\",\")\",\"\")","v":")"},{"$f":"IF('Форма 2. Доходы-расходы'!K16=\"(\",\"(\",\"\")","v":"("},{"$f":"'Форма 2. Доходы-расходы'!L16","v":20071},{"$f":"IF(K21=\"(\",\")\",\"\")","v":")"}]
[null,null,null,null,"3.1","Прибыль убыток от основной деятельности","21001",null,12902,{"$f":"IF(H22=\"(\",\")\",\"\")","v":""},null,20071,{"$f":"IF(K22=\"(\",\")\",\"\")","v":""}]
[null,null,null,null,"3.2",null,"21002",null,null,{"$f":"IF(H23=\"(\",\")\",\"\")","v":""},null,null,{"$f":"IF(K23=\"(\",\")\",\"\")","v":""}]
[null,null,null,null,null,"Добавить строку",null,null,null,null,null,null,null,"add_FORMA2_R1_range"]
[null,null,null,null,"4","Коммерческие расходы (стр.2210), в том числе:",null,{"$f":"IF('Форма 2. Доходы-расходы'!H17=\"(\",\"(\",\"\")","v":"("},{"$f":"'Форма 2. Доходы-расходы'!I17","v":0},{"$f":"IF(H25=\"(\",\")\",\"\")","v":")"},{"$f":"IF('Форма 2. Доходы-расходы'!K17=\"(\",\"(\",\"\")","v":"("},{"$f":"'Форма 2. Доходы-расходы'!L17","v":0},{"$f":"IF(K25=\"(\",\")\",\"\")","v":")"}]
[null,null,null,null,"4.1",null,"22101","(",null,")","(",null,")"]
[null,null,null,null,null,"Добавить строку",null,null,null,null,null,null,null,"add_FORMA2_R2_range"]
[null,null,null,null,"5","Управленческие расходы (стр.2220), в том числе:",null,{"$f":"IF('Форма 2. Доходы-расходы'!H18=\"(\",\"(\",\"\")","v":"("},{"$f":"'Форма 2. Доходы-расходы'!I18","v":0},{"$f":"IF(H28=\"(\",\")\",\"\")","v":")"},{"$f":"IF('Форма 2. Доходы-расходы'!K18=\"(\",\"(\",\"\")","v":"("},{"$f":"'Форма 2. Доходы-расходы'!L18","v":0},{"$f":"IF(K28=\"(\",\")\",\"\")","v":")"}]
[null,null,null,null,"5.1",null,"22201","(",null,")","(",null,")"]
[null,null,null,null,null,"Добавить строку",null,null,null,null,null,null,null,"add_FORMA2_R2_range"]
[null,null,null,null,"6","Прибыль (убыток) от продаж (стр.2200), в том числе:",null,{"$f":"IF('Форма 2. Доходы-расходы'!H19=\"(\",\"(\",\"\")","v":"("},{"$f":"'Форма 2. Доходы-расходы'!I19","v":12902},{"$f":"IF(H31=\"(\",\")\",\"\")","v":")"},{"$f":"IF('Форма 2. Доходы-расходы'!K19=\"(\",\"(\",\"\")","v":"("},{"$f":"'Форма 2. Доходы-расходы'!L19","v":20071},{"$f":"IF(K31=\"(\",\")\",\"\")","v":")"}]
[null,null,null,null,"6.1","Прибыль, убыток от основной деятельности","22001","(",12902,{"$f":"IF(H32=\"(\",\")\",\"\")","v":")"},"(",20071,{"$f":"IF(K32=\"(\",\")\",\"\")","v":")"}]
[null,null,null,null,"6.2",null,"22002",null,null,{"$f":"IF(H33=\"(\",\")\",\"\")","v":""},null,null,{"$f":"IF(K33=\"(\",\")\",\"\")","v":""}]
[null,null,null,null,null,"Добавить строку",null,null,null,null,null,null,null,"add_FORMA2_R1_range"]
[null,null,null,null,"7","Доходы от участия в других организациях (стр.2310), в том числе:",null,{"$f":"IF('Форма 2. Доходы-расходы'!H20=\"(\",\"(\",\"\")","v":""},{"$f":"'Форма 2. Доходы-расходы'!I20","v":0},{"$f":"IF(H35=\"(\",\")\",\"\")","v":""},{"$f":"IF('Форма 2. Доходы-расходы'!K20=\"(\",\"(\",\"\")","v":""},{"$f":"'Форма 2. Доходы-расходы'!L20","v":0},{"$f":"IF(K35=\"(\",\")\",\"\")","v":""}]
[null,null,null,null,"7.1",null,"23101",null,null,{"$f":"IF(H36=\"(\",\")\",\"\")","v":""},null,null,{"$f":"IF(K36=\"(\",\")\",\"\")","v":""}]
[null,null,null,null,null,"Добавить строку",null,null,null,null,null,null,null,"add_FORMA2_R1_range"]
[null,null,null,null,"8","Проценты к получению (стр.2320), в том числе:",null,{"$f":"IF('Форма 2. Доходы-расходы'!H21=\"(\",\"(\",\"\")","v":""},{"$f":"'Форма 2. Доходы-расходы'!I21","v":236},{"$f":"IF(H38=\"(\",\")\",\"\")","v":""},{"$f":"IF('Форма 2. Доходы-расходы'!K21=\"(\",\"(\",\"\")","v":""},{"$f":"'Форма 2. Доходы-расходы'!L21","v":124},{"$f":"IF(K38=\"(\",\")\",\"\")","v":""}]
[null,null,null,null,"8.1","Проценты банка","23201",null,236,null,null,124]
[null,null,null,null,null,"Добавить строку",null,null,null,null,null,null,null,"add_FORMA2_R1_range"]
[null,null,null,null,"9","Проценты к уплате (стр.2330), в том числе:",null,{"$f":"IF('Форма 2. Доходы-расходы'!H22=\"(\",\"(\",\"\")","v":"("},{"$f":"'Форма 2. Доходы-расходы'!I22","v":0},{"$f":"IF(H41=\"(\",\")\",\"\")","v":")"},{"$f":"IF('Форма 2. Доходы-расходы'!K22=\"(\",\"(\",\"\")","v":"("},{"$f":"'Форма 2. Доходы-расходы'!L22","v":0},{"$f":"IF(K41=\"(\",\")\",\"\")","v":")"}]
[null,null,null,null,"9.1",null,"23301","(",null,")","(",null,")"]
[null,null,null,null,null,"Добавить строку",null,null,null,null,null,null,null,"add_FORMA2_R2_range"]
[null,null,null,null,"10","Прочие доходы (стр.2340), в том числе:",null,{"$f":"IF('Форма 2. Доходы-расходы'!H23=\"(\",\"(\",\"\")","v":""},{"$f":"'Форма 2. Доходы-расходы'!I23","v":23148},{"$f":"IF(H44=\"(\",\")\",\"\")","v":""},{"$f":"IF('Форма 2. Доходы-расходы'!K23=\"(\",\"(\",\"\")","v":""},{"$f":"'Форма 2. Доходы-расходы'!L23","v":29343},{"$f":"IF(K44=\"(\",\")\",\"\")","v":""}]
[null,null,null,null,"10.1","Субсидии, выделенные из бюджета и учтенные как внереализационный доход ","23401",null,22860,{"$f":"IF(H45=\"(\",\")\",\"\")","v":""},null,29297,{"$f":"IF(K45=\"(\",\")\",\"\")","v":""}]
[null,null,null,null,"10.2",null,"23402",null,null,{"$f":"IF(H46=\"(\",\")\",\"\")","v":""},null,null,{"$f":"IF(K46=\"(\",\")\",\"\")","v":""}]
[null,null,null,null,"10.3",null,"23403",null,null,{"$f":"IF(H47=\"(\",\")\",\"\")","v":""},null,null,{"$f":"IF(K47=\"(\",\")\",\"\")","v":""}]
[null,null,null,null,null,"Добавить строку",null,null,null,null,null,null,null,"add_FORMA2_R1_range"]
[null,null,null,null,"11","Прочие расходы (стр.2350), в том числе:",null,{"$f":"IF('Форма 2. Доходы-расходы'!H24=\"(\",\"(\",\"\")","v":"("},{"$f":"'Форма 2. Доходы-расходы'!I24","v":8891},{"$f":"IF(H49=\"(\",\")\",\"\")","v":")"},{"$f":"IF('Форма 2. Доходы-расходы'!K24=\"(\",\"(\",\"\")","v":"("},{"$f":"'Форма 2. Доходы-расходы'!L24","v":3733},{"$f":"IF(K49=\"(\",\")\",\"\")","v":")"}]
[null,null,null,null,"11.1",null,"23501","(",null,")","(",null,")"]
[null,null,null,null,"11.2",null,"23502","(",null,")","(",null,")"]
[null,null,null,null,"11.3",null,"23503","(",null,")","(",null,")"]
[null,null,null,null,null,"Добавить строку",null,null,null,null,null,null,null,"add_FORMA2_R2_range"]
[null,null,null,null,"12","Прибыль (убыток) до налогообложения (стр.2300), в том числе:",null,{"$f":"IF('Форма 2. Доходы-расходы'!H25=\"(\",\"(\",\"\")","v":""},{"$f":"'Форма 2. Доходы-расходы'!I25","v":1591},{"$f":"IF(H54=\"(\",\")\",\"\")","v":""},{"$f":"IF('Форма 2. Доходы-расходы'!K25=\"(\",\"(\",\"\")","v":""},{"$f":"'Форма 2. Доходы-расходы'!L25","v":5663},{"$f":"IF(K54=\"(\",\")\",\"\")","v":""}]
[null,null,null,null,"12.1",null,"23001",null,null,{"$f":"IF(H55=\"(\",\")\",\"\")","v":""},null,null,{"$f":"IF(K55=\"(\",\")\",\"\")","v":""}]
[null,null,null,null,"12.2",null,"23002",null,null,{"$f":"IF(H56=\"(\",\")\",\"\")","v":""},null,null,{"$f":"IF(K56=\"(\",\")\",\"\")","v":""}]
[null,null,null,null,null,"Добавить строку",null,null,null,null,null,null,null,"add_FORMA2_R1_range"]
[null,null,null,null,"13","В том числе постоянные налоговые обязательства (активы) (стр.2421), в том числе:",null,{"$f":"IF('Форма 2. Доходы-расходы'!H27=\"(\",\"(\",\"\")","v":"("},{"$f":"'Форма 2. Доходы-расходы'!I27","v":830},{"$f":"IF(H58=\"(\",\")\",\"\")","v":")"},{"$f":"IF('Форма 2. Доходы-расходы'!K27=\"(\",\"(\",\"\")","v":""},{"$f":"'Форма 2. Доходы-расходы'!L27","v":0},{"$f":"IF(K58=\"(\",\")\",\"\")","v":""}]
[null,null,null,null,"13.1",null,"24211",null,null,{"$f":"IF(H59=\"(\",\")\",\"\")","v":""},null,null,{"$f":"IF(K59=\"(\",\")\",\"\")","v":""}]
[null,null,null,null,null,"Добавить строку",null,null,null,null,null,null,null,"add_FORMA2_R1_range"]
[null,null,null,null,"14","Изменение отложенных налоговых обязательствов (стр.2430), в том числе:",null,{"$f":"IF('Форма 2. Доходы-расходы'!H28=\"(\",\"(\",\"\")","v":"("},{"$f":"'Форма 2. Доходы-расходы'!I28","v":22},{"$f":"IF(H61=\"(\",\")\",\"\")","v":")"},{"$f":"IF('Форма 2. Доходы-расходы'!K28=\"(\",\"(\",\"\")","v":"("},{"$f":"'Форма 2. Доходы-расходы'!L28","v":240},{"$f":"IF(K61=\"(\",\")\",\"\")","v":")"}]
[null,null,null,null,"14.1","Амортизация для налогового учета ОС, единовременное списание ОС стоимостью до 100000 руб.","24301","(",22,{"$f":"IF(H62=\"(\",\")\",\"\")","v":")"},"(",240,{"$f":"IF(K62=\"(\",\")\",\"\")","v":")"}]
[null,null,null,null,null,"Добавить строку",null,null,null,null,null,null,null,"add_FORMA2_R1_range"]
[null,null,null,null,"15","Изменение отложенных налоговых активов (стр.2450), в том числе:",null,{"$f":"IF('Форма 2. Доходы-расходы'!H29=\"(\",\"(\",\"\")","v":"("},{"$f":"'Форма 2. Доходы-расходы'!I29","v":643},{"$f":"IF(H64=\"(\",\")\",\"\")","v":")"},{"$f":"IF('Форма 2. Доходы-расходы'!K29=\"(\",\"(\",\"\")","v":"("},{"$f":"'Форма 2. Доходы-расходы'!L29","v":1478},{"$f":"IF(K64=\"(\",\")\",\"\")","v":")"}]
[null,null,null,null,"15.1","Прибыль (убыток) по налоговому учету, расходы будущих периодов, заработная плата","24501","(",643,{"$f":"IF(H65=\"(\",\")\",\"\")","v":")"},"(",1478,{"$f":"IF(K65=\"(\",\")\",\"\")","v":")"}]
[null,null,null,null,null,"Добавить строку",null,null,null,null,null,null,null,"add_FORMA2_R1_range"]
[null,null,null,null,"16","Прочее (стр.2460), в том числе:",null,{"$f":"IF('Форма 2. Доходы-расходы'!H30=\"(\",\"(\",\"\")","v":"("},{"$f":"'Форма 2. Доходы-расходы'!I30","v":1},{"$f":"IF(H67=\"(\",\")\",\"\")","v":")"},{"$f":"IF('Форма 2. Доходы-расходы'!K30=\"(\",\"(\",\"\")","v":"("},{"$f":"'Форма 2. Доходы-расходы'!L30","v":74},{"$f":"IF(K67=\"(\",\")\",\"\")","v":")"}]
[null,null,null,null,"16.1","Пени по проверке ПФР","24601","(",1,{"$f":"IF(H68=\"(\",\")\",\"\")","v":")"},"(",74,{"$f":"IF(K68=\"(\",\")\",\"\")","v":")"}]
[null,null,null,null,"16.2",null,"24602",null,null,{"$f":"IF(H69=\"(\",\")\",\"\")","v":""},null,null,{"$f":"IF(K69=\"(\",\")\",\"\")","v":""}]
[null,null,null,null,"16.3",null,"24603",null,null,{"$f":"IF(H70=\"(\",\")\",\"\")","v":""},null,null,{"$f":"IF(K70=\"(\",\")\",\"\")","v":""}]
[null,null,null,null,null,"Добавить строку",null,null,null,null,null,null,null,"add_FORMA2_R1_range"]
[null,null,null,null,"17","Результат от переоценки внеоборотных активов, не включаемый в чистую прибыль (убыток) периода (стр.2510), в том числе:",null,{"$f":"IF('Форма 2. Доходы-расходы'!H33=\"(\",\"(\",\"\")","v":""},{"$f":"'Форма 2. Доходы-расходы'!I33","v":0},{"$f":"IF(H72=\"(\",\")\",\"\")","v":""},{"$f":"IF('Форма 2. Доходы-расходы'!K33=\"(\",\"(\",\"\")","v":""},{"$f":"'Форма 2. Доходы-расходы'!L33","v":0},{"$f":"IF(K72=\"(\",\")\",\"\")","v":""}]
[null,null,null,null,"17.1",null,"25101",null,null,{"$f":"IF(H73=\"(\",\")\",\"\")","v":""},null,null,{"$f":"IF(K73=\"(\",\")\",\"\")","v":""}]
[null,null,null,null,null,"Добавить строку",null,null,null,null,null,null,null,"add_FORMA2_R1_range"]
[null,null,null,null,"18","Результат от прочих операций, не включаемый в чистую прибыль (убыток) периода (стр.2520), в том числе:",null,{"$f":"IF('Форма 2. Доходы-расходы'!H34=\"(\",\"(\",\"\")","v":""},{"$f":"'Форма 2. Доходы-расходы'!I34","v":0},{"$f":"IF(H75=\"(\",\")\",\"\")","v":""},{"$f":"IF('Форма 2. Доходы-расходы'!K34=\"(\",\"(\",\"\")","v":""},{"$f":"'Форма 2. Доходы-расходы'!L34","v":0},{"$f":"IF(K75=\"(\",\")\",\"\")","v":""}]
[null,null,null,null,"18.1",null,"25201",null,null,{"$f":"IF(H76=\"(\",\")\",\"\")","v":""},null,null,{"$f":"IF(K76=\"(\",\")\",\"\")","v":""}]
[null,null,null,null,null,"Добавить строку",null,null,null,null,null,null,null,"add_FORMA2_R1_range"]

{"sheet":"Форма 3. Движение капитала","index":8,"n_rows":56,"n_cols":27,"rows_kept":56,"cut":false,"hidden":false,"merged":[[7,5,7,25],[8,5,8,25],[10,17,11,19],[10,20,11,22],[10,23,11,25],[12,23,12,25],[10,5,11,5],[10,6,11,6],[10,7,11,7],[10,8,11,10],[10,11,11,13],[10,14,11,16],[12,8,12,10],[12,11,12,13],[12,14,12,16],[12,17,12,19],[12,20,12,22]]}
[]
[]
[]
[]
[null,null,null,null,null,{"$f":"Getcode()","v":"ELPASS.FORMS.BH"},null,null,null,null,null,null,null,null,null,null,null,null,null,null,null,null,null,null,null,{"$f":"version","v":"Версия 1.0 от 01.10.2017"}]
[]
[null,null,null,null,null,null,null,null,null,null,null,null,null,null,null,null,null,null,null,null,null,null,null,null,null,"Форма 0710023 с. 1-2"]
[null,null,null,null,null,"Отчет об изменениях капитала"]
[null,null,null,null,null,"1. Движение капитала"]
[]
[null,null,null,null,null,"№\nп/п","Наименование","Код","Уставный капитал",null,null,"Собственные акции, выкупленные у акционеров",null,null,"Добавочный капитал",null,null,"Резервный капитал",null,null,"Нераспределённая прибыль (непокрытый убыток)",null,null,"Итого"]
[]
[null,null,null,null,null,1,2,3,4,null,null,5,null,null,6,null,null,7,null,null,8,null,null,9]
[null,null,null,null,null,1,{"$f":"\"Величина капитала на 31 декабря \"&IF(List_01_reporting_period>0,List_01_reporting_period-2&\" г. \",\"НЕ УКАЗАН\")& \" (год, предшествующий предыдущему)\"","v":"Величина капитала на 31 декабря 2015 г.  (год, предшествующий предыдущему)"},3100,null,40732,{"$f":"IF(I14=\"(\",\")\",\"\")","v":""},"(",null,")",null,30799,{"$f":"IF(O14=\"(\",\")\",\"\")","v":""},null,null,{"$f":"IF(R14=\"(\",\")\",\"\")","v":""},"(",3893,{"$f":"IF(U14=\"(\",\")\",\"\")","v":")"},{"$f":"IF(IF(I14=\"(\",-J14,J14)+IF(L14=\"(\",-M14,M14)+IF(O14=\"(\",-P14,P14)+IF(R14=\"(\",-S14,S14)+IF(U14=\"(\",-V14,V14)<0,\"(\",\"\")","v":""},{"$f":"ABS(IF(I14=\"(\",-J14,J14)+IF(L14=\"(\",-M14,M14)+IF(O14=\"(\",-P14,P14)+IF(R14=\"(\",-S14,S14)+IF(U14=\"(\",-V14,V14))","v":67638},{"$f":"IF(X14=\"(\",\")\",\"\")","v":""}]
[null,null,null,null,null,2,{"$f":"\"За \"&IF(List_01_reporting_period>0,List_01_reporting_period-1&\" г. \",\"НЕ УКАЗАН\")& \" (предыдущий год)\"","v":"За 2016 г.  (предыдущий год)"}]
[null,null,null,null,null,"2.1","Увеличение капитала - всего, в том числе:                                    ",3210,{"$f":"IF(((SUMIF(I17:I23,\"\",J17:J23)-SUMIF(I17:I23,\"(\",J17:J23)))<0,\"(\",\"\")","v":""},{"$f":"ABS((SUMIF(I17:I23,\"\",J17:J23)-SUMIF(I17:I23,\"(\",J17:J23)))","v":0},{"$f":"IF(I16=\"(\",\")\",\"\")","v":""},{"$f":"IF(((SUMIF(L17:L23,\"\",M17:M23)-SUMIF(L17:L23,\"(\",M17:M23)))<0,\"(\",\"\")","v":""},{"$f":"ABS((SUMIF(L17:L23,\"\",M17:M23)-SUMIF(L17:L23,\"(\",M17:M23)))","v":0},{"$f":"IF(L16=\"(\",\")\",\"\")","v":""},{"$f":"IF(((SUMIF(O17:O23,\"\",P17:P23)-SUMIF(O17:O23,\"(\",P17:P23)))<0,\"(\",\"\")","v":""},{"$f":"ABS((SUMIF(O17:O23,\"\",P17:P23)-SUMIF(O17:O23,\"(\",P17:P23)))","v":0},{"$f":"IF(O16=\"(\",\")\",\"\")","v":""},{"$f":"IF(((SUMIF(R17:R23,\"\",S17:S23)-SUMIF(R17:R23,\"(\",S17:S23)))<0,\"(\",\"\")","v":""},{"$f":"ABS((SUMIF(R17:R23,\"\",S17:S23)-SUMIF(R17:R23,\"(\",S17:S23)))","v":0},{"$f":"IF(R16=\"(\",\")\",\"\")","v":""},{"$f":"IF(((SUMIF(U17:U23,\"\",V17:V23)-SUMIF(U17:U23,\"(\",V17:V23)))<0,\"(\",\"\")","v":""},{"$f":"ABS((SUMIF(U17:U23,\"\",V17:V23)-SUMIF(U17:U23,\"(\",V17:V23)))","v":9935},{"$f":"IF(U16=\"(\",\")\",\"\")","v":""},{"$f":"IF(IF(I16=\"(\",-J16,J16)+IF(L16=\"(\",-M16,M16)+IF(O16=\"(\",-P16,P16)+IF(R16=\"(\",-S16,S16)+IF(U16=\"(\",-V16,V16)<0,\"(\",\"\")","v":""},{"$f":"ABS(IF(I16=\"(\",-J16,J16)+IF(L16=\"(\",-M16,M16)+IF(O16=\"(\",-P16,P16)+IF(R16=\"(\",-S16,S16)+IF(U16=\"(\",-V16,V16))","v":9935},{"$f":"IF(X16=\"(\",\")\",\"\")","v":""}]
[null,null,null,null,null,"2.1.1","чистая прибыль",3211,null,"x",null,null,"x",null,null,"x",null,null,"x",null,null,3871,{"$f":"IF(U17=\"(\",\")\",\"\")","v":""},{"$f":"IF(U17=\"(\",\"(\",\"\")","v":""},{"$f":"V17","v":3871},""]
[null,null,null,null,null,"2.1.2","переоценка имущества",3212,null,"x",null,null,"x",null,null,null,{"$f":"IF(O18=\"(\",\")\",\"\")","v":""},null,"x",null,null,null,{"$f":"IF(U18=\"(\",\")\",\"\")","v":""},{"$f":"IF(IF(O18=\"(\",-P18,P18)+IF(U18=\"(\",-V18,V18)<0,\"(\",\"\")","v":""},{"$f":"ABS(IF(O18=\"(\",-P18,P18)+IF(U18=\"(\",-V18,V18))","v":0},""]
[null,null,null,null,null,"2.1.3","доходы, относящиеся непосредственно на увеличение капитала",3213,null,"x",null,null,"x",null,null,null,{"$f":"IF(O19=\"(\",\")\",\"\")","v":""},null,"x",null,null,6064,{"$f":"IF(U19=\"(\",\")\",\"\")","v":""},{"$f":"IF(IF(O19=\"(\",-P19,P19)+IF(U19=\"(\",-V19,V19)<0,\"(\",\"\")","v":""},{"$f":"ABS(IF(O19=\"(\",-P19,P19)+IF(U19=\"(\",-V19,V19))","v":6064},""]
[null,null,null,null,null,"2.1.4","дополнительный выпуск акций ",3214,null,null,{"$f":"IF(I20=\"(\",\")\",\"\")","v":""},null,null,{"$f":"IF(L20=\"(\",\")\",\"\")","v":""},null,null,{"$f":"IF(O20=\"(\",\")\",\"\")","v":""},null,"x",null,null,"x",null,{"$f":"IF(IF(I20=\"(\",-J20,J20)+IF(L20=\"(\",-M20,M20)+IF(O20=\"(\",-P20,P20)<0,\"(\",\"\")","v":""},{"$f":"ABS(IF(I20=\"(\",-J20,J20)+IF(L20=\"(\",-M20,M20)+IF(O20=\"(\",-P20,P20))","v":0},""]
[null,null,null,null,null,"2.1.5","увеличение номинальной стоимости акций",3215,null,null,{"$f":"IF(I21=\"(\",\")\",\"\")","v":""},null,null,{"$f":"IF(L21=\"(\",\")\",\"\")","v":""},null,null,{"$f":"IF(O21=\"(\",\")\",\"\")","v":""},null,"x",null,null,null,{"$f":"IF(U21=\"(\",\")\",\"\")","v":""},null,"x"]
[null,null,null,null,null,"2.1.6","реорганизация юридического лица",3216,null,null,{"$f":"IF(I22=\"(\",\")\",\"\")","v":""},null,null,{"$f":"IF(L22=\"(\",\")\",\"\")","v":""},null,null,{"$f":"IF(O22=\"(\",\")\",\"\")","v":""},null,null,{"$f":"IF(R22=\"(\",\")\",\"\")","v":""},null,null,{"$f":"IF(U22=\"(\",\")\",\"\")","v":""},{"$f":"IF(IF(I22=\"(\",-J22,J22)+IF(L22=\"(\",-M22,M22)+IF(O22=\"(\",-P22,P22)+IF(R22=\"(\",-S22,S22)+IF(U22=\"(\",-V22,V22)<0,\"(\",\"\")","v":""},{"$f":"ABS(IF(I22=\"(\",-J22,J22)+IF(L22=\"(\",-M22,M22)+IF(O22=\"(\",-P22,P22)+IF(R22=\"(\",-S22,S22)+IF(U22=\"(\",-V22,V22))","v":0},""]
[null,null,null,null,null,null,"Добавить запись",null,null,null,null,null,null,null,null,null,null,null,null,null,null,null,null,null,null,null,"add_FORMA3_CAPITAL_range"]
[null,null,null,null,null,"2.2","Уменьшение капитала - всего, в том числе: ",3220,{"$f":"IF(((SUMIF(I25:I32,\"\",J25:J32)-SUMIF(I25:I32,\"(\",J25:J32)))<0,\"(\",\"\")","v":""},{"$f":"ABS((SUMIF(I25:I32,\"\",J25:J32)-SUMIF(I25:I32,\"(\",J25:J32)))","v":0},{"$f":"IF(I24=\"(\",\")\",\"\")","v":""},{"$f":"IF(((SUMIF(L25:L32,\"\",M25:M32)-SUMIF(L25:L32,\"(\",M25:M32)))<0,\"(\",\"\")","v":""},{"$f":"ABS((SUMIF(L25:L32,\"\",M25:M32)-SUMIF(L25:L32,\"(\",M25:M32)))","v":0},{"$f":"IF(L24=\"(\",\")\",\"\")","v":""},{"$f":"IF(((SUMIF(O25:O32,\"\",P25:P32)-SUMIF(O25:O32,\"(\",P25:P32)))<0,\"(\",\"\")","v":"("},{"$f":"ABS((SUMIF(O25:O32,\"\",P25:P32)-SUMIF(O25:O32,\"(\",P25:P32)))","v":4},{"$f":"IF(O24=\"(\",\")\",\"\")","v":")"},{"$f":"IF(((SUMIF(R25:R32,\"\",S25:S32)-SUMIF(R25:R32,\"(\",S25:S32)))<0,\"(\",\"\")","v":""},{"$f":"ABS((SUMIF(R25:R32,\"\",S25:S32)-SUMIF(R25:R32,\"(\",S25:S32)))","v":0},{"$f":"IF(R24=\"(\",\")\",\"\")","v":""},{"$f":"IF(((SUMIF(U25:U32,\"\",V25:V32)-SUMIF(U25:U32,\"(\",V25:V32)))<0,\"(\",\"\")","v":""},{"$f":"ABS((SUMIF(U25:U32,\"\",V25:V32)-SUMIF(U25:U32,\"(\",V25:V32)))","v":0},{"$f":"IF(U24=\"(\",\")\",\"\")","v":""},{"$f":"IF(IF(I24=\"(\",-J24,J24)+IF(L24=\"(\",-M24,M24)+IF(O24=\"(\",-P24,P24)+IF(R24=\"(\",-S24,S24)+IF(U24=\"(\",-V24,V24)<0,\"(\",\"\")","v":"("},{"$f":"ABS(IF(I24=\"(\",-J24,J24)+IF(L24=\"(\",-M24,M24)+IF(O24=\"(\",-P24,P24)+IF(R24=\"(\",-S24,S24)+IF(U24=\"(\",-V24,V24))","v":4},{"$f":"IF(X24=\"(\",\")\",\"\")","v":")"}]
[null,null,null,null,null,"2.2.1","убыток",3221,null,"x",null,null,"x",null,null,"x",null,null,"x",null,"(",null,")",{"$f":"IF(U25=\"(\",\"(\",\"\")","v":"("},{"$f":"V25","v":0},")"]
[null,null,null,null,null,"2.2.2","переоценка имущества",3222,null,"x",null,null,"x",null,"(",null,")",null,"x",null,"(",null,")",{"$f":"IF(IF(O26=\"(\",-P26,P26)+IF(U26=\"(\",-V26,V26)<0,\"(\",\"\")","v":""},{"$f":"ABS(IF(O26=\"(\",-P26,P26)+IF(U26=\"(\",-V26,V26))","v":0},""]
[null,null,null,null,null,"2.2.3","расходы, относящиеся непосредственно на уменьшение капитала",3223,null,"x",null,null,"x",null,"(",4,")",null,"x",null,"(",null,")",{"$f":"IF(IF(O27=\"(\",-P27,P27)+IF(U27=\"(\",-V27,V27)<0,\"(\",\"\")","v":"("},{"$f":"ABS(IF(O27=\"(\",-P27,P27)+IF(U27=\"(\",-V27,V27))","v":4},")"]
[null,null,null,null,null,"2.2.4","уменьшение номинальной стоимости акций",3224,"(",null,")",null,null,{"$f":"IF(L28=\"(\",\")\",\"\")","v":""},null,null,{"$f":"IF(O28=\"(\",\")\",\"\")","v":""},null,"x",null,null,null,{"$f":"IF(U28=\"(\",\")\",\"\")","v":""},{"$f":"IF(IF(I28=\"(\",-J28,J28)+IF(L28=\"(\",-M28,M28)+IF(O28=\"(\",-P28,P28)+IF(U28=\"(\",-V28,V28)<0,\"(\",\"\")","v":""},{"$f":"ABS(IF(I28=\"(\",-J28,J28)+IF(L28=\"(\",-M28,M28)+IF(O28=\"(\",-P28,P28)+IF(U28=\"(\",-V28,V28))","v":0},""]
[null,null,null,null,null,"2.2.5","уменьшения количества акций",3225,"(",null,")",null,null,{"$f":"IF(L29=\"(\",\")\",\"\")","v":""},null,null,{"$f":"IF(O29=\"(\",\")\",\"\")","v":""},null,"x",null,null,null,{"$f":"IF(U29=\"(\",\")\",\"\")","v":""},{"$f":"IF(IF(I29=\"(\",-J29,J29)+IF(L29=\"(\",-M29,M29)+IF(O29=\"(\",-P29,P29)+IF(U29=\"(\",-V29,V29)<0,\"(\",\"\")","v":""},{"$f":"ABS(IF(I29=\"(\",-J29,J29)+IF(L29=\"(\",-M29,M29)+IF(O29=\"(\",-P29,P29)+IF(U29=\"(\",-V29,V29))","v":0},""]
[null,null,null,null,null,"2.2.6","реорганизация юридического лица",3226,null,null,{"$f":"IF(I30=\"(\",\")\",\"\")","v":""},null,null,{"$f":"IF(L30=\"(\",\")\",\"\")","v":""},null,null,{"$f":"IF(O30=\"(\",\")\",\"\")","v":""},null,null,{"$f":"IF(R30=\"(\",\")\",\"\")","v":""},null,null,{"$f":"IF(U30=\"(\",\")\",\"\")","v":""},{"$f":"IF(IF(I30=\"(\",-J30,J30)+IF(L30=\"(\",-M30,M30)+IF(O30=\"(\",-P30,P30)+IF(R30=\"(\",-S30,S30)+IF(U30=\"(\",-V30,V30)<0,\"(\",\"\")","v":""},{"$f":"ABS(IF(I30=\"(\",-J30,J30)+IF(L30=\"(\",-M30,M30)+IF(O30=\"(\",-P30,P30)+IF(R30=\"(\",-S30,S30)+IF(U30=\"(\",-V30,V30))","v":0},""]
[null,null,null,null,null,"2.2.7","дивиденды",3227,null,"x",null,null,"x",null,null,"x",null,null,"x",null,"(",null,")",{"$f":"IF(U31=\"(\",\"(\",\"\")","v":"("},{"$f":"V31","v":0},")"]
[null,null,null,null,null,null,"Добавить запись",null,null,null,null,null,null,null,null,null,null,null,null,null,null,null,null,null,null,null,"add_FORMA3_CAPITAL_range"]
[null,null,null,null,null,"2.3","Изменение добавочного капитала",3230,null,"x",null,null,"x",null,null,null,{"$f":"IF(O33=\"(\",\")\",\"\")","v":""},null,null,{"$f":"IF(R33=\"(\",\")\",\"\")","v":""},null,null,{"$f":"IF(U33=\"(\",\")\",\"\")","v":""},null,"x"]
[null,null,null,null,null,"2.4","Изменение резервного капитала",3240,null,"x",null,null,"x",null,null,"x",null,null,null,{"$f":"IF(R34=\"(\",\")\",\"\")","v":""},null,null,{"$f":"IF(U34=\"(\",\")\",\"\")","v":""},null,"x"]
[null,null,null,null,null,"2.5",{"$f":"\"Величина капитала на 31 декабря \"&IF(List_01_reporting_period>0,List_01_reporting_period-1&\" г. \",\"НЕ УКАЗАН\")& \" (предыдущий год)\"","v":"Величина капитала на 31 декабря 2016 г.  (предыдущий год)"},3200,null,40732,{"$f":"IF(I35=\"(\",\")\",\"\")","v":""},"(",null,")",null,30795,{"$f":"IF(O35=\"(\",\")\",\"\")","v":""},null,null,{"$f":"IF(R35=\"(\",\")\",\"\")","v":""},null,6042,{"$f":"IF(U35=\"(\",\")\",\"\")","v":""},{"$f":"IF(IF(I35=\"(\",-J35,J35)+IF(L35=\"(\",-M35,M35)+IF(O35=\"(\",-P35,P35)+IF(R35=\"(\",-S35,S35)+IF(U35=\"(\",-V35,V35)<0,\"(\",\"\")","v":""},{"$f":"ABS(IF(I35=\"(\",-J35,J35)+IF(L35=\"(\",-M35,M35)+IF(O35=\"(\",-P35,P35)+IF(R35=\"(\",-S35,S35)+IF(U35=\"(\",-V35,V35))","v":77569},{"$f":"IF(X35=\"(\",\")\",\"\")","v":""}]
[null,null,null,null,null,"3",{"$f":"\"За \"&IF(List_01_reporting_period>0,List_01_reporting_period&\" г. \",\"НЕ УКАЗАН\")& \" (отчетный год)\"","v":"За 2017 г.  (отчетный год)"}]
[null,null,null,null,null,"3.1","Увеличение капитала - всего, в том числе:                                    ",3310,{"$f":"IF(((SUMIF(I38:I44,\"\",J38:J44)-SUMIF(I38:I44,\"(\",J38:J44)))<0,\"(\",\"\")","v":""},{"$f":"ABS((SUMIF(I38:I44,\"\",J38:J44)-SUMIF(I38:I44,\"(\",J38:J44)))","v":0},{"$f":"IF(I37=\"(\",\")\",\"\")","v":""},{"$f":"IF(((SUMIF(L38:L44,\"\",M38:M44)-SUMIF(L38:L44,\"(\",M38:M44)))<0,\"(\",\"\")","v":""},{"$f":"ABS((SUMIF(L38:L44,\"\",M38:M44)-SUMIF(L38:L44,\"(\",M38:M44)))","v":0},{"$f":"IF(L37=\"(\",\")\",\"\")","v":""},{"$f":"IF(((SUMIF(O38:O44,\"\",P38:P44)-SUMIF(O38:O44,\"(\",P38:P44)))<0,\"(\",\"\")","v":""},{"$f":"ABS((SUMIF(O38:O44,\"\",P38:P44)-SUMIF(O38:O44,\"(\",P38:P44)))","v":20207},{"$f":"IF(O37=\"(\",\")\",\"\")","v":""},{"$f":"IF(((SUMIF(R38:R44,\"\",S38:S44)-SUMIF(R38:R44,\"(\",S38:S44)))<0,\"(\",\"\")","v":""},{"$f":"ABS((SUMIF(R38:R44,\"\",S38:S44)-SUMIF(R38:R44,\"(\",S38:S44)))","v":0},{"$f":"IF(R37=\"(\",\")\",\"\")","v":""},{"$f":"IF(((SUMIF(U38:U44,\"\",V38:V44)-SUMIF(U38:U44,\"(\",V38:V44)))<0,\"(\",\"\")","v":""},{"$f":"ABS((SUMIF(U38:U44,\"\",V38:V44)-SUMIF(U38:U44,\"(\",V38:V44)))","v":331},{"$f":"IF(U37=\"(\",\")\",\"\")","v":""},{"$f":"IF(IF(I37=\"(\",-J37,J37)+IF(L37=\"(\",-M37,M37)+IF(O37=\"(\",-P37,P37)+IF(R37=\"(\",-S37,S37)+IF(U37=\"(\",-V37,V37)<0,\"(\",\"\")","v":""},{"$f":"ABS(IF(I37=\"(\",-J37,J37)+IF(L37=\"(\",-M37,M37)+IF(O37=\"(\",-P37,P37)+IF(R37=\"(\",-S37,S37)+IF(U37=\"(\",-V37,V37))","v":20538},{"$f":"IF(X37=\"(\",\")\",\"\")","v":""}]
[null,null,null,null,null,"3.1.1","чистая прибыль",3311,null,"x",null,null,"x",null,null,"x",null,null,"x",null,null,331,{"$f":"IF(U38=\"(\",\")\",\"\")","v":""},{"$f":"IF(U38=\"(\",\"(\",\"\")","v":""},{"$f":"V38","v":331},""]
[null,null,null,null,null,"3.1.2","переоценка имущества",3312,null,"x",null,null,"x",null,null,null,{"$f":"IF(O39=\"(\",\")\",\"\")","v":""},null,"x",null,null,null,{"$f":"IF(U39=\"(\",\")\",\"\")","v":""},{"$f":"IF(IF(O39=\"(\",-P39,P39)+IF(U39=\"(\",-V39,V39)<0,\"(\",\"\")","v":""},{"$f":"ABS(IF(O39=\"(\",-P39,P39)+IF(U39=\"(\",-V39,V39))","v":0},""]
[null,null,null,null,null,"3.1.3","доходы, относящиеся непосредственно на увеличение капитала",3313,null,"x",null,null,"x",null,null,20207,{"$f":"IF(O40=\"(\",\")\",\"\")","v":""},null,"x",null,null,null,{"$f":"IF(U40=\"(\",\")\",\"\")","v":""},{"$f":"IF(IF(O40=\"(\",-P40,P40)+IF(U40=\"(\",-V40,V40)<0,\"(\",\"\")","v":""},{"$f":"ABS(IF(O40=\"(\",-P40,P40)+IF(U40=\"(\",-V40,V40))","v":20207},""]
[null,null,null,null,null,"3.1.4","дополнительный выпуск акций ",3314,null,null,{"$f":"IF(I41=\"(\",\")\",\"\")","v":""},null,null,{"$f":"IF(L41=\"(\",\")\",\"\")","v":""},null,null,{"$f":"IF(O41=\"(\",\")\",\"\")","v":""},null,"x",null,null,"x",null,{"$f":"IF(IF(I41=\"(\",-J41,J41)+IF(L41=\"(\",-M41,M41)+IF(O41=\"(\",-P41,P41)<0,\"(\",\"\")","v":""},{"$f":"ABS(IF(I41=\"(\",-J41,J41)+IF(L41=\"(\",-M41,M41)+IF(O41=\"(\",-P41,P41))","v":0},""]
[null,null,null,null,null,"3.1.5","увеличение номинальной стоимости акций",3315,null,null,{"$f":"IF(I42=\"(\",\")\",\"\")","v":""},null,null,{"$f":"IF(L42=\"(\",\")\",\"\")","v":""},null,null,{"$f":"IF(O42=\"(\",\")\",\"\")","v":""},null,"x",null,null,null,{"$f":"IF(U42=\"(\",\")\",\"\")","v":""},null,"x"]
[null,null,null,null,null,"3.1.6","реорганизация юридического лица",3316,null,null,{"$f":"IF(I43=\"(\",\")\",\"\")","v":""},null,null,{"$f":"IF(L43=\"(\",\")\",\"\")","v":""},null,null,{"$f":"IF(O43=\"(\",\")\",\"\")","v":""},null,null,{"$f":"IF(R43=\"(\",\")\",\"\")","v":""},null,null,{"$f":"IF(U43=\"(\",\")\",\"\")","v":""},{"$f":"IF(IF(I43=\"(\",-J43,J43)+IF(L43=\"(\",-M43,M43)+IF(O43=\"(\",-P43,P43)+IF(R43=\"(\",-S43,S43)+IF(U43=\"(\",-V43,V43)<0,\"(\",\"\")","v":""},{"$f":"ABS(IF(I43=\"(\",-J43,J43)+IF(L43=\"(\",-M43,M43)+IF(O43=\"(\",-P43,P43)+IF(R43=\"(\",-S43,S43)+IF(U43=\"(\",-V43,V43))","v":0},""]
[null,null,null,null,null,null,"Добавить запись",null,null,null,null,null,null,null,null,null,null,null,null,null,null,null,null,null,null,null,"add_FORMA3_CAPITAL_range"]
[null,null,null,null,null,"3.2","Уменьшение капитала - всего, в том числе: ",3320,{"$f":"IF(((SUMIF(I46:I53,\"\",J46:J53)-SUMIF(I46:I53,\"(\",J46:J53)))<0,\"(\",\"\")","v":""},{"$f":"ABS((SUMIF(I46:I53,\"\",J46:J53)-SUMIF(I46:I53,\"(\",J46:J53)))","v":0},{"$f":"IF(I45=\"(\",\")\",\"\")","v":""},{"$f":"IF(((SUMIF(L46:L53,\"\",M46:M53)-SUMIF(L46:L53,\"(\",M46:M53)))<0,\"(\",\"\")","v":""},{"$f":"ABS((SUMIF(L46:L53,\"\",M46:M53)-SUMIF(L46:L53,\"(\",M46:M53)))","v":0},{"$f":"IF(L45=\"(\",\")\",\"\")","v":""},{"$f":"IF(((SUMIF(O46:O53,\"\",P46:P53)-SUMIF(O46:O53,\"(\",P46:P53)))<0,\"(\",\"\")","v":""},{"$f":"ABS((SUMIF(O46:O53,\"\",P46:P53)-SUMIF(O46:O53,\"(\",P46:P53)))","v":0},{"$f":"IF(O45=\"(\",\")\",\"\")","v":""},{"$f":"IF(((SUMIF(R46:R53,\"\",S46:S53)-SUMIF(R46:R53,\"(\",S46:S53)))<0,\"(\",\"\")","v":""},{"$f":"ABS((SUMIF(R46:R53,\"\",S46:S53)-SUMIF(R46:R53,\"(\",S46:S53)))","v":0},{"$f":"IF(R45=\"(\",\")\",\"\")","v":""},{"$f":"IF(((SUMIF(U46:U53,\"\",V46:V53)-SUMIF(U46:U53,\"(\",V46:V53)))<0,\"(\",\"\")","v":"("},{"$f":"ABS((SUMIF(U46:U53,\"\",V46:V53)-SUMIF(U46:U53,\"(\",V46:V53)))","v":231},{"$f":"IF(U45=\"(\",\")\",\"\")","v":")"},{"$f":"IF(IF(I45=\"(\",-J45,J45)+IF(L45=\"(\",-M45,M45)+IF(O45=\"(\",-P45,P45)+IF(R45=\"(\",-S45,S45)+IF(U45=\"(\",-V45,V45)<0,\"(\",\"\")","v":"("},{"$f":"ABS(IF(I45=\"(\",-J45,J45)+IF(L45=\"(\",-M45,M45)+IF(O45=\"(\",-P45,P45)+IF(R45=\"(\",-S45,S45)+IF(U45=\"(\",-V45,V45))","v":231},{"$f":"IF(X45=\"(\",\")\",\"\")","v":")"}]
[null,null,null,null,null,"3.2.1","убыток",3321,null,"x",null,null,"x",null,null,"x",null,null,"x",null,"(",null,")",{"$f":"IF(U46=\"(\",\"(\",\"\")","v":"("},{"$f":"V46","v":0},")"]
[null,null,null,null,null,"3.2.2","переоценка имущества",3322,null,"x",null,null,"x",null,"(",null,")",null,"x",null,"(",null,")",{"$f":"IF(IF(O47=\"(\",-P47,P47)+IF(U47=\"(\",-V47,V47)<0,\"(\",\"\")","v":""},{"$f":"ABS(IF(O47=\"(\",-P47,P47)+IF(U47=\"(\",-V47,V47))","v":0},""]
[null,null,null,null,null,"3.2.3","расходы, относящиеся непосредственно на уменьшение капитала",3323,null,"x",null,null,"x",null,"(",null,")",null,"x",null,"(",null,")",{"$f":"IF(IF(O48=\"(\",-P48,P48)+IF(U48=\"(\",-V48,V48)<0,\"(\",\"\")","v":""},{"$f":"ABS(IF(O48=\"(\",-P48,P48)+IF(U48=\"(\",-V48,V48))","v":0},""]
[null,null,null,null,null,"3.2.4","уменьшение номинальной стоимости акций",3324,"(",null,")",null,null,{"$f":"IF(L49=\"(\",\")\",\"\")","v":""},null,null,{"$f":"IF(O49=\"(\",\")\",\"\")","v":""},null,"x",null,null,null,{"$f":"IF(U49=\"(\",\")\",\"\")","v":""},{"$f":"IF(IF(I49=\"(\",-J49,J49)+IF(L49=\"(\",-M49,M49)+IF(O49=\"(\",-P49,P49)+IF(U49=\"(\",-V49,V49)<0,\"(\",\"\")","v":""},{"$f":"ABS(IF(I49=\"(\",-J49,J49)+IF(L49=\"(\",-M49,M49)+IF(O49=\"(\",-P49,P49)+IF(U49=\"(\",-V49,V49))","v":0},""]
[null,null,null,null,null,"3.2.5","уменьшения количества акций",3325,"(",null,")",null,null,{"$f":"IF(L50=\"(\",\")\",\"\")","v":""},null,null,{"$f":"IF(O50=\"(\",\")\",\"\")","v":""},null,"x",null,null,null,{"$f":"IF(U50=\"(\",\")\",\"\")","v":""},{"$f":"IF(IF(I50=\"(\",-J50,J50)+IF(L50=\"(\",-M50,M50)+IF(O50=\"(\",-P50,P50)+IF(U50=\"(\",-V50,V50)<0,\"(\",\"\")","v":""},{"$f":"ABS(IF(I50=\"(\",-J50,J50)+IF(L50=\"(\",-M50,M50)+IF(O50=\"(\",-P50,P50)+IF(U50=\"(\",-V50,V50))","v":0},""]
[null,null,null,null,null,"3.2.6","реорганизация юридического лица",3326,null,null,{"$f":"IF(I51=\"(\",\")\",\"\")","v":""},null,null,{"$f":"IF(L51=\"(\",\")\",\"\")","v":""},null,null,{"$f":"IF(O51=\"(\",\")\",\"\")","v":""},null,null,{"$f":"IF(R51=\"(\",\")\",\"\")","v":""},null,null,{"$f":"IF(U51=\"(\",\")\",\"\")","v":""},{"$f":"IF(IF(I51=\"(\",-J51,J51)+IF(L51=\"(\",-M51,M51)+IF(O51=\"(\",-P51,P51)+IF(R51=\"(\",-S51,S51)+IF(U51=\"(\",-V51,V51)<0,\"(\",\"\")","v":""},{"$f":"ABS(IF(I51=\"(\",-J51,J51)+IF(L51=\"(\",-M51,M51)+IF(O51=\"(\",-P51,P51)+IF(R51=\"(\",-S51,S51)+IF(U51=\"(\",-V51,V51))","v":0},""]
[null,null,null,null,null,"3.2.7","дивиденды",3327,null,"x",null,null,"x",null,null,"x",null,null,"x",null,"(",231,")",{"$f":"IF(U52=\"(\",\"(\",\"\")","v":"("},{"$f":"V52","v":231},")"]
[null,null,null,null,null,null,"Добавить запись",null,null,null,null,null,null,null,null,null,null,null,null,null,null,null,null,null,null,null,"add_FORMA3_CAPITAL_range"]
[null,null,null,null,null,"3.3","Изменение добавочного капитала",3330,null,"x",null,null,"x",null,null,null,{"$f":"IF(O54=\"(\",\")\",\"\")","v":""},null,null,{"$f":"IF(R54=\"(\",\")\",\"\")","v":""},null,null,{"$f":"IF(U54=\"(\",\")\",\"\")","v":""},null,"x"]
[null,null,null,null,null,"3.4","Изменение резервного капитала",3340,null,"x",null,null,"x",null,null,"x",null,null,null,{"$f":"IF(R55=\"(\",\")\",\"\")","v":""},null,null,{"$f":"IF(U55=\"(\",\")\",\"\")","v":""},null,"x"]
[null,null,null,null,null,"3.5",{"$f":"\"Величина капитала на 31 декабря \"&IF(List_01_reporting_period>0,List_01_reporting_period&\" г. \",\"НЕ УКАЗАН\")& \" (отчётный год)\"","v":"Величина капитала на 31 декабря 2017 г.  (отчётный год)"},3300,null,40732,{"$f":"IF(I56=\"(\",\")\",\"\")","v":""},"(",null,")",null,51002,{"$f":"IF(O56=\"(\",\")\",\"\")","v":""},null,null,{"$f":"IF(R56=\"(\",\")\",\"\")","v":""},null,6142,{"$f":"IF(U56=\"(\",\")\",\"\")","v":""},{"$f":"IF(IF(I56=\"(\",-J56,J56)+IF(L56=\"(\",-M56,M56)+IF(O56=\"(\",-P56,P56)+IF(R56=\"(\",-S56,S56)+IF(U56=\"(\",-V56,V56)<0,\"(\",\"\")","v":""},{"$f":"ABS(IF(I56=\"(\",-J56,J56)+IF(L56=\"(\",-M56,M56)+IF(O56=\"(\",-P56,P56)+IF(R56=\"(\",-S56,S56)+IF(U56=\"(\",-V56,V56))","v":97876},{"$f":"IF(X56=\"(\",\")\",\"\")","v":""}]

{"sheet":"Форма 3. Корректировки","index":9,"n_rows":24,"n_cols":21,"rows_kept":24,"cut":false,"hidden":false,"merged":[[13,4,17,4],[13,5,17,5],[18,4,22,4],[18,5,22,5],[12,8,12,10],[6,4,6,19],[7,4,7,19],[10,17,11,19],[11,11,11,13],[11,14,11,16],[10,11,10,16],[12,17,12,19],[10,4,11,4],[10,5,11,5],[10,6,11,6],[10,7,11,7],[10,8,11,10],[12,11,12,13],[12,14,12,16]]}
[]
[]
[]
[null,null,null,null,{"$f":"Getcode()","v":"ELPASS.FORMS.BH"},null,null,null,null,null,null,null,null,null,null,null,null,null,null,{"$f":"version","v":"Версия 1.0 от 01.10.2017"}]
[]
[null,null,null,null,null,null,null,null,null,null,null,null,null,null,null,null,null,null,null,"Форма 0710023 с.3"]
[null,null,null,null,"Отчет об изменениях капитала"]
[null,null,null,null,"2. Корректировки в связи с изменением учетной политики и исправлением ошибок"]
[]
[]
[null,null,null,null,"№\nп/п","Наименование статьи капитала","Наименование показателя","Код",{"$f":"\"На 31 декабря \" & IF(List_01_reporting_period=\"\",\"года, предшествующего предыдущему\",List_01_reporting_period-2 & \" г.\")","v":"На 31 декабря 2015 г."},null,null,{"$f":"\"Изменения капитала за \" & IF(List_01_reporting_period=\"\",\"предыдущий год\",List_01_reporting_period-1 & \" г.\")","v":"Изменения капитала за 2016 г."},null,null,null,null,null,{"$f":"\"На 31 декабря \" & IF(List_01_reporting_period=\"\",\"предыдущего года\",List_01_reporting_period-1 & \" г.\")","v":"На 31 декабря 2016 г."}]
[null,null,null,null,null,null,null,null,null,null,null,"за счет чистой прибыли\n(убытка)",null,null,"за счет иных факторов"]
[null,null,null,null,1,2,3,4,5,null,null,6,null,null,7,null,null,8]
[null,null,null,null,"1","Капитал - всего, в том числе:","до корректировок",3400,null,null,{"$f":"IF(I14=\"(\",\")\",\"\")","v":""},null,null,{"$f":"IF(L14=\"(\",\")\",\"\")","v":""},null,null,{"$f":"IF(O14=\"(\",\")\",\"\")","v":""},{"$f":"IF((IF(I14=\"(\",-J14,J14)+IF(L14=\"(\",-M14,M14)+IF(O14=\"(\",-P14,P14))<0,\"(\",\"\")","v":""},{"$f":"ABS(IF(I14=\"(\",-J14,J14)+IF(L14=\"(\",-M14,M14)+IF(O14=\"(\",-P14,P14))","v":0},{"$f":"IF(R14=\"(\",\")\",\"\")","v":""}]
[null,null,null,null,null,null,"корректировка в связи с:"]
[null,null,null,null,null,null,"изменением учётной политики",3410,null,null,"",null,null,{"$f":"IF(L16=\"(\",\")\",\"\")","v":""},null,null,{"$f":"IF(O16=\"(\",\")\",\"\")","v":""},{"$f":"IF((IF(I16=\"(\",-J16,J16)+IF(L16=\"(\",-M16,M16)+IF(O16=\"(\",-P16,P16))<0,\"(\",\"\")","v":""},{"$f":"ABS(IF(I16=\"(\",-J16,J16)+IF(L16=\"(\",-M16,M16)+IF(O16=\"(\",-P16,P16))","v":0},{"$f":"IF(R16=\"(\",\")\",\"\")","v":""}]
[null,null,null,null,null,null,"исправлением ошибок",3420,null,null,"",null,null,{"$f":"IF(L17=\"(\",\")\",\"\")","v":""},null,null,{"$f":"IF(O17=\"(\",\")\",\"\")","v":""},{"$f":"IF((IF(I17=\"(\",-J17,J17)+IF(L17=\"(\",-M17,M17)+IF(O17=\"(\",-P17,P17))<0,\"(\",\"\")","v":""},{"$f":"ABS(IF(I17=\"(\",-J17,J17)+IF(L17=\"(\",-M17,M17)+IF(O17=\"(\",-P17,P17))","v":0},{"$f":"IF(R17=\"(\",\")\",\"\")","v":""}]
[null,null,null,null,null,null,"после корректировок",3500,{"$f":"IF((IF(I14=\"(\",-J14,J14)+(SUMIF(I16:I17,\"\",J16:J17)-SUMIF(I16:I17,\"(\",J16:J17)))<0,\"(\",\"\")","v":""},{"$f":"ABS(IF(I14=\"(\",-J14,J14)+(SUMIF(I16:I17,\"\",J16:J17)-SUMIF(I16:I17,\"(\",J16:J17)))","v":0},{"$f":"IF(I18=\"(\",\")\",\"\")","v":""},{"$f":"IF((IF(L14=\"(\",-M14,M14)+(SUMIF(L16:L17,\"\",M16:M17)-SUMIF(L16:L17,\"(\",M16:M17)))<0,\"(\",\"\")","v":""},{"$f":"ABS(IF(L14=\"(\",-M14,M14)+(SUMIF(L16:L17,\"\",M16:M17)-SUMIF(L16:L17,\"(\",M16:M17)))","v":0},{"$f":"IF(L18=\"(\",\")\",\"\")","v":""},{"$f":"IF((IF(O14=\"(\",-P14,P14)+(SUMIF(O16:O17,\"\",P16:P17)-SUMIF(O16:O17,\"(\",P16:P17)))<0,\"(\",\"\")","v":""},{"$f":"ABS(IF(O14=\"(\",-P14,P14)+(SUMIF(O16:O17,\"\",P16:P17)-SUMIF(O16:O17,\"(\",P16:P17)))","v":0},{"$f":"IF(O18=\"(\",\")\",\"\")","v":""},{"$f":"IF((IF(I18=\"(\",-J18,J18)+IF(L18=\"(\",-M18,M18)+IF(O18=\"(\",-P18,P18))<0,\"(\",\"\")","v":""},{"$f":"ABS(IF(I18=\"(\",-J18,J18)+IF(L18=\"(\",-M18,M18)+IF(O18=\"(\",-P18,P18))","v":0},{"$f":"IF(R18=\"(\",\")\",\"\")","v":""}]
[null,null,null,null,"1.1","Нераспределенная прибыль (непокрытый\nубыток)","до корректировок",3401,null,null,"",null,null,{"$f":"IF(L19=\"(\",\")\",\"\")","v":""},null,null,{"$f":"IF(O19=\"(\",\")\",\"\")","v":""},{"$f":"IF((IF(I19=\"(\",-J19,J19)+IF(L19=\"(\",-M19,M19)+IF(O19=\"(\",-P19,P19))<0,\"(\",\"\")","v":""},{"$f":"ABS(IF(I19=\"(\",-J19,J19)+IF(L19=\"(\",-M19,M19)+IF(O19=\"(\",-P19,P19))","v":0},{"$f":"IF(R19=\"(\",\")\",\"\")","v":""}]
[null,null,null,null,null,null,"корректировка в связи с:",null,null,null," ",null,null," ",null,null," "," ",null," "]
[null,null,null,null,null,null,"изменением учётной политики",3411,null,null,"",null,null,{"$f":"IF(L21=\"(\",\")\",\"\")","v":""},null,null,{"$f":"IF(O21=\"(\",\")\",\"\")","v":""},{"$f":"IF((IF(I21=\"(\",-J21,J21)+IF(L21=\"(\",-M21,M21)+IF(O21=\"(\",-P21,P21))<0,\"(\",\"\")","v":""},{"$f":"ABS(IF(I21=\"(\",-J21,J21)+IF(L21=\"(\",-M21,M21)+IF(O21=\"(\",-P21,P21))","v":0},{"$f":"IF(R21=\"(\",\")\",\"\")","v":""}]
[null,null,null,null,null,null,"исправлением ошибок",3421,null,null,"",null,null,{"$f":"IF(L22=\"(\",\")\",\"\")","v":""},null,null,{"$f":"IF(O22=\"(\",\")\",\"\")","v":""},{"$f":"IF((IF(I22=\"(\",-J22,J22)+IF(L22=\"(\",-M22,M22)+IF(O22=\"(\",-P22,P22))<0,\"(\",\"\")","v":""},{"$f":"ABS(IF(I22=\"(\",-J22,J22)+IF(L22=\"(\",-M22,M22)+IF(O22=\"(\",-P22,P22))","v":0},{"$f":"IF(R22=\"(\",\")\",\"\")","v":""}]
[null,null,null,null,null,null,"после корректировок",3501,{"$f":"IF((IF(I19=\"(\",-J19,J19)+(SUMIF(I21:I22,\"\",J21:J22)-SUMIF(I21:I22,\"(\",J21:J22)))<0,\"(\",\"\")","v":""},{"$f":"ABS(IF(I19=\"(\",-J19,J19)+(SUMIF(I21:I22,\"\",J21:J22)-SUMIF(I21:I22,\"(\",J21:J22)))","v":0},{"$f":"IF(I23=\"(\",\")\",\"\")","v":""},{"$f":"IF((IF(L19=\"(\",-M19,M19)+(SUMIF(L21:L22,\"\",M21:M22)-SUMIF(L21:L22,\"(\",M21:M22)))<0,\"(\",\"\")","v":""},{"$f":"ABS(IF(L19=\"(\",-M19,M19)+(SUMIF(L21:L22,\"\",M21:M22)-SUMIF(L21:L22,\"(\",M21:M22)))","v":0},{"$f":"IF(L23=\"(\",\")\",\"\")","v":""},{"$f":"IF((IF(O19=\"(\",-P19,P19)+(SUMIF(O21:O22,\"\",P21:P22)-SUMIF(O21:O22,\"(\",P21:P22)))<0,\"(\",\"\")","v":""},{"$f":"ABS(IF(O19=\"(\",-P19,P19)+(SUMIF(O21:O22,\"\",P21:P22)-SUMIF(O21:O22,\"(\",P21:P22)))","v":0},{"$f":"IF(O23=\"(\",\")\",\"\")","v":""},{"$f":"IF((IF(I23=\"(\",-J23,J23)+IF(L23=\"(\",-M23,M23)+IF(O23=\"(\",-P23,P23))<0,\"(\",\"\")","v":""},{"$f":"ABS(IF(I23=\"(\",-J23,J23)+IF(L23=\"(\",-M23,M23)+IF(O23=\"(\",-P23,P23))","v":0},{"$f":"IF(R23=\"(\",\")\",\"\")","v":""}]
[null,null,null,null,null,"Добавить запись",null,null,null,null,null,null,null,null,null,null,null,null,null,null,"add_FORMA3_CORRECT_range"]

{"sheet":"Форма 3. Чистые активы","index":10,"n_rows":13,"n_cols":17,"rows_kept":13,"cut":false,"hidden":false,"merged":[[10,8,10,10],[10,11,10,13],[10,14,10,16],[6,5,6,16],[7,5,7,16]]}
[]
[]
[]
[null,null,null,null,null,{"$f":"Getcode()","v":"ELPASS.FORMS.BH"},null,null,null,null,null,null,null,null,null,null,{"$f":"version","v":"Версия 1.0 от 01.10.2017"}]
[]
[null,null,null,null,null,null,null,null,null,null,null,null,null,null,null,null,"Форма 0710023 с.4"]
[null,null,null,null,null,"Отчет об изменениях капитала"]
[null,null,null,null,null,"3. Чистые активы"]
[]
[]
[null,null,null,null,null,"№\nп/п","Наименование","Код",{"$f":"\"На 31 декабря \" & IF(List_01_reporting_period=\"\",\"отчётного года\",List_01_reporting_period & \" г.\")","v":"На 31 декабря 2017 г."},null,null,{"$f":"\"На 31 декабря \" & IF(List_01_reporting_period=\"\",\"предыдущего года\",List_01_reporting_period-1 & \" г.\")","v":"На 31 декабря 2016 г."},null,null,{"$f":"\"На 31 декабря \" & IF(List_01_reporting_period=\"\",\"года, предшествующего предыдущему\",List_01_reporting_period-2 & \" г.\")","v":"На 31 декабря 2015 г."}]
[null,null,null,null,null,1,2,3," ","4"," "," ","5"," "," ","6"," "]
[null,null,null,null,null,"1","Чистые активы",3600,null,97876,{"$f":"IF(I13=\"(\",\")\",\"\")","v":""},null,77569,{"$f":"IF(L13=\"(\",\")\",\"\")","v":""},null,67638,{"$f":"IF(O13=\"(\",\")\",\"\")","v":""}]

{"sheet":"Форма 4. Отчет о ДДС","index":11,"n_rows":57,"n_cols":13,"rows_kept":57,"cut":false,"hidden":false,"merged":[[12,7,12,9],[12,10,12,12],[6,4,7,12],[10,4,11,4],[10,5,11,5],[10,6,11,6],[10,7,11,9],[10,10,11,12]]}
[]
[]
[]
[null,null,null,null,{"$f":"Getcode()","v":"ELPASS.FORMS.BH"},null,null,null,null,null,null,null,{"$f":"version","v":"Версия 1.0 от 01.10.2017"}]
[]
[null,null,null,null,null,null,null,null,null,null,null,null,"Форма 0710004 с. 1-2"]
[null,null,null,null,"Отчёт о движении денежных средств"]
[]
[]
[]
[null,null,null,null,"№\nп/п","Наименование","Код",{"$f":"\"За \"&IF(List_01_reporting_period=\"\",\"отчётный период\",List_01_reporting_period&\" г.\")","v":"За 2017 г."},null,null,{"$f":"\"За \"&IF(List_01_reporting_period=\"\",\"период предыдущего года, аналогичный отчётному периоду\",List_01_reporting_period-1&\" г.\")","v":"За 2016 г."}]
[]
[null,null,null,null,1,"2","3","4",null,null,"5"]
[null,null,null,null,"1","Денежные потоки от текущих операций"]
[null,null,null,null,"1.1","Поступления - всего, в том числе:",4110,{"$f":"IF((SUMIF(H16:H19,\"\",I16:I19)-SUMIF(H16:H19,\"(\",I16:I19))<0,\"(\",\"\")","v":""},{"$f":"ABS(SUMIF(H16:H19,\"\",I16:I19)-SUMIF(H16:H19,\"(\",I16:I19))","v":155157},{"$f":"IF(H15=\"(\",\")\",\"\")","v":""},{"$f":"IF((SUMIF(K16:K19,\"\",L16:L19)-SUMIF(K16:K19,\"(\",L16:L19))<0,\"(\",\"\")","v":""},{"$f":"ABS(SUMIF(K16:K19,\"\",L16:L19)-SUMIF(K16:K19,\"(\",L16:L19))","v":177432},{"$f":"IF(K15=\"(\",\")\",\"\")","v":""}]
[null,null,null,null,"1.1.1","от продажи продукции, товаров, работ и услуг",4111,null,131153,{"$f":"IF(H16=\"(\",\")\",\"\")","v":""},null,147569,{"$f":"IF(K16=\"(\",\")\",\"\")","v":""}]
[null,null,null,null,"1.1.2","арендных платежей, лицензионных платежей, роялти, комиссионных и иных аналогичных платежей",4112,null,null,{"$f":"IF(H17=\"(\",\")\",\"\")","v":""},null,null,{"$f":"IF(K17=\"(\",\")\",\"\")","v":""}]
[null,null,null,null,"1.1.3","от перепродажи финансовых вложений",4113,null,null,{"$f":"IF(H18=\"(\",\")\",\"\")","v":""},null,null,{"$f":"IF(K18=\"(\",\")\",\"\")","v":""}]
[null,null,null,null,"1.1.4","прочие поступления","4119",null,24004,{"$f":"IF(H19=\"(\",\")\",\"\")","v":""},null,29863,{"$f":"IF(K19=\"(\",\")\",\"\")","v":""}]
[null,null,null,null,"1.2","Платежи - всего, в том числе:",4120,"(",{"$f":"SUM(I21:I25)","v":152514},")","(",{"$f":"SUM(L21:L25)","v":172861},")"]
[null,null,null,null,"1.2.1","поставщикам (подрядчикам) за сырье, материалы, работы, услуги",4121,"(",50190,")","(",61212,")"]
[null,null,null,null,"1.2.2","в связи с оплатой труда работников",4122,"(",62872,")","(",61549,")"]
[null,null,null,null,"1.2.3","процентов по долговым обязательствам",4123,"(",null,")","(",null,")"]
[null,null,null,null,"1.2.4","налога на прибыль организаций",4124,"(",1134,")","(",null,")"]
[null,null,null,null,"1.2.5","прочие платежи","4129","(",38318,")","(",50100,")"]
[null,null,null,null,"1.3","Сальдо денежных потоков от текущих операций",4100,{"$f":"IF((IF(H15=\"(\",-I15,I15)+IF(H20=\"(\",-I20,I20))<0,\"(\",\"\")","v":""},{"$f":"ABS(IF(H15=\"(\",-I15,I15)+IF(H20=\"(\",-I20,I20))","v":2643},{"$f":"IF(H26=\"(\",\")\",\"\")","v":""},{"$f":"IF((IF(K15=\"(\",-L15,L15)+IF(K20=\"(\",-L20,L20))<0,\"(\",\"\")","v":""},{"$f":"ABS(IF(K15=\"(\",-L15,L15)+IF(K20=\"(\",-L20,L20))","v":4571},{"$f":"IF(K26=\"(\",\")\",\"\")","v":""}]
[null,null,null,null,"2","Денежные потоки от инвестиционных операций"]
[null,null,null,null,"2.1","Поступления - всего, в том числе:",4210,{"$f":"IF((SUMIF(H29:H33,\"\",I29:I33)-SUMIF(H29:H33,\"(\",I29:I33))<0,\"(\",\"\")","v":""},{"$f":"ABS(SUMIF(H29:H33,\"\",I29:I33)-SUMIF(H29:H33,\"(\",I29:I33))","v":0},{"$f":"IF(H28=\"(\",\")\",\"\")","v":""},{"$f":"IF((SUMIF(K29:K33,\"\",L29:L33)-SUMIF(K29:K33,\"(\",L29:L33))<0,\"(\",\"\")","v":""},{"$f":"ABS(SUMIF(K29:K33,\"\",L29:L33)-SUMIF(K29:K33,\"(\",L29:L33))","v":8104},{"$f":"IF(K28=\"(\",\")\",\"\")","v":""}]
[null,null,null,null,"2.1.1","от продажи внеоборотных активов (кроме финансовых вложений)",4211,null,null,"",null,null,""]
[null,null,null,null,"2.1.2","от продажи акций других организаций (долей участия)",4212,null,null,"",null,null,""]
[null,null,null,null,"2.1.3","от возврата предоставленных займов, от продажи долговых ценных бумаг (прав требования денежных средств к другим лицам)",4213,null,null,"",null,null,""]
[null,null,null,null,"2.1.4","дивидендов, процентов по долговым финансовым вложениям и аналогичных поступлений от долевого участия в других организациях",4214,null,null,"",null,null,""]
[null,null,null,null,"2.1.5","прочие поступления","4219",null,null,"",null,8104,""]
[null,null,null,null,"2.2","Платежи - всего, в том числе:",4220,"(",{"$f":"SUM(I35:I39)","v":4350},")","(",{"$f":"SUM(L35:L39)","v":9704},")"]
[null,null,null,null,"2.2.1","в связи с приобретением, созданием, модернизацией, реконструкцией и подготовкой к использованию внеоборотных активов",4221,"(",4350,")","(",9704,")"]
[null,null,null,null,"2.2.2","в связи с приобретением акций других организаций (долей участия)",4222,"(",null,")","(",null,")"]
[null,null,null,null,"2.2.3","в связи с приобретением долговых ценных бумаг (прав требования денежных средств к другим лицам), предоставление займов другим лицам",4223,"(",null,")","(",null,")"]
[null,null,null,null,"2.2.4","процентов по долговым обязательствам, включаемым в стоимость инвестиционного актива",4224,"(",null,")","(",null,")"]
[null,null,null,null,"2.2.5","прочие платежи","4229","(",null,")","(",null,")"]
[null,null,null,null,"2.3","Сальдо денежных потоков от инвестиционных операций",4200,{"$f":"IF((IF(H28=\"(\",-I28,I28)+IF(H34=\"(\",-I34,I34))<0,\"(\",\"\")","v":"("},{"$f":"ABS(IF(H28=\"(\",-I28,I28)+IF(H34=\"(\",-I34,I34))","v":4350},{"$f":"IF(H40=\"(\",\")\",\"\")","v":")"},{"$f":"IF((IF(K28=\"(\",-L28,L28)+IF(K34=\"(\",-L34,L34))<0,\"(\",\"\")","v":"("},{"$f":"ABS(IF(K28=\"(\",-L28,L28)+IF(K34=\"(\",-L34,L34))","v":1600},{"$f":"IF(K40=\"(\",\")\",\"\")","v":")"}]
[null,null,null,null,"3","Денежные потоки от финансовых операций"]
[null,null,null,null,"3.1","Поступления - всего, в том числе:",4310,{"$f":"IF((SUMIF(H43:H47,\"\",I43:I47)-SUMIF(H43:H47,\"(\",I43:I47))<0,\"(\",\"\")","v":""},{"$f":"ABS(SUMIF(H43:H47,\"\",I43:I47)-SUMIF(H43:H47,\"(\",I43:I47))","v":0},{"$f":"IF(H42=\"(\",\")\",\"\")","v":""},{"$f":"IF((SUMIF(K43:K47,\"\",L43:L47)-SUMIF(K43:K47,\"(\",L43:L47))<0,\"(\",\"\")","v":""},{"$f":"ABS(SUMIF(K43:K47,\"\",L43:L47)-SUMIF(K43:K47,\"(\",L43:L47))","v":0},{"$f":"IF(K42=\"(\",\")\",\"\")","v":""}]
[null,null,null,null,"3.1.1","получение кредитов и займов",4311,null,null,"",null,null,""]
[null,null,null,null,"3.1.2","денежных вкладов собственников (участников)",4312,null,null,"",null,null,""]
[null,null,null,null,"3.1.3","от выпуска акций, увеличения долей участия",4313,null,null,"",null,null,""]
[null,null,null,null,"3.1.4","от выпуска облигаций, векселей и других долговых ценных бумаг и др.",4314,null,null,"",null,null,""]
[null,null,null,null,"3.1.5","прочие поступления","4319",null,null,"",null,null,""]
[null,null,null,null,"3.2","Платежи - всего, в том числе:",4320,"(",{"$f":"SUM(I49:I52)","v":0},")","(",{"$f":"SUM(L49:L52)","v":0},")"]
[null,null,null,null,"3.2.1","собственникам (участникам) в связи с выкупом у них акций (долей участия) организации или их выходом из состава участников","4321","(",null,")","(",null,")"]
[null,null,null,null,"3.2.2","на уплату дивидендов и иных платежей по распределению прибыли в пользу собственников (участников)","4322","(",null,")","(",null,")"]
[null,null,null,null,"3.2.3","в связи с погашением (выкупом) векселей и других долговых ценных бумаг, возврат кредитов и займов","4323","(",null,")","(",null,")"]
[null,null,null,null,"3.2.4","прочие платежи","4329","(",null,")","(",null,")"]
[null,null,null,null,"3.3","Сальдо денежных потоков от финансовых операций","4300",{"$f":"IF((IF(H42=\"(\",-I42,I42)+IF(H48=\"(\",-I48,I48))<0,\"(\",\"\")","v":""},{"$f":"ABS(IF(H42=\"(\",-I42,I42)+IF(H48=\"(\",-I48,I48))","v":0},{"$f":"IF(H53=\"(\",\")\",\"\")","v":""},{"$f":"IF((IF(K42=\"(\",-L42,L42)+IF(K48=\"(\",-L48,L48))<0,\"(\",\"\")","v":""},{"$f":"ABS(IF(K42=\"(\",-L42,L42)+IF(K48=\"(\",-L48,L48))","v":0},{"$f":"IF(K53=\"(\",\")\",\"\")","v":""}]
[null,null,null,null,"4","Сальдо денежных потоков за отчетный период","4400",{"$f":"IF((IF(H26=\"(\",-I26,I26)+IF(H40=\"(\",-I40,I40)+IF(H53=\"(\",-I53,I53))<0,\"(\",\"\")","v":"("},{"$f":"ABS(IF(H26=\"(\",-I26,I26)+IF(H40=\"(\",-I40,I40)+IF(H53=\"(\",-I53,I53))","v":1707},{"$f":"IF(H54=\"(\",\")\",\"\")","v":")"},{"$f":"IF((IF(K26=\"(\",-L26,L26)+IF(K40=\"(\",-L40,L40)+IF(K53=\"(\",-L53,L53))<0,\"(\",\"\")","v":""},{"$f":"ABS(IF(K26=\"(\",-L26,L26)+IF(K40=\"(\",-L40,L40)+IF(K53=\"(\",-L53,L53))","v":2971},{"$f":"IF(K54=\"(\",\")\",\"\")","v":""}]
[null,null,null,null,"5","Остаток денежных средств и денежных эквивалентов на начало отчетного периода","4450",null,7769,{"$f":"IF(H55=\"(\",\")\",\"\")","v":""},null,4798,{"$f":"IF(K55=\"(\",\")\",\"\")","v":""}]
[null,null,null,null,"6","Остаток денежных средств и денежных эквивалентов на конец отчетного периода","4500",{"$f":"IF((IF(H54=\"(\",-I54,I54)+IF(H55=\"(\",-I55,I55)+IF(H57=\"(\",-I57,I57))<0,\"(\",\"\")","v":""},{"$f":"ABS(IF(H54=\"(\",-I54,I54)+IF(H55=\"(\",-I55,I55)+IF(H57=\"(\",-I57,I57))","v":6062},{"$f":"IF(H56=\"(\",\")\",\"\")","v":""},{"$f":"IF((IF(K54=\"(\",-L54,L54)+IF(K55=\"(\",-L55,L55)+IF(K57=\"(\",-L57,L57))<0,\"(\",\"\")","v":""},{"$f":"ABS(IF(K54=\"(\",-L54,L54)+IF(K55=\"(\",-L55,L55)+IF(K57=\"(\",-L57,L57))","v":7769},{"$f":"IF(K56=\"(\",\")\",\"\")","v":""}]
[null,null,null,null,"7","Величина влияния изменений курса иностранной валюты по отношению к рублю","4490",null,null,{"$f":"IF(H57=\"(\",\")\",\"\")","v":""},null,null,{"$f":"IF(K57=\"(\",\")\",\"\")","v":""}]

{"sheet":"Форма4. Расшифровка показателей","index":12,"n_rows":54,"n_cols":14,"rows_kept":54,"cut":false,"hidden":false,"merged":[[10,7,10,9],[10,10,10,12],[11,7,11,9],[11,10,11,12],[6,4,6,12],[7,4,7,12]]}
[]
[]
[]
[null,null,null,null,{"$f":"Getcode()","v":"ELPASS.FORMS.BH"},null,null,null,null,null,null,null,{"$f":"version","v":"Версия 1.0 от 01.10.2017"}]
[]
[null,null,null,null,null,null,null,null,null,null,null,null,"Форма 0710004 с. 3"]
[null,null,null,null,"Отчёт о движении денежных средств"]
[null,null,null,null,"Расшифровка отдельных показателей"]
[]
[]
[null,null,null,null,"№\nп/п","Наименование показателя","Код",{"$f":"\"За \"&IF(List_01_reporting_period=\"\",\"отчётный период\",List_01_reporting_period&\" г.\")","v":"За 2017 г."},null,null,{"$f":"\"За \"&IF(List_01_reporting_period=\"\",\"период предыдущего года, аналогичный отчётному периоду\",List_01_reporting_period-1&\" г.\")","v":"За 2016 г."}]
[null,null,null,null,1,"2","3","4",null,null,"5"]
[null,null,null,null,"1","Прочие поступления от текущих операций (стр. 4119), в том числе:",null,{"$f":"IF('Форма 4. Отчет о ДДС'!H19=\"(\",\"(\",\"\")","v":""},{"$f":"'Форма 4. Отчет о ДДС'!I19","v":24004},{"$f":"IF(H13=\"(\",\")\",\"\")","v":""},{"$f":"IF('Форма 4. Отчет о ДДС'!K19=\"(\",\"(\",\"\")","v":""},{"$f":"'Форма 4. Отчет о ДДС'!L19","v":29863},{"$f":"IF(K13=\"(\",\")\",\"\")","v":""}]
[null,null,null,null,"1.1","прочие поступления","41191",null,3660,"",null,4547,""]
[null,null,null,null,"1.2","субсидии из бюджета","41192",null,20344,"",null,25316,""]
[null,null,null,null,"1.3",null,"41193",null,null,"",null,null,""]
[null,null,null,null,"1.4",null,"41194",null,null,"",null,null,""]
[null,null,null,null,"1.5",null,"41195",null,null,"",null,null,""]
[null,null,null,null,null,"Добавить строку",null,null,null,null,null,null,null,"add_FORMA2_R1_range"]
[null,null,null,null,"2","На прочие платежи от текущих операций (стр. 4129), в том числе:",null,{"$f":"IF('Форма 4. Отчет о ДДС'!H25=\"(\",\"(\",\"\")","v":"("},{"$f":"'Форма 4. Отчет о ДДС'!I25","v":38318},{"$f":"IF(H20=\"(\",\")\",\"\")","v":")"},{"$f":"IF('Форма 4. Отчет о ДДС'!K25=\"(\",\"(\",\"\")","v":"("},{"$f":"'Форма 4. Отчет о ДДС'!L25","v":50100},{"$f":"IF(K20=\"(\",\")\",\"\")","v":")"}]
[null,null,null,null,"2.1","Расчеты по налогам и сборамЮвзносы во внебюджетные фонды","41291","(",30499,")","(",43408,")"]
[null,null,null,null,"2.2","Прочие выплаты и перечисления","41292","(",8953,")","(",6692,")"]
[null,null,null,null,"2.3",null,"41293","(",null,")","(",null,")"]
[null,null,null,null,"2.4",null,"41294","(",null,")","(",null,")"]
[null,null,null,null,"2.5",null,"41295","(",null,")","(",null,")"]
[null,null,null,null,null,"Добавить строку",null,null,null,null,null,null,null,"add_FORMA2_R2_range"]
[null,null,null,null,"3","Прочие поступления от инвестиционных операций (стр. 4219), в том числе:",null,{"$f":"IF('Форма 4. Отчет о ДДС'!H33=\"(\",\"(\",\"\")","v":""},{"$f":"'Форма 4. Отчет о ДДС'!I33","v":0},{"$f":"IF(H27=\"(\",\")\",\"\")","v":""},{"$f":"IF('Форма 4. Отчет о ДДС'!K33=\"(\",\"(\",\"\")","v":""},{"$f":"'Форма 4. Отчет о ДДС'!L33","v":8104},{"$f":"IF(K27=\"(\",\")\",\"\")","v":""}]
[null,null,null,null,"3.1",null,"42191",null,null,"",null,null,""]
[null,null,null,null,"3.2",null,"42192",null,null,"",null,null,""]
[null,null,null,null,"3.3",null,"42193",null,null,"",null,null,""]
[null,null,null,null,"3.4",null,"42194",null,null,"",null,null,""]
[null,null,null,null,"3.5",null,"42195",null,null,"",null,null,""]
[null,null,null,null,null,"Добавить строку",null,null,null,null,null,null,null,"add_FORMA2_R1_range"]
[null,null,null,null,"4","На прочие платежи от инвестиционных операций (стр. 4229), в том числе:",null,{"$f":"IF('Форма 4. Отчет о ДДС'!H39=\"(\",\"(\",\"\")","v":"("},{"$f":"'Форма 4. Отчет о ДДС'!I39","v":0},{"$f":"IF(H34=\"(\",\")\",\"\")","v":")"},{"$f":"IF('Форма 4. Отчет о ДДС'!K39=\"(\",\"(\",\"\")","v":"("},{"$f":"'Форма 4. Отчет о ДДС'!L39","v":0},{"$f":"IF(K34=\"(\",\")\",\"\")","v":")"}]
[null,null,null,null,"4.1",null,"42291","(",null,")","(",null,")"]
[null,null,null,null,"4.2",null,"42292","(",null,")","(",null,")"]
[null,null,null,null,"4.3",null,"42293","(",null,")","(",null,")"]
[null,null,null,null,"4.4",null,"42294","(",null,")","(",null,")"]
[null,null,null,null,"4.5",null,"42295","(",null,")","(",null,")"]
[null,null,null,null,null,"Добавить строку",null,null,null,null,null,null,null,"add_FORMA2_R2_range"]
[null,null,null,null,"5","Другие поступления от финансовых операций (стр. 4319), в том числе:",null,{"$f":"IF('Форма 4. Отчет о ДДС'!H47=\"(\",\"(\",\"\")","v":""},{"$f":"'Форма 4. Отчет о ДДС'!I47","v":0},{"$f":"IF(H41=\"(\",\")\",\"\")","v":""},{"$f":"IF('Форма 4. Отчет о ДДС'!K47=\"(\",\"(\",\"\")","v":""},{"$f":"'Форма 4. Отчет о ДДС'!L47","v":0},{"$f":"IF(K41=\"(\",\")\",\"\")","v":""}]
[null,null,null,null,"5.1",null,"43191",null,null,"",null,null,""]
[null,null,null,null,"5.2",null,"43192",null,null,"",null,null,""]
[null,null,null,null,"5.3",null,"43193",null,null,"",null,null,""]
[null,null,null,null,"5.4",null,"43194",null,null,"",null,null,""]
[null,null,null,null,"5.5",null,"43195",null,null,"",null,null,""]
[null,null,null,null,null,"Добавить строку",null,null,null,null,null,null,null,"add_FORMA2_R1_range"]
[null,null,null,null,"6","На прочие платежи от финансовых операций (стр. 4329), в том числе:",null,{"$f":"IF('Форма 4. Отчет о ДДС'!H52=\"(\",\"(\",\"\")","v":"("},{"$f":"'Форма 4. Отчет о ДДС'!I52","v":0},{"$f":"IF(H48=\"(\",\")\",\"\")","v":")"},{"$f":"IF('Форма 4. Отчет о ДДС'!K52=\"(\",\"(\",\"\")","v":"("},{"$f":"'Форма 4. Отчет о ДДС'!L52","v":0},{"$f":"IF(K48=\"(\",\")\",\"\")","v":")"}]
[null,null,null,null,"6.1",null,"43291","(",null,")","(",null,")"]
[null,null,null,null,"6.2",null,"43292","(",null,")","(",null,")"]
[null,null,null,null,"6.3",null,"43293","(",null,")","(",null,")"]
[null,null,null,null,"6.4",null,"43294","(",null,")","(",null,")"]
[null,null,null,null,"6.5",null,"43295","(",null,")","(",null,")"]
[null,null,null,null,null,"Добавить строку",null,null,null,null,null,null,null,"add_FORMA2_R2_range"]

{"sheet":"Форма 5. НА и НИОКР","index":13,"n_rows":77,"n_cols":43,"rows_kept":77,"cut":false,"hidden":false,"merged":[[5,4,5,40],[7,4,7,40],[12,4,14,4],[12,5,14,5],[12,6,14,6],[12,7,14,7],[12,8,12,13],[12,14,12,34],[12,35,12,40],[13,8,14,10],[13,11,14,13],[13,14,14,16],[13,17,13,22],[13,23,14,25],[13,26,14,28],[13,35,14,37],[13,38,14,40],[14,17,14,19],[14,20,14,22],[14,29,14,31],[14,32,14,34],[13,29,13,34],[15,11,15,13],[15,17,15,19],[15,23,15,25],[15,38,15,40],[16,4,17,4],[16,5,17,5],[38,14,38,16],[35,4,36,16],[18,4,19,4],[18,5,19,5],[28,5,28,6],[28,8,28,10],[28,11,28,13],[28,14,28,16],[24,4,25,16],[29,5,29,6],[29,11,29,13],[30,5,30,6],[31,5,31,6],[38,5,38,6],[38,8,38,10],[38,11,38,13],[39,5,39,6],[39,11,39,13],[40,5,40,6],[41,5,41,6],[48,4,50,4],[48,5,50,5],[48,6,50,6],[48,7,50,7],[48,8,48,13],[49,8,50,10],[49,11,50,13],[49,14,50,16],[49,17,49,22],[49,23,50,25],[49,26,50,28],[49,29,50,31],[50,17,50,19],[62,7,63,7],[62,8,63,10],[62,11,62,19],[62,20,63,22],[63,11,63,13],[63,14,63,16],[63,17,63,19],[54,4,55,4],[54,5,55,5],[62,4,63,4],[62,5,63,5],[62,6,63,6],[64,14,64,16],[64,17,64,19],[67,4,68,4],[67,5,68,5],[70,4,71,4],[70,5,71,5],[65,4,66,4],[65,5,66,5],[72,4,73,4],[72,5,73,5],[9,4,10,40],[45,4,46,31],[59,4,60,22],[32,5,32,6],[42,5,42,6],[50,20,50,22],[51,11,51,13],[51,17,51,19],[51,23,51,25],[51,29,51,31],[52,4,53,4],[52,5,53,5],[48,14,48,25],[48,26,48,31]]}
[]
[]
[]
[]
[null,null,null,null,{"$f":"Getcode()","v":"ELPASS.FORMS.BH"},null,null,null,null,null,null,null,null,null,null,null,null,null,null,null,null,null,null,null,null,null,null,null,null,null,null,null,null,null,null,null,null,null,null,null,{"$f":"version","v":"Версия 1.0 от 01.10.2017"}]
[null,null,null,null,"Поясненения к бухгалтерскому балансу и отчету о финансовых результатах "]
[null,null,null,null,null,null,null,null,null,null,null,null,null,null,null,null,null,null,null,null,null,null,null,null,null,null,null,null,null,null,null,null,null,null,null,null,null,null,null,null,"Форма 0710005 с. 1-3"]
[null,null,null,null,"1. Нематериальные активы и расходы на научно-исследовательские, опытно-конструкторские и технологические работы (НИОКР)"]
[]
[null,null,null,null,"1.1. Наличие и движение нематериальных активов"]
[]
[]
[null,null,null,null,"№\nп/п","Наименование","Период","Код","На начало года",null,null,null,null,null,"Изменения за период",null,null,null,null,null,null,null,null,null,null,null,null,null,null,null,null,null,null,null,null,"На конец периода"]
[null,null,null,null,null,null,null,null,"первоначальная стоимость *",null,null,"накопленная амортизация и убытки от обесценения",null,null,"поступило",null,null,"выбыло",null,null,null,null,null,"начислено амортизации",null,null,"убыток\nот обесценения",null,null,"переоценка",null,null,null,null,null,"первоначальная стоимость *",null,null,"накопленная амортизация и убытки от обесценения"]
[null,null,null,null,null,null,null,null,null,null,null,null,null,null,null,null,null,"первоначальная стоимость *",null,null,"накопленная амортизация и убытки от обесценения",null,null,null,null,null,null,null,null,"первоначальная стоимость *",null,null,"накопленная амортизация и убытки от обесценения"]
[null,null,null,null,1,2,3,4," ",5," ",6,null,null," ",7," ",8,null,null," ",9," ",10,null,null," ",11," "," ",12," "," ",13," "," ",14," ",15]
[null,null,null,null,"1.1","Нематериальные активы - всего, в том числе: ",{"$f":"\"за \"&IF(List_01_reporting_period=\"\",\"отчётный год\",List_01_reporting_period&\" год\")","v":"за 2017 год"},5100,null,{"$f":"ABS(SUM(IF($AQ$19:$AQ$21=\"c\",IF(I$19:I$21=\"(\",-J$19:J$21,J$19:J$21))))","v":0},null,"(",{"$f":"SUMIF($AQ$19:$AQ$21,$AQ17,M$19:M$21)","v":0},")",{"$f":"IF((SUM(IF($AQ$19:$AQ$21=\"c\",IF(O$19:O$21=\"(\",-P$19:P$21,P$19:P$21))))<0,\"(\",\"\")","v":""},{"$f":"ABS(SUM(IF($AQ$19:$AQ$21=\"c\",IF(O$19:O$21=\"(\",-P$19:P$21,P$19:P$21))))","v":0},{"$f":"IF(O17=\"(\",\")\",\"\")","v":""},"(",{"$f":"SUMIF($AQ$19:$AQ$21,$AQ17,S$19:S$21)","v":0},")",{"$f":"IF((SUM(IF($AQ$19:$AQ$21=\"c\",IF(U$19:U$21=\"(\",-V$19:V$21,V$19:V$21))))<0,\"(\",\"\")","v":""},{"$f":"ABS(SUM(IF($AQ$19:$AQ$21=\"c\",IF(U$19:U$21=\"(\",-V$19:V$21,V$19:V$21))))","v":0},{"$f":"IF(U17=\"(\",\")\",\"\")","v":""},"(",{"$f":"SUMIF($AQ$19:$AQ$21,$AQ17,Y$19:Y$21)","v":0},")",{"$f":"IF((SUM(IF($AQ$19:$AQ$21=\"c\",IF(AA$19:AA$21=\"(\",-AB$19:AB$21,AB$19:AB$21))))<0,\"(\",\"\")","v":""},{"$f":"ABS(SUM(IF($AQ$19:$AQ$21=\"c\",IF(AA$19:AA$21=\"(\",-AB$19:AB$21,AB$19:AB$21))))","v":0},{"$f":"IF(AA17=\"(\",\")\",\"\")","v":""},{"$f":"IF((SUM(IF($AQ$19:$AQ$21=\"c\",IF(AD$19:AD$21=\"(\",-AE$19:AE$21,AE$19:AE$21))))<0,\"(\",\"\")","v":""},{"$f":"ABS(SUM(IF($AQ$19:$AQ$21=\"c\",IF(AD$19:AD$21=\"(\",-AE$19:AE$21,AE$19:AE$21))))","v":0},{"$f":"IF(AD17=\"(\",\")\",\"\")","v":""},{"$f":"IF((SUM(IF($AQ$19:$AQ$21=\"c\",IF(AG$19:AG$21=\"(\",-AH$19:AH$21,AH$19:AH$21))))<0,\"(\",\"\")","v":""},{"$f":"ABS(SUM(IF($AQ$19:$AQ$21=\"c\",IF(AG$19:AG$21=\"(\",-AH$19:AH$21,AH$19:AH$21))))","v":0},{"$f":"IF(AG17=\"(\",\")\",\"\")","v":""},{"$f":"IF((SUM(IF($AQ$19:$AQ$21=\"c\",IF(AJ$19:AJ$21=\"(\",-AK$19:AK$21,AK$19:AK$21))))<0,\"(\",\"\")","v":""},{"$f":"ABS(SUM(IF($AQ$19:$AQ$21=\"c\",IF(AJ$19:AJ$21=\"(\",-AK$19:AK$21,AK$19:AK$21))))","v":0},{"$f":"IF(AJ17=\"(\",\")\",\"\")","v":""},"(",{"$f":"SUMIF($AQ$19:$AQ$21,$AQ17,AN$19:AN$21)","v":0},")",null,"c"]
[null,null,null,null,null,null,{"$f":"\"за \"&IF(List_01_reporting_period=\"\",\"предыдущий год\",List_01_reporting_period-1&\" год\")","v":"за 2016 год"},5110,null,{"$f":"ABS(SUM(IF($AQ$19:$AQ$21=\"p\",IF(I$19:I$21=\"(\",-J$19:J$21,J$19:J$21))))","v":0},{"$f":"IF(I18=\"(\",\")\",\"\")","v":""},"(",{"$f":"SUMIF($AQ$19:$AQ$21,$AQ18,M$19:M$21)","v":0},")",{"$f":"IF((SUM(IF($AQ$19:$AQ$21=\"p\",IF(O$19:O$21=\"(\",-P$19:P$21,P$19:P$21))))<0,\"(\",\"\")","v":""},{"$f":"ABS(SUM(IF($AQ$19:$AQ$21=\"p\",IF(O$19:O$21=\"(\",-P$19:P$21,P$19:P$21))))","v":0},{"$f":"IF(O18=\"(\",\")\",\"\")","v":""},"(",{"$f":"SUMIF($AQ$19:$AQ$21,$AQ18,S$19:S$21)","v":0},")",{"$f":"IF((SUM(IF($AQ$19:$AQ$21=\"p\",IF(U$19:U$21=\"(\",-V$19:V$21,V$19:V$21))))<0,\"(\",\"\")","v":""},{"$f":"ABS(SUM(IF($AQ$19:$AQ$21=\"p\",IF(U$19:U$21=\"(\",-V$19:V$21,V$19:V$21))))","v":0},{"$f":"IF(U18=\"(\",\")\",\"\")","v":""},"(",{"$f":"SUMIF($AQ$19:$AQ$21,$AQ18,Y$19:Y$21)","v":0},")",{"$f":"IF((SUM(IF($AQ$19:$AQ$21=\"p\",IF(AA$19:AA$21=\"(\",-AB$19:AB$21,AB$19:AB$21))))<0,\"(\",\"\")","v":""},{"$f":"ABS(SUM(IF($AQ$19:$AQ$21=\"p\",IF(AA$19:AA$21=\"(\",-AB$19:AB$21,AB$19:AB$21))))","v":0},{"$f":"IF(AA18=\"(\",\")\",\"\")","v":""},{"$f":"IF((SUM(IF($AQ$19:$AQ$21=\"p\",IF(AD$19:AD$21=\"(\",-AE$19:AE$21,AE$19:AE$21))))<0,\"(\",\"\")","v":""},{"$f":"ABS(SUM(IF($AQ$19:$AQ$21=\"p\",IF(AD$19:AD$21=\"(\",-AE$19:AE$21,AE$19:AE$21))))","v":0},{"$f":"IF(AD18=\"(\",\")\",\"\")","v":""},{"$f":"IF((SUM(IF($AQ$19:$AQ$21=\"p\",IF(AG$19:AG$21=\"(\",-AH$19:AH$21,AH$19:AH$21))))<0,\"(\",\"\")","v":""},{"$f":"ABS(SUM(IF($AQ$19:$AQ$21=\"p\",IF(AG$19:AG$21=\"(\",-AH$19:AH$21,AH$19:AH$21))))","v":0},{"$f":"IF(AG18=\"(\",\")\",\"\")","v":""},{"$f":"IF((SUM(IF($AQ$19:$AQ$21=\"p\",IF(AJ$19:AJ$21=\"(\",-AK$19:AK$21,AK$19:AK$21))))<0,\"(\",\"\")","v":""},{"$f":"ABS(SUM(IF($AQ$19:$AQ$21=\"p\",IF(AJ$19:AJ$21=\"(\",-AK$19:AK$21,AK$19:AK$21))))","v":0},{"$f":"IF(AJ18=\"(\",\")\",\"\")","v":""},"(",{"$f":"SUMIF($AQ$19:$AQ$21,$AQ18,AN$19:AN$21)","v":0},")",null,"p"]
[null,null,null,null,"1.1.1","Нематериальные активы - всего, в том числе: ",{"$f":"\"за \"&IF(List_01_reporting_period=\"\",\"отчётный год\",List_01_reporting_period&\" год\")","v":"за 2017 год"},"5110",null,null,{"$f":"IF(I19=\"(\",\")\",\"\")","v":""},"(",null,")",null,null,{"$f":"IF(O19=\"(\",\")\",\"\")","v":""},"(",null,")",null,null,{"$f":"IF(U19=\"(\",\")\",\"\")","v":""},"(",null,")",null,null,{"$f":"IF(AA19=\"(\",\")\",\"\")","v":""},null,null,{"$f":"IF(AD19=\"(\",\")\",\"\")","v":""},null,null,{"$f":"IF(AG19=\"(\",\")\",\"\")","v":""},null,null,{"$f":"IF(AJ19=\"(\",\")\",\"\")","v":""},"(",null,")",null,"c"]
[null,null,null,null,null,null,{"$f":"\"за \"&IF(List_01_reporting_period=\"\",\"предыдущий год\",List_01_reporting_period-1&\" год\")","v":"за 2016 год"},"5110",null,null,{"$f":"IF(I20=\"(\",\")\",\"\")","v":""},"(",null,")",null,null,{"$f":"IF(O20=\"(\",\")\",\"\")","v":""},"(",null,")",null,null,{"$f":"IF(U20=\"(\",\")\",\"\")","v":""},"(",null,")",null,null,{"$f":"IF(AA20=\"(\",\")\",\"\")","v":""},null,null,{"$f":"IF(AD20=\"(\",\")\",\"\")","v":""},null,null,{"$f":"IF(AG20=\"(\",\")\",\"\")","v":""},null,null,{"$f":"IF(AJ20=\"(\",\")\",\"\")","v":""},"(",null,")",null,"p"]
[null,null,null,null,null,"Добавить вид нематериальных активов",null,null,null,null,null,null,null,null,null,null,null,null,null,null,null,null,null,null,null,null,null,null,null,null,null,null,null,null,null,null,null,null,null,null,null,"add_FORMA5_STR1_1_1_range"]
[]
[]
[]
[null,null,null,null,"1.2. Первоначальная стоимость нематериальных активов, созданных самой организацией"]
[]
[]
[]
[null,null,null,null,"№\nп/п","Наименование",null,"Код",{"$f":"\"На 31 декабря \"&IF(List_01_reporting_period = \"\",\"отчётную дату отчётного года\",List_01_reporting_period& \" г.\")","v":"На 31 декабря 2017 г."},null,null,{"$f":"\"На 31 декабря \"&IF(List_01_reporting_period = \"\",\"предыдущего года\",List_01_reporting_period-1& \" г.\")","v":"На 31 декабря 2016 г."},null,null,{"$f":"\"На 31 декабря \"&IF(List_01_reporting_period = \"\",\"года, предшествующего предыдущему\",List_01_reporting_period-2& \" г.\")","v":"На 31 декабря 2015 г."}]
[null,null,null,null,1,2,null,3,null,4,null,5,null,null,null,6]
[null,null,null,null,"1.2","Всего, в том числе: ",null,5120,null,{"$f":"ABS(SUMIF(I32:I33,\"\",J32:J33)-SUMIF(I32:I33,\"(\",J32:J33))","v":0},{"$f":"IF(I31=\"(\",\")\",\"\")","v":""},null,{"$f":"ABS(SUMIF(L32:L33,\"\",M32:M33)-SUMIF(L32:L33,\"(\",M32:M33))","v":0},{"$f":"IF(L31=\"(\",\")\",\"\")","v":""},null,{"$f":"ABS(SUMIF(O32:O33,\"\",P32:P33)-SUMIF(O32:O33,\"(\",P32:P33))","v":0},{"$f":"IF(O31=\"(\",\")\",\"\")","v":""}]
[null,null,null,null,"1.2.1","Всего, в том числе: ",null,"5120",null,null,{"$f":"IF(I32=\"(\",\")\",\"\")","v":""},null,null,{"$f":"IF(L32=\"(\",\")\",\"\")","v":""},null,null,{"$f":"IF(O32=\"(\",\")\",\"\")","v":""}]
[null,null,null,null,null,"Добавить вид нематериальных активов",null,null,null,null,null,null,null,null,null,null,null,null,null,null,null,null,null,null,null,null,null,null,null,null,null,null,null,null,null,null,null,null,null,null,null,"add_FORMA5_STR1_1_2_range"]
[]
[]
[null,null,null,null,"1.3. Нематериальные активы с полностью погашенной стоимостью"]
[]
[]
[null,null,null,null,"№\nп/п","Наименование",null,"Код",{"$f":"\"На 31 декабря \"&IF(List_01_reporting_period = \"\",\"отчётную дату отчётного года\",List_01_reporting_period& \" г.\")","v":"На 31 декабря 2017 г."},null,null,{"$f":"\"На 31 декабря \"&IF(List_01_reporting_period = \"\",\"предыдущего года\",List_01_reporting_period-1& \" г.\")","v":"На 31 декабря 2016 г."},null,null,{"$f":"\"На 31 декабря \"&IF(List_01_reporting_period = \"\",\"года, предшествующего предыдущему\",List_01_reporting_period-2& \" г.\")","v":"На 31 декабря 2015 г."}]
[null,null,null,null,1,2,null,3,null,4,null,5,null,null,null,6]
[null,null,null,null,"1.3","Всего, в том числе: ",null,5130,null,{"$f":"ABS(SUMIF(I42:I43,\"\",J42:J43)-SUMIF(I42:I43,\"(\",J42:J43))","v":0},{"$f":"IF(I41=\"(\",\")\",\"\")","v":""},null,{"$f":"ABS(SUMIF(L42:L43,\"\",M42:M43)-SUMIF(L42:L43,\"(\",M42:M43))","v":0},{"$f":"IF(L41=\"(\",\")\",\"\")","v":""},null,{"$f":"ABS(SUMIF(O42:O43,\"\",P42:P43)-SUMIF(O42:O43,\"(\",P42:P43))","v":0},{"$f":"IF(O41=\"(\",\")\",\"\")","v":""}]
[null,null,null,null,"1.3.1","Всего, в том числе: ",null,"5130",null,null,{"$f":"IF(I42=\"(\",\")\",\"\")","v":""},null,null,{"$f":"IF(L42=\"(\",\")\",\"\")","v":""},null,null,{"$f":"IF(O42=\"(\",\")\",\"\")","v":""}]
[null,null,null,null,null,"Добавить вид нематериальных активов",null,null,null,null,null,null,null,null,null,null,null,null,null,null,null,null,null,null,null,null,null,null,null,null,null,null,null,null,null,null,null,null,null,null,null,"add_FORMA5_STR1_1_2_range"]
[]
[]
[null,null,null,null,"1.4. Наличие и движение результатов НИОКР"]
[]
[]
[null,null,null,null,"№\nп/п","Наименование","Период","Код","На начало года",null,null,null,null,null,"Изменения за период",null,null,null,null,null,null,null,null,null,null,null,"На конец периода"]
[null,null,null,null,null,null,null,null,"первоначальная стоимость *",null,null,"часть стоимости, списанной на расходы",null,null,"поступило",null,null,"выбыло",null,null,null,null,null,"часть стоимости, списанная на расходы за период",null,null,"первоначальная стоимость *",null,null,"часть стоимости, списанная на расходы"]
[null,null,null,null,null,null,null,null,null,null,null,null,null,null,null,null,null,"первоначальная стоимость",null,null,"часть стоимости, списанной на расходы"]
[null,null,null,null,1,2,3,4,null,5,null,6,null,null,null,7,null,8,null,null,null,9,null,10,null,null,null,11,null,12]
[null,null,null,null,"1.4","НИОКР - всего, в том числе: ",{"$f":"\"за \"&IF(List_01_reporting_period=\"\",\"отчётный год\",List_01_reporting_period&\" год\")","v":"за 2017 год"},5140,null,{"$f":"ABS(SUM(IF($AH$55:$AH$57=\"c\",IF(I$55:I$57=\"(\",-J$55:J$57,J$55:J$57))))","v":0},{"$f":"IF(I53=\"(\",\")\",\"\")","v":""},"(",{"$f":"SUMIF($AH$55:$AH$57,$AH53,M$55:M$57)","v":0},")",null,{"$f":"ABS(SUM(IF($AH$55:$AH$57=\"c\",IF(O$55:O$57=\"(\",-P$55:P$57,P$55:P$57))))","v":0},{"$f":"IF(O53=\"(\",\")\",\"\")","v":""},"(",{"$f":"SUMIF($AH$55:$AH$57,$AH53,S$55:S$57)","v":0},")",null,{"$f":"ABS(SUM(IF($AH$55:$AH$57=\"c\",IF(U$55:U$57=\"(\",-V$55:V$57,V$55:V$57))))","v":0},{"$f":"IF(U53=\"(\",\")\",\"\")","v":""},"(",{"$f":"SUMIF($AH$55:$AH$57,$AH53,Y$55:Y$57)","v":0},")",null,{"$f":"ABS(SUM(IF($AH$55:$AH$57=\"c\",IF(AA$55:AA$57=\"(\",-AB$55:AB$57,AB$55:AB$57))))","v":0},null,"(",{"$f":"SUMIF($AH$55:$AH$57,$AH53,AE$55:AE$57)","v":0},")",null,"c"]
[null,null,null,null,null,null,{"$f":"\"за \"&IF(List_01_reporting_period=\"\",\"предыдущий год\",List_01_reporting_period-1&\" год\")","v":"за 2016 год"},5150,null,{"$f":"ABS(SUM(IF($AH$55:$AH$57=\"p\",IF(I$55:I$57=\"(\",-J$55:J$57,J$55:J$57))))","v":0},{"$f":"IF(I54=\"(\",\")\",\"\")","v":""},"(",{"$f":"SUMIF($AH$55:$AH$57,$AH54,M$55:M$57)","v":0},")",null,{"$f":"ABS(SUM(IF($AH$55:$AH$57=\"p\",IF(O$55:O$57=\"(\",-P$55:P$57,P$55:P$57))))","v":0},{"$f":"IF(O54=\"(\",\")\",\"\")","v":""},"(",{"$f":"SUMIF($AH$55:$AH$57,$AH54,S$55:S$57)","v":0},")",null,{"$f":"ABS(SUM(IF($AH$55:$AH$57=\"p\",IF(U$55:U$57=\"(\",-V$55:V$57,V$55:V$57))))","v":0},{"$f":"IF(U54=\"(\",\")\",\"\")","v":""},"(",{"$f":"SUMIF($AH$55:$AH$57,$AH54,Y$55:Y$57)","v":0},")",null,{"$f":"ABS(SUM(IF($AH$55:$AH$57=\"p\",IF(AA$55:AA$57=\"(\",-AB$55:AB$57,AB$55:AB$57))))","v":0},null,"(",{"$f":"SUMIF($AH$55:$AH$57,$AH54,AE$55:AE$57)","v":0},")",null,"p"]
[null,null,null,null,"1.4.1","НИОКР - всего, в том числе: ",{"$f":"\"за \"&IF(List_01_reporting_period=\"\",\"отчётный год\",List_01_reporting_period&\" год\")","v":"за 2017 год"},"5140",null,null,{"$f":"IF(I55=\"(\",\")\",\"\")","v":""},"(",null,")",null,null,{"$f":"IF(O55=\"(\",\")\",\"\")","v":""},"(",null,")",null,null,null,"(",null,")",null,null,null,"(",null,")",null,"c"]
[null,null,null,null,null,null,{"$f":"\"за \"&IF(List_01_reporting_period=\"\",\"предыдущий год\",List_01_reporting_period-1&\" год\")","v":"за 2016 год"},"5150",null,null,{"$f":"IF(I56=\"(\",\")\",\"\")","v":""},"(",null,")",null,null,{"$f":"IF(O56=\"(\",\")\",\"\")","v":""},"(",null,")",null,null,null,"(",null,")",null,null,null,"(",null,")",null,"p"]
[null,null,null,null,null,"Добавить объект",null,null,null,null,null,null,null,null,null,null,null,null,null,null,null,null,null,null,null,null,null,null,null,null,null,null,null,null,null,null,null,null,null,null,null,"add_FORMA5_STR1_1_4_range"]
[]
[]
[null,null,null,null,"1.5. Незаконченные и неоформленные НИОКР и незаконченные операции по приобретению нематериальных активов"]
[]
[]
[null,null,null,null,"№\nп/п","Наименование","Период","Код","На начало года",null,null,"Изменения за период",null,null,null,null,null,null,null,null,"На конец периода"]
[null,null,null,null,null,null,null,null,null,null,null,"затраты за период",null,null,"списано затрат как не давших положительного результата",null,null,"принято к учету в качестве нематериальных активов или НИОКР"]
[null,null,null,null,1,2,3,4,null,5,null,null,6,null,7,null,null,8,null,null,null,9]
[null,null,null,null,"1.5.1","Затраты по незаконченным исследованиям и разработкам - всего, в том числе: ",{"$f":"\"за \"&IF(List_01_reporting_period=\"\",\"отчётный год\",List_01_reporting_period&\" год\")","v":"за 2017 год"},5160,null,{"$f":"ABS(SUM(IF($Y$68:$Y$70=\"c\",IF(I$68:I$70=\"(\",-J$68:J$70,J$68:J$70))))","v":0},{"$f":"IF(I66=\"(\",\")\",\"\")","v":""},null,{"$f":"ABS(SUM(IF($Y$68:$Y$70=\"c\",IF(L$68:L$70=\"(\",-M$68:M$70,M$68:M$70))))","v":0},{"$f":"IF(L66=\"(\",\")\",\"\")","v":""},"(",{"$f":"SUMIF($Y$68:$Y$70,$Y66,P$68:P$70)","v":0},")","(",{"$f":"SUMIF($Y$68:$Y$70,$Y66,S$68:S$70)","v":0},")",null,{"$f":"ABS(SUM(IF($Y$68:$Y$70=\"c\",IF(U$68:U$70=\"(\",-V$68:V$70,V$68:V$70))))","v":0},{"$f":"IF(U66=\"(\",\")\",\"\")","v":""},null,"c"]
[null,null,null,null,null,null,{"$f":"\"за \"&IF(List_01_reporting_period=\"\",\"предыдущий год\",List_01_reporting_period-1&\" год\")","v":"за 2016 год"},5170,null,{"$f":"ABS(SUM(IF($Y$68:$Y$70=\"p\",IF(I$68:I$70=\"(\",-J$68:J$70,J$68:J$70))))","v":0},{"$f":"IF(I67=\"(\",\")\",\"\")","v":""},null,{"$f":"ABS(SUM(IF($Y$68:$Y$70=\"p\",IF(L$68:L$70=\"(\",-M$68:M$70,M$68:M$70))))","v":0},{"$f":"IF(L67=\"(\",\")\",\"\")","v":""},"(",{"$f":"SUMIF($Y$68:$Y$70,$Y67,P$68:P$70)","v":0},")","(",{"$f":"SUMIF($Y$68:$Y$70,$Y67,S$68:S$70)","v":0},")",null,{"$f":"ABS(SUM(IF($Y$68:$Y$70=\"p\",IF(U$68:U$70=\"(\",-V$68:V$70,V$68:V$70))))","v":0},{"$f":"IF(U67=\"(\",\")\",\"\")","v":""},null,"p"]
[null,null,null,null,"1.5.1.1","Затраты по незаконченным исследованиям и разработкам - всего, в том числе: ",{"$f":"\"за \"&IF(List_01_reporting_period=\"\",\"отчётный год\",List_01_reporting_period&\" год\")","v":"за 2017 год"},"5160",null,null,{"$f":"IF(I68=\"(\",\")\",\"\")","v":""},null,null,{"$f":"IF(L68=\"(\",\")\",\"\")","v":""},"(",null,")","(",null,")",null,null,{"$f":"IF(U68=\"(\",\")\",\"\")","v":""},null,"c"]
[null,null,null,null,null,null,{"$f":"\"за \"&IF(List_01_reporting_period=\"\",\"предыдущий год\",List_01_reporting_period-1&\" год\")","v":"за 2016 год"},"5170",null,null,{"$f":"IF(I69=\"(\",\")\",\"\")","v":""},null,null,{"$f":"IF(L69=\"(\",\")\",\"\")","v":""},"(",null,")","(",null,")",null,null,{"$f":"IF(U69=\"(\",\")\",\"\")","v":""},null,"p"]
[null,null,null,null,null,"Добавить объект",null,null,null,null,null,null,null,null,null,null,null,null,null,null,null,null,null,null,null,null,null,null,null,null,null,null,null,null,null,null,null,null,null,null,null,"add_FORMA5_STR1_1_5_range"]
[null,null,null,null,"1.5.2","Незаконченные операции по приобретению нематериальных активов - всего, в том числе: ",{"$f":"\"за \"&IF(List_01_reporting_period=\"\",\"отчётный год\",List_01_reporting_period&\" год\")","v":"за 2017 год"},5180,null,{"$f":"ABS(SUM(IF($Y$73:$Y$75=\"c\",IF(I$73:I$75=\"(\",-J$73:J$75,J$73:J$75))))","v":0},{"$f":"IF(I71=\"(\",\")\",\"\")","v":""},null,{"$f":"ABS(SUM(IF($Y$73:$Y$75=\"c\",IF(L$73:L$75=\"(\",-M$73:M$75,M$73:M$75))))","v":0},{"$f":"IF(L71=\"(\",\")\",\"\")","v":""},"(",{"$f":"SUMIF($Y$73:$Y$75,$Y71,P$73:P$75)","v":0},")","(",{"$f":"SUMIF($Y$73:$Y$75,$Y71,S$73:S$75)","v":0},")",null,{"$f":"ABS(SUM(IF($Y$73:$Y$75=\"c\",IF(U$73:U$75=\"(\",-V$73:V$75,V$73:V$75))))","v":0},{"$f":"IF(U71=\"(\",\")\",\"\")","v":""},null,"c"]
[null,null,null,null,null,null,{"$f":"\"за \"&IF(List_01_reporting_period=\"\",\"предыдущий год\",List_01_reporting_period-1&\" год\")","v":"за 2016 год"},5190,null,{"$f":"ABS(SUM(IF($Y$73:$Y$75=\"p\",IF(I$73:I$75=\"(\",-J$73:J$75,J$73:J$75))))","v":0},{"$f":"IF(I72=\"(\",\")\",\"\")","v":""},null,{"$f":"ABS(SUM(IF($Y$73:$Y$75=\"p\",IF(L$73:L$75=\"(\",-M$73:M$75,M$73:M$75))))","v":0},{"$f":"IF(L72=\"(\",\")\",\"\")","v":""},"(",{"$f":"SUMIF($Y$73:$Y$75,$Y72,P$73:P$75)","v":0},")","(",{"$f":"SUMIF($Y$73:$Y$75,$Y72,S$73:S$75)","v":0},")",null,{"$f":"ABS(SUM(IF($Y$73:$Y$75=\"p\",IF(U$73:U$75=\"(\",-V$73:V$75,V$73:V$75))))","v":0},{"$f":"IF(U72=\"(\",\")\",\"\")","v":""},null,"p"]
[null,null,null,null,"1.5.2.1","Незаконченные операции по приобретению нематериальных активов - всего, в том числе: ",{"$f":"\"за \"&IF(List_01_reporting_period=\"\",\"отчётный год\",List_01_reporting_period&\" год\")","v":"за 2017 год"},"5180",null,null,{"$f":"IF(I73=\"(\",\")\",\"\")","v":""},"(",null,{"$f":"IF(L73=\"(\",\")\",\"\")","v":")"},"(",null,")","(",null,")",null,null,{"$f":"IF(U73=\"(\",\")\",\"\")","v":""},null,"c"]
[null,null,null,null,null,null,{"$f":"\"за \"&IF(List_01_reporting_period=\"\",\"предыдущий год\",List_01_reporting_period-1&\" год\")","v":"за 2016 год"},"5190",null,null,{"$f":"IF(I74=\"(\",\")\",\"\")","v":""},"(",null,{"$f":"IF(L74=\"(\",\")\",\"\")","v":")"},"(",null,")","(",null,")",null,null,{"$f":"IF(U74=\"(\",\")\",\"\")","v":""},null,"p"]
[null,null,null,null,null,"Добавить объект",null,null,null,null,null,null,null,null,null,null,null,null,null,null,null,null,null,null,null,null,null,null,null,null,null,null,null,null,null,null,null,null,null,null,null,"add_FORMA5_STR1_1_5_range"]
[]
[null,null,null,null,"*","В случае переоценки в графе \"Первоначальная стоимость\" приводится текущая рыночная стоимость или текущая (восстановительная) стоимость."]

{"sheet":"Форма 5. Основные средства","index":14,"n_rows":86,"n_cols":40,"rows_kept":86,"cut":false,"hidden":false,"merged":[[28,4,29,4],[28,5,29,5],[51,4,52,4],[51,5,52,5],[63,5,63,6],[22,5,23,5],[24,4,25,4],[24,5,25,5],[26,4,27,4],[26,5,27,5],[7,4,7,37],[12,4,14,4],[12,5,14,5],[12,6,14,6],[12,7,14,7],[12,8,12,13],[12,14,12,31],[12,32,12,37],[13,8,14,10],[9,4,10,37],[15,11,15,13],[15,17,15,19],[15,23,15,25],[15,35,15,37],[13,11,14,13],[13,14,14,16],[13,17,13,22],[13,23,14,25],[13,26,13,31],[13,32,14,34],[13,35,14,37],[14,17,14,19],[14,20,14,22],[14,26,14,28],[14,29,14,31],[44,20,45,22],[16,4,17,4],[16,5,17,5],[18,4,19,4],[18,5,19,5],[31,4,32,4],[31,5,32,5],[33,4,34,4],[33,5,34,5],[44,4,45,4],[44,5,45,5],[44,6,45,6],[41,4,42,22],[20,4,21,4],[20,5,21,5],[22,4,23,4],[59,8,59,10],[59,11,59,13],[45,11,45,13],[45,14,45,16],[45,17,45,19],[46,11,46,13],[46,17,46,19],[56,4,57,13],[44,7,45,7],[44,8,45,10],[44,11,44,19],[49,4,50,4],[49,5,50,5],[59,5,59,6],[47,4,48,4],[47,5,48,5],[75,8,75,10],[75,11,75,13],[75,14,75,16],[76,5,76,6],[76,11,76,13],[60,11,60,13],[61,5,61,6],[62,5,62,6],[67,5,67,6],[72,4,73,16],[68,5,68,6],[60,5,60,6],[64,5,64,6],[65,5,65,6],[77,5,77,6],[75,5,75,6],[83,5,83,6],[84,5,84,6],[78,5,78,6],[79,5,79,6],[80,5,80,6],[81,5,81,6],[82,5,82,6]]}
[null,null,null,null,null,null,null,null,null,null,null,null,null,null,null,null,null,null,null,null,null,null,null,null,null,null,null,null,null,null,null,null,null,null,null,null,null,{"$f":"version","v":"Версия 1.0 от 01.10.2017"}]
[null,null,null,null,null,null,null,null,null,null,null,null,null,null,null,null,null,null,null,null,null,null,null,null,null,null,null,null,null,null,null,null,null,null,null,null,null,{"$f":"version","v":"Версия 1.0 от 01.10.2017"}]
[null,null,null,null,null,null,null,null,null,null,null,null,null,null,null,null,null,null,null,null,null,null,null,null,null,null,null,null,null,null,null,null,null,null,null,null,null,{"$f":"version","v":"Версия 1.0 от 01.10.2017"}]
[null,null,null,null,null,null,null,null,null,null,null,null,null,null,null,null,null,null,null,null,null,null,null,null,null,null,null,null,null,null,null,null,null,null,null,null,null,{"$f":"version","v":"Версия 1.0 от 01.10.2017"}]
[null,null,null,null,{"$f":"Getcode()","v":"ELPASS.FORMS.BH"},null,null,null,null,null,null,null,null,null,null,null,null,null,null,null,null,null,null,null,null,null,null,null,null,null,null,null,null,null,null,null,null,{"$f":"version","v":"Версия 1.0 от 01.10.2017"}]
[]
[null,null,null,null,null,null,null,null,null,null,null,null,null,null,null,null,null,null,null,null,null,null,null,null,null,null,null,null,null,null,null,null,null,null,null,null,null,"Форма 0710005 с. 4-6"]
[null,null,null,null,"2. Основные средства"]
[]
[null,null,null,null,"2.1. Наличие и движение основных средств"]
[]
[]
[null,null,null,null,"№\nп/п","Наименование","Период","Код","На начало года",null,null,null,null,null,"Изменения за период",null,null,null,null,null,null,null,null,null,null,null,null,null,null,null,null,null,"На конец периода"]
[null,null,null,null,null,null,null,null,"первоначальная стоимость *",null,null,"накопленная амортизация **",null,null,"поступило",null,null,"выбыло объектов",null,null,null,null,null,"начислено амортизации **",null,null,"переоценка",null,null,null,null,null,"первоначальная стоимость *",null,null,"накопленная амортизация **"]
[null,null,null,null,null,null,null,null,null,null,null,null,null,null,null,null,null,"первоначальная стоимость *",null,null,"накопленная амортизация **",null,null,null,null,null,"первоначальная стоимость *",null,null,"накопленная амортизация **"]
[null,null,null,null,1,2,3,4," ",5," ",6,null,null," ",7," ",8,null,null," ",9," ",10,null,null," ",11," "," ",12," "," ",13," ",14]
[null,null,null,null,"2.1.1","Основные средства (без учета доходных вложений в материальные ценности) - всего, в том числе: ",{"$f":"\"за \"&IF(List_01_reporting_period=\"\",\"отчётный год\",List_01_reporting_period&\" год\")","v":"за 2017 год"},5200,{"$f":"IF((SUM(IF($AN$19:$AN$31=\"c\",IF(I$19:I$31=\"(\",-J$19:J$31,J$19:J$31))))<0,\"(\",\"\")","v":""},{"$f":"ABS(SUM(IF($AN$19:$AN$31=\"c\",IF(I$19:I$31=\"(\",-J$19:J$31,J$19:J$31))))","v":178354},{"$f":"IF(I17=\"(\",\")\",\"\")","v":""},"(",{"$f":"SUMIF($AN$19:$AN$31,$AN17,M$19:M$31)","v":114977},")",{"$f":"IF((SUM(IF($AN$19:$AN$31=\"c\",IF(O$19:O$31=\"(\",-P$19:P$31,P$19:P$31))))<0,\"(\",\"\")","v":""},{"$f":"ABS(SUM(IF($AN$19:$AN$31=\"c\",IF(O$19:O$31=\"(\",-P$19:P$31,P$19:P$31))))","v":24663},{"$f":"IF(O17=\"(\",\")\",\"\")","v":""},"(",{"$f":"SUMIF($AN$19:$AN$31,$AN17,S$19:S$31)","v":187},")",{"$f":"IF((SUM(IF($AN$19:$AN$31=\"c\",IF(U$19:U$31=\"(\",-V$19:V$31,V$19:V$31))))<0,\"(\",\"\")","v":""},{"$f":"ABS(SUM(IF($AN$19:$AN$31=\"c\",IF(U$19:U$31=\"(\",-V$19:V$31,V$19:V$31))))","v":187},{"$f":"IF(U17=\"(\",\")\",\"\")","v":""},"(",{"$f":"SUMIF($AN$19:$AN$31,$AN17,Y$19:Y$31)","v":7965},")",{"$f":"IF((SUM(IF($AN$19:$AN$31=\"c\",IF(AA$19:AA$31=\"(\",-AB$19:AB$31,AB$19:AB$31))))<0,\"(\",\"\")","v":""},{"$f":"ABS(SUM(IF($AN$19:$AN$31=\"c\",IF(AA$19:AA$31=\"(\",-AB$19:AB$31,AB$19:AB$31))))","v":0},{"$f":"IF(AA17=\"(\",\")\",\"\")","v":""},{"$f":"IF((SUM(IF($AN$19:$AN$31=\"c\",IF(AD$19:AD$31=\"(\",-AE$19:AE$31,AE$19:AE$31))))<0,\"(\",\"\")","v":""},{"$f":"ABS(SUM(IF($AN$19:$AN$31=\"c\",IF(AD$19:AD$31=\"(\",-AE$19:AE$31,AE$19:AE$31))))","v":0},{"$f":"IF(AD17=\"(\",\")\",\"\")","v":""},{"$f":"IF((SUM(IF($AN$19:$AN$31=\"c\",IF(AG$19:AG$31=\"(\",-AH$19:AH$31,AH$19:AH$31))))<0,\"(\",\"\")","v":""},{"$f":"ABS(SUM(IF($AN$19:$AN$31=\"c\",IF(AG$19:AG$31=\"(\",-AH$19:AH$31,AH$19:AH$31))))","v":202830},{"$f":"IF(AG17=\"(\",\")\",\"\")","v":""},"(",{"$f":"SUMIF($AN$19:$AN$31,$AN17,AK$19:AK$31)","v":122755},")",null,"c"]
[null,null,null,null,null,null,{"$f":"\"за \"&IF(List_01_reporting_period=\"\",\"предыдущий год\",List_01_reporting_period-1&\" год\")","v":"за 2016 год"},5210,{"$f":"IF((SUM(IF($AN$19:$AN$31=\"p\",IF(I$19:I$31=\"(\",-J$19:J$31,J$19:J$31))))<0,\"(\",\"\")","v":""},{"$f":"ABS(SUM(IF($AN$19:$AN$31=\"p\",IF(I$19:I$31=\"(\",-J$19:J$31,J$19:J$31))))","v":166207},"","(",{"$f":"SUMIF($AN$19:$AN$31,$AN18,M$19:M$31)","v":110625},")",{"$f":"IF((SUM(IF($AN$19:$AN$31=\"p\",IF(O$19:O$31=\"(\",-P$19:P$31,P$19:P$31))))<0,\"(\",\"\")","v":""},{"$f":"ABS(SUM(IF($AN$19:$AN$31=\"p\",IF(O$19:O$31=\"(\",-P$19:P$31,P$19:P$31))))","v":14284},"","(",{"$f":"SUMIF($AN$19:$AN$31,$AN18,S$19:S$31)","v":2137},")",{"$f":"IF((SUM(IF($AN$19:$AN$31=\"p\",IF(U$19:U$31=\"(\",-V$19:V$31,V$19:V$31))))<0,\"(\",\"\")","v":""},{"$f":"ABS(SUM(IF($AN$19:$AN$31=\"p\",IF(U$19:U$31=\"(\",-V$19:V$31,V$19:V$31))))","v":2137},"","(",{"$f":"SUMIF($AN$19:$AN$31,$AN18,Y$19:Y$31)","v":6489},")",{"$f":"IF((SUM(IF($AN$19:$AN$31=\"p\",IF(AA$19:AA$31=\"(\",-AB$19:AB$31,AB$19:AB$31))))<0,\"(\",\"\")","v":""},{"$f":"ABS(SUM(IF($AN$19:$AN$31=\"p\",IF(AA$19:AA$31=\"(\",-AB$19:AB$31,AB$19:AB$31))))","v":0},"",{"$f":"IF((SUM(IF($AN$19:$AN$31=\"p\",IF(AD$19:AD$31=\"(\",-AE$19:AE$31,AE$19:AE$31))))<0,\"(\",\"\")","v":""},{"$f":"ABS(SUM(IF($AN$19:$AN$31=\"p\",IF(AD$19:AD$31=\"(\",-AE$19:AE$31,AE$19:AE$31))))","v":0},"",{"$f":"IF((SUM(IF($AN$19:$AN$31=\"p\",IF(AG$19:AG$31=\"(\",-AH$19:AH$31,AH$19:AH$31))))<0,\"(\",\"\")","v":""},{"$f":"ABS(SUM(IF($AN$19:$AN$31=\"p\",IF(AG$19:AG$31=\"(\",-AH$19:AH$31,AH$19:AH$31))))","v":178354},"","(",{"$f":"SUMIF($AN$19:$AN$31,$AN18,AK$19:AK$31)","v":114977},")",null,"p"]
[null,null,null,null,"2.1.1.1","Основные средства (без учета доходных вложений в материальные ценности) - всего, в том числе: ",{"$f":"\"за \"&IF(List_01_reporting_period=\"\",\"отчётный год\",List_01_reporting_period&\" год\")","v":"за 2017 год"},"5200",null,0,"","(",0,")",null,0,"","(",0,")",null,0,"","(",0,")",null,null,"",null,null,"",null,0,"","(",0,")",null,"c"]
[null,null,null,null,null,null,{"$f":"\"за \"&IF(List_01_reporting_period=\"\",\"предыдущий год\",List_01_reporting_period-1&\" год\")","v":"за 2016 год"},"5210",null,0,"","(",0,")",null,0,"","(",0,")",null,0,"","(",0,")",null,null,"",null,null,"",null,0,"","(",0,")",null,"p"]
[null,null,null,"ы","2.1.1.2","здания",{"$f":"\"за \"&IF(List_01_reporting_period=\"\",\"отчётный год\",List_01_reporting_period&\" год\")","v":"за 2017 год"},"18842",null,18842,"","(",9409,")",null,20313,"","(",null,")",null,null,"","(",532,")",null,null,"",null,null,"",null,39155,"","(",9941,")",null,"c"]
[null,null,null,null,null,null,{"$f":"\"за \"&IF(List_01_reporting_period=\"\",\"предыдущий год\",List_01_reporting_period-1&\" год\")","v":"за 2016 год"},"18842",null,18842,"","(",8946,")",null,0,"","(",null,")",null,null,"","(",463,")",null,null,"",null,null,"",null,18842,"","(",9409,")",null,"p"]
[null,null,null,"ы","2.1.1.3","Сооружения",{"$f":"\"за \"&IF(List_01_reporting_period=\"\",\"отчётный год\",List_01_reporting_period&\" год\")","v":"за 2017 год"},null,null,115700,{"$f":"IF(I23=\"(\",\")\",\"\")","v":""},"(",79695,")",null,1996,{"$f":"IF(O23=\"(\",\")\",\"\")","v":""},"(",null,")",null,null,{"$f":"IF(U23=\"(\",\")\",\"\")","v":""},"(",2524,")",null,null,{"$f":"IF(AA23=\"(\",\")\",\"\")","v":""},null,null,{"$f":"IF(AD23=\"(\",\")\",\"\")","v":""},null,117696,{"$f":"IF(AG23=\"(\",\")\",\"\")","v":""},"(",82219,")",null,"c"]
[null,null,null,null,null,null,{"$f":"\"за \"&IF(List_01_reporting_period=\"\",\"предыдущий год\",List_01_reporting_period-1&\" год\")","v":"за 2016 год"},null,null,110660,"","(",78328,")",null,6060,"","(",1020,")",null,1020,"","(",2387,")",null,null,"",null,null,"",null,115700,"","(",79695,")",null,"p"]
[null,null,null,"ы","2.1.1.4","Машины и оборудование",{"$f":"\"за \"&IF(List_01_reporting_period=\"\",\"отчётный год\",List_01_reporting_period&\" год\")","v":"за 2017 год"},null,null,31677,"","(",17511,")",null,2354,"","(",140,")",null,140,"","(",4102,")",null,null,"",null,null,"",null,33891,"","(",21473,")",null,"c"]
[null,null,null,null,null,null,{"$f":"\"за \"&IF(List_01_reporting_period=\"\",\"предыдущий год\",List_01_reporting_period-1&\" год\")","v":"за 2016 год"},null,null,24483,"","(",15711,")",null,8224,"","(",1030,")",null,1030,"","(",2830,")",null,null,"",null,null,"",null,31677,"","(",17511,")",null,"p"]
[null,null,null,"ы","2.1.1.5","Произв. и хоз. Инвентарь",{"$f":"\"за \"&IF(List_01_reporting_period=\"\",\"отчётный год\",List_01_reporting_period&\" год\")","v":"за 2017 год"},null,null,308,"","(",308,")",null,null,"","(",47,")",null,47,"","(",null,")",null,null,"",null,null,"",null,261,"","(",261,")",null,"c"]
[null,null,null,null,null,null,{"$f":"\"за \"&IF(List_01_reporting_period=\"\",\"предыдущий год\",List_01_reporting_period-1&\" год\")","v":"за 2016 год"},null,null,395,"","(",395,")",null,null,"","(",87,")",null,87,"","(",null,")",null,null,"",null,null,"",null,308,"","(",308,")",null,"p"]
[null,null,null,"ы","2.1.1.6","Транспортные средства",{"$f":"\"за \"&IF(List_01_reporting_period=\"\",\"отчётный год\",List_01_reporting_period&\" год\")","v":"за 2017 год"},null,null,11827,"","(",8054,")",null,null,"","(",null,")",null,null,"","(",807,")",null,null,"",null,null,"",null,11827,"","(",8861,")",null,"c"]
[null,null,null,null,null,null,{"$f":"\"за \"&IF(List_01_reporting_period=\"\",\"предыдущий год\",List_01_reporting_period-1&\" год\")","v":"за 2016 год"},null,null,11827,"","(",7245,")",null,null,"","(",null,")",null,null,"","(",809,")",null,null,"",null,null,"",null,11827,"","(",8054,")",null,"p"]
[null,null,null,null,null,"Добавить группу основных средств",null,null,null,null,null,null,null,null,null,null,null,null,null,null,null,null,null,null,null,null,null,null,null,null,null,null,null,null,null,null,null,null,"add_FORMA5_STR4_2_1_range"]
[null,null,null,null,"2.1.2","Учтено в составе доходных вложений в материальные ценности - всего, в том числе: ",{"$f":"\"за \"&IF(List_01_reporting_period=\"\",\"отчётный год\",List_01_reporting_period&\" год\")","v":"за 2017 год"},5220,{"$f":"IF((SUM(IF($AN$34:$AN$36=\"c\",IF(I$34:I$36=\"(\",-J$34:J$36,J$34:J$36))))<0,\"(\",\"\")","v":""},{"$f":"ABS(SUM(IF($AN$34:$AN$36=\"c\",IF(I$34:I$36=\"(\",-J$34:J$36,J$34:J$36))))","v":0},{"$f":"IF(I32=\"(\",\")\",\"\")","v":""},"(",{"$f":"SUMIF($AN$34:$AN$36,$AN32,M$34:M$36)","v":0},")",{"$f":"IF((SUM(IF($AN$34:$AN$36=\"c\",IF(O$34:O$36=\"(\",-P$34:P$36,P$34:P$36))))<0,\"(\",\"\")","v":""},{"$f":"ABS(SUM(IF($AN$34:$AN$36=\"c\",IF(O$34:O$36=\"(\",-P$34:P$36,P$34:P$36))))","v":0},{"$f":"IF(O32=\"(\",\")\",\"\")","v":""},"(",{"$f":"SUMIF($AN$34:$AN$36,$AN32,S$34:S$36)","v":0},")",{"$f":"IF((SUM(IF($AN$34:$AN$36=\"c\",IF(U$34:U$36=\"(\",-V$34:V$36,V$34:V$36))))<0,\"(\",\"\")","v":""},{"$f":"ABS(SUM(IF($AN$34:$AN$36=\"c\",IF(U$34:U$36=\"(\",-V$34:V$36,V$34:V$36))))","v":0},{"$f":"IF(U32=\"(\",\")\",\"\")","v":""},"(",{"$f":"SUMIF($AN$34:$AN$36,$AN32,Y$34:Y$36)","v":0},")",{"$f":"IF((SUM(IF($AN$34:$AN$36=\"c\",IF(AA$34:AA$36=\"(\",-AB$34:AB$36,AB$34:AB$36))))<0,\"(\",\"\")","v":""},{"$f":"ABS(SUM(IF($AN$34:$AN$36=\"c\",IF(AA$34:AA$36=\"(\",-AB$34:AB$36,AB$34:AB$36))))","v":0},{"$f":"IF(AA32=\"(\",\")\",\"\")","v":""},{"$f":"IF((SUM(IF($AN$34:$AN$36=\"c\",IF(AD$34:AD$36=\"(\",-AE$34:AE$36,AE$34:AE$36))))<0,\"(\",\"\")","v":""},{"$f":"ABS(SUM(IF($AN$34:$AN$36=\"c\",IF(AD$34:AD$36=\"(\",-AE$34:AE$36,AE$34:AE$36))))","v":0},{"$f":"IF(AD32=\"(\",\")\",\"\")","v":""},{"$f":"IF((SUM(IF($AN$34:$AN$36=\"c\",IF(AG$34:AG$36=\"(\",-AH$34:AH$36,AH$34:AH$36))))<0,\"(\",\"\")","v":""},{"$f":"ABS(SUM(IF($AN$34:$AN$36=\"c\",IF(AG$34:AG$36=\"(\",-AH$34:AH$36,AH$34:AH$36))))","v":0},{"$f":"IF(AG32=\"(\",\")\",\"\")","v":""},"(",{"$f":"SUMIF($AN$34:$AN$36,$AN32,AK$34:AK$36)","v":0},")",null,"c"]
[null,null,null,null,null,null,{"$f":"\"за \"&IF(List_01_reporting_period=\"\",\"предыдущий год\",List_01_reporting_period-1&\" год\")","v":"за 2016 год"},5230,{"$f":"IF((SUM(IF($AN$34:$AN$36=\"p\",IF(I$34:I$36=\"(\",-J$34:J$36,J$34:J$36))))<0,\"(\",\"\")","v":""},{"$f":"ABS(SUM(IF($AN$34:$AN$36=\"p\",IF(I$34:I$36=\"(\",-J$34:J$36,J$34:J$36))))","v":0},{"$f":"IF(I33=\"(\",\")\",\"\")","v":""},"(",{"$f":"SUMIF($AN$34:$AN$36,$AN33,M$34:M$36)","v":0},")",{"$f":"IF((SUM(IF($AN$34:$AN$36=\"p\",IF(O$34:O$36=\"(\",-P$34:P$36,P$34:P$36))))<0,\"(\",\"\")","v":""},{"$f":"ABS(SUM(IF($AN$34:$AN$36=\"p\",IF(O$34:O$36=\"(\",-P$34:P$36,P$34:P$36))))","v":0},{"$f":"IF(O33=\"(\",\")\",\"\")","v":""},"(",{"$f":"SUMIF($AN$34:$AN$36,$AN33,S$34:S$36)","v":0},")",{"$f":"IF((SUM(IF($AN$34:$AN$36=\"p\",IF(U$34:U$36=\"(\",-V$34:V$36,V$34:V$36))))<0,\"(\",\"\")","v":""},{"$f":"ABS(SUM(IF($AN$34:$AN$36=\"p\",IF(U$34:U$36=\"(\",-V$34:V$36,V$34:V$36))))","v":0},{"$f":"IF(U33=\"(\",\")\",\"\")","v":""},"(",{"$f":"SUMIF($AN$34:$AN$36,$AN33,Y$34:Y$36)","v":0},")",{"$f":"IF((SUM(IF($AN$34:$AN$36=\"p\",IF(AA$34:AA$36=\"(\",-AB$34:AB$36,AB$34:AB$36))))<0,\"(\",\"\")","v":""},{"$f":"ABS(SUM(IF($AN$34:$AN$36=\"p\",IF(AA$34:AA$36=\"(\",-AB$34:AB$36,AB$34:AB$36))))","v":0},{"$f":"IF(AA33=\"(\",\")\",\"\")","v":""},{"$f":"IF((SUM(IF($AN$34:$AN$36=\"p\",IF(AD$34:AD$36=\"(\",-AE$34:AE$36,AE$34:AE$36))))<0,\"(\",\"\")","v":""},{"$f":"ABS(SUM(IF($AN$34:$AN$36=\"p\",IF(AD$34:AD$36=\"(\",-AE$34:AE$36,AE$34:AE$36))))","v":0},{"$f":"IF(AD33=\"(\",\")\",\"\")","v":""},{"$f":"IF((SUM(IF($AN$34:$AN$36=\"p\",IF(AG$34:AG$36=\"(\",-AH$34:AH$36,AH$34:AH$36))))<0,\"(\",\"\")","v":""},{"$f":"ABS(SUM(IF($AN$34:$AN$36=\"p\",IF(AG$34:AG$36=\"(\",-AH$34:AH$36,AH$34:AH$36))))","v":0},{"$f":"IF(AG33=\"(\",\")\",\"\")","v":""},"(",{"$f":"SUMIF($AN$34:$AN$36,$AN33,AK$34:AK$36)","v":0},")",null,"p"]
[null,null,null,null,"2.1.2.1","Учтено в составе доходных вложений в материальные ценности - всего, в том числе: ",{"$f":"\"за \"&IF(List_01_reporting_period=\"\",\"отчётный год\",List_01_reporting_period&\" год\")","v":"за 2017 год"},"5220",null,null,{"$f":"IF(I34=\"(\",\")\",\"\")","v":""},"(",null,")",null,null,{"$f":"IF(O34=\"(\",\")\",\"\")","v":""},"(",null,")",null,null,{"$f":"IF(U34=\"(\",\")\",\"\")","v":""},"(",null,")",null,null,{"$f":"IF(AA34=\"(\",\")\",\"\")","v":""},null,null,{"$f":"IF(AD34=\"(\",\")\",\"\")","v":""},null,null,{"$f":"IF(AG34=\"(\",\")\",\"\")","v":""},"(",null,")",null,"c"]
[null,null,null,null,null,null,{"$f":"\"за \"&IF(List_01_reporting_period=\"\",\"предыдущий год\",List_01_reporting_period-1&\" год\")","v":"за 2016 год"},"5230",null,null,{"$f":"IF(I35=\"(\",\")\",\"\")","v":""},"(",null,")",null,null,{"$f":"IF(O35=\"(\",\")\",\"\")","v":""},"(",null,")",null,null,{"$f":"IF(U35=\"(\",\")\",\"\")","v":""},"(",null,")",null,null,{"$f":"IF(AA35=\"(\",\")\",\"\")","v":""},null,null,{"$f":"IF(AD35=\"(\",\")\",\"\")","v":""},null,null,{"$f":"IF(AG35=\"(\",\")\",\"\")","v":""},"(",null,")",null,"p"]
[null,null,null,null,null,"Добавить группу объектов",null,null,null,null,null,null,null,null,null,null,null,null,null,null,null,null,null,null,null,null,null,null,null,null,null,null,null,null,null,null,null,null,"add_FORMA5_STR4_2_1_range"]
[]
[null,null,null,null,"*","В случае переоценки в графе \"Первоначальная стоимость\" приводится текущая рыночная стоимость или текущая (восстановительная) стоимость."]
[null,null,null,null,"**","Некоммерческая организация графы \"Накопленная амортизация\" и \"Начисленная амортизация\" именует соответственно \"Накопленный износ\" и \"Начисленный износ\""]
[]
[]
[null,null,null,null,"2.2. Незавершенные капитальные вложения"]
[]
[]
[null,null,null,null,"№\nп/п","Наименование","Период","Код","На начало года",null,null,"Изменения за период",null,null,null,null,null,null,null,null,"На конец периода"]
[null,null,null,null,null,null,null,null,null,null,null,"затраты за период",null,null,"списано",null,null,"принято к учету в качестве основных средств или увеличена стоимость"]
[null,null,null,null,1,2,3,4,null,5,null,6,null,null,null,7,null,8,null,null,null,9]
[null,null,null,null,"2.2","Незавершенное строительство и незаконченные операции по приобретению, модернизации и т.п. основных средств - всего, в том числе: ",{"$f":"\"за \"&IF(List_01_reporting_period=\"\",\"отчётный год\",List_01_reporting_period&\" год\")","v":"за 2017 год"},5240,{"$f":"IF((SUM(IF($Y$50:$Y$54=\"c\",IF(I$50:I$54=\"(\",-J$50:J$54,J$50:J$54))))<0,\"(\",\"\")","v":""},{"$f":"ABS(SUM(IF($Y$50:$Y$54=\"c\",IF(I$50:I$54=\"(\",-J$50:J$54,J$50:J$54))))","v":0},{"$f":"IF(I48=\"(\",\")\",\"\")","v":""},{"$f":"IF((SUM(IF($Y$50:$Y$54=\"c\",IF(L$50:L$54=\"(\",-M$50:M$54,M$50:M$54))))<0,\"(\",\"\")","v":""},{"$f":"ABS(SUM(IF($Y$50:$Y$54=\"c\",IF(L$50:L$54=\"(\",-M$50:M$54,M$50:M$54))))","v":0},{"$f":"IF(L48=\"(\",\")\",\"\")","v":""},"(",{"$f":"SUMIF($Y$50:$Y$54,$Y48,P$50:P$54)","v":0},")","(",{"$f":"SUMIF($Y$50:$Y$54,$Y48,S$50:S$54)","v":0},")",{"$f":"IF((SUM(IF($Y$50:$Y$54=\"c\",IF(U$50:U$54=\"(\",-V$50:V$54,V$50:V$54))))<0,\"(\",\"\")","v":""},{"$f":"ABS(SUM(IF($Y$50:$Y$54=\"c\",IF(U$50:U$54=\"(\",-V$50:V$54,V$50:V$54))))","v":0},{"$f":"IF(U48=\"(\",\")\",\"\")","v":""},null,"c"]
[null,null,null,null,null,null,{"$f":"\"за \"&IF(List_01_reporting_period=\"\",\"предыдущий год\",List_01_reporting_period-1&\" год\")","v":"за 2016 год"},5250,{"$f":"IF((SUM(IF($Y$50:$Y$54=\"p\",IF(I$50:I$54=\"(\",-J$50:J$54,J$50:J$54))))<0,\"(\",\"\")","v":""},{"$f":"ABS(SUM(IF($Y$50:$Y$54=\"p\",IF(I$50:I$54=\"(\",-J$50:J$54,J$50:J$54))))","v":0},"",{"$f":"IF((SUM(IF($Y$50:$Y$54=\"p\",IF(L$50:L$54=\"(\",-M$50:M$54,M$50:M$54))))<0,\"(\",\"\")","v":""},{"$f":"ABS(SUM(IF($Y$50:$Y$54=\"p\",IF(L$50:L$54=\"(\",-M$50:M$54,M$50:M$54))))","v":0},"","(",{"$f":"SUMIF($Y$50:$Y$54,$Y49,P$50:P$54)","v":0},")","(",{"$f":"SUMIF($Y$50:$Y$54,$Y49,S$50:S$54)","v":0},")",{"$f":"IF((SUM(IF($Y$50:$Y$54=\"p\",IF(U$50:U$54=\"(\",-V$50:V$54,V$50:V$54))))<0,\"(\",\"\")","v":""},{"$f":"ABS(SUM(IF($Y$50:$Y$54=\"p\",IF(U$50:U$54=\"(\",-V$50:V$54,V$50:V$54))))","v":0},""]
[null,null,null,null,"2.2.1","Незавершенное строительство и незаконченные операции по приобретению, модернизации и т.п. основных средств - всего, в том числе: ",{"$f":"\"за \"&IF(List_01_reporting_period=\"\",\"отчётный год\",List_01_reporting_period&\" год\")","v":"за 2017 год"},"5240",null,160,"",null,24569,"","(",null,")","(",24663,")",null,66,""]
[null,null,null,null,null,null,{"$f":"\"за \"&IF(List_01_reporting_period=\"\",\"предыдущий год\",List_01_reporting_period-1&\" год\")","v":"за 2016 год"},"5250",null,160,"",null,14284,"","(",null,")","(",14284,")",null,160,""]
[null,null,null,"ы","2.2.2","Расходы будущих периодов",{"$f":"\"за \"&IF(List_01_reporting_period=\"\",\"отчётный год\",List_01_reporting_period&\" год\")","v":"за 2017 год"},null,null,742,"",null,77,"","(",156,")","(",null,")",null,742,""]
[null,null,null,null,null,null,{"$f":"\"за \"&IF(List_01_reporting_period=\"\",\"предыдущий год\",List_01_reporting_period-1&\" год\")","v":"за 2016 год"},null,null,866,"",null,93,"","(",217,")","(",24663,")",null,729,""]
[null,null,null,null,null,"Добавить группу объектов",null,null,null,null,null,null,null,null,null,null,null,null,null,null,null,null,null,null,null,null,null,null,null,null,null,null,null,null,null,null,null,null,"add_FORMA5_STR4_2_2_range"]
[]
[]
[null,null,null,null,"2.3. Изменение стоимости основных средств в результате достройки, дооборудования, реконструкции и частичной ликвидации"]
[]
[]
[null,null,null,null,"№\nп/п","Наименование",null,"Код",{"$f":"\"За \"&IF(List_01_reporting_period=\"\",\"отчётный год\",List_01_reporting_period&\" год\")","v":"За 2017 год"},null,null,{"$f":"\"За \"&IF(List_01_reporting_period=\"\",\"предыдущий год\",List_01_reporting_period-1&\" год\")","v":"За 2016 год"}]
[null,null,null,null,1,2,null,3,null,4,null,5]
[null,null,null,null,"2.3.1","Увеличение стоимости объектов основных средств в результате достройки, дооборудования, реконструкции - всего, в том числе: ",null,5260,{"$f":"IF((SUMIF(I63:I67,\"\",J63:J67)-SUMIF(I63:I67,\"(\",J63:J67))<0,\"(\",\"\")","v":""},{"$f":"ABS(SUMIF(I63:I67,\"\",J63:J67)-SUMIF(I63:I67,\"(\",J63:J67))","v":24663},{"$f":"IF(I62=\"(\",\")\",\"\")","v":""},{"$f":"IF((SUMIF(L63:L67,\"\",M63:M67)-SUMIF(L63:L67,\"(\",M63:M67))<0,\"(\",\"\")","v":""},{"$f":"ABS(SUMIF(L63:L67,\"\",M63:M67)-SUMIF(L63:L67,\"(\",M63:M67))","v":0},{"$f":"IF(L62=\"(\",\")\",\"\")","v":""}]
[null,null,null,null,"2.3.1.1","Увеличение стоимости объектов основных средств в результате достройки, дооборудования, реконструкции - всего, в том числе: ",null,"5260",null,0,{"$f":"IF(I63=\"(\",\")\",\"\")","v":""},null,null,{"$f":"IF(L63=\"(\",\")\",\"\")","v":""}]
[null,null,null,"ы","2.3.1.2","Здания",null,null,null,20313,{"$f":"IF(I64=\"(\",\")\",\"\")","v":""},null,null,{"$f":"IF(L64=\"(\",\")\",\"\")","v":""}]
[null,null,null,"ы","2.3.1.3","Сооружения",null,null,null,4163,{"$f":"IF(I65=\"(\",\")\",\"\")","v":""},null,null,{"$f":"IF(L65=\"(\",\")\",\"\")","v":""}]
[null,null,null,"ы","2.3.1.4","Машины и оборудование",null,null,null,187,{"$f":"IF(I66=\"(\",\")\",\"\")","v":""},null,null,{"$f":"IF(L66=\"(\",\")\",\"\")","v":""}]
[null,null,null,null,null,"Добавить объект основных средств",null,null,null,null,null,null,null,null,null,null,null,null,null,null,null,null,null,null,null,null,null,null,null,null,null,null,null,null,null,null,null,null,"add_FORMA5_STR4_2_3_range"]
[null,null,null,null,"2.3.2","Уменьшение стоимости объектов основных средств в результате частичной ликвидации - всего, в том числе: ",null,5270,"(",{"$f":"SUM(J69:J70)","v":0},")","(",{"$f":"SUM(M69:M70)","v":0},")"]
[null,null,null,null,"2.3.2.1","Уменьшение стоимости объектов основных средств в результате частичной ликвидации - всего, в том числе: ",null,"5270","(",null,")","(",null,")"]
[null,null,null,null,null,"Добавить объект основных средств",null,null,null,null,null,null,null,null,null,null,null,null,null,null,null,null,null,null,null,null,null,null,null,null,null,null,null,null,null,null,null,null,"add_FORMA5_STR4_2_3_1_range"]
[]
[]
[null,null,null,null,"2.4. Иное использование основных средств"]
[]
[]
[null,null,null,null,"№\nп/п","Наименование",null,"Код",{"$f":"\"На 31 декабря \"&IF(List_01_reporting_period = \"\",\"отчётную дату отчётного года\",List_01_reporting_period& \" г.\")","v":"На 31 декабря 2017 г."},null,null,{"$f":"\"На 31 декабря \"&IF(List_01_reporting_period = \"\",\"предыдущего года\",List_01_reporting_period-1& \" г.\")","v":"На 31 декабря 2016 г."},null,null,{"$f":"\"На 31 декабря \"&IF(List_01_reporting_period = \"\",\"года, предшествующего предыдущему\",List_01_reporting_period-2& \" г.\")","v":"На 31 декабря 2015 г."}]
[null,null,null,null,1,2,null,3,null,4,null,5,null,null,null,6]
[null,null,null,null,"2.4.1","Переданные в аренду основные средства, числящиеся на балансе",null,5280,null,null,{"$f":"IF(I78=\"(\",\")\",\"\")","v":""},null,null,{"$f":"IF(L78=\"(\",\")\",\"\")","v":""},null,null,{"$f":"IF(O78=\"(\",\")\",\"\")","v":""}]
[null,null,null,null,"2.4.2","Переданные в аренду основные средства, числящиеся за балансом",null,5281,null,null,"",null,null,"",null,null,""]
[null,null,null,null,"2.4.3","Полученные в аренду основные средства, числящиеся на балансе",null,5282,null,null,"",null,null,"",null,null,""]
[null,null,null,null,"2.4.4","Полученные в аренду основные средства, числящиеся за балансом",null,5283,null,94,"",null,94,"",null,94,""]
[null,null,null,null,"2.4.5","Объекты недвижимости, принятые в эксплуатацию и фактически используемые, находящиеся в процессе государственной регистрации",null,5284,null,null,"",null,null,"",null,null,""]
[null,null,null,null,"2.4.6","Основные средства, переведенные на консервацию",null,5285,null,null,"",null,null,"",null,null,""]
[null,null,null,null,"2.4.7","Иное использование основных средств (залог и др.)",null,5286,{"$f":"IF((SUMIF(I85:I86,\"\",J85:J86)-SUMIF(I85:I86,\"(\",J85:J86))<0,\"(\",\"\")","v":""},{"$f":"ABS(SUMIF(I85:I86,\"\",J85:J86)-SUMIF(I85:I86,\"(\",J85:J86))","v":0},"",{"$f":"IF((SUMIF(L85:L86,\"\",M85:M86)-SUMIF(L85:L86,\"(\",M85:M86))<0,\"(\",\"\")","v":""},{"$f":"ABS(SUMIF(L85:L86,\"\",M85:M86)-SUMIF(L85:L86,\"(\",M85:M86))","v":0},"",{"$f":"IF((SUMIF(O85:O86,\"\",P85:P86)-SUMIF(O85:O86,\"(\",P85:P86))<0,\"(\",\"\")","v":""},{"$f":"ABS(SUMIF(O85:O86,\"\",P85:P86)-SUMIF(O85:O86,\"(\",P85:P86))","v":0},""]
[null,null,null,null,"2.4.7.1","Иное использование основных средств (залог и др.)",null,null,null,null,"",null,null,"",null,null,""]
[null,null,null,null,null,"Добавить объект основных средств",null,null,null,null,null,null,null,null,null,null,null,null,null,null,null,null,null,null,null,null,null,null,null,null,null,null,null,null,null,null,null,null,"add_FORMA5_STR4_2_4_range"]

{"sheet":"Форма 5. Фин.вложения и запасы","index":15,"n_rows":83,"n_cols":37,"rows_kept":83,"cut":false,"hidden":false,"merged":[[65,5,66,5],[67,4,68,4],[67,5,68,5],[8,4,8,34],[13,4,17,4],[13,5,17,5],[13,6,17,6],[13,7,17,7],[13,8,13,13],[13,14,13,28],[13,29,13,34],[14,8,17,10],[14,32,17,34],[14,23,17,25],[14,26,17,28],[14,29,17,31],[10,4,11,34],[18,17,18,19],[19,4,20,4],[19,5,20,5],[14,11,17,13],[14,14,17,16],[14,17,14,22],[15,17,17,19],[15,20,17,22],[21,4,22,4],[21,5,22,5],[24,4,25,4],[24,5,25,5],[26,4,27,4],[26,5,27,5],[29,4,30,4],[29,5,30,5],[41,5,41,6],[41,8,41,10],[42,5,42,6],[38,4,39,16],[41,11,41,13],[41,14,41,16],[42,11,42,13],[43,5,43,6],[44,5,44,6],[46,5,46,6],[49,5,49,6],[47,5,47,6],[52,4,52,34],[57,4,59,4],[57,5,59,5],[57,6,59,6],[57,7,59,7],[57,8,57,13],[57,14,57,28],[57,29,57,34],[54,4,55,34],[60,32,60,34],[58,8,59,10],[58,11,59,13],[58,14,59,16],[58,17,58,22],[58,23,59,25],[58,26,59,28],[58,29,59,31],[58,32,59,34],[59,17,59,19],[59,20,59,22],[60,11,60,13],[60,17,60,19],[60,23,60,25],[77,5,77,6],[78,5,78,6],[80,5,80,6],[81,5,81,6],[61,4,62,4],[61,5,62,5],[63,4,64,4],[63,5,64,5],[75,5,75,6],[72,4,73,16],[76,5,76,6],[76,11,76,13],[75,8,75,10],[75,11,75,13],[75,14,75,16],[65,4,66,4]]}
[]
[]
[]
[]
[]
[null,null,null,null,{"$f":"Getcode()","v":"ELPASS.FORMS.BH"},null,null,null,null,null,null,null,null,null,null,null,null,null,null,null,null,null,null,null,null,null,null,null,null,null,null,null,null,null,{"$f":"version","v":"Версия 1.0 от 01.10.2017"}]
[]
[null,null,null,null,null,null,null,null,null,null,null,null,null,null,null,null,null,null,null,null,null,null,null,null,null,null,null,null,null,null,null,null,null,null,"Форма 0710005 с. 7-9"]
[null,null,null,null,"3. Финансовые вложения"]
[]
[null,null,null,null,"3.1. Наличие и движение финансовых вложений"]
[]
[]
[null,null,null,null,"№\nп/п","Наименование","Период","Код","На начало года",null,null,null,null,null,"Изменения за период",null,null,null,null,null,null,null,null,null,null,null,null,null,null,"На конец периода"]
[null,null,null,null,null,null,null,null,"первоначальная стоимость",null,null,"накопленная корректировка *",null,null,"поступило",null,null,"выбыло (погашено)",null,null,null,null,null,"начисление процентов (включая доведение первоначальной стоимости до номинальной)",null,null,"текущей рыночной стоимости (убытков от обесценения)",null,null,"первоначальная стоимость",null,null,"накопленная корректировка *"]
[null,null,null,null,null,null,null,null,null,null,null,null,null,null,null,null,null,"первоначальная стоимость",null,null,"накопленная корректировка *"]
[]
[]
[null,null,null,null,1,2,3,4," ",5," "," ",6," "," ",7," ",8,null,null," ",9," "," ",10," "," ",11," "," ",12," "," ",13," "]
[null,null,null,null,"3.1.1","Долгосрочные - всего, в том числе: ",{"$f":"\"за \"&IF(List_01_reporting_period=\"\",\"отчётный год\",List_01_reporting_period&\" год\")","v":"за 2017 год"},5301,{"$f":"IF((SUM(IF($AK$22:$AK$24=\"c\",IF(I$22:I$24=\"(\",-J$22:J$24,J$22:J$24))))<0,\"(\",\"\")","v":""},{"$f":"ABS(SUM(IF($AK$22:$AK$24=\"c\",IF(I$22:I$24=\"(\",-J$22:J$24,J$22:J$24))))","v":0},{"$f":"IF(I20=\"(\",\")\",\"\")","v":""},{"$f":"IF((SUM(IF($AK$22:$AK$24=\"c\",IF(L$22:L$24=\"(\",-M$22:M$24,M$22:M$24))))<0,\"(\",\"\")","v":""},{"$f":"ABS(SUM(IF($AK$22:$AK$24=\"c\",IF(L$22:L$24=\"(\",-M$22:M$24,M$22:M$24))))","v":0},{"$f":"IF(L20=\"(\",\")\",\"\")","v":""},{"$f":"IF((SUM(IF($AK$22:$AK$24=\"c\",IF(O$22:O$24=\"(\",-P$22:P$24,P$22:P$24))))<0,\"(\",\"\")","v":""},{"$f":"ABS(SUM(IF($AK$22:$AK$24=\"c\",IF(O$22:O$24=\"(\",-P$22:P$24,P$22:P$24))))","v":0},{"$f":"IF(O20=\"(\",\")\",\"\")","v":""},"(",{"$f":"SUMIF($AK$22:$AK$24,$AK20,S$22:S$24)","v":0},")",{"$f":"IF((SUM(IF($AK$22:$AK$24=\"c\",IF(U$22:U$24=\"(\",-V$22:V$24,V$22:V$24))))<0,\"(\",\"\")","v":""},{"$f":"ABS(SUM(IF($AK$22:$AK$24=\"c\",IF(U$22:U$24=\"(\",-V$22:V$24,V$22:V$24))))","v":0},{"$f":"IF(U20=\"(\",\")\",\"\")","v":""},{"$f":"IF((SUM(IF($AK$22:$AK$24=\"c\",IF(X$22:X$24=\"(\",-Y$22:Y$24,Y$22:Y$24))))<0,\"(\",\"\")","v":""},{"$f":"ABS(SUM(IF($AK$22:$AK$24=\"c\",IF(X$22:X$24=\"(\",-Y$22:Y$24,Y$22:Y$24))))","v":0},{"$f":"IF(X20=\"(\",\")\",\"\")","v":""},{"$f":"IF((SUM(IF($AK$22:$AK$24=\"c\",IF(AA$22:AA$24=\"(\",-AB$22:AB$24,AB$22:AB$24))))<0,\"(\",\"\")","v":""},{"$f":"ABS(SUM(IF($AK$22:$AK$24=\"c\",IF(AA$22:AA$24=\"(\",-AB$22:AB$24,AB$22:AB$24))))","v":0},{"$f":"IF(AA20=\"(\",\")\",\"\")","v":""},{"$f":"IF((SUM(IF($AK$22:$AK$24=\"c\",IF(AD$22:AD$24=\"(\",-AE$22:AE$24,AE$22:AE$24))))<0,\"(\",\"\")","v":""},{"$f":"ABS(SUM(IF($AK$22:$AK$24=\"c\",IF(AD$22:AD$24=\"(\",-AE$22:AE$24,AE$22:AE$24))))","v":0},{"$f":"IF(AD20=\"(\",\")\",\"\")","v":""},{"$f":"IF((SUM(IF($AK$22:$AK$24=\"c\",IF(AG$22:AG$24=\"(\",-AH$22:AH$24,AH$22:AH$24))))<0,\"(\",\"\")","v":""},{"$f":"ABS(SUM(IF($AK$22:$AK$24=\"c\",IF(AG$22:AG$24=\"(\",-AH$22:AH$24,AH$22:AH$24))))","v":0},{"$f":"IF(AG20=\"(\",\")\",\"\")","v":""},null,"c"]
[null,null,null,null,null,null,{"$f":"\"за \"&IF(List_01_reporting_period=\"\",\"предыдущий год\",List_01_reporting_period-1&\" год\")","v":"за 2016 год"},5311,{"$f":"IF((SUM(IF($AK$22:$AK$24=\"p\",IF(I$22:I$24=\"(\",-J$22:J$24,J$22:J$24))))<0,\"(\",\"\")","v":""},{"$f":"ABS(SUM(IF($AK$22:$AK$24=\"p\",IF(I$22:I$24=\"(\",-J$22:J$24,J$22:J$24))))","v":0},{"$f":"IF(I21=\"(\",\")\",\"\")","v":""},{"$f":"IF((SUM(IF($AK$22:$AK$24=\"p\",IF(L$22:L$24=\"(\",-M$22:M$24,M$22:M$24))))<0,\"(\",\"\")","v":""},{"$f":"ABS(SUM(IF($AK$22:$AK$24=\"p\",IF(L$22:L$24=\"(\",-M$22:M$24,M$22:M$24))))","v":0},{"$f":"IF(L21=\"(\",\")\",\"\")","v":""},{"$f":"IF((SUM(IF($AK$22:$AK$24=\"p\",IF(O$22:O$24=\"(\",-P$22:P$24,P$22:P$24))))<0,\"(\",\"\")","v":""},{"$f":"ABS(SUM(IF($AK$22:$AK$24=\"p\",IF(O$22:O$24=\"(\",-P$22:P$24,P$22:P$24))))","v":0},{"$f":"IF(O21=\"(\",\")\",\"\")","v":""},"(",{"$f":"SUMIF($AK$22:$AK$24,$AK21,S$22:S$24)","v":0},")",{"$f":"IF((SUM(IF($AK$22:$AK$24=\"p\",IF(U$22:U$24=\"(\",-V$22:V$24,V$22:V$24))))<0,\"(\",\"\")","v":""},{"$f":"ABS(SUM(IF($AK$22:$AK$24=\"p\",IF(U$22:U$24=\"(\",-V$22:V$24,V$22:V$24))))","v":0},{"$f":"IF(U21=\"(\",\")\",\"\")","v":""},{"$f":"IF((SUM(IF($AK$22:$AK$24=\"p\",IF(X$22:X$24=\"(\",-Y$22:Y$24,Y$22:Y$24))))<0,\"(\",\"\")","v":""},{"$f":"ABS(SUM(IF($AK$22:$AK$24=\"p\",IF(X$22:X$24=\"(\",-Y$22:Y$24,Y$22:Y$24))))","v":0},{"$f":"IF(X21=\"(\",\")\",\"\")","v":""},{"$f":"IF((SUM(IF($AK$22:$AK$24=\"p\",IF(AA$22:AA$24=\"(\",-AB$22:AB$24,AB$22:AB$24))))<0,\"(\",\"\")","v":""},{"$f":"ABS(SUM(IF($AK$22:$AK$24=\"p\",IF(AA$22:AA$24=\"(\",-AB$22:AB$24,AB$22:AB$24))))","v":0},{"$f":"IF(AA21=\"(\",\")\",\"\")","v":""},{"$f":"IF((SUM(IF($AK$22:$AK$24=\"p\",IF(AD$22:AD$24=\"(\",-AE$22:AE$24,AE$22:AE$24))))<0,\"(\",\"\")","v":""},{"$f":"ABS(SUM(IF($AK$22:$AK$24=\"p\",IF(AD$22:AD$24=\"(\",-AE$22:AE$24,AE$22:AE$24))))","v":0},{"$f":"IF(AD21=\"(\",\")\",\"\")","v":""},{"$f":"IF((SUM(IF($AK$22:$AK$24=\"p\",IF(AG$22:AG$24=\"(\",-AH$22:AH$24,AH$22:AH$24))))<0,\"(\",\"\")","v":""},{"$f":"ABS(SUM(IF($AK$22:$AK$24=\"p\",IF(AG$22:AG$24=\"(\",-AH$22:AH$24,AH$22:AH$24))))","v":0},{"$f":"IF(AG21=\"(\",\")\",\"\")","v":""},null,"p"]
[null,null,null,null,"3.1.1.1","Долгосрочные - всего, в том числе: ",{"$f":"\"за \"&IF(List_01_reporting_period=\"\",\"отчётный год\",List_01_reporting_period&\" год\")","v":"за 2017 год"},"5301",null,0,{"$f":"IF(I22=\"(\",\")\",\"\")","v":""},null,null,{"$f":"IF(L22=\"(\",\")\",\"\")","v":""},null,0,{"$f":"IF(O22=\"(\",\")\",\"\")","v":""},"(",0,")",null,null,{"$f":"IF(U22=\"(\",\")\",\"\")","v":""},null,null,{"$f":"IF(X22=\"(\",\")\",\"\")","v":""},null,null,{"$f":"IF(AA22=\"(\",\")\",\"\")","v":""},null,0,{"$f":"IF(AD22=\"(\",\")\",\"\")","v":""},null,null,{"$f":"IF(AG22=\"(\",\")\",\"\")","v":""},null,"c"]
[null,null,null,null,null,null,{"$f":"\"за \"&IF(List_01_reporting_period=\"\",\"предыдущий год\",List_01_reporting_period-1&\" год\")","v":"за 2016 год"},"5311",null,0,{"$f":"IF(I23=\"(\",\")\",\"\")","v":""},null,null,{"$f":"IF(L23=\"(\",\")\",\"\")","v":""},null,0,{"$f":"IF(O23=\"(\",\")\",\"\")","v":""},"(",0,")",null,null,{"$f":"IF(U23=\"(\",\")\",\"\")","v":""},null,null,{"$f":"IF(X23=\"(\",\")\",\"\")","v":""},null,null,{"$f":"IF(AA23=\"(\",\")\",\"\")","v":""},null,0,{"$f":"IF(AD23=\"(\",\")\",\"\")","v":""},null,null,{"$f":"IF(AG23=\"(\",\")\",\"\")","v":""},null,"p"]
[null,null,null,null,null,"Добавить группу/вид",null,null,null,null,null,null,null,null,null,null,null,null,null,null,null,null,null,null,null,null,null,null,null,null,null,null,null,null,null,"add_FORMA5_STR7_3_1_range"]
[null,null,null,null,"3.1.2","Краткосрочные - всего, в том числе: ",{"$f":"\"за \"&IF(List_01_reporting_period=\"\",\"отчётный год\",List_01_reporting_period&\" год\")","v":"за 2017 год"},5305,{"$f":"IF((SUM(IF($AK$27:$AK$29=\"c\",IF(I$27:I$29=\"(\",-J$27:J$29,J$27:J$29))))<0,\"(\",\"\")","v":""},{"$f":"ABS(SUM(IF($AK$27:$AK$29=\"c\",IF(I$27:I$29=\"(\",-J$27:J$29,J$27:J$29))))","v":0},{"$f":"IF(I25=\"(\",\")\",\"\")","v":""},{"$f":"IF((SUM(IF($AK$27:$AK$29=\"c\",IF(L$27:L$29=\"(\",-M$27:M$29,M$27:M$29))))<0,\"(\",\"\")","v":""},{"$f":"ABS(SUM(IF($AK$27:$AK$29=\"c\",IF(L$27:L$29=\"(\",-M$27:M$29,M$27:M$29))))","v":0},{"$f":"IF(L25=\"(\",\")\",\"\")","v":""},{"$f":"IF((SUM(IF($AK$27:$AK$29=\"c\",IF(O$27:O$29=\"(\",-P$27:P$29,P$27:P$29))))<0,\"(\",\"\")","v":""},{"$f":"ABS(SUM(IF($AK$27:$AK$29=\"c\",IF(O$27:O$29=\"(\",-P$27:P$29,P$27:P$29))))","v":0},{"$f":"IF(O25=\"(\",\")\",\"\")","v":""},"(",{"$f":"SUMIF($AK$27:$AK$29,$AK25,S$27:S$29)","v":0},")",{"$f":"IF((SUM(IF($AK$27:$AK$29=\"c\",IF(U$27:U$29=\"(\",-V$27:V$29,V$27:V$29))))<0,\"(\",\"\")","v":""},{"$f":"ABS(SUM(IF($AK$27:$AK$29=\"c\",IF(U$27:U$29=\"(\",-V$27:V$29,V$27:V$29))))","v":0},{"$f":"IF(U25=\"(\",\")\",\"\")","v":""},{"$f":"IF((SUM(IF($AK$27:$AK$29=\"c\",IF(X$27:X$29=\"(\",-Y$27:Y$29,Y$27:Y$29))))<0,\"(\",\"\")","v":""},{"$f":"ABS(SUM(IF($AK$27:$AK$29=\"c\",IF(X$27:X$29=\"(\",-Y$27:Y$29,Y$27:Y$29))))","v":0},{"$f":"IF(X25=\"(\",\")\",\"\")","v":""},{"$f":"IF((SUM(IF($AK$27:$AK$29=\"c\",IF(AA$27:AA$29=\"(\",-AB$27:AB$29,AB$27:AB$29))))<0,\"(\",\"\")","v":""},{"$f":"ABS(SUM(IF($AK$27:$AK$29=\"c\",IF(AA$27:AA$29=\"(\",-AB$27:AB$29,AB$27:AB$29))))","v":0},{"$f":"IF(AA25=\"(\",\")\",\"\")","v":""},{"$f":"IF((SUM(IF($AK$27:$AK$29=\"c\",IF(AD$27:AD$29=\"(\",-AE$27:AE$29,AE$27:AE$29))))<0,\"(\",\"\")","v":""},{"$f":"ABS(SUM(IF($AK$27:$AK$29=\"c\",IF(AD$27:AD$29=\"(\",-AE$27:AE$29,AE$27:AE$29))))","v":0},{"$f":"IF(AD25=\"(\",\")\",\"\")","v":""},{"$f":"IF((SUM(IF($AK$27:$AK$29=\"c\",IF(AG$27:AG$29=\"(\",-AH$27:AH$29,AH$27:AH$29))))<0,\"(\",\"\")","v":""},{"$f":"ABS(SUM(IF($AK$27:$AK$29=\"c\",IF(AG$27:AG$29=\"(\",-AH$27:AH$29,AH$27:AH$29))))","v":0},{"$f":"IF(AG25=\"(\",\")\",\"\")","v":""},null,"c"]
[null,null,null,null,null,null,{"$f":"\"за \"&IF(List_01_reporting_period=\"\",\"предыдущий год\",List_01_reporting_period-1&\" год\")","v":"за 2016 год"},5315,{"$f":"IF((SUM(IF($AK$27:$AK$29=\"p\",IF(I$27:I$29=\"(\",-J$27:J$29,J$27:J$29))))<0,\"(\",\"\")","v":""},{"$f":"ABS(SUM(IF($AK$27:$AK$29=\"p\",IF(I$27:I$29=\"(\",-J$27:J$29,J$27:J$29))))","v":0},{"$f":"IF(I26=\"(\",\")\",\"\")","v":""},{"$f":"IF((SUM(IF($AK$27:$AK$29=\"p\",IF(L$27:L$29=\"(\",-M$27:M$29,M$27:M$29))))<0,\"(\",\"\")","v":""},{"$f":"ABS(SUM(IF($AK$27:$AK$29=\"p\",IF(L$27:L$29=\"(\",-M$27:M$29,M$27:M$29))))","v":0},{"$f":"IF(L26=\"(\",\")\",\"\")","v":""},{"$f":"IF((SUM(IF($AK$27:$AK$29=\"p\",IF(O$27:O$29=\"(\",-P$27:P$29,P$27:P$29))))<0,\"(\",\"\")","v":""},{"$f":"ABS(SUM(IF($AK$27:$AK$29=\"p\",IF(O$27:O$29=\"(\",-P$27:P$29,P$27:P$29))))","v":0},{"$f":"IF(O26=\"(\",\")\",\"\")","v":""},"(",{"$f":"SUMIF($AK$27:$AK$29,$AK26,S$27:S$29)","v":0},")",{"$f":"IF((SUM(IF($AK$27:$AK$29=\"p\",IF(U$27:U$29=\"(\",-V$27:V$29,V$27:V$29))))<0,\"(\",\"\")","v":""},{"$f":"ABS(SUM(IF($AK$27:$AK$29=\"p\",IF(U$27:U$29=\"(\",-V$27:V$29,V$27:V$29))))","v":0},{"$f":"IF(U26=\"(\",\")\",\"\")","v":""},{"$f":"IF((SUM(IF($AK$27:$AK$29=\"p\",IF(X$27:X$29=\"(\",-Y$27:Y$29,Y$27:Y$29))))<0,\"(\",\"\")","v":""},{"$f":"ABS(SUM(IF($AK$27:$AK$29=\"p\",IF(X$27:X$29=\"(\",-Y$27:Y$29,Y$27:Y$29))))","v":0},{"$f":"IF(X26=\"(\",\")\",\"\")","v":""},{"$f":"IF((SUM(IF($AK$27:$AK$29=\"p\",IF(AA$27:AA$29=\"(\",-AB$27:AB$29,AB$27:AB$29))))<0,\"(\",\"\")","v":""},{"$f":"ABS(SUM(IF($AK$27:$AK$29=\"p\",IF(AA$27:AA$29=\"(\",-AB$27:AB$29,AB$27:AB$29))))","v":0},{"$f":"IF(AA26=\"(\",\")\",\"\")","v":""},{"$f":"IF((SUM(IF($AK$27:$AK$29=\"p\",IF(AD$27:AD$29=\"(\",-AE$27:AE$29,AE$27:AE$29))))<0,\"(\",\"\")","v":""},{"$f":"ABS(SUM(IF($AK$27:$AK$29=\"p\",IF(AD$27:AD$29=\"(\",-AE$27:AE$29,AE$27:AE$29))))","v":0},{"$f":"IF(AD26=\"(\",\")\",\"\")","v":""},{"$f":"IF((SUM(IF($AK$27:$AK$29=\"p\",IF(AG$27:AG$29=\"(\",-AH$27:AH$29,AH$27:AH$29))))<0,\"(\",\"\")","v":""},{"$f":"ABS(SUM(IF($AK$27:$AK$29=\"p\",IF(AG$27:AG$29=\"(\",-AH$27:AH$29,AH$27:AH$29))))","v":0},{"$f":"IF(AG26=\"(\",\")\",\"\")","v":""},null,"p"]
[null,null,null,null,"3.1.2.1","Краткосрочные - всего, в том числе: ",{"$f":"\"за \"&IF(List_01_reporting_period=\"\",\"отчётный год\",List_01_reporting_period&\" год\")","v":"за 2017 год"},"5305",null,null,{"$f":"IF(I27=\"(\",\")\",\"\")","v":""},null,null,{"$f":"IF(L27=\"(\",\")\",\"\")","v":""},null,null,{"$f":"IF(O27=\"(\",\")\",\"\")","v":""},"(",null,")",null,null,{"$f":"IF(U27=\"(\",\")\",\"\")","v":""},null,null,{"$f":"IF(X27=\"(\",\")\",\"\")","v":""},null,null,{"$f":"IF(AA27=\"(\",\")\",\"\")","v":""},null,null,{"$f":"IF(AD27=\"(\",\")\",\"\")","v":""},null,null,{"$f":"IF(AG27=\"(\",\")\",\"\")","v":""},null,"c"]
[null,null,null,null,null,null,{"$f":"\"за \"&IF(List_01_reporting_period=\"\",\"предыдущий год\",List_01_reporting_period-1&\" год\")","v":"за 2016 год"},"5315",null,null,{"$f":"IF(I28=\"(\",\")\",\"\")","v":""},null,null,{"$f":"IF(L28=\"(\",\")\",\"\")","v":""},null,null,{"$f":"IF(O28=\"(\",\")\",\"\")","v":""},"(",null,")",null,null,{"$f":"IF(U28=\"(\",\")\",\"\")","v":""},null,null,{"$f":"IF(X28=\"(\",\")\",\"\")","v":""},null,null,{"$f":"IF(AA28=\"(\",\")\",\"\")","v":""},null,null,{"$f":"IF(AD28=\"(\",\")\",\"\")","v":""},null,null,{"$f":"IF(AG28=\"(\",\")\",\"\")","v":""},null,"p"]
[null,null,null,null,null,"Добавить группу/вид",null,null,null,null,null,null,null,null,null,null,null,null,null,null,null,null,null,null,null,null,null,null,null,null,null,null,null,null,null,"add_FORMA5_STR7_3_1_range"]
[null,null,null,null,"3.1.3","Финансовых вложений - \nитого",{"$f":"\"за \"&IF(List_01_reporting_period=\"\",\"отчётный год\",List_01_reporting_period&\" год\")","v":"за 2017 год"},5300,{"$f":"IF((IF(I20=\"(\",-J20,J20)+IF(I25=\"(\",-J25,J25))<0,\"(\",\"\")","v":""},{"$f":"ABS(IF(I20=\"(\",-J20,J20)+IF(I25=\"(\",-J25,J25))","v":0},{"$f":"IF(I30=\"(\",\")\",\"\")","v":""},{"$f":"IF((IF(L20=\"(\",-M20,M20)+IF(L25=\"(\",-M25,M25))<0,\"(\",\"\")","v":""},{"$f":"ABS(IF(L20=\"(\",-M20,M20)+IF(L25=\"(\",-M25,M25))","v":0},{"$f":"IF(L30=\"(\",\")\",\"\")","v":""},{"$f":"IF((IF(O20=\"(\",-P20,P20)+IF(O25=\"(\",-P25,P25))<0,\"(\",\"\")","v":""},{"$f":"ABS(IF(O20=\"(\",-P20,P20)+IF(O25=\"(\",-P25,P25))","v":0},{"$f":"IF(O30=\"(\",\")\",\"\")","v":""},"(",{"$f":"S20+S25","v":0},")",{"$f":"IF((IF(U20=\"(\",-V20,V20)+IF(U25=\"(\",-V25,V25))<0,\"(\",\"\")","v":""},{"$f":"ABS(IF(U20=\"(\",-V20,V20)+IF(U25=\"(\",-V25,V25))","v":0},{"$f":"IF(U30=\"(\",\")\",\"\")","v":""},{"$f":"IF((IF(X20=\"(\",-Y20,Y20)+IF(X25=\"(\",-Y25,Y25))<0,\"(\",\"\")","v":""},{"$f":"ABS(IF(X20=\"(\",-Y20,Y20)+IF(X25=\"(\",-Y25,Y25))","v":0},{"$f":"IF(X30=\"(\",\")\",\"\")","v":""},{"$f":"IF((IF(AA20=\"(\",-AB20,AB20)+IF(AA25=\"(\",-AB25,AB25))<0,\"(\",\"\")","v":""},{"$f":"ABS(IF(AA20=\"(\",-AB20,AB20)+IF(AA25=\"(\",-AB25,AB25))","v":0},{"$f":"IF(AA30=\"(\",\")\",\"\")","v":""},{"$f":"IF((IF(AD20=\"(\",-AE20,AE20)+IF(AD25=\"(\",-AE25,AE25))<0,\"(\",\"\")","v":""},{"$f":"ABS(IF(AD20=\"(\",-AE20,AE20)+IF(AD25=\"(\",-AE25,AE25))","v":0},{"$f":"IF(AD30=\"(\",\")\",\"\")","v":""},{"$f":"IF((IF(AG20=\"(\",-AH20,AH20)+IF(AG25=\"(\",-AH25,AH25))<0,\"(\",\"\")","v":""},{"$f":"ABS(IF(AG20=\"(\",-AH20,AH20)+IF(AG25=\"(\",-AH25,AH25))","v":0},{"$f":"IF(AG30=\"(\",\")\",\"\")","v":""},null,"c"]
[null,null,null,null,null,null,{"$f":"\"за \"&IF(List_01_reporting_period=\"\",\"предыдущий год\",List_01_reporting_period-1&\" год\")","v":"за 2016 год"},5310,{"$f":"IF((IF(I21=\"(\",-J21,J21)+IF(I26=\"(\",-J26,J26))<0,\"(\",\"\")","v":""},{"$f":"ABS(IF(I21=\"(\",-J21,J21)+IF(I26=\"(\",-J26,J26))","v":0},{"$f":"IF(I31=\"(\",\")\",\"\")","v":""},{"$f":"IF((IF(L21=\"(\",-M21,M21)+IF(L26=\"(\",-M26,M26))<0,\"(\",\"\")","v":""},{"$f":"ABS(IF(L21=\"(\",-M21,M21)+IF(L26=\"(\",-M26,M26))","v":0},{"$f":"IF(L31=\"(\",\")\",\"\")","v":""},{"$f":"IF((IF(O21=\"(\",-P21,P21)+IF(O26=\"(\",-P26,P26))<0,\"(\",\"\")","v":""},{"$f":"ABS(IF(O21=\"(\",-P21,P21)+IF(O26=\"(\",-P26,P26))","v":0},{"$f":"IF(O31=\"(\",\")\",\"\")","v":""},"(",{"$f":"S21+S26","v":0},")",{"$f":"IF((IF(U21=\"(\",-V21,V21)+IF(U26=\"(\",-V26,V26))<0,\"(\",\"\")","v":""},{"$f":"ABS(IF(U21=\"(\",-V21,V21)+IF(U26=\"(\",-V26,V26))","v":0},{"$f":"IF(U31=\"(\",\")\",\"\")","v":""},{"$f":"IF((IF(X21=\"(\",-Y21,Y21)+IF(X26=\"(\",-Y26,Y26))<0,\"(\",\"\")","v":""},{"$f":"ABS(IF(X21=\"(\",-Y21,Y21)+IF(X26=\"(\",-Y26,Y26))","v":0},{"$f":"IF(X31=\"(\",\")\",\"\")","v":""},{"$f":"IF((IF(AA21=\"(\",-AB21,AB21)+IF(AA26=\"(\",-AB26,AB26))<0,\"(\",\"\")","v":""},{"$f":"ABS(IF(AA21=\"(\",-AB21,AB21)+IF(AA26=\"(\",-AB26,AB26))","v":0},{"$f":"IF(AA31=\"(\",\")\",\"\")","v":""},{"$f":"IF((IF(AD21=\"(\",-AE21,AE21)+IF(AD26=\"(\",-AE26,AE26))<0,\"(\",\"\")","v":""},{"$f":"ABS(IF(AD21=\"(\",-AE21,AE21)+IF(AD26=\"(\",-AE26,AE26))","v":0},{"$f":"IF(AD31=\"(\",\")\",\"\")","v":""},{"$f":"IF((IF(AG21=\"(\",-AH21,AH21)+IF(AG26=\"(\",-AH26,AH26))<0,\"(\",\"\")","v":""},{"$f":"ABS(IF(AG21=\"(\",-AH21,AH21)+IF(AG26=\"(\",-AH26,AH26))","v":0},{"$f":"IF(AG31=\"(\",\")\",\"\")","v":""},null,"p"]
[]
[null,null,null,null,"*","Накопленная корректировка определяется как:"]
[null,null,null,null,null,"- разница между первоначальной и текущей рыночной стоимостью - по финансовым вложениям, по которым можно определить текущую рыночную стоимость;"]
[null,null,null,null,null,"- начисленная в течение срока обращения разница между первоначальной стоимостью и номинальной стоимостью - по долговым ценным бумагам, по которым не определяется текущая рыночная стоимость;"]
[null,null,null,null,null,"- величина резерва под обесценение финансовых вложений, созданного на предыдущую отчетную дату, - по финансовым вложениям, по которым не определяется текущая рыночная стоимость;"]
[]
[]
[null,null,null,null,"3.2. Иное использование финансовых вложений"]
[]
[]
[null,null,null,null,"№\nп/п","Наименование",null,"Код",{"$f":"\"На 31 декабря \"&IF(List_01_reporting_period = \"\",\"отчётную дату отчётного года\",List_01_reporting_period& \" г.\")","v":"На 31 декабря 2017 г."},null,null,{"$f":"\"На 31 декабря \"&IF(List_01_reporting_period = \"\",\"предыдущего года\",List_01_reporting_period-1& \" г.\")","v":"На 31 декабря 2016 г."},null,null,{"$f":"\"На 31 декабря \"&IF(List_01_reporting_period = \"\",\"года, предшествующего предыдущему\",List_01_reporting_period-2& \" г.\")","v":"На 31 декабря 2015 г."}]
[null,null,null,null,1,2,null,3,null,4,null,5,null,null,null,6]
[null,null,null,null,"3.2.1","Финансовые вложения, находящиеся в залоге - всего, в том числе: ",null,5320,{"$f":"IF((SUMIF(I45:I46,\"\",J45:J46)-SUMIF(I45:I46,\"(\",J45:J46))<0,\"(\",\"\")","v":""},{"$f":"ABS(SUMIF(I45:I46,\"\",J45:J46)-SUMIF(I45:I46,\"(\",J45:J46))","v":0},{"$f":"IF(I44=\"(\",\")\",\"\")","v":""},{"$f":"IF((SUMIF(L45:L46,\"\",M45:M46)-SUMIF(L45:L46,\"(\",M45:M46))<0,\"(\",\"\")","v":""},{"$f":"ABS(SUMIF(L45:L46,\"\",M45:M46)-SUMIF(L45:L46,\"(\",M45:M46))","v":0},{"$f":"IF(L44=\"(\",\")\",\"\")","v":""},{"$f":"IF((SUMIF(O45:O46,\"\",P45:P46)-SUMIF(O45:O46,\"(\",P45:P46))<0,\"(\",\"\")","v":""},{"$f":"ABS(SUMIF(O45:O46,\"\",P45:P46)-SUMIF(O45:O46,\"(\",P45:P46))","v":0},{"$f":"IF(O44=\"(\",\")\",\"\")","v":""}]
[null,null,null,null,"3.2.1.1","финансовые вложения в залоге",null,"5320",null,null,{"$f":"IF(I45=\"(\",\")\",\"\")","v":""},null,null,{"$f":"IF(L45=\"(\",\")\",\"\")","v":""},null,null,{"$f":"IF(O45=\"(\",\")\",\"\")","v":""}]
[null,null,null,null,null,"Добавить группу/вид",null,null,null,null,null,null,null,null,null,null,null,null,null,null,null,null,null,null,null,null,null,null,null,null,null,null,null,null,null,"add_FORMA5_STR7_3_2_range"]
[null,null,null,null,"3.2.2","Финансовые вложения, переданные третьим лицам (кроме продажи) - всего, в том числе: ",null,5325,{"$f":"IF((SUMIF(I48:I49,\"\",J48:J49)-SUMIF(I48:I49,\"(\",J48:J49))<0,\"(\",\"\")","v":""},{"$f":"ABS(SUMIF(I48:I49,\"\",J48:J49)-SUMIF(I48:I49,\"(\",J48:J49))","v":0},{"$f":"IF(I47=\"(\",\")\",\"\")","v":""},{"$f":"IF((SUMIF(L48:L49,\"\",M48:M49)-SUMIF(L48:L49,\"(\",M48:M49))<0,\"(\",\"\")","v":""},{"$f":"ABS(SUMIF(L48:L49,\"\",M48:M49)-SUMIF(L48:L49,\"(\",M48:M49))","v":0},{"$f":"IF(L47=\"(\",\")\",\"\")","v":""},{"$f":"IF((SUMIF(O48:O49,\"\",P48:P49)-SUMIF(O48:O49,\"(\",P48:P49))<0,\"(\",\"\")","v":""},{"$f":"ABS(SUMIF(O48:O49,\"\",P48:P49)-SUMIF(O48:O49,\"(\",P48:P49))","v":0},{"$f":"IF(O47=\"(\",\")\",\"\")","v":""}]
[null,null,null,null,"3.2.2.1","финансовые вложения переданные третьим лицам",null,"5325",null,null,{"$f":"IF(I48=\"(\",\")\",\"\")","v":""},null,null,{"$f":"IF(L48=\"(\",\")\",\"\")","v":""},null,null,{"$f":"IF(O48=\"(\",\")\",\"\")","v":""}]
[null,null,null,null,null,"Добавить группу/вид",null,null,null,null,null,null,null,null,null,null,null,null,null,null,null,null,null,null,null,null,null,null,null,null,null,null,null,null,null,"add_FORMA5_STR7_3_2_range"]
[null,null,null,null,"3.2.3","Иное использование финансовых вложений",null,5329,null,null,{"$f":"IF(I50=\"(\",\")\",\"\")","v":""},null,null,{"$f":"IF(L50=\"(\",\")\",\"\")","v":""},null,null,{"$f":"IF(O50=\"(\",\")\",\"\")","v":""}]
[]
[]
[null,null,null,null,"4. Запасы"]
[]
[null,null,null,null,"4.1. Наличие и движение запасов"]
[]
[]
[null,null,null,null,"№\nп/п","Наименование","Период","Код","На начало года",null,null,null,null,null,"Изменения за период",null,null,null,null,null,null,null,null,null,null,null,null,null,null,"На конец периода"]
[null,null,null,null,null,null,null,null,"себестоимость",null,null,"величина резерва\nпод снижение стоимости",null,null,"поступления\nи затраты",null,null,"выбыло",null,null,null,null,null,"убытков\nот снижения стоимости",null,null,"оборот запасов между их группами (видами)",null,null,"себестоимость",null,null,"величина резерва\nпод снижение стоимости"]
[null,null,null,null,null,null,null,null,null,null,null,null,null,null,null,null,null,"себестоимость",null,null,"резерв под снижение стоимости"]
[null,null,null,null,1,2,3,4,null,5,null,6,null,null,null,7,null,8,null,null,null,9,null,10,null,null,null,11,null,null,12,null,13]
[null,null,null,null,"4.1","Запасы - всего, в том числе: ",{"$f":"\"за \"&IF(List_01_reporting_period=\"\",\"отчётный год\",List_01_reporting_period&\" год\")","v":"за 2017 год"},5400,{"$f":"IF((SUM(IF($AK$64:$AK$70=\"c\",IF(I$64:I$70=\"(\",-J$64:J$70,J$64:J$70))))<0,\"(\",\"\")","v":""},{"$f":"ABS(SUM(IF($AK$64:$AK$70=\"c\",IF(I$64:I$70=\"(\",-J$64:J$70,J$64:J$70))))","v":6394},{"$f":"IF(I62=\"(\",\")\",\"\")","v":""},"(",{"$f":"SUMIF($AK$64:$AK$70,$AK62,M$64:M$70)","v":0},")",{"$f":"IF((SUM(IF($AK$64:$AK$70=\"c\",IF(O$64:O$70=\"(\",-P$64:P$70,P$64:P$70))))<0,\"(\",\"\")","v":""},{"$f":"ABS(SUM(IF($AK$64:$AK$70=\"c\",IF(O$64:O$70=\"(\",-P$64:P$70,P$64:P$70))))","v":21888},{"$f":"IF(O62=\"(\",\")\",\"\")","v":""},"(",{"$f":"SUMIF($AK$64:$AK$70,$AK62,S$64:S$70)","v":21970},")",{"$f":"IF((SUM(IF($AK$64:$AK$70=\"c\",IF(U$64:U$70=\"(\",-V$64:V$70,V$64:V$70))))<0,\"(\",\"\")","v":""},{"$f":"ABS(SUM(IF($AK$64:$AK$70=\"c\",IF(U$64:U$70=\"(\",-V$64:V$70,V$64:V$70))))","v":0},{"$f":"IF(U62=\"(\",\")\",\"\")","v":""},{"$f":"IF((SUM(IF($AK$64:$AK$70=\"c\",IF(X$64:X$70=\"(\",-Y$64:Y$70,Y$64:Y$70))))<0,\"(\",\"\")","v":""},{"$f":"ABS(SUM(IF($AK$64:$AK$70=\"c\",IF(X$64:X$70=\"(\",-Y$64:Y$70,Y$64:Y$70))))","v":0},{"$f":"IF(X62=\"(\",\")\",\"\")","v":""},null,"x",null,{"$f":"IF((SUM(IF($AK$64:$AK$70=\"c\",IF(AD$64:AD$70=\"(\",-AE$64:AE$70,AE$64:AE$70))))<0,\"(\",\"\")","v":""},{"$f":"ABS(SUM(IF($AK$64:$AK$70=\"c\",IF(AD$64:AD$70=\"(\",-AE$64:AE$70,AE$64:AE$70))))","v":6312},{"$f":"IF(AD62=\"(\",\")\",\"\")","v":""},"(",{"$f":"SUMIF($AK$64:$AK$70,$AK62,AH$64:AH$70)","v":0},")",null,"c"]
[null,null,null,null,null,null,{"$f":"\"за \"&IF(List_01_reporting_period=\"\",\"предыдущий год\",List_01_reporting_period-1&\" год\")","v":"за 2016 год"},5420,{"$f":"IF((SUM(IF($AK$64:$AK$70=\"p\",IF(I$64:I$70=\"(\",-J$64:J$70,J$64:J$70))))<0,\"(\",\"\")","v":""},{"$f":"ABS(SUM(IF($AK$64:$AK$70=\"p\",IF(I$64:I$70=\"(\",-J$64:J$70,J$64:J$70))))","v":4787},"","(",{"$f":"SUMIF($AK$64:$AK$70,$AK63,M$64:M$70)","v":0},")",{"$f":"IF((SUM(IF($AK$64:$AK$70=\"p\",IF(O$64:O$70=\"(\",-P$64:P$70,P$64:P$70))))<0,\"(\",\"\")","v":""},{"$f":"ABS(SUM(IF($AK$64:$AK$70=\"p\",IF(O$64:O$70=\"(\",-P$64:P$70,P$64:P$70))))","v":27573},"","(",{"$f":"SUMIF($AK$64:$AK$70,$AK63,S$64:S$70)","v":25966},")",{"$f":"IF((SUM(IF($AK$64:$AK$70=\"p\",IF(U$64:U$70=\"(\",-V$64:V$70,V$64:V$70))))<0,\"(\",\"\")","v":""},{"$f":"ABS(SUM(IF($AK$64:$AK$70=\"p\",IF(U$64:U$70=\"(\",-V$64:V$70,V$64:V$70))))","v":0},"",{"$f":"IF((SUM(IF($AK$64:$AK$70=\"p\",IF(X$64:X$70=\"(\",-Y$64:Y$70,Y$64:Y$70))))<0,\"(\",\"\")","v":""},{"$f":"ABS(SUM(IF($AK$64:$AK$70=\"p\",IF(X$64:X$70=\"(\",-Y$64:Y$70,Y$64:Y$70))))","v":0},"",null,"x",null,{"$f":"IF((SUM(IF($AK$64:$AK$70=\"p\",IF(AD$64:AD$70=\"(\",-AE$64:AE$70,AE$64:AE$70))))<0,\"(\",\"\")","v":""},{"$f":"ABS(SUM(IF($AK$64:$AK$70=\"p\",IF(AD$64:AD$70=\"(\",-AE$64:AE$70,AE$64:AE$70))))","v":6394},"","(",{"$f":"SUMIF($AK$64:$AK$70,$AK63,AH$64:AH$70)","v":0},")",null,"p"]
[null,null,null,null,"4.1.1","Запасы - всего, в том числе: ",{"$f":"\"за \"&IF(List_01_reporting_period=\"\",\"отчётный год\",List_01_reporting_period&\" год\")","v":"за 2017 год"},"5400",null,0,"","(",null,")",null,0,"","(",0,")",null,null,"",null,null,"",null,null,{"$f":"IF(AA64=\"(\",\")\",\"\")","v":""},null,0,"","(",null,")",null,"c"]
[null,null,null,null,null,null,{"$f":"\"за \"&IF(List_01_reporting_period=\"\",\"предыдущий год\",List_01_reporting_period-1&\" год\")","v":"за 2016 год"},"5420",null,0,"","(",null,")",null,0,"","(",0,")",null,null,"",null,null,"",null,null,"",null,0,"","(",null,")",null,"p"]
[null,null,null,"ы","4.1.2","материалы",{"$f":"\"за \"&IF(List_01_reporting_period=\"\",\"отчётный год\",List_01_reporting_period&\" год\")","v":"за 2017 год"},null,null,6147,"","(",null,")",null,21888,"","(",21970,")",null,null,"",null,null,"","(",82,")",null,6065,"","(",null,")",null,"c"]
[null,null,null,null,null,null,{"$f":"\"за \"&IF(List_01_reporting_period=\"\",\"предыдущий год\",List_01_reporting_period-1&\" год\")","v":"за 2016 год"},null,null,4534,"","(",null,")",null,27569,"","(",25956,")",null,null,"",null,null,"",null,1613,"",null,6147,"","(",null,")",null,"p"]
[null,null,null,"ы","4.1.3","товары",{"$f":"\"за \"&IF(List_01_reporting_period=\"\",\"отчётный год\",List_01_reporting_period&\" год\")","v":"за 2017 год"},null,null,247,"","(",null,")",null,null,"","(",null,")",null,null,"",null,null,"",null,null,"",null,247,"","(",null,")",null,"c"]
[null,null,null,null,null,null,{"$f":"\"за \"&IF(List_01_reporting_period=\"\",\"предыдущий год\",List_01_reporting_period-1&\" год\")","v":"за 2016 год"},null,null,253,"","(",null,")",null,4,"","(",10,")",null,null,"",null,null,"","(",6,")",null,247,"","(",null,")",null,"p"]
[null,null,null,null,null,"Добавить группу/вид",null,null,null,null,null,null,null,null,null,null,null,null,null,null,null,null,null,null,null,null,null,null,null,null,null,null,null,null,null,"add_FORMA5_STR7_4_1_range"]
[]
[]
[null,null,null,null,"4.2. Запасы в залоге"]
[]
[]
[null,null,null,null,"№\nп/п","Наименование",null,"Код",{"$f":"\"На 31 декабря \"&IF(List_01_reporting_period = \"\",\"отчётную дату отчётного года\",List_01_reporting_period& \" г.\")","v":"На 31 декабря 2017 г."},null,null,{"$f":"\"На 31 декабря \"&IF(List_01_reporting_period = \"\",\"предыдущего года\",List_01_reporting_period-1& \" г.\")","v":"На 31 декабря 2016 г."},null,null,{"$f":"\"На 31 декабря \"&IF(List_01_reporting_period = \"\",\"года, предшествующего предыдущему\",List_01_reporting_period-2& \" г.\")","v":"На 31 декабря 2015 г."}]
[null,null,null,null,1,2,null,3,null,4,null,5,null,null,null,6]
[null,null,null,null,"4.2.1","Запасы, не оплаченные на отчетную дату - всего, в том числе: ",null,5440,{"$f":"IF((SUMIF(I79:I80,\"\",J79:J80)-SUMIF(I79:I80,\"(\",J79:J80))<0,\"(\",\"\")","v":""},{"$f":"ABS(SUMIF(I79:I80,\"\",J79:J80)-SUMIF(I79:I80,\"(\",J79:J80))","v":0},{"$f":"IF(I78=\"(\",\")\",\"\")","v":""},{"$f":"IF((SUMIF(L79:L80,\"\",M79:M80)-SUMIF(L79:L80,\"(\",M79:M80))<0,\"(\",\"\")","v":""},{"$f":"ABS(SUMIF(L79:L80,\"\",M79:M80)-SUMIF(L79:L80,\"(\",M79:M80))","v":0},{"$f":"IF(L78=\"(\",\")\",\"\")","v":""},{"$f":"IF((SUMIF(O79:O80,\"\",P79:P80)-SUMIF(O79:O80,\"(\",P79:P80))<0,\"(\",\"\")","v":""},{"$f":"ABS(SUMIF(O79:O80,\"\",P79:P80)-SUMIF(O79:O80,\"(\",P79:P80))","v":0},{"$f":"IF(O78=\"(\",\")\",\"\")","v":""}]
[null,null,null,null,"4.2.1.1","запасы не оплаченные",null,"5440",null,null,{"$f":"IF(I79=\"(\",\")\",\"\")","v":""},null,null,{"$f":"IF(L79=\"(\",\")\",\"\")","v":""},null,null,{"$f":"IF(O79=\"(\",\")\",\"\")","v":""}]
[null,null,null,null,null,"Добавить группу/вид",null,null,null,null,null,null,null,null,null,null,null,null,null,null,null,null,null,null,null,null,null,null,null,null,null,null,null,null,null,"add_FORMA5_STR7_3_2_range"]
[null,null,null,null,"4.2.2","Запасы, находящиеся в залоге по договору - всего, в том числе: ",null,5445,{"$f":"IF((SUMIF(I82:I83,\"\",J82:J83)-SUMIF(I82:I83,\"(\",J82:J83))<0,\"(\",\"\")","v":""},{"$f":"ABS(SUMIF(I82:I83,\"\",J82:J83)-SUMIF(I82:I83,\"(\",J82:J83))","v":0},{"$f":"IF(I81=\"(\",\")\",\"\")","v":""},{"$f":"IF((SUMIF(L82:L83,\"\",M82:M83)-SUMIF(L82:L83,\"(\",M82:M83))<0,\"(\",\"\")","v":""},{"$f":"ABS(SUMIF(L82:L83,\"\",M82:M83)-SUMIF(L82:L83,\"(\",M82:M83))","v":0},{"$f":"IF(L81=\"(\",\")\",\"\")","v":""},{"$f":"IF((SUMIF(O82:O83,\"\",P82:P83)-SUMIF(O82:O83,\"(\",P82:P83))<0,\"(\",\"\")","v":""},{"$f":"ABS(SUMIF(O82:O83,\"\",P82:P83)-SUMIF(O82:O83,\"(\",P82:P83))","v":0},{"$f":"IF(O81=\"(\",\")\",\"\")","v":""}]
[null,null,null,null,"4.2.2.1","запасы в залоге",null,"5445",null,null,{"$f":"IF(I82=\"(\",\")\",\"\")","v":""},null,null,{"$f":"IF(L82=\"(\",\")\",\"\")","v":""},null,null,{"$f":"IF(O82=\"(\",\")\",\"\")","v":""}]
[null,null,null,null,null,"Добавить группу/вид",null,null,null,null,null,null,null,null,null,null,null,null,null,null,null,null,null,null,null,null,null,null,null,null,null,null,null,null,null,"add_FORMA5_STR7_3_2_range"]

{"sheet":"Форма 5. ДиКЗ и запасы","index":16,"n_rows":108,"n_cols":40,"rows_kept":108,"cut":false,"hidden":false,"merged":[[29,5,30,5],[31,4,32,4],[31,5,32,5],[69,4,70,4],[69,5,70,5],[102,5,102,6],[104,5,104,6],[105,5,105,6],[107,5,107,6],[76,5,77,5],[85,5,85,6],[96,5,96,6],[45,5,45,6],[85,11,85,13],[85,14,85,16],[92,4,93,13],[86,11,86,13],[87,5,87,6],[88,5,88,6],[95,5,95,6],[95,8,95,10],[95,11,95,13],[96,11,96,13],[97,5,97,6],[101,5,101,6],[62,4,63,4],[62,5,63,5],[65,4,66,4],[65,5,66,5],[54,4,58,4],[54,5,58,5],[100,5,100,6],[86,5,86,6],[98,5,98,6],[99,5,99,6],[82,4,83,16],[67,4,68,4],[67,5,68,5],[76,4,77,4],[60,4,61,4],[60,5,61,5],[71,4,72,4],[71,5,72,5],[73,4,74,4],[73,5,74,5],[85,8,85,10],[45,14,45,16],[55,11,55,16],[55,17,55,22],[55,23,58,25],[46,5,46,6],[47,5,47,6],[56,11,58,13],[59,17,59,19],[54,26,58,28],[54,6,58,6],[54,7,58,7],[54,8,58,10],[54,11,54,25],[56,14,58,16],[56,17,58,19],[56,20,58,22],[51,4,52,28],[43,8,43,13],[43,14,43,19],[43,20,43,25],[44,8,44,10],[20,4,21,4],[20,5,21,5],[23,4,24,4],[23,5,24,5],[25,4,26,4],[25,5,26,5],[34,4,35,4],[34,5,35,5],[43,4,44,4],[43,5,44,6],[43,7,44,7],[44,11,44,13],[44,14,44,16],[44,17,44,19],[44,20,44,22],[44,23,44,25],[40,4,41,25],[27,4,28,4],[27,5,28,5],[29,4,30,4],[17,29,17,31],[17,35,17,37],[18,4,19,4],[18,5,19,5],[13,11,16,13],[13,14,13,19],[13,20,13,28],[13,29,16,31],[13,32,16,34],[13,35,16,37],[14,26,16,28],[17,11,17,13],[17,20,17,22],[14,14,16,16],[14,17,16,19],[14,20,16,22],[7,4,7,37],[12,4,16,4],[12,5,16,5],[12,6,16,6],[12,7,16,7],[12,8,12,13],[12,14,12,31],[12,32,12,37],[13,8,16,10],[14,23,16,25],[9,4,10,37]]}
[]
[]
[]
[]
[null,null,null,null,{"$f":"Getcode()","v":"ELPASS.FORMS.BH"},null,null,null,null,null,null,null,null,null,null,null,null,null,null,null,null,null,null,null,null,null,null,null,null,null,null,null,null,null,null,null,null,{"$f":"version","v":"Версия 1.0 от 01.10.2017"}]
[]
[null,null,null,null,null,null,null,null,null,null,null,null,null,null,null,null,null,null,null,null,null,null,null,null,null,null,null,null,null,null,null,null,null,null,null,null,null,"Форма 0710005 с. 10-12"]
[null,null,null,null,"5. Дебиторская и кредиторская задолженность"]
[]
[null,null,null,null,"5.1. Наличие и движение дебиторской задолженности"]
[]
[]
[null,null,null,null,"№\nп/п","Наименование","Период","Код","На начало года",null,null,null,null,null,"Изменения за период",null,null,null,null,null,null,null,null,null,null,null,null,null,null,null,null,null,"На конец периода"]
[null,null,null,null,null,null,null,null,"учтенная по условиям договора",null,null,"величина резерва по сомнительным долгам",null,null,"поступление",null,null,null,null,null,"выбыло",null,null,null,null,null,null,null,null,"перевод из долго- в краткосрочную и из кратко- в долгосрочную задолженности",null,null,"учтенная по условиям договора",null,null,"величина резерва\nпо сомнительным долгам"]
[null,null,null,null,null,null,null,null,null,null,null,null,null,null,"в результате хозяйственных операций (сумма долга по сделке операции) *",null,null,"причитающиеся проценты, штрафы и иные начисления *",null,null,"погашение",null,null,"списание на финансовый результат *",null,null,"восстановление резерва"]
[]
[]
[null,null,null,null,1,2,3,4," ",5," ",6,null,null," ",7," "," ",8," ",9,null,null,null,10,null," ",11," ",12,null,null," ",13," ",14]
[null,null,null,null,"5.1.1","Долгосрочная дебиторская задолженность - всего, в том числе: ",{"$f":"\"за \"&IF(List_01_reporting_period=\"\",\"отчётный год\",List_01_reporting_period&\" год\")","v":"за 2017 год"},5501,{"$f":"IF((SUM(IF($AN$21:$AN$23=\"c\",IF(I$21:I$23=\"(\",-J$21:J$23,J$21:J$23))))<0,\"(\",\"\")","v":""},{"$f":"ABS(SUM(IF($AN$21:$AN$23=\"c\",IF(I$21:I$23=\"(\",-J$21:J$23,J$21:J$23))))","v":0},{"$f":"IF(I19=\"(\",\")\",\"\")","v":""},"(",{"$f":"SUMIF($AN$21:$AN$23,$AN19,M$21:M$23)","v":0},")",{"$f":"IF((SUM(IF($AN$21:$AN$23=\"c\",IF(O$21:O$23=\"(\",-P$21:P$23,P$21:P$23))))<0,\"(\",\"\")","v":""},{"$f":"ABS(SUM(IF($AN$21:$AN$23=\"c\",IF(O$21:O$23=\"(\",-P$21:P$23,P$21:P$23))))","v":1296},{"$f":"IF(O19=\"(\",\")\",\"\")","v":""},{"$f":"IF((SUM(IF($AN$21:$AN$23=\"c\",IF(R$21:R$23=\"(\",-S$21:S$23,S$21:S$23))))<0,\"(\",\"\")","v":""},{"$f":"ABS(SUM(IF($AN$21:$AN$23=\"c\",IF(R$21:R$23=\"(\",-S$21:S$23,S$21:S$23))))","v":0},{"$f":"IF(R19=\"(\",\")\",\"\")","v":""},"(",{"$f":"SUMIF($AN$21:$AN$23,$AN19,V$21:V$23)","v":0},")","(",{"$f":"SUMIF($AN$21:$AN$23,$AN19,Y$21:Y$23)","v":0},")",{"$f":"IF((SUM(IF($AN$21:$AN$23=\"c\",IF(AA$21:AA$23=\"(\",-AB$21:AB$23,AB$21:AB$23))))<0,\"(\",\"\")","v":""},{"$f":"ABS(SUM(IF($AN$21:$AN$23=\"c\",IF(AA$21:AA$23=\"(\",-AB$21:AB$23,AB$21:AB$23))))","v":0},{"$f":"IF(AA19=\"(\",\")\",\"\")","v":""},"(",{"$f":"SUMIF($AN$21:$AN$23,$AN19,AE$21:AE$23)","v":0},")",{"$f":"IF((SUM(IF($AN$21:$AN$23=\"c\",IF(AG$21:AG$23=\"(\",-AH$21:AH$23,AH$21:AH$23))))<0,\"(\",\"\")","v":""},{"$f":"ABS(SUM(IF($AN$21:$AN$23=\"c\",IF(AG$21:AG$23=\"(\",-AH$21:AH$23,AH$21:AH$23))))","v":1296},{"$f":"IF(AG19=\"(\",\")\",\"\")","v":""},"(",{"$f":"SUMIF($AN$21:$AN$23,$AN19,AK$21:AK$23)","v":1296},")",null,"c"]
[null,null,null,null,null,null,{"$f":"\"за \"&IF(List_01_reporting_period=\"\",\"предыдущий год\",List_01_reporting_period-1&\" год\")","v":"за 2016 год"},5521,{"$f":"IF((SUM(IF($AN$21:$AN$23=\"p\",IF(I$21:I$23=\"(\",-J$21:J$23,J$21:J$23))))<0,\"(\",\"\")","v":""},{"$f":"ABS(SUM(IF($AN$21:$AN$23=\"p\",IF(I$21:I$23=\"(\",-J$21:J$23,J$21:J$23))))","v":0},{"$f":"IF(I20=\"(\",\")\",\"\")","v":""},"(",{"$f":"SUMIF($AN$21:$AN$23,$AN20,M$21:M$23)","v":0},")",{"$f":"IF((SUM(IF($AN$21:$AN$23=\"p\",IF(O$21:O$23=\"(\",-P$21:P$23,P$21:P$23))))<0,\"(\",\"\")","v":""},{"$f":"ABS(SUM(IF($AN$21:$AN$23=\"p\",IF(O$21:O$23=\"(\",-P$21:P$23,P$21:P$23))))","v":0},{"$f":"IF(O20=\"(\",\")\",\"\")","v":""},{"$f":"IF((SUM(IF($AN$21:$AN$23=\"p\",IF(R$21:R$23=\"(\",-S$21:S$23,S$21:S$23))))<0,\"(\",\"\")","v":""},{"$f":"ABS(SUM(IF($AN$21:$AN$23=\"p\",IF(R$21:R$23=\"(\",-S$21:S$23,S$21:S$23))))","v":0},{"$f":"IF(R20=\"(\",\")\",\"\")","v":""},"(",{"$f":"SUMIF($AN$21:$AN$23,$AN20,V$21:V$23)","v":0},")","(",{"$f":"SUMIF($AN$21:$AN$23,$AN20,Y$21:Y$23)","v":0},")",{"$f":"IF((SUM(IF($AN$21:$AN$23=\"p\",IF(AA$21:AA$23=\"(\",-AB$21:AB$23,AB$21:AB$23))))<0,\"(\",\"\")","v":""},{"$f":"ABS(SUM(IF($AN$21:$AN$23=\"p\",IF(AA$21:AA$23=\"(\",-AB$21:AB$23,AB$21:AB$23))))","v":0},{"$f":"IF(AA20=\"(\",\")\",\"\")","v":""},"(",{"$f":"SUMIF($AN$21:$AN$23,$AN20,AE$21:AE$23)","v":0},")",{"$f":"IF((SUM(IF($AN$21:$AN$23=\"p\",IF(AG$21:AG$23=\"(\",-AH$21:AH$23,AH$21:AH$23))))<0,\"(\",\"\")","v":""},{"$f":"ABS(SUM(IF($AN$21:$AN$23=\"p\",IF(AG$21:AG$23=\"(\",-AH$21:AH$23,AH$21:AH$23))))","v":0},{"$f":"IF(AG20=\"(\",\")\",\"\")","v":""},"(",{"$f":"SUMIF($AN$21:$AN$23,$AN20,AK$21:AK$23)","v":0},")",null,"p"]
[null,null,null,null,"5.1.1.1","Долгосрочная дебиторская задолженность - всего, в том числе: ",{"$f":"\"за \"&IF(List_01_reporting_period=\"\",\"отчётный год\",List_01_reporting_period&\" год\")","v":"за 2017 год"},"5501",null,0,{"$f":"IF(I21=\"(\",\")\",\"\")","v":""},"(",null,")",null,1296,{"$f":"IF(O21=\"(\",\")\",\"\")","v":""},null,null,{"$f":"IF(R21=\"(\",\")\",\"\")","v":""},"(",null,")","(",null,")",null,null,{"$f":"IF(AA21=\"(\",\")\",\"\")","v":""},"(",null,")",null,1296,{"$f":"IF(AG21=\"(\",\")\",\"\")","v":""},"(",1296,")",null,"c"]
[null,null,null,null,null,null,{"$f":"\"за \"&IF(List_01_reporting_period=\"\",\"предыдущий год\",List_01_reporting_period-1&\" год\")","v":"за 2016 год"},"5521",null,null,{"$f":"IF(I22=\"(\",\")\",\"\")","v":""},"(",null,")",null,null,{"$f":"IF(O22=\"(\",\")\",\"\")","v":""},null,null,{"$f":"IF(R22=\"(\",\")\",\"\")","v":""},"(",null,")","(",null,")",null,null,{"$f":"IF(AA22=\"(\",\")\",\"\")","v":""},"(",null,")",null,0,{"$f":"IF(AG22=\"(\",\")\",\"\")","v":""},"(",0,")",null,"p"]
[null,null,null,null,null,"Добавить вид",null,null,null,null,null,null,null,null,null,null,null,null,null,null,null,null,null,null,null,null,null,null,null,null,null,null,null,null,null,null,null,null,"add_FORMA5_STR12_5_1_1_range"]
[null,null,null,null,"5.1.2","Краткосрочная дебиторская задолженность - всего, в том числе: ",{"$f":"\"за \"&IF(List_01_reporting_period=\"\",\"отчётный год\",List_01_reporting_period&\" год\")","v":"за 2017 год"},5510,{"$f":"IF((SUM(IF($AN$26:$AN$34=\"c\",IF(I$26:I$34=\"(\",-J$26:J$34,J$26:J$34))))<0,\"(\",\"\")","v":""},{"$f":"ABS(SUM(IF($AN$26:$AN$34=\"c\",IF(I$26:I$34=\"(\",-J$26:J$34,J$26:J$34))))","v":18837},{"$f":"IF(I24=\"(\",\")\",\"\")","v":""},"(",{"$f":"SUMIF($AN$26:$AN$34,$AN24,M$26:M$34)","v":0},")",{"$f":"IF((SUM(IF($AN$26:$AN$34=\"c\",IF(O$26:O$34=\"(\",-P$26:P$34,P$26:P$34))))<0,\"(\",\"\")","v":""},{"$f":"ABS(SUM(IF($AN$26:$AN$34=\"c\",IF(O$26:O$34=\"(\",-P$26:P$34,P$26:P$34))))","v":169938},{"$f":"IF(O24=\"(\",\")\",\"\")","v":""},{"$f":"IF((SUM(IF($AN$26:$AN$34=\"c\",IF(R$26:R$34=\"(\",-S$26:S$34,S$26:S$34))))<0,\"(\",\"\")","v":""},{"$f":"ABS(SUM(IF($AN$26:$AN$34=\"c\",IF(R$26:R$34=\"(\",-S$26:S$34,S$26:S$34))))","v":0},{"$f":"IF(R24=\"(\",\")\",\"\")","v":""},"(",{"$f":"SUMIF($AN$26:$AN$34,$AN24,V$26:V$34)","v":160938},")","(",{"$f":"SUMIF($AN$26:$AN$34,$AN24,Y$26:Y$34)","v":1328},")",{"$f":"IF((SUM(IF($AN$26:$AN$34=\"c\",IF(AA$26:AA$34=\"(\",-AB$26:AB$34,AB$26:AB$34))))<0,\"(\",\"\")","v":""},{"$f":"ABS(SUM(IF($AN$26:$AN$34=\"c\",IF(AA$26:AA$34=\"(\",-AB$26:AB$34,AB$26:AB$34))))","v":0},{"$f":"IF(AA24=\"(\",\")\",\"\")","v":""},{"$f":"IF((SUM(IF($AN$26:$AN$34=\"c\",IF(AD$26:AD$34=\"(\",-AE$26:AE$34,AE$26:AE$34))))<0,\"(\",\"\")","v":""},{"$f":"ABS(SUM(IF($AN$26:$AN$34=\"c\",IF(AD$26:AD$34=\"(\",-AE$26:AE$34,AE$26:AE$34))))","v":0},{"$f":"IF(AD24=\"(\",\")\",\"\")","v":""},{"$f":"IF((SUM(IF($AN$26:$AN$34=\"c\",IF(AG$26:AG$34=\"(\",-AH$26:AH$34,AH$26:AH$34))))<0,\"(\",\"\")","v":""},{"$f":"ABS(SUM(IF($AN$26:$AN$34=\"c\",IF(AG$26:AG$34=\"(\",-AH$26:AH$34,AH$26:AH$34))))","v":26509},{"$f":"IF(AG24=\"(\",\")\",\"\")","v":""},"(",{"$f":"SUMIF($AN$26:$AN$34,$AN24,AK$26:AK$34)","v":0},")",null,"c"]
[null,null,null,null,null,null,{"$f":"\"за \"&IF(List_01_reporting_period=\"\",\"предыдущий год\",List_01_reporting_period-1&\" год\")","v":"за 2016 год"},5530,{"$f":"IF((SUM(IF($AN$26:$AN$34=\"p\",IF(I$26:I$34=\"(\",-J$26:J$34,J$26:J$34))))<0,\"(\",\"\")","v":""},{"$f":"ABS(SUM(IF($AN$26:$AN$34=\"p\",IF(I$26:I$34=\"(\",-J$26:J$34,J$26:J$34))))","v":14955},"","(",{"$f":"SUMIF($AN$26:$AN$34,$AN25,M$26:M$34)","v":0},")",{"$f":"IF((SUM(IF($AN$26:$AN$34=\"p\",IF(O$26:O$34=\"(\",-P$26:P$34,P$26:P$34))))<0,\"(\",\"\")","v":""},{"$f":"ABS(SUM(IF($AN$26:$AN$34=\"p\",IF(O$26:O$34=\"(\",-P$26:P$34,P$26:P$34))))","v":185062},"",{"$f":"IF((SUM(IF($AN$26:$AN$34=\"p\",IF(R$26:R$34=\"(\",-S$26:S$34,S$26:S$34))))<0,\"(\",\"\")","v":""},{"$f":"ABS(SUM(IF($AN$26:$AN$34=\"p\",IF(R$26:R$34=\"(\",-S$26:S$34,S$26:S$34))))","v":0},"","(",{"$f":"SUMIF($AN$26:$AN$34,$AN25,V$26:V$34)","v":181102},")","(",{"$f":"SUMIF($AN$26:$AN$34,$AN25,Y$26:Y$34)","v":78},")",{"$f":"IF((SUM(IF($AN$26:$AN$34=\"p\",IF(AA$26:AA$34=\"(\",-AB$26:AB$34,AB$26:AB$34))))<0,\"(\",\"\")","v":""},{"$f":"ABS(SUM(IF($AN$26:$AN$34=\"p\",IF(AA$26:AA$34=\"(\",-AB$26:AB$34,AB$26:AB$34))))","v":0},"",{"$f":"IF((SUM(IF($AN$26:$AN$34=\"p\",IF(AD$26:AD$34=\"(\",-AE$26:AE$34,AE$26:AE$34))))<0,\"(\",\"\")","v":""},{"$f":"ABS(SUM(IF($AN$26:$AN$34=\"p\",IF(AD$26:AD$34=\"(\",-AE$26:AE$34,AE$26:AE$34))))","v":0},"",{"$f":"IF((SUM(IF($AN$26:$AN$34=\"p\",IF(AG$26:AG$34=\"(\",-AH$26:AH$34,AH$26:AH$34))))<0,\"(\",\"\")","v":""},{"$f":"ABS(SUM(IF($AN$26:$AN$34=\"p\",IF(AG$26:AG$34=\"(\",-AH$26:AH$34,AH$26:AH$34))))","v":18837},"","(",{"$f":"SUMIF($AN$26:$AN$34,$AN25,AK$26:AK$34)","v":0},")",null,"p"]
[null,null,null,null,"5.1.2.1","Краткосрочная дебиторская задолженность - всего, в том числе: ",{"$f":"\"за \"&IF(List_01_reporting_period=\"\",\"отчётный год\",List_01_reporting_period&\" год\")","v":"за 2017 год"},"5510",null,null,"","(",null,")",null,null,"",null,null,"","(",null,")","(",null,")",null,null,"",null,null,"",null,null,"","(",null,")",null,"c"]
[null,null,null,null,null,null,{"$f":"\"за \"&IF(List_01_reporting_period=\"\",\"предыдущий год\",List_01_reporting_period-1&\" год\")","v":"за 2016 год"},"5530",null,null,"","(",null,")",null,null,"",null,null,"","(",null,")","(",null,")",null,null,"",null,null,"",null,null,"","(",null,")",null,"p"]
[null,null,null,"ы","5.1.2.2","Покупатели и заказчики",{"$f":"\"за \"&IF(List_01_reporting_period=\"\",\"отчётный год\",List_01_reporting_period&\" год\")","v":"за 2017 год"},null,null,17881,"","(",null,")",null,159356,"",null,null,"","(",150820,")","(",1328,")",null,null,"",null,null,"",null,25089,"","(",null,")",null,"c"]
[null,null,null,null,null,null,{"$f":"\"за \"&IF(List_01_reporting_period=\"\",\"предыдущий год\",List_01_reporting_period-1&\" год\")","v":"за 2016 год"},null,null,13962,"","(",null,")",null,176355,"",null,null,"","(",172358,")","(",78,")",null,null,"",null,null,"",null,17881,"","(",null,")",null,"p"]
[null,null,null,"ы","5.1.2.3","Расчеты по авансам выданным",{"$f":"\"за \"&IF(List_01_reporting_period=\"\",\"отчётный год\",List_01_reporting_period&\" год\")","v":"за 2017 год"},null,null,804,"","(",null,")",null,6487,"",null,null,"","(",6900,")","(",null,")",null,null,"",null,null,"",null,391,"","(",null,")",null,"c"]
[null,null,null,null,null,null,{"$f":"\"за \"&IF(List_01_reporting_period=\"\",\"предыдущий год\",List_01_reporting_period-1&\" год\")","v":"за 2016 год"},null,null,832,"","(",null,")",null,6066,"",null,null,"","(",6094,")","(",null,")",null,null,"",null,null,"",null,804,"","(",null,")",null,"p"]
[null,null,null,"ы","5.1.2.4","Прочие дебиторы",{"$f":"\"за \"&IF(List_01_reporting_period=\"\",\"отчётный год\",List_01_reporting_period&\" год\")","v":"за 2017 год"},null,null,152,"","(",null,")",null,4095,"",null,null,"","(",3218,")","(",null,")",null,null,"",null,null,"",null,1029,"","(",null,")",null,"c"]
[null,null,null,null,null,null,{"$f":"\"за \"&IF(List_01_reporting_period=\"\",\"предыдущий год\",List_01_reporting_period-1&\" год\")","v":"за 2016 год"},null,null,161,"","(",null,")",null,2641,"",null,null,"","(",2650,")","(",null,")",null,null,"",null,null,"",null,152,"","(",null,")",null,"p"]
[null,null,null,null,null,"Добавить вид",null,null,null,null,null,null,null,null,null,null,null,null,null,null,null,null,null,null,null,null,null,null,null,null,null,null,null,null,null,null,null,null,"add_FORMA5_STR12_5_1_2_range"]
[null,null,null,null,"5.1.3","Итого",{"$f":"\"за \"&IF(List_01_reporting_period=\"\",\"отчётный год\",List_01_reporting_period&\" год\")","v":"за 2017 год"},5500,{"$f":"IF((IF(I19=\"(\",-J19,J19)+IF(I24=\"(\",-J24,J24))<0,\"(\",\"\")","v":""},{"$f":"ABS(IF(I19=\"(\",-J19,J19)+IF(I24=\"(\",-J24,J24))","v":18837},{"$f":"IF(I35=\"(\",\")\",\"\")","v":""},"(",{"$f":"M19+M24","v":0},")",{"$f":"IF((IF(O19=\"(\",-P19,P19)+IF(O24=\"(\",-P24,P24))<0,\"(\",\"\")","v":""},{"$f":"ABS(IF(O19=\"(\",-P19,P19)+IF(O24=\"(\",-P24,P24))","v":171234},{"$f":"IF(O35=\"(\",\")\",\"\")","v":""},{"$f":"IF((IF(R19=\"(\",-S19,S19)+IF(R24=\"(\",-S24,S24))<0,\"(\",\"\")","v":""},{"$f":"ABS(IF(R19=\"(\",-S19,S19)+IF(R24=\"(\",-S24,S24))","v":0},{"$f":"IF(R35=\"(\",\")\",\"\")","v":""},"(",{"$f":"V19+V24","v":160938},")","(",{"$f":"Y19+Y24","v":1328},")",{"$f":"IF((IF(AA19=\"(\",-AB19,AB19)+IF(AA24=\"(\",-AB24,AB24))<0,\"(\",\"\")","v":""},{"$f":"ABS(IF(AA19=\"(\",-AB19,AB19)+IF(AA24=\"(\",-AB24,AB24))","v":0},{"$f":"IF(AA35=\"(\",\")\",\"\")","v":""},null,"x",null,{"$f":"IF((IF(AG19=\"(\",-AH19,AH19)+IF(AG24=\"(\",-AH24,AH24))<0,\"(\",\"\")","v":""},{"$f":"ABS(IF(AG19=\"(\",-AH19,AH19)+IF(AG24=\"(\",-AH24,AH24))","v":27805},{"$f":"IF(AG35=\"(\",\")\",\"\")","v":""},"(",{"$f":"AK19+AK24","v":1296},")",null,"c"]
[null,null,null,null,null,null,{"$f":"\"за \"&IF(List_01_reporting_period=\"\",\"предыдущий год\",List_01_reporting_period-1&\" год\")","v":"за 2016 год"},5520,{"$f":"IF((IF(I20=\"(\",-J20,J20)+IF(I25=\"(\",-J25,J25))<0,\"(\",\"\")","v":""},{"$f":"ABS(IF(I20=\"(\",-J20,J20)+IF(I25=\"(\",-J25,J25))","v":14955},{"$f":"IF(I36=\"(\",\")\",\"\")","v":""},"(",{"$f":"M20+M25","v":0},")",{"$f":"IF((IF(O20=\"(\",-P20,P20)+IF(O25=\"(\",-P25,P25))<0,\"(\",\"\")","v":""},{"$f":"ABS(IF(O20=\"(\",-P20,P20)+IF(O25=\"(\",-P25,P25))","v":185062},{"$f":"IF(O36=\"(\",\")\",\"\")","v":""},{"$f":"IF((IF(R20=\"(\",-S20,S20)+IF(R25=\"(\",-S25,S25))<0,\"(\",\"\")","v":""},{"$f":"ABS(IF(R20=\"(\",-S20,S20)+IF(R25=\"(\",-S25,S25))","v":0},{"$f":"IF(R36=\"(\",\")\",\"\")","v":""},"(",{"$f":"V20+V25","v":181102},")","(",{"$f":"Y20+Y25","v":78},")",{"$f":"IF((IF(AA20=\"(\",-AB20,AB20)+IF(AA25=\"(\",-AB25,AB25))<0,\"(\",\"\")","v":""},{"$f":"ABS(IF(AA20=\"(\",-AB20,AB20)+IF(AA25=\"(\",-AB25,AB25))","v":0},{"$f":"IF(AA36=\"(\",\")\",\"\")","v":""},null,"x",null,{"$f":"IF((IF(AG20=\"(\",-AH20,AH20)+IF(AG25=\"(\",-AH25,AH25))<0,\"(\",\"\")","v":""},{"$f":"ABS(IF(AG20=\"(\",-AH20,AH20)+IF(AG25=\"(\",-AH25,AH25))","v":18837},{"$f":"IF(AG36=\"(\",\")\",\"\")","v":""},"(",{"$f":"AK20+AK25","v":0},")",null,"p"]
[]
[null,null,null,null,"*","Данные раскрываются за минусом дебиторской задолженности, поступившей и погашенной (списанной) в одном отчетном периоде."]
[]
[]
[null,null,null,null,"5.2. Просроченная дебиторская задолженность"]
[]
[]
[null,null,null,null,"№\nп/п","Наименование",null,"Код",{"$f":"\"На 31 декабря \"&IF(List_01_reporting_period = \"\",\"отчётную дату отчётного года\",List_01_reporting_period& \" г.\")","v":"На 31 декабря 2017 г."},null,null,null,null,null,{"$f":"\"На 31 декабря \"&IF(List_01_reporting_period = \"\",\"предыдущего года\",List_01_reporting_period-1& \" г.\")","v":"На 31 декабря 2016 г."},null,null,null,null,null,{"$f":"\"На 31 декабря \"&IF(List_01_reporting_period = \"\",\"года, предшествующего предыдущему\",List_01_reporting_period-2& \" г.\")","v":"На 31 декабря 2015 г."}]
[null,null,null,null,null,null,null,null,"учтенная по условиям договора",null,null,"балансовая стоимость",null,null,"учтенная по условиям договора",null,null,"балансовая стоимость",null,null,"учтенная по условиям договора",null,null,"балансовая стоимость"]
[null,null,null,null,1,2,null,3,null,4,null,null,5,null,6,null,null,null,7,null,null,8,null,null,9]
[null,null,null,null,"5.2","Всего, в том числе: ",null,5540,{"$f":"IF((SUMIF(I48:I49,\"\",J48:J49)-SUMIF(I48:I49,\"(\",J48:J49))<0,\"(\",\"\")","v":""},{"$f":"ABS(SUMIF(I48:I49,\"\",J48:J49)-SUMIF(I48:I49,\"(\",J48:J49))","v":1296},{"$f":"IF(I47=\"(\",\")\",\"\")","v":""},{"$f":"IF((SUMIF(L48:L49,\"\",M48:M49)-SUMIF(L48:L49,\"(\",M48:M49))<0,\"(\",\"\")","v":""},{"$f":"ABS(SUMIF(L48:L49,\"\",M48:M49)-SUMIF(L48:L49,\"(\",M48:M49))","v":1296},{"$f":"IF(L47=\"(\",\")\",\"\")","v":""},{"$f":"IF((SUMIF(O48:O49,\"\",P48:P49)-SUMIF(O48:O49,\"(\",P48:P49))<0,\"(\",\"\")","v":""},{"$f":"ABS(SUMIF(O48:O49,\"\",P48:P49)-SUMIF(O48:O49,\"(\",P48:P49))","v":0},{"$f":"IF(O47=\"(\",\")\",\"\")","v":""},{"$f":"IF((SUMIF(R48:R49,\"\",S48:S49)-SUMIF(R48:R49,\"(\",S48:S49))<0,\"(\",\"\")","v":""},{"$f":"ABS(SUMIF(R48:R49,\"\",S48:S49)-SUMIF(R48:R49,\"(\",S48:S49))","v":0},{"$f":"IF(R47=\"(\",\")\",\"\")","v":""},{"$f":"IF((SUMIF(U48:U49,\"\",V48:V49)-SUMIF(U48:U49,\"(\",V48:V49))<0,\"(\",\"\")","v":""},{"$f":"ABS(SUMIF(U48:U49,\"\",V48:V49)-SUMIF(U48:U49,\"(\",V48:V49))","v":0},{"$f":"IF(U47=\"(\",\")\",\"\")","v":""},{"$f":"IF((SUMIF(X48:X49,\"\",Y48:Y49)-SUMIF(X48:X49,\"(\",Y48:Y49))<0,\"(\",\"\")","v":""},{"$f":"ABS(SUMIF(X48:X49,\"\",Y48:Y49)-SUMIF(X48:X49,\"(\",Y48:Y49))","v":0},{"$f":"IF(X47=\"(\",\")\",\"\")","v":""}]
[null,null,null,null,"5.2.1","Всего, в том числе: ",null,"5540",null,1296,{"$f":"IF(I48=\"(\",\")\",\"\")","v":""},null,1296,{"$f":"IF(L48=\"(\",\")\",\"\")","v":""},null,null,{"$f":"IF(O48=\"(\",\")\",\"\")","v":""},null,null,{"$f":"IF(R48=\"(\",\")\",\"\")","v":""},null,null,{"$f":"IF(U48=\"(\",\")\",\"\")","v":""},null,null,{"$f":"IF(X48=\"(\",\")\",\"\")","v":""}]
[null,null,null,null,null,"Добавить вид",null,null,null,null,null,null,null,null,null,null,null,null,null,null,null,null,null,null,null,null,null,null,null,null,null,null,null,null,null,null,null,null,"add_FORMA5_STR12_5_2_range"]
[]
[]
[null,null,null,null,"5.3. Наличие и движение кредиторской задолженности"]
[]
[]
[null,null,null,null,"№\nп/п","Наименование","Период","Код","Остаток на начало года",null,null,"Изменения за период",null,null,null,null,null,null,null,null,null,null,null,null,null,null,"Остаток на конец периода"]
[null,null,null,null,null,null,null,null,null,null,null,"поступление",null,null,null,null,null,"выбыло",null,null,null,null,null,"перевод из долго- в краткосрочную и из кратко- в долгосрочную задолженности"]
[null,null,null,null,null,null,null,null,null,null,null,"в результате хозяйственных операций (сумма долга по сделке, операции) *",null,null,"причитающиеся проценты, штрафы и иные начисления *",null,null,"погашение",null,null,"списание на финансовый результат *"]
[]
[]
[null,null,null,null,1,2,3,4,null,5,null,null,6,null,null,7,null,8,null,null,null,9,null,null,10,null,null,11]
[null,null,null,null,"5.3.1","Долгосрочная кредиторская задолженность - всего, в том числе: ",{"$f":"\"за \"&IF(List_01_reporting_period=\"\",\"отчётный год\",List_01_reporting_period&\" год\")","v":"за 2017 год"},5551,{"$f":"IF((SUM(IF($AE$63:$AE$65=\"c\",IF(I$63:I$65=\"(\",-J$63:J$65,J$63:J$65))))<0,\"(\",\"\")","v":""},{"$f":"ABS(SUM(IF($AE$63:$AE$65=\"c\",IF(I$63:I$65=\"(\",-J$63:J$65,J$63:J$65))))","v":0},{"$f":"IF(I61=\"(\",\")\",\"\")","v":""},{"$f":"IF((SUM(IF($AE$63:$AE$65=\"c\",IF(L$63:L$65=\"(\",-M$63:M$65,M$63:M$65))))<0,\"(\",\"\")","v":""},{"$f":"ABS(SUM(IF($AE$63:$AE$65=\"c\",IF(L$63:L$65=\"(\",-M$63:M$65,M$63:M$65))))","v":0},{"$f":"IF(L61=\"(\",\")\",\"\")","v":""},{"$f":"IF((SUM(IF($AE$63:$AE$65=\"c\",IF(O$63:O$65=\"(\",-P$63:P$65,P$63:P$65))))<0,\"(\",\"\")","v":""},{"$f":"ABS(SUM(IF($AE$63:$AE$65=\"c\",IF(O$63:O$65=\"(\",-P$63:P$65,P$63:P$65))))","v":0},{"$f":"IF(O61=\"(\",\")\",\"\")","v":""},"(",{"$f":"SUMIF($AE$63:$AE$65,$AE61,S$63:S$65)","v":0},")","(",{"$f":"SUMIF($AE$63:$AE$65,$AE61,V$63:V$65)","v":0},")","(",{"$f":"SUMIF($AE$63:$AE$65,$AE61,Y$63:Y$65)","v":0},")",{"$f":"IF((SUM(IF($AE$63:$AE$65=\"c\",IF(AA$63:AA$65=\"(\",-AB$63:AB$65,AB$63:AB$65))))<0,\"(\",\"\")","v":""},{"$f":"ABS(SUM(IF($AE$63:$AE$65=\"c\",IF(AA$63:AA$65=\"(\",-AB$63:AB$65,AB$63:AB$65))))","v":0},{"$f":"IF(AA61=\"(\",\")\",\"\")","v":""},null,"c"]
[null,null,null,null,null,null,{"$f":"\"за \"&IF(List_01_reporting_period=\"\",\"предыдущий год\",List_01_reporting_period-1&\" год\")","v":"за 2016 год"},5571,{"$f":"IF((SUM(IF($AE$63:$AE$65=\"p\",IF(I$63:I$65=\"(\",-J$63:J$65,J$63:J$65))))<0,\"(\",\"\")","v":""},{"$f":"ABS(SUM(IF($AE$63:$AE$65=\"p\",IF(I$63:I$65=\"(\",-J$63:J$65,J$63:J$65))))","v":0},{"$f":"IF(I62=\"(\",\")\",\"\")","v":""},{"$f":"IF((SUM(IF($AE$63:$AE$65=\"p\",IF(L$63:L$65=\"(\",-M$63:M$65,M$63:M$65))))<0,\"(\",\"\")","v":""},{"$f":"ABS(SUM(IF($AE$63:$AE$65=\"p\",IF(L$63:L$65=\"(\",-M$63:M$65,M$63:M$65))))","v":0},{"$f":"IF(L62=\"(\",\")\",\"\")","v":""},{"$f":"IF((SUM(IF($AE$63:$AE$65=\"p\",IF(O$63:O$65=\"(\",-P$63:P$65,P$63:P$65))))<0,\"(\",\"\")","v":""},{"$f":"ABS(SUM(IF($AE$63:$AE$65=\"p\",IF(O$63:O$65=\"(\",-P$63:P$65,P$63:P$65))))","v":0},{"$f":"IF(O62=\"(\",\")\",\"\")","v":""},"(",{"$f":"SUMIF($AE$63:$AE$65,$AE62,S$63:S$65)","v":0},")","(",{"$f":"SUMIF($AE$63:$AE$65,$AE62,V$63:V$65)","v":0},")","(",{"$f":"SUMIF($AE$63:$AE$65,$AE62,Y$63:Y$65)","v":0},")",{"$f":"IF((SUM(IF($AE$63:$AE$65=\"p\",IF(AA$63:AA$65=\"(\",-AB$63:AB$65,AB$63:AB$65))))<0,\"(\",\"\")","v":""},{"$f":"ABS(SUM(IF($AE$63:$AE$65=\"p\",IF(AA$63:AA$65=\"(\",-AB$63:AB$65,AB$63:AB$65))))","v":0},{"$f":"IF(AA62=\"(\",\")\",\"\")","v":""},null,"p"]
[null,null,null,null,"5.3.1.1","Долгосрочная кредиторская задолженность - всего, в том числе: ",{"$f":"\"за \"&IF(List_01_reporting_period=\"\",\"отчётный год\",List_01_reporting_period&\" год\")","v":"за 2017 год"},"5551",null,0,{"$f":"IF(I63=\"(\",\")\",\"\")","v":""},null,0,{"$f":"IF(L63=\"(\",\")\",\"\")","v":""},null,null,{"$f":"IF(O63=\"(\",\")\",\"\")","v":""},"(",0,")","(",0,")","(",null,")",null,0,{"$f":"IF(AA63=\"(\",\")\",\"\")","v":""},null,"c"]
[null,null,null,null,null,null,{"$f":"\"за \"&IF(List_01_reporting_period=\"\",\"предыдущий год\",List_01_reporting_period-1&\" год\")","v":"за 2016 год"},"5571",null,0,{"$f":"IF(I64=\"(\",\")\",\"\")","v":""},null,0,{"$f":"IF(L64=\"(\",\")\",\"\")","v":""},null,null,{"$f":"IF(O64=\"(\",\")\",\"\")","v":""},"(",0,")","(",null,")","(",null,")",null,0,{"$f":"IF(AA64=\"(\",\")\",\"\")","v":""},null,"p"]
[null,null,null,null,null,"Добавить вид",null,null,null,null,null,null,null,null,null,null,null,null,null,null,null,null,null,null,null,null,null,null,null,null,null,null,null,null,null,null,null,null,"add_FORMA5_STR12_5_3_1_range"]
[null,null,null,null,"5.3.2","Краткосрочная кредиторская задолженность - всего, в том числе: ",{"$f":"\"за \"&IF(List_01_reporting_period=\"\",\"отчётный год\",List_01_reporting_period&\" год\")","v":"за 2017 год"},5560,{"$f":"IF((SUM(IF($AE$68:$AE$76=\"c\",IF(I$68:I$76=\"(\",-J$68:J$76,J$68:J$76))))<0,\"(\",\"\")","v":""},{"$f":"ABS(SUM(IF($AE$68:$AE$76=\"c\",IF(I$68:I$76=\"(\",-J$68:J$76,J$68:J$76))))","v":11382},{"$f":"IF(I66=\"(\",\")\",\"\")","v":""},{"$f":"IF((SUM(IF($AE$68:$AE$76=\"c\",IF(L$68:L$76=\"(\",-M$68:M$76,M$68:M$76))))<0,\"(\",\"\")","v":""},{"$f":"ABS(SUM(IF($AE$68:$AE$76=\"c\",IF(L$68:L$76=\"(\",-M$68:M$76,M$68:M$76))))","v":180330},{"$f":"IF(L66=\"(\",\")\",\"\")","v":""},{"$f":"IF((SUM(IF($AE$68:$AE$76=\"c\",IF(O$68:O$76=\"(\",-P$68:P$76,P$68:P$76))))<0,\"(\",\"\")","v":""},{"$f":"ABS(SUM(IF($AE$68:$AE$76=\"c\",IF(O$68:O$76=\"(\",-P$68:P$76,P$68:P$76))))","v":0},{"$f":"IF(O66=\"(\",\")\",\"\")","v":""},"(",{"$f":"SUMIF($AE$68:$AE$76,$AE66,S$68:S$76)","v":176365},")","(",{"$f":"SUMIF($AE$68:$AE$76,$AE66,V$68:V$76)","v":11},")",{"$f":"IF((SUM(IF($AE$68:$AE$76=\"c\",IF(X$68:X$76=\"(\",-Y$68:Y$76,Y$68:Y$76))))<0,\"(\",\"\")","v":""},{"$f":"ABS(SUM(IF($AE$68:$AE$76=\"c\",IF(X$68:X$76=\"(\",-Y$68:Y$76,Y$68:Y$76))))","v":0},{"$f":"IF(X66=\"(\",\")\",\"\")","v":""},{"$f":"IF((SUM(IF($AE$68:$AE$76=\"c\",IF(AA$68:AA$76=\"(\",-AB$68:AB$76,AB$68:AB$76))))<0,\"(\",\"\")","v":""},{"$f":"ABS(SUM(IF($AE$68:$AE$76=\"c\",IF(AA$68:AA$76=\"(\",-AB$68:AB$76,AB$68:AB$76))))","v":15336},{"$f":"IF(AA66=\"(\",\")\",\"\")","v":""},null,"c"]
[null,null,null,null,null,null,{"$f":"\"за \"&IF(List_01_reporting_period=\"\",\"предыдущий год\",List_01_reporting_period-1&\" год\")","v":"за 2016 год"},5580,{"$f":"IF((SUM(IF($AE$68:$AE$76=\"p\",IF(I$68:I$76=\"(\",-J$68:J$76,J$68:J$76))))<0,\"(\",\"\")","v":""},{"$f":"ABS(SUM(IF($AE$68:$AE$76=\"p\",IF(I$68:I$76=\"(\",-J$68:J$76,J$68:J$76))))","v":11036},"",{"$f":"IF((SUM(IF($AE$68:$AE$76=\"p\",IF(L$68:L$76=\"(\",-M$68:M$76,M$68:M$76))))<0,\"(\",\"\")","v":""},{"$f":"ABS(SUM(IF($AE$68:$AE$76=\"p\",IF(L$68:L$76=\"(\",-M$68:M$76,M$68:M$76))))","v":216494},"",{"$f":"IF((SUM(IF($AE$68:$AE$76=\"p\",IF(O$68:O$76=\"(\",-P$68:P$76,P$68:P$76))))<0,\"(\",\"\")","v":""},{"$f":"ABS(SUM(IF($AE$68:$AE$76=\"p\",IF(O$68:O$76=\"(\",-P$68:P$76,P$68:P$76))))","v":0},"","(",{"$f":"SUMIF($AE$68:$AE$76,$AE67,S$68:S$76)","v":216148},")","(",{"$f":"SUMIF($AE$68:$AE$76,$AE67,V$68:V$76)","v":0},")",{"$f":"IF((SUM(IF($AE$68:$AE$76=\"p\",IF(X$68:X$76=\"(\",-Y$68:Y$76,Y$68:Y$76))))<0,\"(\",\"\")","v":""},{"$f":"ABS(SUM(IF($AE$68:$AE$76=\"p\",IF(X$68:X$76=\"(\",-Y$68:Y$76,Y$68:Y$76))))","v":0},"",{"$f":"IF((SUM(IF($AE$68:$AE$76=\"p\",IF(AA$68:AA$76=\"(\",-AB$68:AB$76,AB$68:AB$76))))<0,\"(\",\"\")","v":""},{"$f":"ABS(SUM(IF($AE$68:$AE$76=\"p\",IF(AA$68:AA$76=\"(\",-AB$68:AB$76,AB$68:AB$76))))","v":11382},"",null,"p"]
[null,null,null,null,"5.3.2.1","Краткосрочная кредиторская задолженность - всего, в том числе: ",{"$f":"\"за \"&IF(List_01_reporting_period=\"\",\"отчётный год\",List_01_reporting_period&\" год\")","v":"за 2017 год"},"5560",null,null,"",null,null,"",null,null,"","(",null,")","(",null,")",null,null,"",null,null,"",null,"c"]
[null,null,null,null,null,null,{"$f":"\"за \"&IF(List_01_reporting_period=\"\",\"предыдущий год\",List_01_reporting_period-1&\" год\")","v":"за 2016 год"},"5580",null,null,"",null,null,"",null,null,"","(",null,")","(",null,")",null,null,"",null,null,"",null,"p"]
[null,null,null,"ы","5.3.2.2","Поставщики и подрядчики",{"$f":"\"за \"&IF(List_01_reporting_period=\"\",\"отчётный год\",List_01_reporting_period&\" год\")","v":"за 2017 год"},null,null,1537,"",null,37560,"",null,null,"","(",35855,")","(",null,")",null,null,"",null,3242,"",null,"c"]
[null,null,null,null,null,null,{"$f":"\"за \"&IF(List_01_reporting_period=\"\",\"предыдущий год\",List_01_reporting_period-1&\" год\")","v":"за 2016 год"},null,null,2042,"",null,85345,"",null,null,"","(",85850,")","(",null,")",null,null,"",null,1537,"",null,"p"]
[null,null,null,"ы","5.3.2.3","Авансы полченные",{"$f":"\"за \"&IF(List_01_reporting_period=\"\",\"отчётный год\",List_01_reporting_period&\" год\")","v":"за 2017 год"},null,null,81,{"$f":"IF(I72=\"(\",\")\",\"\")","v":""},null,77,{"$f":"IF(L72=\"(\",\")\",\"\")","v":""},null,null,{"$f":"IF(O72=\"(\",\")\",\"\")","v":""},"(",78,")","(",11,")",null,null,{"$f":"IF(X72=\"(\",\")\",\"\")","v":""},null,69,{"$f":"IF(AA72=\"(\",\")\",\"\")","v":""},null,"c"]
[null,null,null,null,null,null,{"$f":"\"за \"&IF(List_01_reporting_period=\"\",\"предыдущий год\",List_01_reporting_period-1&\" год\")","v":"за 2016 год"},null,null,157,{"$f":"IF(I73=\"(\",\")\",\"\")","v":""},null,119,{"$f":"IF(L73=\"(\",\")\",\"\")","v":""},null,null,{"$f":"IF(O73=\"(\",\")\",\"\")","v":""},"(",195,")","(",null,")",null,null,{"$f":"IF(X73=\"(\",\")\",\"\")","v":""},null,81,{"$f":"IF(AA73=\"(\",\")\",\"\")","v":""},null,"p"]
[null,null,null,"ы","5.3.2.4","Прочие кредиторы",{"$f":"\"за \"&IF(List_01_reporting_period=\"\",\"отчётный год\",List_01_reporting_period&\" год\")","v":"за 2017 год"},null,null,9764,{"$f":"IF(I74=\"(\",\")\",\"\")","v":""},null,142693,{"$f":"IF(L74=\"(\",\")\",\"\")","v":""},null,null,{"$f":"IF(O74=\"(\",\")\",\"\")","v":""},"(",140432,")","(",null,")",null,null,{"$f":"IF(X74=\"(\",\")\",\"\")","v":""},null,12025,{"$f":"IF(AA74=\"(\",\")\",\"\")","v":""},null,"c"]
[null,null,null,null,null,null,{"$f":"\"за \"&IF(List_01_reporting_period=\"\",\"предыдущий год\",List_01_reporting_period-1&\" год\")","v":"за 2016 год"},null,null,8837,{"$f":"IF(I75=\"(\",\")\",\"\")","v":""},null,131030,{"$f":"IF(L75=\"(\",\")\",\"\")","v":""},null,null,{"$f":"IF(O75=\"(\",\")\",\"\")","v":""},"(",130103,")","(",null,")",null,null,{"$f":"IF(X75=\"(\",\")\",\"\")","v":""},null,9764,{"$f":"IF(AA75=\"(\",\")\",\"\")","v":""},null,"p"]
[null,null,null,null,null,"Добавить вид",null,null,null,null,null,null,null,null,null,null,null,null,null,null,null,null,null,null,null,null,null,null,null,null,null,null,null,null,null,null,null,null,"add_FORMA5_STR12_5_3_2_range"]
[null,null,null,null,"5.3.3","Итого",{"$f":"\"за \"&IF(List_01_reporting_period=\"\",\"отчётный год\",List_01_reporting_period&\" год\")","v":"за 2017 год"},5550,{"$f":"IF((IF(I61=\"(\",-J61,J61)+IF(I66=\"(\",-J66,J66))<0,\"(\",\"\")","v":""},{"$f":"ABS(IF(I61=\"(\",-J61,J61)+IF(I66=\"(\",-J66,J66))","v":11382},{"$f":"IF(I77=\"(\",\")\",\"\")","v":""},{"$f":"IF((IF(L61=\"(\",-M61,M61)+IF(L66=\"(\",-M66,M66))<0,\"(\",\"\")","v":""},{"$f":"ABS(IF(L61=\"(\",-M61,M61)+IF(L66=\"(\",-M66,M66))","v":180330},{"$f":"IF(L77=\"(\",\")\",\"\")","v":""},{"$f":"IF((IF(O61=\"(\",-P61,P61)+IF(O66=\"(\",-P66,P66))<0,\"(\",\"\")","v":""},{"$f":"ABS(IF(O61=\"(\",-P61,P61)+IF(O66=\"(\",-P66,P66))","v":0},{"$f":"IF(O77=\"(\",\")\",\"\")","v":""},"(",{"$f":"S61+S66","v":176365},")","(",{"$f":"V61+V66","v":11},")",null,"x",null,{"$f":"IF((IF(AA61=\"(\",-AB61,AB61)+IF(AA66=\"(\",-AB66,AB66))<0,\"(\",\"\")","v":""},{"$f":"ABS(IF(AA61=\"(\",-AB61,AB61)+IF(AA66=\"(\",-AB66,AB66))","v":15336},{"$f":"IF(AA77=\"(\",\")\",\"\")","v":""},null,"c"]
[null,null,null,null,null,null,{"$f":"\"за \"&IF(List_01_reporting_period=\"\",\"предыдущий год\",List_01_reporting_period-1&\" год\")","v":"за 2016 год"},5570,{"$f":"IF((IF(I62=\"(\",-J62,J62)+IF(I67=\"(\",-J67,J67))<0,\"(\",\"\")","v":""},{"$f":"ABS(IF(I62=\"(\",-J62,J62)+IF(I67=\"(\",-J67,J67))","v":11036},{"$f":"IF(I78=\"(\",\")\",\"\")","v":""},{"$f":"IF((IF(L62=\"(\",-M62,M62)+IF(L67=\"(\",-M67,M67))<0,\"(\",\"\")","v":""},{"$f":"ABS(IF(L62=\"(\",-M62,M62)+IF(L67=\"(\",-M67,M67))","v":216494},{"$f":"IF(L78=\"(\",\")\",\"\")","v":""},{"$f":"IF((IF(O62=\"(\",-P62,P62)+IF(O67=\"(\",-P67,P67))<0,\"(\",\"\")","v":""},{"$f":"ABS(IF(O62=\"(\",-P62,P62)+IF(O67=\"(\",-P67,P67))","v":0},{"$f":"IF(O78=\"(\",\")\",\"\")","v":""},"(",{"$f":"S62+S67","v":216148},")","(",{"$f":"V62+V67","v":0},")",null,"x",null,{"$f":"IF((IF(AA62=\"(\",-AB62,AB62)+IF(AA67=\"(\",-AB67,AB67))<0,\"(\",\"\")","v":""},{"$f":"ABS(IF(AA62=\"(\",-AB62,AB62)+IF(AA67=\"(\",-AB67,AB67))","v":11382},{"$f":"IF(AA78=\"(\",\")\",\"\")","v":""},null,"p"]
[]
[null,null,null,null,"*","Данные раскрываются за минусом кредиторской задолженности, поступившей и погашенной (списанной) в одном отчетном периоде."]
[]
[]
[null,null,null,null,"5.4. Просроченная кредиторская задолженность"]
[]
[]
[null,null,null,null,"№\nп/п","Наименование",null,"Код",{"$f":"\"На 31 декабря \"&IF(List_01_reporting_period = \"\",\"отчётную дату отчётного года\",List_01_reporting_period& \" г.\")","v":"На 31 декабря 2017 г."},null,null,{"$f":"\"На 31 декабря \"&IF(List_01_reporting_period = \"\",\"предыдущего года\",List_01_reporting_period-1& \" г.\")","v":"На 31 декабря 2016 г."},null,null,{"$f":"\"На 31 декабря \"&IF(List_01_reporting_period = \"\",\"года, предшествующего предыдущему\",List_01_reporting_period-2& \" г.\")","v":"На 31 декабря 2015 г."}]
[null,null,null,null,1,2,null,3,null,4,null,5,null,null,null,6]
[null,null,null,null,"5.4","Всего, в том числе: ",null,5590,{"$f":"IF((SUMIF(I89:I90,\"\",J89:J90)-SUMIF(I89:I90,\"(\",J89:J90))<0,\"(\",\"\")","v":""},{"$f":"ABS(SUMIF(I89:I90,\"\",J89:J90)-SUMIF(I89:I90,\"(\",J89:J90))","v":0},{"$f":"IF(I88=\"(\",\")\",\"\")","v":""},{"$f":"IF((SUMIF(L89:L90,\"\",M89:M90)-SUMIF(L89:L90,\"(\",M89:M90))<0,\"(\",\"\")","v":""},{"$f":"ABS(SUMIF(L89:L90,\"\",M89:M90)-SUMIF(L89:L90,\"(\",M89:M90))","v":0},{"$f":"IF(L88=\"(\",\")\",\"\")","v":""},{"$f":"IF((SUMIF(O89:O90,\"\",P89:P90)-SUMIF(O89:O90,\"(\",P89:P90))<0,\"(\",\"\")","v":""},{"$f":"ABS(SUMIF(O89:O90,\"\",P89:P90)-SUMIF(O89:O90,\"(\",P89:P90))","v":0},{"$f":"IF(O88=\"(\",\")\",\"\")","v":""}]
[null,null,null,null,"5.4.1","Всего, в том числе: ",null,"5590",null,null,{"$f":"IF(I89=\"(\",\")\",\"\")","v":""},null,null,{"$f":"IF(L89=\"(\",\")\",\"\")","v":""},null,null,{"$f":"IF(O89=\"(\",\")\",\"\")","v":""}]
[null,null,null,null,null,"Добавить вид",null,null,null,null,null,null,null,null,null,null,null,null,null,null,null,null,null,null,null,null,null,null,null,null,null,null,null,null,null,null,null,null,"add_FORMA5_STR12_5_4_range"]
[]
[]
[null,null,null,null,"6. Затраты на производство"]
[]
[]
[null,null,null,null,"№\nп/п","Наименование",null,"Код",{"$f":"\"За \"&IF(List_01_reporting_period = \"\",\"отчётный год\",List_01_reporting_period& \" г.\")","v":"За 2017 г."},null,null,{"$f":"\"За \"&IF(List_01_reporting_period = \"\",\"предыдущий год\",List_01_reporting_period-1& \" г.\")","v":"За 2016 г."}]
[null,null,null,null,1,2,null,3,null,4,null,5]
[null,null,null,null,"6.1","Материальные затраты",null,5610,null,38097,{"$f":"IF(I98=\"(\",\")\",\"\")","v":""},null,38764,{"$f":"IF(L98=\"(\",\")\",\"\")","v":""}]
[null,null,null,null,"6.2","Расходы на оплату труда",null,5620,null,72088,"",null,67795,""]
[null,null,null,null,"6.3","Отчисления на социальные нужды",null,5630,null,22545,"",null,20817,""]
[null,null,null,null,"6.4","Амортизация",null,5640,null,7964,"",null,6489,""]
[null,null,null,null,"6.5","Прочие затраты",null,5650,null,12504,"",null,15488,""]
[null,null,null,null,"6.6","Итого по элементам затрат",null,5660,{"$f":"IF((SUMIF(I98:I102,\"\",J98:J102)-SUMIF(I98:I102,\"(\",J98:J102))<0,\"(\",\"\")","v":""},{"$f":"ABS(SUMIF(I98:I102,\"\",J98:J102)-SUMIF(I98:I102,\"(\",J98:J102))","v":153198},"",{"$f":"IF((SUMIF(L98:L102,\"\",M98:M102)-SUMIF(L98:L102,\"(\",M98:M102))<0,\"(\",\"\")","v":""},{"$f":"ABS(SUMIF(L98:L102,\"\",M98:M102)-SUMIF(L98:L102,\"(\",M98:M102))","v":149353},""]
[null,null,null,null,"6.7","Изменение остатков (прирост, уменьшение):"]
[null,null,null,null,"6.7.1","незавершенного производства",null,"5670/\n5680",null,null,{"$f":"IF(I105=\"(\",\")\",\"\")","v":""},null,null,{"$f":"IF(L105=\"(\",\")\",\"\")","v":""}]
[null,null,null,null,"6.7.2","готовой продукции",null,"5670/\n5680",null,null,{"$f":"IF(I106=\"(\",\")\",\"\")","v":""},null,null,{"$f":"IF(L106=\"(\",\")\",\"\")","v":""}]
[null,null,null,null,null,"Добавить вид",null,null,null,null,null,null,null,null,null,null,null,null,null,null,null,null,null,null,null,null,null,null,null,null,null,null,null,null,null,null,null,null,"add_FORMA5_STR12_6_range"]
[null,null,null,null,"6.8","Итого расходы по обычным видам деятельности",null,5600,{"$f":"IF((IF(I103=\"(\",-J103,J103)+SUMIF(I105:I107,\"\",J105:J107)-SUMIF(I105:I107,\"(\",J105:J107))<0,\"(\",\"\")","v":""},{"$f":"ABS(IF(I103=\"(\",-J103,J103)+SUMIF(I105:I107,\"\",J105:J107)-SUMIF(I105:I107,\"(\",J105:J107))","v":153198},{"$f":"IF(I108=\"(\",\")\",\"\")","v":""},{"$f":"IF((IF(L103=\"(\",-M103,M103)+SUMIF(L105:L107,\"\",M105:M107)-SUMIF(L105:L107,\"(\",M105:M107))<0,\"(\",\"\")","v":""},{"$f":"ABS(IF(L103=\"(\",-M103,M103)+SUMIF(L105:L107,\"\",M105:M107)-SUMIF(L105:L107,\"(\",M105:M107))","v":149353},{"$f":"IF(L108=\"(\",\")\",\"\")","v":""}]

{"sheet":"Форма 5. Обязательства","index":17,"n_rows":28,"n_cols":25,"rows_kept":28,"cut":false,"hidden":false,"merged":[[11,14,11,16],[20,8,20,10],[20,11,20,13],[20,14,20,16],[21,11,21,13],[17,5,18,16],[7,5,8,22],[10,8,10,10],[10,11,10,13],[10,14,10,16],[10,17,10,19],[10,20,10,22]]}
[]
[]
[]
[]
[null,null,null,null,null,{"$f":"Getcode()","v":"ELPASS.FORMS.BH"},null,null,null,null,null,null,null,null,null,null,null,null,null,null,null,null,{"$f":"version","v":"Версия 1.0 от 01.10.2017"}]
[]
[null,null,null,null,null,null,null,null,null,null,null,null,null,null,null,null,null,null,null,null,null,null,"Форма 0710005 с. 13"]
[null,null,null,null,null,"7. Оценочные обязательства"]
[]
[]
[null,null,null,null,null,"№\nп/п","Наименование","Код",{"$f":"\"Остаток на начало\"&IF(List_01_reporting_period=\"\",\"\",\" \"&List_01_reporting_period)&\" года\"","v":"Остаток на начало 2017 года"},null,null,"Признано",null,null,"Погашено",null,null,"Списано как избыточная сумма",null,null,{"$f":"\"Остаток на конец\"&IF(List_01_reporting_period=\"\",\" периода\",\" \"&List_01_reporting_period&\" года\")","v":"Остаток на конец 2017 года"}]
[null,null,null,null,null,1,2,3," ",4," "," ",5," ",6,null,null,null,7,null," ",8," "]
[null,null,null,null,null,"7","Оценочные обязательства - всего, в том числе: ",5700,{"$f":"IF((SUMIF(I14:I15,\"\",J14:J15)-SUMIF(I14:I15,\"(\",J14:J15))<0,\"(\",\"\")","v":""},{"$f":"ABS(SUMIF(I14:I15,\"\",J14:J15)-SUMIF(I14:I15,\"(\",J14:J15))","v":0},{"$f":"IF(I13=\"(\",\")\",\"\")","v":""},{"$f":"IF((SUMIF(L14:L15,\"\",M14:M15)-SUMIF(L14:L15,\"(\",M14:M15))<0,\"(\",\"\")","v":""},{"$f":"ABS(SUMIF(L14:L15,\"\",M14:M15)-SUMIF(L14:L15,\"(\",M14:M15))","v":0},{"$f":"IF(L13=\"(\",\")\",\"\")","v":""},"(",{"$f":"SUM(P14:P15)","v":0},")","(",{"$f":"SUM(S14:S15)","v":0},")",{"$f":"IF((SUMIF(U14:U15,\"\",V14:V15)-SUMIF(U14:U15,\"(\",V14:V15))<0,\"(\",\"\")","v":""},{"$f":"ABS(SUMIF(U14:U15,\"\",V14:V15)-SUMIF(U14:U15,\"(\",V14:V15))","v":0},{"$f":"IF(U13=\"(\",\")\",\"\")","v":""},null,"c"]
[null,null,null,null,null,"7.1","Оценочные обязательства - всего, в том числе: ","5700",null,null,{"$f":"IF(I14=\"(\",\")\",\"\")","v":""},null,null,{"$f":"IF(L14=\"(\",\")\",\"\")","v":""},"(",null,")","(",null,")",null,null,{"$f":"IF(U14=\"(\",\")\",\"\")","v":""},null,"c"]
[null,null,null,null,null,null,"Добавить вид обязательства",null,null,null,null,null,null,null,null,null,null,null,null,null,null,null,null,"add_FORMA5_STR13_7_range"]
[]
[]
[null,null,null,null,null,"8. Обеспечения обязательств"]
[]
[]
[null,null,null,null,null,"№\nп/п","Наименование","Код",{"$f":"\"На 31 декабря \"&IF(List_01_reporting_period = \"\",\"отчётную дату отчётного года\",List_01_reporting_period& \" г.\")","v":"На 31 декабря 2017 г."},null,null,{"$f":"\"На 31 декабря \"&IF(List_01_reporting_period = \"\",\"предыдущего года\",List_01_reporting_period-1& \" г.\")","v":"На 31 декабря 2016 г."},null,null,{"$f":"\"На 31 декабря \"&IF(List_01_reporting_period = \"\",\"года, предшествующего предыдущему\",List_01_reporting_period-2& \" г.\")","v":"На 31 декабря 2015 г."}]
[null,null,null,null,null,1,2,3,null,4,null,5,null,null,null,6]
[null,null,null,null,null,"8.1","Полученные - всего, в том числе: ",5800,{"$f":"IF((SUMIF(I24:I25,\"\",J24:J25)-SUMIF(I24:I25,\"(\",J24:J25))<0,\"(\",\"\")","v":""},{"$f":"ABS(SUMIF(I24:I25,\"\",J24:J25)-SUMIF(I24:I25,\"(\",J24:J25))","v":0},{"$f":"IF(I23=\"(\",\")\",\"\")","v":""},{"$f":"IF((SUMIF(L24:L25,\"\",M24:M25)-SUMIF(L24:L25,\"(\",M24:M25))<0,\"(\",\"\")","v":""},{"$f":"ABS(SUMIF(L24:L25,\"\",M24:M25)-SUMIF(L24:L25,\"(\",M24:M25))","v":0},{"$f":"IF(L23=\"(\",\")\",\"\")","v":""},{"$f":"IF((SUMIF(O24:O25,\"\",P24:P25)-SUMIF(O24:O25,\"(\",P24:P25))<0,\"(\",\"\")","v":""},{"$f":"ABS(SUMIF(O24:O25,\"\",P24:P25)-SUMIF(O24:O25,\"(\",P24:P25))","v":0},{"$f":"IF(O23=\"(\",\")\",\"\")","v":""}]
[null,null,null,null,null,"8.1.1","Полученные - всего, в том числе: ","5800",null,null,{"$f":"IF(I24=\"(\",\")\",\"\")","v":""},null,null,{"$f":"IF(L24=\"(\",\")\",\"\")","v":""},null,null,{"$f":"IF(O24=\"(\",\")\",\"\")","v":""}]
[null,null,null,null,null,null,"Добавить вид",null,null,null,null,null,null,null,null,null,null,null,null,null,null,null,null,"add_FORMA5_STR13_8_range"]
[null,null,null,null,null,"8.2","Выданные - всего, в том числе: ",5810,{"$f":"IF((SUMIF(I27:I28,\"\",J27:J28)-SUMIF(I27:I28,\"(\",J27:J28))<0,\"(\",\"\")","v":""},{"$f":"ABS(SUMIF(I27:I28,\"\",J27:J28)-SUMIF(I27:I28,\"(\",J27:J28))","v":0},{"$f":"IF(I26=\"(\",\")\",\"\")","v":""},{"$f":"IF((SUMIF(L27:L28,\"\",M27:M28)-SUMIF(L27:L28,\"(\",M27:M28))<0,\"(\",\"\")","v":""},{"$f":"ABS(SUMIF(L27:L28,\"\",M27:M28)-SUMIF(L27:L28,\"(\",M27:M28))","v":0},{"$f":"IF(L26=\"(\",\")\",\"\")","v":""},{"$f":"IF((SUMIF(O27:O28,\"\",P27:P28)-SUMIF(O27:O28,\"(\",P27:P28))<0,\"(\",\"\")","v":""},{"$f":"ABS(SUMIF(O27:O28,\"\",P27:P28)-SUMIF(O27:O28,\"(\",P27:P28))","v":0},{"$f":"IF(O26=\"(\",\")\",\"\")","v":""}]
[null,null,null,null,null,"8.2.1","Выданные - всего, в том числе: ","5810",null,null,{"$f":"IF(I27=\"(\",\")\",\"\")","v":""},null,null,{"$f":"IF(L27=\"(\",\")\",\"\")","v":""},null,null,{"$f":"IF(O27=\"(\",\")\",\"\")","v":""}]
[null,null,null,null,null,null,"Добавить вид",null,null,null,null,null,null,null,null,null,null,null,null,null,null,null,null,"add_FORMA5_STR13_8_range"]

{"sheet":"Форма 5. Гос.помощь","index":18,"n_rows":23,"n_cols":22,"rows_kept":23,"cut":false,"hidden":false,"merged":[[17,14,17,16],[18,4,19,4],[18,5,19,5],[20,4,21,4],[20,5,21,5],[7,4,8,19],[13,5,13,6],[14,5,14,6],[15,14,15,16],[15,17,15,19],[16,8,16,10],[16,11,16,13],[16,14,16,16],[16,17,16,19],[10,5,10,6],[10,8,10,10],[10,11,10,13],[11,5,11,6],[12,5,12,6]]}
[]
[]
[]
[]
[null,null,null,null,{"$f":"Getcode()","v":"ELPASS.FORMS.BH"},null,null,null,null,null,null,null,null,null,null,null,null,null,null,{"$f":"version","v":"Версия 1.0 от 01.10.2017"}]
[]
[null,null,null,null,null,null,null,null,null,null,null,null,null,null,null,null,null,null,null,"Форма 0710005 с. 14"]
[null,null,null,null,"9. Государственная помощь"]
[]
[]
[null,null,null,null,"№\nп/п","Наименование",null,"Код",{"$f":"\"За \"&IF(List_01_reporting_period = \"\",\"отчётный год\",List_01_reporting_period& \" г.\")","v":"За 2017 г."},null,null,{"$f":"\"За \"&IF(List_01_reporting_period = \"\",\"предыдущий год\",List_01_reporting_period-1& \" г.\")","v":"За 2016 г."}]
[null,null,null,null,1,2,null,3,null,4,null,null,5]
[null,null,null,null,"9.1","Получено бюджетных средств - всего, в том числе: ",null,5900,{"$f":"IF((SUMIF(I14:I15,\"\",J14:J15)-SUMIF(I14:I15,\"(\",J14:J15))<0,\"(\",\"\")","v":""},{"$f":"ABS(SUMIF(I14:I15,\"\",J14:J15)-SUMIF(I14:I15,\"(\",J14:J15))","v":20344},{"$f":"IF(I13=\"(\",\")\",\"\")","v":""},{"$f":"IF((SUMIF(L14:L15,\"\",M14:M15)-SUMIF(L14:L15,\"(\",M14:M15))<0,\"(\",\"\")","v":""},{"$f":"ABS(SUMIF(L14:L15,\"\",M14:M15)-SUMIF(L14:L15,\"(\",M14:M15))","v":33420},{"$f":"IF(L13=\"(\",\")\",\"\")","v":""}]
[null,null,null,null,"9.1.1","на текущие расходы",null,5901,null,20344,{"$f":"IF(I14=\"(\",\")\",\"\")","v":""},null,25316,{"$f":"IF(L14=\"(\",\")\",\"\")","v":""}]
[null,null,null,null,"9.1.2","на вложения во внеоборотные активы",null,5905,null,null,{"$f":"IF(I15=\"(\",\")\",\"\")","v":""},null,8104,{"$f":"IF(L15=\"(\",\")\",\"\")","v":""}]
[null,null,null,null,null,null,null," "]
[null,null,null,null,"№\nп/п","Наименование","Период","Код","На начало года",null,null,"Получено за год",null,null,"Возвращено за год",null,null,"На конец года"]
[null,null,null,null,1,2,3,4," ",5," "," ",6," ",7,null,null," ",8," "]
[null,null,null,null,"9.2","Бюджетные кредиты - всего, в том числе: ",{"$f":"\"за \"&IF(List_01_reporting_period=\"\",\"отчётный год\",List_01_reporting_period&\" год\")","v":"за 2017 год"},5910,{"$f":"IF((SUM(IF($V$21:$V$23=\"c\",IF(I$21:I$23=\"(\",-J$21:J$23,J$21:J$23))))<0,\"(\",\"\")","v":""},{"$f":"ABS(SUM(IF($V$21:$V$23=\"c\",IF(I$21:I$23=\"(\",-J$21:J$23,J$21:J$23))))","v":0},{"$f":"IF(I19=\"(\",\")\",\"\")","v":""},{"$f":"IF((SUM(IF($V$21:$V$23=\"c\",IF(L$21:L$23=\"(\",-M$21:M$23,M$21:M$23))))<0,\"(\",\"\")","v":""},{"$f":"ABS(SUM(IF($V$21:$V$23=\"c\",IF(L$21:L$23=\"(\",-M$21:M$23,M$21:M$23))))","v":0},{"$f":"IF(L19=\"(\",\")\",\"\")","v":""},"(",{"$f":"SUMIF($V$21:$V$23,$V19,P$21:P$23)","v":0},")",{"$f":"IF((SUM(IF($V$21:$V$23=\"c\",IF(R$21:R$23=\"(\",-S$21:S$23,S$21:S$23))))<0,\"(\",\"\")","v":""},{"$f":"ABS(SUM(IF($V$21:$V$23=\"c\",IF(R$21:R$23=\"(\",-S$21:S$23,S$21:S$23))))","v":0},{"$f":"IF(R19=\"(\",\")\",\"\")","v":""},null,"c"]
[null,null,null,null,null,null,{"$f":"\"за \"&IF(List_01_reporting_period=\"\",\"предыдущий год\",List_01_reporting_period-1&\" год\")","v":"за 2016 год"},5920,{"$f":"IF((SUM(IF($V$21:$V$23=\"p\",IF(I$21:I$23=\"(\",-J$21:J$23,J$21:J$23))))<0,\"(\",\"\")","v":""},{"$f":"ABS(SUM(IF($V$21:$V$23=\"p\",IF(I$21:I$23=\"(\",-J$21:J$23,J$21:J$23))))","v":0},{"$f":"IF(I20=\"(\",\")\",\"\")","v":""},{"$f":"IF((SUM(IF($V$21:$V$23=\"p\",IF(L$21:L$23=\"(\",-M$21:M$23,M$21:M$23))))<0,\"(\",\"\")","v":""},{"$f":"ABS(SUM(IF($V$21:$V$23=\"p\",IF(L$21:L$23=\"(\",-M$21:M$23,M$21:M$23))))","v":0},{"$f":"IF(L20=\"(\",\")\",\"\")","v":""},"(",{"$f":"SUMIF($V$21:$V$23,$V20,P$21:P$23)","v":0},")",{"$f":"IF((SUM(IF($V$21:$V$23=\"p\",IF(R$21:R$23=\"(\",-S$21:S$23,S$21:S$23))))<0,\"(\",\"\")","v":""},{"$f":"ABS(SUM(IF($V$21:$V$23=\"p\",IF(R$21:R$23=\"(\",-S$21:S$23,S$21:S$23))))","v":0},{"$f":"IF(R20=\"(\",\")\",\"\")","v":""},null,"p"]
[null,null,null,null,"9.2.1","Бюджетные кредиты - всего, в том числе: ",{"$f":"\"за \"&IF(List_01_reporting_period=\"\",\"отчётный год\",List_01_reporting_period&\" год\")","v":"за 2017 год"},null,null,null,{"$f":"IF(I21=\"(\",\")\",\"\")","v":""},null,null,{"$f":"IF(L21=\"(\",\")\",\"\")","v":""},"(",null,")",null,null,{"$f":"IF(R21=\"(\",\")\",\"\")","v":""},null,"c"]
[null,null,null,null,null,null,{"$f":"\"за \"&IF(List_01_reporting_period=\"\",\"предыдущий год\",List_01_reporting_period-1&\" год\")","v":"за 2016 год"},null,null,null,{"$f":"IF(I22=\"(\",\")\",\"\")","v":""},null,null,{"$f":"IF(L22=\"(\",\")\",\"\")","v":""},"(",null,")",null,null,{"$f":"IF(R22=\"(\",\")\",\"\")","v":""},null,"p"]
[null,null,null,null,null,"Добавить цель",null,null,null,null,null,null,null,null,null,null,null,null,null,null,"add_FORMA5_STR14_range"]

{"sheet":"Форма 6. Отчет о ЦИС","index":19,"n_rows":38,"n_cols":13,"rows_kept":38,"cut":false,"hidden":false,"merged":[[12,7,12,9],[12,10,12,12],[7,4,8,12],[10,4,11,4],[10,5,11,5],[10,6,11,6],[10,7,11,9],[10,10,11,12]]}
[null,null,null,","]
[]
[]
[]
[null,null,null,null,{"$f":"Getcode()","v":"ELPASS.FORMS.BH"},null,null,null,null,null,null,null,{"$f":"version","v":"Версия 1.0 от 01.10.2017"}]
[]
[null,null,null,null,null,null,null,null,null,null,null,null,"Форма 0710006 с. 1"]
[null,null,null,null,"Отчёт о целевом использовании средств"]
[]
[]
[null,null,null,null,"№\nп/п","Наименование","Код",{"$f":"\"За \"&IF(List_01_reporting_period=\"\",\"отчётный период\",List_01_reporting_period&\" год\")","v":"За 2017 год"},null,null,{"$f":"\"За \"&IF(List_01_reporting_period=\"\",\"период предыдущего года, аналогичный отчётному периоду\",List_01_reporting_period-1&\" год\")","v":"За 2016 год"}]
[]
[null,null,null,null,1,"2","3","4",null,null,"5"]
[null,null,null,null,1,"Остаток средств на начало отчётного года ",6100]
[null,null,null,null,2,"Поступило средств "]
[null,null,null,null,"2.1","Вступительные взносы ",6210]
[null,null,null,null,"2.2","Членские взносы ",6215]
[null,null,null,null,"2.3","Целевые взносы",6220]
[null,null,null,null,"2.4","Добровольные имущественные взносы и пожертвования",6230]
[null,null,null,null,"2.5","Прибыль от приносящей доход деятельности",6240]
[null,null,null,null,"2.6","Прочие ",6250]
[null,null,null,null,"2.7","Всего поступило средств ",6200,null,{"$f":"SUM(I16:I21)","v":0},null,null,{"$f":"SUM(L16:L21)","v":0}]
[null,null,null,null,"3","Использовано средств"]
[null,null,null,null,"3.1","Расходы на целевые мероприятия, в том числе: ",6310,"(",{"$f":"SUM(I25:I27)","v":0},")","(",{"$f":"SUM(L25:L27)","v":0},")"]
[null,null,null,null,"3.1.1","социальная и благотворительная помощь",6311,"(",null,")","(",null,")"]
[null,null,null,null,"3.1.2","проведение конференций, совещаний, семинаров и т.п.",6312,"(",null,")","(",null,")"]
[null,null,null,null,"3.1.3","иные мероприятия ",6313,"(",null,")","(",null,")"]
[null,null,null,null,"3.2","Расходы на содержание аппарата управления, в том числе: ",6320,"(",{"$f":"SUM(I29:I34)","v":0},")","(",{"$f":"SUM(L29:L34)","v":0},")"]
[null,null,null,null,"3.2.1","расходы, связанные с оплатой труда (включая начисления)",6321,"(",null,")","(",null,")"]
[null,null,null,null,"3.2.2","выплаты, не связанные с оплатой труда ",6322,"(",null,")","(",null,")"]
[null,null,null,null,"3.2.3","расходы на служебные командировки и деловые поездки ",6323,"(",null,")","(",null,")"]
[null,null,null,null,"3.2.4","содержание помещений, зданий, автомобильного транспорта и иного имущества (кроме ремонта) ",6324,"(",null,")","(",null,")"]
[null,null,null,null,"3.2.5","ремонт основных средств и иного имущества ",6325,"(",null,")","(",null,")"]
[null,null,null,null,"3.2.6","прочие ",6326,"(",null,")","(",null,")"]
[null,null,null,null,"3.3","Приобретение основных средств, инвентаря \nи иного имущества",6330,"(",null,")","(",null,")"]
[null,null,null,null,"3.4","Прочие ",6350,"(",null,")","(",null,")"]
[null,null,null,null,"3.5","Всего использовано средств",6300,"(",{"$f":"SUM(I24,I28,I35:I36)","v":0},")","(",{"$f":"SUM(L24,L28,L35:L36)","v":0},")"]
[null,null,null,null,"4","Остаток средств на конец отчётного года",6400,{"$f":"IF((IF(H14=\"(\",-I14,I14)+IF(H22=\"(\",-I22,I22)-I37)<0,\"(\",\"\")","v":""},{"$f":"ABS(I14+I22-I37)","v":0},{"$f":"IF(H38=\"(\",\")\",\"\")","v":""},{"$f":"IF((IF(H14=\"(\",-L14,L14)+IF(K22=\"(\",-L22,L22)-L37)<0,\"(\",\"\")","v":""},{"$f":"ABS(L14+L22-L37)","v":0},{"$f":"IF(K38=\"(\",\")\",\"\")","v":""}]

{"sheet":"Комментарий","index":20,"n_rows":9,"n_cols":4,"rows_kept":9,"cut":false,"hidden":false,"merged":[[3,1,3,2],[5,1,5,2],[2,1,2,2]]}
[]
[]
[null,{"$f":"Getcode()&\"                                                                                  \"&version","v":"ELPASS.FORMS.BH                                                                                  Версия 1.0 от 01.10.2017"}]
[null,{"$f":"GetTemplateName()","v":"Формы бухгалтерского баланса, отчета о финансовых результатах и отчета о целевом использовании средств"}]
[]
[null,"Комментарии регулируемой организации"]
[null,"№","Комментарий"]
[null,1]
[null,null,"Добавить комментарий","add_COMMENTS_range"]

{"sheet":"Ошибки и предупреждения","index":21,"n_rows":4,"n_cols":4,"rows_kept":4,"cut":false,"hidden":false,"merged":[[1,1,1,3]]}
[]
[null,"Результат проверки"]
[]
[null,"Ссылка","Причина","Статус"]

{"sheet":"Columns","index":22,"n_rows":0,"n_cols":0,"rows_kept":0,"cut":false,"hidden":true,"merged":[]}

{"sheet":"Rows","index":23,"n_rows":106,"n_cols":43,"rows_kept":106,"cut":false,"hidden":true,"merged":[[20,4,24,4],[20,5,24,5],[20,3,24,3],[27,4,28,4],[27,5,28,5],[31,5,31,6],[34,4,35,4],[34,5,35,5],[38,4,39,4],[38,5,39,5],[43,4,44,4],[43,5,44,5],[47,4,48,4],[47,5,48,5],[51,5,51,6],[66,4,67,4],[66,5,67,5],[71,4,72,4],[71,5,72,5],[54,5,54,6],[57,5,57,6],[60,4,61,4],[60,5,61,5],[64,5,64,6],[104,4,105,4],[104,5,105,5],[75,4,76,4],[75,5,76,5],[79,5,79,6],[82,4,83,4],[82,5,83,5],[86,4,87,4],[86,5,87,5],[90,5,90,6],[93,5,93,6]]}
["add_COMMENTS_range"]
[]
[]
["add_FORMA1_R1_range"]
[null,null,null,null,null,null,null,null,null,{"$f":"IF(H5=\"(\",\")\",\"\")","v":""},null,null,{"$f":"IF(K5=\"(\",\")\",\"\")","v":""},null,null,{"$f":"IF(N5=\"(\",\")\",\"\")","v":""}]
[]
["add_FORMA1_R2_range"]
[null,null,null,null,null,null,null,"(",null,")","(",null,")","(",null,")"]
[]
[]
["add_FORMA2_R1_range","для формы 2 и формы 4"]
[null,null,null,null,null,null,null,null,null,{"$f":"IF(H12=\"(\",\")\",\"\")","v":""},null,null,{"$f":"IF(K12=\"(\",\")\",\"\")","v":""}]
[]
["add_FORMA2_R2_range","для формы 2 и формы 4"]
[null,null,null,null,null,null,null,"(",null,")","(",null,")"]
[]
["add_FORMA3_CAPITAL_range"]
[null,null,null,null,null,null,null,null,null,null,{"$f":"IF(I18=\"(\",\")\",\"\")","v":""},null,null,{"$f":"IF(L18=\"(\",\")\",\"\")","v":""},null,null,{"$f":"IF(O18=\"(\",\")\",\"\")","v":""},null,null,{"$f":"IF(R18=\"(\",\")\",\"\")","v":""},null,null,{"$f":"IF(U18=\"(\",\")\",\"\")","v":""},{"$f":"IF(IF(I18=\"(\",-J18,J18)+IF(L18=\"(\",-M18,M18)+IF(O18=\"(\",-P18,P18)+IF(R18=\"(\",-S18,S18)+IF(U18=\"(\",-V18,V18)<0,\"(\",\"\")","v":""},{"$f":"ABS(IF(I18=\"(\",-J18,J18)+IF(L18=\"(\",-M18,M18)+IF(O18=\"(\",-P18,P18)+IF(R18=\"(\",-S18,S18)+IF(U18=\"(\",-V18,V18))","v":0},{"$f":"IF(X18=\"(\",\")\",\"\")","v":""}]
[]
["add_FORMA3_CORRECT_range"]
[null,null,null,null,null,null,"до корректировок",null,null,null,{"$f":"IF(I21=\"(\",\")\",\"\")","v":""},null,null,{"$f":"IF(L21=\"(\",\")\",\"\")","v":""},null,null,{"$f":"IF(O21=\"(\",\")\",\"\")","v":""},{"$f":"IF((IF(I21=\"(\",-J21,J21)+IF(L21=\"(\",-M21,M21)+IF(O21=\"(\",-P21,P21))<0,\"(\",\"\")","v":""},{"$f":"ABS(IF(I21=\"(\",-J21,J21)+IF(L21=\"(\",-M21,M21)+IF(O21=\"(\",-P21,P21))","v":0},{"$f":"IF(R21=\"(\",\")\",\"\")","v":""}]
[null,null,null,null,null,null,"корректировка в связи с:",null,null,null," ",null,null," ",null,null," "," ",null," "]
[null,null,null,null,null,null,"изменением учётной политики",null,null,null,{"$f":"IF(I23=\"(\",\")\",\"\")","v":""},null,null,{"$f":"IF(L23=\"(\",\")\",\"\")","v":""},null,null,{"$f":"IF(O23=\"(\",\")\",\"\")","v":""},{"$f":"IF((IF(I23=\"(\",-J23,J23)+IF(L23=\"(\",-M23,M23)+IF(O23=\"(\",-P23,P23))<0,\"(\",\"\")","v":""},{"$f":"ABS(IF(I23=\"(\",-J23,J23)+IF(L23=\"(\",-M23,M23)+IF(O23=\"(\",-P23,P23))","v":0},{"$f":"IF(R23=\"(\",\")\",\"\")","v":""}]
[null,null,null,null,null,null,"исправлением ошибок",null,null,null,{"$f":"IF(I24=\"(\",\")\",\"\")","v":""},null,null,{"$f":"IF(L24=\"(\",\")\",\"\")","v":""},null,null,{"$f":"IF(O24=\"(\",\")\",\"\")","v":""},{"$f":"IF((IF(I24=\"(\",-J24,J24)+IF(L24=\"(\",-M24,M24)+IF(O24=\"(\",-P24,P24))<0,\"(\",\"\")","v":""},{"$f":"ABS(IF(I24=\"(\",-J24,J24)+IF(L24=\"(\",-M24,M24)+IF(O24=\"(\",-P24,P24))","v":0},{"$f":"IF(R24=\"(\",\")\",\"\")","v":""}]
[null,null,null,null,null,null,"после корректировок",null,{"$f":"IF((IF(I21=\"(\",-J21,J21)+(SUMIF(I23:I24,\"\",J23:J24)-SUMIF(I23:I24,\"(\",J23:J24)))<0,\"(\",\"\")","v":""},{"$f":"ABS(IF(I21=\"(\",-J21,J21)+(SUMIF(I23:I24,\"\",J23:J24)-SUMIF(I23:I24,\"(\",J23:J24)))","v":0},{"$f":"IF(I25=\"(\",\")\",\"\")","v":""},{"$f":"IF((IF(L21=\"(\",-M21,M21)+(SUMIF(L23:L24,\"\",M23:M24)-SUMIF(L23:L24,\"(\",M23:M24)))<0,\"(\",\"\")","v":""},{"$f":"ABS(IF(L21=\"(\",-M21,M21)+(SUMIF(L23:L24,\"\",M23:M24)-SUMIF(L23:L24,\"(\",M23:M24)))","v":0},{"$f":"IF(L25=\"(\",\")\",\"\")","v":""},{"$f":"IF((IF(O21=\"(\",-P21,P21)+(SUMIF(O23:O24,\"\",P23:P24)-SUMIF(O23:O24,\"(\",P23:P24)))<0,\"(\",\"\")","v":""},{"$f":"ABS(IF(O21=\"(\",-P21,P21)+(SUMIF(O23:O24,\"\",P23:P24)-SUMIF(O23:O24,\"(\",P23:P24)))","v":0},{"$f":"IF(O25=\"(\",\")\",\"\")","v":""},{"$f":"IF((IF(I25=\"(\",-J25,J25)+IF(L25=\"(\",-M25,M25)+IF(O25=\"(\",-P25,P25))<0,\"(\",\"\")","v":""},{"$f":"ABS(IF(I25=\"(\",-J25,J25)+IF(L25=\"(\",-M25,M25)+IF(O25=\"(\",-P25,P25))","v":0},{"$f":"IF(R25=\"(\",\")\",\"\")","v":""}]
[]
["add_FORMA5_STR1_1_1_range"]
[null,null,null,null,null,null,{"$f":"\"за \"&IF(List_01_reporting_period=\"\",\"отчётный год\",List_01_reporting_period&\" год\")","v":"за 2017 год"},null,null,null,{"$f":"IF(I28=\"(\",\")\",\"\")","v":""},"(",null,")",null,null,{"$f":"IF(O28=\"(\",\")\",\"\")","v":""},"(",null,")",null,null,{"$f":"IF(U28=\"(\",\")\",\"\")","v":""},"(",null,")",null,null,{"$f":"IF(AA28=\"(\",\")\",\"\")","v":""},null,null,{"$f":"IF(AD28=\"(\",\")\",\"\")","v":""},null,null,{"$f":"IF(AG28=\"(\",\")\",\"\")","v":""},null,null,{"$f":"IF(AJ28=\"(\",\")\",\"\")","v":""},"(",null,")",null,"c"]
[null,null,null,null,null,null,{"$f":"\"за \"&IF(List_01_reporting_period=\"\",\"предыдущий год\",List_01_reporting_period-1&\" год\")","v":"за 2016 год"},null,null,null,{"$f":"IF(I29=\"(\",\")\",\"\")","v":""},"(",null,")",null,null,{"$f":"IF(O29=\"(\",\")\",\"\")","v":""},"(",null,")",null,null,{"$f":"IF(U29=\"(\",\")\",\"\")","v":""},"(",null,")",null,null,{"$f":"IF(AA29=\"(\",\")\",\"\")","v":""},null,null,{"$f":"IF(AD29=\"(\",\")\",\"\")","v":""},null,null,{"$f":"IF(AG29=\"(\",\")\",\"\")","v":""},null,null,{"$f":"IF(AJ29=\"(\",\")\",\"\")","v":""},"(",null,")",null,"p"]
[]
["add_FORMA5_STR1_1_2_range"]
[null,null,null,null,null,null,null,null,null,null,{"$f":"IF(I32=\"(\",\")\",\"\")","v":""},null,null,{"$f":"IF(L32=\"(\",\")\",\"\")","v":""},null,null,{"$f":"IF(O32=\"(\",\")\",\"\")","v":""}]
[]
["add_FORMA5_STR1_1_4_range"]
[null,null,null,null,null,null,{"$f":"\"за \"&IF(List_01_reporting_period=\"\",\"отчётный год\",List_01_reporting_period&\" год\")","v":"за 2017 год"},null,null,null,{"$f":"IF(I35=\"(\",\")\",\"\")","v":""},"(",null,")",null,null,{"$f":"IF(O35=\"(\",\")\",\"\")","v":""},"(",null,")",null,null,null,"(",null,")",null,null,null,"(",null,")",null,"c"]
[null,null,null,null,null,null,{"$f":"\"за \"&IF(List_01_reporting_period=\"\",\"предыдущий год\",List_01_reporting_period-1&\" год\")","v":"за 2016 год"},null,null,null,{"$f":"IF(I36=\"(\",\")\",\"\")","v":""},"(",null,")",null,null,{"$f":"IF(O36=\"(\",\")\",\"\")","v":""},"(",null,")",null,null,null,"(",null,")",null,null,null,"(",null,")",null,"p"]
[]
["add_FORMA5_STR1_1_5_range"]
[null,null,null,null,null,null,{"$f":"\"за \"&IF(List_01_reporting_period=\"\",\"отчётный год\",List_01_reporting_period&\" год\")","v":"за 2017 год"},null,null,null,{"$f":"IF(I39=\"(\",\")\",\"\")","v":""},null,null,{"$f":"IF(L39=\"(\",\")\",\"\")","v":""},"(",null,")","(",null,")",null,null,{"$f":"IF(U39=\"(\",\")\",\"\")","v":""},null,"c"]
[null,null,null,null,null,null,{"$f":"\"за \"&IF(List_01_reporting_period=\"\",\"предыдущий год\",List_01_reporting_period-1&\" год\")","v":"за 2016 год"},null,null,null,{"$f":"IF(I40=\"(\",\")\",\"\")","v":""},null,null,{"$f":"IF(L40=\"(\",\")\",\"\")","v":""},"(",null,")","(",null,")",null,null,{"$f":"IF(U40=\"(\",\")\",\"\")","v":""},null,"p"]
[]
[]
["add_FORMA5_STR4_2_1_range"]
[null,null,null,null,null,null,{"$f":"\"за \"&IF(List_01_reporting_period=\"\",\"отчётный год\",List_01_reporting_period&\" год\")","v":"за 2017 год"},null,null,null,{"$f":"IF(I44=\"(\",\")\",\"\")","v":""},"(",null,")",null,null,{"$f":"IF(O44=\"(\",\")\",\"\")","v":""},"(",null,")",null,null,{"$f":"IF(U44=\"(\",\")\",\"\")","v":""},"(",null,")",null,null,{"$f":"IF(AA44=\"(\",\")\",\"\")","v":""},null,null,{"$f":"IF(AD44=\"(\",\")\",\"\")","v":""},null,null,{"$f":"IF(AG44=\"(\",\")\",\"\")","v":""},"(",null,")",null,"c"]
[null,null,null,null,null,null,{"$f":"\"за \"&IF(List_01_reporting_period=\"\",\"предыдущий год\",List_01_reporting_period-1&\" год\")","v":"за 2016 год"},null,null,null,{"$f":"IF(I45=\"(\",\")\",\"\")","v":""},"(",null,")",null,null,{"$f":"IF(O45=\"(\",\")\",\"\")","v":""},"(",null,")",null,null,{"$f":"IF(U45=\"(\",\")\",\"\")","v":""},"(",null,")",null,null,{"$f":"IF(AA45=\"(\",\")\",\"\")","v":""},null,null,{"$f":"IF(AD45=\"(\",\")\",\"\")","v":""},null,null,{"$f":"IF(AG45=\"(\",\")\",\"\")","v":""},"(",null,")",null,"p"]
[]
["add_FORMA5_STR4_2_2_range"]
[null,null,null,null,null,null,{"$f":"\"за \"&IF(List_01_reporting_period=\"\",\"отчётный год\",List_01_reporting_period&\" год\")","v":"за 2017 год"},null,null,null,{"$f":"IF(I48=\"(\",\")\",\"\")","v":""},null,null,{"$f":"IF(L48=\"(\",\")\",\"\")","v":""},"(",null,")","(",null,")",null,null,{"$f":"IF(U48=\"(\",\")\",\"\")","v":""}]
[null,null,null,null,null,null,{"$f":"\"за \"&IF(List_01_reporting_period=\"\",\"предыдущий год\",List_01_reporting_period-1&\" год\")","v":"за 2016 год"},null,null,null,{"$f":"IF(I49=\"(\",\")\",\"\")","v":""},null,null,{"$f":"IF(L49=\"(\",\")\",\"\")","v":""},"(",null,")","(",null,")",null,null,{"$f":"IF(U49=\"(\",\")\",\"\")","v":""}]
[]
["add_FORMA5_STR4_2_3_range"]
[null,null,null,null,null,null,null,null,null,null,{"$f":"IF(I52=\"(\",\")\",\"\")","v":""},null,null,{"$f":"IF(L52=\"(\",\")\",\"\")","v":""}]
[]
["add_FORMA5_STR4_2_3_1_range"]
[null,null,null,null,null,null,null,null,"(",null,")","(",null,")"]
[]
["add_FORMA5_STR4_2_4_range"]
[null,null,null,null,null,null,null,null,null,null,{"$f":"IF(I58=\"(\",\")\",\"\")","v":""},null,null,{"$f":"IF(L58=\"(\",\")\",\"\")","v":""},null,null,{"$f":"IF(O58=\"(\",\")\",\"\")","v":""}]
[]
["add_FORMA5_STR7_3_1_range"]
[null,null,null,null,null,null,{"$f":"\"за \"&IF(List_01_reporting_period=\"\",\"отчётный год\",List_01_reporting_period&\" год\")","v":"за 2017 год"},null,null,null,{"$f":"IF(I61=\"(\",\")\",\"\")","v":""},null,null,{"$f":"IF(L61=\"(\",\")\",\"\")","v":""},null,null,{"$f":"IF(O61=\"(\",\")\",\"\")","v":""},"(",null,")",null,null,{"$f":"IF(U61=\"(\",\")\",\"\")","v":""},null,null,{"$f":"IF(X61=\"(\",\")\",\"\")","v":""},null,null,{"$f":"IF(AA61=\"(\",\")\",\"\")","v":""},null,null,{"$f":"IF(AD61=\"(\",\")\",\"\")","v":""},null,null,{"$f":"IF(AG61=\"(\",\")\",\"\")","v":""},null,"c"]
[null,null,null,null,null,null,{"$f":"\"за \"&IF(List_01_reporting_period=\"\",\"предыдущий год\",List_01_reporting_period-1&\" год\")","v":"за 2016 год"},null,null,null,{"$f":"IF(I62=\"(\",\")\",\"\")","v":""},null,null,{"$f":"IF(L62=\"(\",\")\",\"\")","v":""},null,null,{"$f":"IF(O62=\"(\",\")\",\"\")","v":""},"(",null,")",null,null,{"$f":"IF(U62=\"(\",\")\",\"\")","v":""},null,null,{"$f":"IF(X62=\"(\",\")\",\"\")","v":""},null,null,{"$f":"IF(AA62=\"(\",\")\",\"\")","v":""},null,null,{"$f":"IF(AD62=\"(\",\")\",\"\")","v":""},null,null,{"$f":"IF(AG62=\"(\",\")\",\"\")","v":""},null,"p"]
[]
["add_FORMA5_STR7_3_2_range"]
[null,null,null,null,null,null,null,null,null,null,{"$f":"IF(I65=\"(\",\")\",\"\")","v":""},null,null,{"$f":"IF(L65=\"(\",\")\",\"\")","v":""},null,null,{"$f":"IF(O65=\"(\",\")\",\"\")","v":""}]
["add_FORMA5_STR7_4_1_range"]
[null,null,null,null,null,null,{"$f":"\"за \"&IF(List_01_reporting_period=\"\",\"отчётный год\",List_01_reporting_period&\" год\")","v":"за 2017 год"},null,null,null,{"$f":"IF(I67=\"(\",\")\",\"\")","v":""},"(",null,")",null,null,{"$f":"IF(O67=\"(\",\")\",\"\")","v":""},"(",null,")",null,null,{"$f":"IF(U67=\"(\",\")\",\"\")","v":""},null,null,{"$f":"IF(X67=\"(\",\")\",\"\")","v":""},null,null,{"$f":"IF(AA67=\"(\",\")\",\"\")","v":""},null,null,{"$f":"IF(AD67=\"(\",\")\",\"\")","v":""},"(",null,")",null,"c"]
[null,null,null,null,null,null,{"$f":"\"за \"&IF(List_01_reporting_period=\"\",\"предыдущий год\",List_01_reporting_period-1&\" год\")","v":"за 2016 год"},null,null,null,{"$f":"IF(I68=\"(\",\")\",\"\")","v":""},"(",null,")",null,null,{"$f":"IF(O68=\"(\",\")\",\"\")","v":""},"(",null,")",null,null,{"$f":"IF(U68=\"(\",\")\",\"\")","v":""},null,null,{"$f":"IF(X68=\"(\",\")\",\"\")","v":""},null,null,{"$f":"IF(AA68=\"(\",\")\",\"\")","v":""},null,null,{"$f":"IF(AD68=\"(\",\")\",\"\")","v":""},"(",null,")",null,"p"]
[]
[]
["add_FORMA5_STR12_5_1_1_range"]
[null,null,null,null,null,null,{"$f":"\"за \"&IF(List_01_reporting_period=\"\",\"отчётный год\",List_01_reporting_period&\" год\")","v":"за 2017 год"},null,null,null,{"$f":"IF(I72=\"(\",\")\",\"\")","v":""},"(",null,")",null,null,{"$f":"IF(O72=\"(\",\")\",\"\")","v":""},null,null,{"$f":"IF(R72=\"(\",\")\",\"\")","v":""},"(",null,")","(",null,")",null,null,{"$f":"IF(AA72=\"(\",\")\",\"\")","v":""},"(",null,")",null,null,{"$f":"IF(AG72=\"(\",\")\",\"\")","v":""},"(",null,")",null,"c"]
[null,null,null,null,null,null,{"$f":"\"за \"&IF(List_01_reporting_period=\"\",\"предыдущий год\",List_01_reporting_period-1&\" год\")","v":"за 2016 год"},null,null,null,{"$f":"IF(I73=\"(\",\")\",\"\")","v":""},"(",null,")",null,null,{"$f":"IF(O73=\"(\",\")\",\"\")","v":""},null,null,{"$f":"IF(R73=\"(\",\")\",\"\")","v":""},"(",null,")","(",null,")",null,null,{"$f":"IF(AA73=\"(\",\")\",\"\")","v":""},"(",null,")",null,null,{"$f":"IF(AG73=\"(\",\")\",\"\")","v":""},"(",null,")",null,"p"]
[]
["add_FORMA5_STR12_5_1_2_range"]
[null,null,null,null,null,null,{"$f":"\"за \"&IF(List_01_reporting_period=\"\",\"отчётный год\",List_01_reporting_period&\" год\")","v":"за 2017 год"},null,null,null,{"$f":"IF(I76=\"(\",\")\",\"\")","v":""},"(",null,")",null,null,{"$f":"IF(O76=\"(\",\")\",\"\")","v":""},null,null,{"$f":"IF(R76=\"(\",\")\",\"\")","v":""},"(",null,")","(",null,")",null,null,{"$f":"IF(AA76=\"(\",\")\",\"\")","v":""},null,null,{"$f":"IF(AD76=\"(\",\")\",\"\")","v":""},null,null,{"$f":"IF(AG76=\"(\",\")\",\"\")","v":""},"(",null,")",null,"c"]
[null,null,null,null,null,null,{"$f":"\"за \"&IF(List_01_reporting_period=\"\",\"предыдущий год\",List_01_reporting_period-1&\" год\")","v":"за 2016 год"},null,null,null,{"$f":"IF(I77=\"(\",\")\",\"\")","v":""},"(",null,")",null,null,{"$f":"IF(O77=\"(\",\")\",\"\")","v":""},null,null,{"$f":"IF(R77=\"(\",\")\",\"\")","v":""},"(",null,")","(",null,")",null,null,{"$f":"IF(AA77=\"(\",\")\",\"\")","v":""},null,null,{"$f":"IF(AD77=\"(\",\")\",\"\")","v":""},null,null,{"$f":"IF(AG77=\"(\",\")\",\"\")","v":""},"(",null,")",null,"p"]
[]
["add_FORMA5_STR12_5_2_range"]
[null,null,null,null,null,null,null,null,null,null,{"$f":"IF(I80=\"(\",\")\",\"\")","v":""},null,null,{"$f":"IF(L80=\"(\",\")\",\"\")","v":""},null,null,{"$f":"IF(O80=\"(\",\")\",\"\")","v":""},null,null,{"$f":"IF(R80=\"(\",\")\",\"\")","v":""},null,null,{"$f":"IF(U80=\"(\",\")\",\"\")","v":""},null,null,{"$f":"IF(X80=\"(\",\")\",\"\")","v":""}]
[]
["add_FORMA5_STR12_5_3_1_range"]
[null,null,null,null,null,null,{"$f":"\"за \"&IF(List_01_reporting_period=\"\",\"отчётный год\",List_01_reporting_period&\" год\")","v":"за 2017 год"},null,null,null,{"$f":"IF(I83=\"(\",\")\",\"\")","v":""},null,null,{"$f":"IF(L83=\"(\",\")\",\"\")","v":""},null,null,{"$f":"IF(O83=\"(\",\")\",\"\")","v":""},"(",null,")","(",null,")","(",null,")",null,null,{"$f":"IF(AA83=\"(\",\")\",\"\")","v":""},null,"c"]
[null,null,null,null,null,null,{"$f":"\"за \"&IF(List_01_reporting_period=\"\",\"предыдущий год\",List_01_reporting_period-1&\" год\")","v":"за 2016 год"},null,null,null,{"$f":"IF(I84=\"(\",\")\",\"\")","v":""},null,null,{"$f":"IF(L84=\"(\",\")\",\"\")","v":""},null,null,{"$f":"IF(O84=\"(\",\")\",\"\")","v":""},"(",null,")","(",null,")","(",null,")",null,null,{"$f":"IF(AA84=\"(\",\")\",\"\")","v":""},null,"p"]
[]
["add_FORMA5_STR12_5_3_2_range"]
[null,null,null,null,null,null,{"$f":"\"за \"&IF(List_01_reporting_period=\"\",\"отчётный год\",List_01_reporting_period&\" год\")","v":"за 2017 год"},null,null,null,{"$f":"IF(I87=\"(\",\")\",\"\")","v":""},null,null,{"$f":"IF(L87=\"(\",\")\",\"\")","v":""},null,null,{"$f":"IF(O87=\"(\",\")\",\"\")","v":""},"(",null,")","(",null,")",null,null,{"$f":"IF(X87=\"(\",\")\",\"\")","v":""},null,null,{"$f":"IF(AA87=\"(\",\")\",\"\")","v":""},null,"c"]
[null,null,null,null,null,null,{"$f":"\"за \"&IF(List_01_reporting_period=\"\",\"предыдущий год\",List_01_reporting_period-1&\" год\")","v":"за 2016 год"},null,null,null,{"$f":"IF(I88=\"(\",\")\",\"\")","v":""},null,null,{"$f":"IF(L88=\"(\",\")\",\"\")","v":""},null,null,{"$f":"IF(O88=\"(\",\")\",\"\")","v":""},"(",null,")","(",null,")",null,null,{"$f":"IF(X88=\"(\",\")\",\"\")","v":""},null,null,{"$f":"IF(AA88=\"(\",\")\",\"\")","v":""},null,"p"]
[]
["add_FORMA5_STR12_5_4_range"]
[null,null,null,null,null,null,null,null,null,null,{"$f":"IF(I91=\"(\",\")\",\"\")","v":""},null,null,{"$f":"IF(L91=\"(\",\")\",\"\")","v":""},null,null,{"$f":"IF(O91=\"(\",\")\",\"\")","v":""}]
[]
["add_FORMA5_STR12_6_range"]
[null,null,null,null,null,null,null,null,null,null,{"$f":"IF(I94=\"(\",\")\",\"\")","v":""},null,null,{"$f":"IF(L94=\"(\",\")\",\"\")","v":""}]
[]
[]
["add_FORMA5_STR13_7_range"]
[null,null,null,null,null,null,null,null,null,null,{"$f":"IF(I98=\"(\",\")\",\"\")","v":""},null,null,{"$f":"IF(L98=\"(\",\")\",\"\")","v":""},"(",null,")","(",null,")",null,null,{"$f":"IF(U98=\"(\",\")\",\"\")","v":""},null,"c"]
[]
["add_FORMA5_STR13_8_range"]
[null,null,null,null,null,null,null,null,null,null,{"$f":"IF(I101=\"(\",\")\",\"\")","v":""},null,null,{"$f":"IF(L101=\"(\",\")\",\"\")","v":""},null,null,{"$f":"IF(O101=\"(\",\")\",\"\")","v":""}]
[]
[]
["add_FORMA5_STR14_range"]
[null,null,null,null,null,null,{"$f":"\"за \"&IF(List_01_reporting_period=\"\",\"отчётный год\",List_01_reporting_period&\" год\")","v":"за 2017 год"},null,null,null,{"$f":"IF(I105=\"(\",\")\",\"\")","v":""},null,null,{"$f":"IF(L105=\"(\",\")\",\"\")","v":""},"(",null,")",null,null,{"$f":"IF(R105=\"(\",\")\",\"\")","v":""},null,"c"]
[null,null,null,null,null,null,{"$f":"\"за \"&IF(List_01_reporting_period=\"\",\"предыдущий год\",List_01_reporting_period-1&\" год\")","v":"за 2016 год"},null,null,null,{"$f":"IF(I106=\"(\",\")\",\"\")","v":""},null,null,{"$f":"IF(L106=\"(\",\")\",\"\")","v":""},"(",null,")",null,null,{"$f":"IF(R106=\"(\",\")\",\"\")","v":""},null,"p"]

{"sheet":"Reference","index":24,"n_rows":13,"n_cols":3,"rows_kept":13,"cut":false,"hidden":true,"merged":[]}
["Месяц\n(MONTH)","Да/нет\n(BOOL)","Единица измерения\n(UNIT)"]
["январь","да","руб."]
["февраль","нет","тыс.руб."]
["март",null,"млн.руб."]
["апрель"]
["май"]
["июнь"]
["июль"]
["август"]
["сентябрь"]
["октябрь"]
["ноябрь"]
["декабрь"]

{"sheet":"RegistryMunicipal","index":25,"n_rows":896,"n_cols":7,"rows_kept":896,"cut":false,"hidden":true,"merged":[]}
["MO1","МО1_ОКТМО","ИМЯ ДИАПАЗОНА",null,"MO1","MO2","МО2_ОКТМО"]
["Абзелиловский муниципальный район","80601000","MO_LIST_2",null,"Абзелиловский муниципальный район","Абзелиловский муниципальный район","80601000"]
["Альшеевский муниципальный район","80602000","MO_LIST_3",null,"Абзелиловский муниципальный район","Альмухаметовский сельский совет","80601404"]
["Архангельский муниципальный район","80603000","MO_LIST_4",null,"Абзелиловский муниципальный район","Амангильдинский сельский совет","80601407"]
["Аскинский муниципальный район","80604000","MO_LIST_5",null,"Абзелиловский муниципальный район","Аскаровский сельский совет","80601410"]
["Аургазинский муниципальный район","80605000","MO_LIST_6",null,"Абзелиловский муниципальный район","Баимовский сельский совет","80601413"]
["Баймакский муниципальный район","80606000","MO_LIST_7",null,"Абзелиловский муниципальный район","Бурангуловский сельский совет","80601416"]
["Бакалинский муниципальный район","80607000","MO_LIST_8",null,"Абзелиловский муниципальный район","Гусевский сельский совет","80601419"]
["Балтачевский муниципальный район","80608000","MO_LIST_9",null,"Абзелиловский муниципальный район","Давлетовский сельский совет","80601422"]
["Белебеевский муниципальный район","80609000","MO_LIST_10",null,"Абзелиловский муниципальный район","Кирдасовский сельский совет","80601425"]
["Белокатайский муниципальный район","80610000","MR_LIST_11",null,"Абзелиловский муниципальный район","Краснобашкирский сельский совет","80601428"]
["Белорецкий муниципальный район","80611000","MO_LIST_12",null,"Абзелиловский муниципальный район","Равиловский сельский совет","80601431"]
["Бижбулякский муниципальный район","80612000","MO_LIST_13",null,"Абзелиловский муниципальный район","Ташбулатовский сельский совет","80601434"]
["Бирский муниципальный район","80613000","MO_LIST_14",null,"Абзелиловский муниципальный район","Таштимеровский сельский совет","80601437"]
["Благоварский муниципальный район","80614000","MO_LIST_15",null,"Абзелиловский муниципальный район","Халиловский сельский совет","80601440"]
["Благовещенский муниципальный район","80615000","MO_LIST_16",null,"Абзелиловский муниципальный район","Хамитовский сельский совет","80601443"]
["Буздякский муниципальный район","80617000","MO_LIST_17",null,"Абзелиловский муниципальный район","Янгильский сельский совет","80601446"]
["Бураевский муниципальный район","80618000","MO_LIST_18",null,"Альшеевский муниципальный район","Абдрашитовский сельский совет","80602404"]
["Бурзянский муниципальный район","80619000","MO_LIST_19",null,"Альшеевский муниципальный район","Аксеновский сельский совет","80602406"]
["Гафурийский муниципальный район","80621000","MO_LIST_20",null,"Альшеевский муниципальный район","Альшеевский муниципальный район","80602000"]
["Город Агидель","80703000","MO_LIST_21",null,"Альшеевский муниципальный район","Воздвиженский сельский совет","80602413"]
["Город Кумертау","80723000","MO_LIST_22",null,"Альшеевский муниципальный район","Гайниямакский сельский совет","80602416"]
["Город Нефтекамск","80727000","MO_LIST_23",null,"Альшеевский муниципальный район","Зеленоклиновский сельский совет","80602418"]
["Город Октябрьский","80735000","MO_LIST_24",null,"Альшеевский муниципальный район","Ибраевский сельский совет","80602419"]
["Город Салават","80739000","MO_LIST_25",null,"Альшеевский муниципальный район","Казанский сельский совет","80602422"]
["Город Сибай","80743000","MO_LIST_26",null,"Альшеевский муниципальный район","Кармышевский сельский совет","80602428"]
["Город Стерлитамак","80745000","MO_LIST_27",null,"Альшеевский муниципальный район","Кипчак-Аскаровский сельский совет","80602431"]
["Город Уфа","80701000","MO_LIST_28",null,"Альшеевский муниципальный район","Кызыльский сельский совет","80602437"]
["Давлекановский муниципальный район","80622000","MO_LIST_29",null,"Альшеевский муниципальный район","Мендяновский сельский совет","80602440"]
["Дуванский муниципальный район","80623000","MO_LIST_30",null,"Альшеевский муниципальный район","Нигматуллинский сельский совет","80602443"]
["Дюртюлинский муниципальный район","80624000","MO_LIST_31",null,"Альшеевский муниципальный район","Нижнеаврюзовский сельский совет","80602446"]
["Ермекеевский муниципальный район","80625000\n","MO_LIST_32",null,"Альшеевский муниципальный район","Никифаровский сельский совет","80602449"]
["ЗАТО город Межгорье","80707000","MO_LIST_33",null,"Альшеевский муниципальный район","Раевский сельский совет","80602451"]
["Зианчуринский муниципальный район","80626000","MO_LIST_34",null,"Альшеевский муниципальный район","Слаковский сельский совет","80602455"]
["Зилаирский муниципальный район","80627000","MO_LIST_35",null,"Альшеевский муниципальный район","Ташлинский сельский совет","80602458"]
["Иглинский муниципальный район","80628000","MO_LIST_36",null,"Альшеевский муниципальный район","Трунтаишевский сельский совет","80602461"]
["Илишевский муниципальный район","80630000","MO_LIST_37",null,"Альшеевский муниципальный район","Чебенлинский сельский совет","80602464"]
["Ишимбайский муниципальный район","80631000","MO_LIST_38",null,"Альшеевский муниципальный район","Шафрановский сельский совет","80602470"]
["Калтасинский муниципальный район","80633000","MO_LIST_39",null,"Архангельский муниципальный район","Абзановский сельский совет","80603404"]
["Караидельский муниципальный район","80634000","MO_LIST_40",null,"Архангельский муниципальный район","Арх-Латышский сельский совет","80603413"]
["Кармаскалинский муниципальный район","80635000","MO_LIST_41",null,"Архангельский муниципальный район","Архангельский муниципальный район","80603000"]
["Кигинский муниципальный район","80636000","MO_LIST_42",null,"Архангельский муниципальный район","Архангельский сельский совет","80603410"]
["Краснокамский муниципальный район","80637000","MO_LIST_43",null,"Архангельский муниципальный район","Бакалдинский сельский совет","80603416"]
["Кугарчинский муниципальный район","80638000","MO_LIST_44",null,"Архангельский муниципальный район","Инзерский сельский совет","80603419"]
["Кушнаренковский муниципальный район","80640000","MO_LIST_45",null,"Архангельский муниципальный район","Ирныкшинский сельский совет","80603422"]
["Куюргазинский муниципальный район","80639000","MO_LIST_46",null,"Архангельский муниципальный район","Краснозилимский сельский совет","80603425"]
["Мелеузовский муниципальный район","80641000","MO_LIST_47",null,"Архангельский муниципальный район","Краснокуртовский сельский совет","80603428"]
["Мечетлинский муниципальный район","80642000","MO_LIST_48",null,"Архангельский муниципальный район","Липовский сельский совет","80603434"]
["Мишкинский муниципальный район","80643000","MO_LIST_49",null,"Архангельский муниципальный район","Орловский сельский совет","80603440"]
["Миякинский муниципальный район","80644000","MO_LIST_50",null,"Архангельский муниципальный район","Тавакачевский сельский совет","80603446"]
["Нуримановский муниципальный район","80645000","MO_LIST_51",null,"Архангельский муниципальный район","Узунларовский сельский совет","80603450"]
["Салаватский муниципальный район","80647000","MO_LIST_52",null,"Аскинский муниципальный район","Арбашевский сельский совет","80604402"]
["Стерлибашевский муниципальный район","80648000","MO_LIST_53",null,"Аскинский муниципальный район","Аскинский муниципальный район","80604000"]
["Стерлитамакский муниципальный район","80649000","MO_LIST_54",null,"Аскинский муниципальный район","Аскинский сельский совет","80604404"]
["Татышлинский муниципальный район","80650000","MO_LIST_55",null,"Аскинский муниципальный район","Евбулякский сельский совет","80604413"]
["Туймазинский муниципальный район","80651000","MO_LIST_56",null,"Аскинский муниципальный район","Казанчинский сельский совет","80604416"]
["Уфимский муниципальный район","80652000","MO_LIST_57",null,"Аскинский муниципальный район","Карткисяковский сельский совет","80604418"]
["Учалинский муниципальный район","80653000","MO_LIST_58",null,"Аскинский муниципальный район","Кашкинский сельский совет","80604419"]
["Федоровский муниципальный район","80654000","MO_LIST_59",null,"Аскинский муниципальный район","Ключевский сельский совет","80604425"]
["Хайбуллинский муниципальный район","80655000","MO_LIST_60",null,"Аскинский муниципальный район","Кубиязовский сельский совет","80604428"]
["Чекмагушевский муниципальный район","80656000","MO_LIST_61",null,"Аскинский муниципальный район","Кунгаковский сельский совет","80604431"]
["Чишминский муниципальный район","80657000","MO_LIST_62",null,"Аскинский муниципальный район","Кшлау-Елгинский сельский совет","80604437"]
["Шаранский муниципальный район","80658000","MO_LIST_63",null,"Аскинский муниципальный район","Мутабашевский сельский совет","80604440"]
["Янаульский муниципальный район","80659000","MO_LIST_64",null,"Аскинский муниципальный район","Петропавловский сельский совет","80604442"]
[null,null,null,null,"Аскинский муниципальный район","Султанбековский сельский совет","80604443"]
[null,null,null,null,"Аскинский муниципальный район","Урмиязовский сельский совет","80604446"]
[null,null,null,null,"Аскинский муниципальный район","Усть-Табасский сельский совет","80604450"]
[null,null,null,null,"Аургазинский муниципальный район","Аургазинский муниципальный район","80605000"]
[null,null,null,null,"Аургазинский муниципальный район","Балыклыкульский сельский совет","80605402"]
[null,null,null,null,"Аургазинский муниципальный район","Батыровский сельский совет","80605404"]
[null,null,null,null,"Аургазинский муниципальный район","Бишкаинский сельский совет","80605407"]
[null,null,null,null,"Аургазинский муниципальный район","Ибраевский сельский совет","80605410"]
[null,null,null,null,"Аургазинский муниципальный район","Исмагиловский сельский совет","80605413"]
[null,null,null,null,"Аургазинский муниципальный район","Ишлинский сельский совет","80605416"]
[null,null,null,null,"Аургазинский муниципальный район","Кебячевский сельский совет","80605419"]
[null,null,null,null,"Аургазинский муниципальный район","Меселинский сельский совет","80605422"]
[null,null,null,null,"Аургазинский муниципальный район","Михайловский сельский совет","80605425"]
[null,null,null,null,"Аургазинский муниципальный район","Нагадакский сельский совет","80605428"]
[null,null,null,null,"Аургазинский муниципальный район","Новокальчировский сельский совет","80605431"]
[null,null,null,null,"Аургазинский муниципальный район","Семенкинский сельский совет","80605434"]
[null,null,null,null,"Аургазинский муниципальный район","Степановский сельский совет","80605437"]
[null,null,null,null,"Аургазинский муниципальный район","Султанмуратовский сельский совет","80605440"]
[null,null,null,null,"Аургазинский муниципальный район","Таштамакский сельский совет","80605443"]
[null,null,null,null,"Аургазинский муниципальный район","Толбазинский сельский совет","80605446"]
[null,null,null,null,"Аургазинский муниципальный район","Тряпинский сельский совет","80605449"]
[null,null,null,null,"Аургазинский муниципальный район","Тукаевский сельский совет","80605452"]
[null,null,null,null,"Аургазинский муниципальный район","Турумбетовский сельский совет","80605458"]
[null,null,null,null,"Аургазинский муниципальный район","Уршакский сельский совет","80605461"]
[null,null,null,null,"Аургазинский муниципальный район","Чуваш-Карамалинский сельский совет","80605472"]
[null,null,null,null,"Баймакский муниципальный район","1-й Иткуловский сельский совет","80606416"]
[null,null,null,null,"Баймакский муниципальный район","Абдулкаримовский сельский совет","80606404"]
[null,null,null,null,"Баймакский муниципальный район","Акмурунский сельский совет","80606407"]
[null,null,null,null,"Баймакский муниципальный район","Баймакский муниципальный район","80606000"]
[null,null,null,null,"Баймакский муниципальный район","Бекешевский сельский совет","80606409"]
[null,null,null,null,"Баймакский муниципальный район","Биляловский сельский совет","80606410"]
[null,null,null,null,"Баймакский муниципальный район","Город Баймак","80606101"]
[null,null,null,null,"Баймакский муниципальный район","Зилаирский сельский совет","80606413"]
[null,null,null,null,"Баймакский муниципальный район","Ишбердинский сельский совет","80606428"]
[null,null,null,null,"Баймакский муниципальный район","Ишмурзинский сельский совет","80606422"]
[null,null,null,null,"Баймакский муниципальный район","Ишмухаметовский сельский совет","80606425"]
[null,null,null,null,"Баймакский муниципальный район","Кульчуровский сельский совет","80606437"]
[null,null,null,null,"Баймакский муниципальный район","Кусеевский сельский совет","80606431"]
[null,null,null,null,"Баймакский муниципальный район","Мерясовский сельский совет","80606438"]
[null,null,null,null,"Баймакский муниципальный район","Мукасовский сельский совет","80606434"]
[null,null,null,null,"Баймакский муниципальный район","Нигаматовский сельский совет","80606440"]
[null,null,null,null,"Баймакский муниципальный район","Семеновский сельский совет","80606442"]
[null,null,null,null,"Баймакский муниципальный район","Сибайский сельский совет","80606443"]
[null,null,null,null,"Баймакский муниципальный район","Тавлыкаевский сельский совет","80606446"]
[null,null,null,null,"Баймакский муниципальный район","Татлыбаевский сельский совет","80606449"]
[null,null,null,null,"Баймакский муниципальный район","Темясовский сельский совет","80606452"]
[null,null,null,null,"Баймакский муниципальный район","Тубинский сельский совет","80606453"]
[null,null,null,null,"Баймакский муниципальный район","Юмашевский сельский совет","80606455"]
[null,null,null,null,"Баймакский муниципальный район","Яратовский сельский совет","80606459"]
[null,null,null,null,"Бакалинский муниципальный район","Ахмановский сельский совет","80607404"]
[null,null,null,null,"Бакалинский муниципальный район","Бакалинский муниципальный район","80607000"]
[null,null,null,null,"Бакалинский муниципальный район","Бакалинский сельский совет","80607407"]
[null,null,null,null,"Бакалинский муниципальный район","Бузюровский сельский совет","80607413"]
[null,null,null,null,"Бакалинский муниципальный район","Дияшевский сельский совет","80607419"]
[null,null,null,null,"Бакалинский муниципальный район","Камышлытамакский сельский совет","80607425"]
[null,null,null,null,"Бакалинский муниципальный район","Килеевский сельский совет","80607428"]
[null,null,null,null,"Бакалинский муниципальный район","Куштиряковский сельский совет","80607431"]
[null,null,null,null,"Бакалинский муниципальный район","Михайловский сельский совет","80607410"]
[null,null,null,null,"Бакалинский муниципальный район","Мустафинский сельский совет","80607434"]
[null,null,null,null,"Бакалинский муниципальный район","Новокатаевский сельский совет","80607440"]
[null,null,null,null,"Бакалинский муниципальный район","Новоурсаевский сельский совет","80607446"]
[null,null,null,null,"Бакалинский муниципальный район","Старокостеевский сельский совет","80607451"]
[null,null,null,null,"Бакалинский муниципальный район","Старокуручевский сельский совет","80607449"]
[null,null,null,null,"Бакалинский муниципальный район","Староматинский сельский совет","80607455"]
[null,null,null,null,"Бакалинский муниципальный район","Старошарашлинский сельский совет","80607458"]
[null,null,null,null,"Бакалинский муниципальный район","Тактагуловский сельский совет","80607461"]
[null,null,null,null,"Бакалинский муниципальный район","Урманаевский сельский совет","80607464"]
[null,null,null,null,"Балтачевский муниципальный район","Балтачевский муниципальный район","80608000"]
[null,null,null,null,"Балтачевский муниципальный район","Богдановский сельский совет","80608404"]
[null,null,null,null,"Балтачевский муниципальный район","Верхнеянактаевский сельский совет","80608407"]
[null,null,null,null,"Балтачевский муниципальный район","Кундашлинский сельский совет","80608413"]
[null,null,null,null,"Балтачевский муниципальный район","Кунтугушевский сельский совет","80608416"]
[null,null,null,null,"Балтачевский муниципальный район","Нижнекарышевский сельский совет","80608419"]
[null,null,null,null,"Балтачевский муниципальный район","Нижнесикиязовский сельский совет","80608422"]
[null,null,null,null,"Балтачевский муниципальный район","Норкинский сельский совет","80608425"]
[null,null,null,null,"Балтачевский муниципальный район","Сейтяковский сельский совет","80608428"]
[null,null,null,null,"Балтачевский муниципальный район","Старобалтачевский сельский совет","80608431"]
[null,null,null,null,"Балтачевский муниципальный район","Староянбаевский сельский совет","80608434"]
[null,null,null,null,"Балтачевский муниципальный район","Тошкуровский сельский совет","80608437"]
[null,null,null,null,"Балтачевский муниципальный район","Тучубаевский сельский совет","80608440"]
[null,null,null,null,"Балтачевский муниципальный район","Шавьядинский сельский совет","80608441"]
[null,null,null,null,"Балтачевский муниципальный район","Штандинский сельский совет","80608443"]
[null,null,null,null,"Балтачевский муниципальный район","Ялангачевский сельский совет","80608448"]
[null,null,null,null,"Белебеевский муниципальный район","Аксаковский сельский совет","80609401"]
[null,null,null,null,"Белебеевский муниципальный район","Анновский сельский совет","80609413"]
[null,null,null,null,"Белебеевский муниципальный район","Баженовский сельский совет","80609402"]
[null,null,null,null,"Белебеевский муниципальный район","Белебеевский муниципальный район","80609000"]
[null,null,null,null,"Белебеевский муниципальный район","Город Белебей","80609101"]
[null,null,null,null,"Белебеевский муниципальный район","Донской сельский совет","80609404"]
[null,null,null,null,"Белебеевский муниципальный район","Ермолкинский сельский совет","80609407"]
[null,null,null,null,"Белебеевский муниципальный район","Знаменский сельский совет","80609410"]
[null,null,null,null,"Белебеевский муниципальный район","Максим-Горьковский сельский совет","80609416"]
[null,null,null,null,"Белебеевский муниципальный район","Малиновский сельский совет","80609419"]
[null,null,null,null,"Белебеевский муниципальный район","Метевбашевский сельский совет","80609425"]
[null,null,null,null,"Белебеевский муниципальный район","Приютовский поссовет","80609165"]
[null,null,null,null,"Белебеевский муниципальный район","Рассветовский сельский совет","80609428"]
[null,null,null,null,"Белебеевский муниципальный район","Семенкинский сельский совет","80609431"]
[null,null,null,null,"Белебеевский муниципальный район","Слакбашевский сельский совет","80609434"]
[null,null,null,null,"Белебеевский муниципальный район","Тузлукушевский сельский совет","80609437"]
[null,null,null,null,"Белебеевский муниципальный район","Усень-Ивановский сельский совет","80609440"]
[null,null,null,null,"Белебеевский муниципальный район","Шаровский сельский совет","80609443"]
[null,null,null,null,"Белокатайский муниципальный район","Атаршинский сельский совет","80610402"]
[null,null,null,null,"Белокатайский муниципальный район","Белокатайский муниципальный район","80610000"]
[null,null,null,null,"Белокатайский муниципальный район","Белянковский сельский совет","80610404"]
[null,null,null,null,"Белокатайский муниципальный район","Емашинский сельский совет","80610407"]
[null,null,null,null,"Белокатайский муниципальный район","Карлыхановский сельский совет","80610413"]
[null,null,null,null,"Белокатайский муниципальный район","Майгазинский сельский совет","80610416"]
[null,null,null,null,"Белокатайский муниципальный район","Нижнеискушинский сельский совет","80610419"]
[null,null,null,null,"Белокатайский муниципальный район","Новобелокатайский сельский совет","80610422"]
[null,null,null,null,"Белокатайский муниципальный район","Ногушинский сельский совет","80610425"]
[null,null,null,null,"Белокатайский муниципальный район","Старобелокатайский сельский совет","80610428"]
[null,null,null,null,"Белокатайский муниципальный район","Тардавский сельский совет","80610431"]
[null,null,null,null,"Белокатайский муниципальный район","Ургалинский сельский совет","80610434"]
[null,null,null,null,"Белокатайский муниципальный район","Утяшевский сельский совет","80610437"]
[null,null,null,null,"Белокатайский муниципальный район","Яныбаевский сельский совет","80610440"]
[null,null,null,null,"Белорецкий муниципальный район","Абзаковский сельский совет","80611404"]
[null,null,null,null,"Белорецкий муниципальный район","Азикеевский сельский совет","80611407"]
[null,null,null,null,"Белорецкий муниципальный район","Ассинский сельский совет","80611410"]
[null,null,null,null,"Белорецкий муниципальный район","Белорецкий муниципальный район","80611000"]
[null,null,null,null,"Белорецкий муниципальный район","Верхнеавзянский сельский совет","80611415"]
[null,null,null,null,"Белорецкий муниципальный район","Город Белорецк","80611101"]
[null,null,null,null,"Белорецкий муниципальный район","Железнодорожный сельский совет","80611418"]
[null,null,null,null,"Белорецкий муниципальный район","Зигазинский сельский совет","80611416"]
[null,null,null,null,"Белорецкий муниципальный район","Зуяковский сельский совет","80611417"]
[null,null,null,null,"Белорецкий муниципальный район","Инзерский сельский совет","80611420"]
[null,null,null,null,"Белорецкий муниципальный район","Ишлинский сельский совет","80611422"]
[null,null,null,null,"Белорецкий муниципальный район","Кагинский сельский совет","80611425"]
[null,null,null,null,"Белорецкий муниципальный район","Ломовский сельский совет","80611427"]
[null,null,null,null,"Белорецкий муниципальный район","Николаевский сельский совет","80611434"]
[null,null,null,null,"Белорецкий муниципальный район","Нурский сельский совет","80611440"]
[null,null,null,null,"Белорецкий муниципальный район","Серменевский сельский совет","80611443"]
[null,null,null,null,"Белорецкий муниципальный район","Сосновский сельский совет","80611446"]
[null,null,null,null,"Белорецкий муниципальный район","Тирлянский сельский совет","80611448"]
[null,null,null,null,"Белорецкий муниципальный район","Туканский сельский совет","80611449"]
[null,null,null,null,"Белорецкий муниципальный район","Узянский сельский совет","80611452"]
[null,null,null,null,"Белорецкий муниципальный район","Шигаевский сельский совет","80611455"]
[null,null,null,null,"Бижбулякский муниципальный район","Аитовский сельский совет","80612404"]
[null,null,null,null,"Бижбулякский муниципальный район","Базлыкский сельский совет","80612407"]
[null,null,null,null,"Бижбулякский муниципальный район","Бижбулякский муниципальный район","80612000"]
[null,null,null,null,"Бижбулякский муниципальный район","Бижбулякский сельский совет","80612410"]
[null,null,null,null,"Бижбулякский муниципальный район","Биккуловский сельский совет","80612413"]
[null,null,null,null,"Бижбулякский муниципальный район","Демский сельский совет","80612416"]
[null,null,null,null,"Бижбулякский муниципальный район","Елбулактамакский сельский совет","80612419"]
[null,null,null,null,"Бижбулякский муниципальный район","Зириклинский сельский совет","80612422"]
[null,null,null,null,"Бижбулякский муниципальный район","Калининский сельский совет","80612425"]
[null,null,null,null,"Бижбулякский муниципальный район","Каменский сельский совет","80612428"]
[null,null,null,null,"Бижбулякский муниципальный район","Кенгер-Менеузовский сельский совет","80612431"]
[null,null,null,null,"Бижбулякский муниципальный район","Кош-Елгинский сельский совет","80612440"]
[null,null,null,null,"Бижбулякский муниципальный район","Михайловский сельский совет","80612442"]
[null,null,null,null,"Бижбулякский муниципальный район","Сухореченский сельский совет","80612443"]
[null,null,null,null,"Бирский муниципальный район","Бахтыбаевский сельский совет","80613407"]
[null,null,null,null,"Бирский муниципальный район","Березовский сельский совет","80613409"]
[null,null,null,null,"Бирский муниципальный район","Бирский муниципальный район","80613000"]
[null,null,null,null,"Бирский муниципальный район","Бурновский сельский совет","80613408"]
[null,null,null,null,"Бирский муниципальный район","Верхнелачентауский сельский совет","80613410"]
[null,null,null,null,"Бирский муниципальный район","Город Бирск","80613101"]
[null,null,null,null,"Бирский муниципальный район","Калинниковский сельский совет","80613416"]
[null,null,null,null,"Бирский муниципальный район","Кусекеевский сельский совет","80613419"]
[null,null,null,null,"Бирский муниципальный район","Маядыковский сельский совет","80613422"]
[null,null,null,null,"Бирский муниципальный район","Осиновский сельский совет","80613425"]
[null,null,null,null,"Бирский муниципальный район","Силантьевский сельский совет","80613431"]
[null,null,null,null,"Бирский муниципальный район","Старобазановский сельский совет","80613434"]
[null,null,null,null,"Бирский муниципальный район","Старопетровский сельский совет","80613437"]
[null,null,null,null,"Бирский муниципальный район","Сусловский сельский совет","80613440"]
[null,null,null,null,"Бирский муниципальный район","Угузевский сельский совет","80613443"]
[null,null,null,null,"Бирский муниципальный район","Чишминский сельский совет","80613446"]
[null,null,null,null,"Благоварский муниципальный район","Алексеевский сельский совет","80614404"]
[null,null,null,null,"Благоварский муниципальный район","Балышлинский сельский совет","80614407"]
[null,null,null,null,"Благоварский муниципальный район","Благоварский муниципальный район","80614000"]
[null,null,null,null,"Благоварский муниципальный район","Благоварский сельский совет","80614410"]
[null,null,null,null,"Благоварский муниципальный район","Дмитриевский сельский совет","80614413"]
[null,null,null,null,"Благоварский муниципальный район","Каргалинский сельский совет","80614416"]
[null,null,null,null,"Благоварский муниципальный район","Кашкалашинский сельский совет","80614419"]
[null,null,null,null,"Благоварский муниципальный район","Кучербаевский сельский совет","80614422"]
[null,null,null,null,"Благоварский муниципальный район","Мирновский сельский совет","80614423"]
[null,null,null,null,"Благоварский муниципальный район","Первомайский сельский совет","80614424"]
[null,null,null,null,"Благоварский муниципальный район","Тановский сельский совет","80614428"]
[null,null,null,null,"Благоварский муниципальный район","Троицкий сельский совет","80614431"]
[null,null,null,null,"Благоварский муниципальный район","Удрякбашевский сельский совет","80614434"]
[null,null,null,null,"Благоварский муниципальный район","Языковский сельский совет","80614437"]
[null,null,null,null,"Благоварский муниципальный район","Ямакаевский сельский совет","80614440"]
[null,null,null,null,"Благоварский муниципальный район","Янышевский сельский совет","80614443"]
[null,null,null,null,"Благовещенский муниципальный район","Бедеево-Полянский сельский совет","80615404"]
[null,null,null,null,"Благовещенский муниципальный район","Благовещенский муниципальный район","80615000"]
[null,null,null,null,"Благовещенский муниципальный район","Богородский сельский совет","80615407"]
[null,null,null,null,"Благовещенский муниципальный район","Волковский сельский совет","80615413"]
[null,null,null,null,"Благовещенский муниципальный район","Город Благовещенск","80615101"]
[null,null,null,null,"Благовещенский муниципальный район","Изяковский сельский совет","80615419"]
[null,null,null,null,"Благовещенский муниципальный район","Иликовский сельский совет","80615422"]
[null,null,null,null,"Благовещенский муниципальный район","Ильино-Полянский сельский совет","80615425"]
[null,null,null,null,"Благовещенский муниципальный район","Николаевский сельский совет","80615428"]
[null,null,null,null,"Благовещенский муниципальный район","Новонадеждинский сельский совет","80615431"]
[null,null,null,null,"Благовещенский муниципальный район","Октябрьский сельский совет","80615434"]
[null,null,null,null,"Благовещенский муниципальный район","Орловский сельский совет","80615437"]
[null,null,null,null,"Благовещенский муниципальный район","Покровский сельский совет","80615440"]
[null,null,null,null,"Благовещенский муниципальный район","Саннинский сельский совет","80615443"]
[null,null,null,null,"Благовещенский муниципальный район","Старонадеждинский сельский совет","80615449"]
[null,null,null,null,"Благовещенский муниципальный район","Тугайский сельский совет","80615453"]
[null,null,null,null,"Благовещенский муниципальный район","Удельно-Дуванейский сельский совет","80615461"]
[null,null,null,null,"Буздякский муниципальный район","Арслановский сельский совет","80617404"]
[null,null,null,null,"Буздякский муниципальный район","Буздякский муниципальный район","80617000"]
[null,null,null,null,"Буздякский муниципальный район","Буздякский сельский совет","80617407"]
[null,null,null,null,"Буздякский муниципальный район","Гафурийский сельский совет","80617410"]
[null,null,null,null,"Буздякский муниципальный район","Канлы-Туркеевский сельский совет","80617413"]
[null,null,null,null,"Буздякский муниципальный район","Каранский сельский совет","80617416"]
[null,null,null,null,"Буздякский муниципальный район","Килимовский сельский совет","80617419"]
[null,null,null,null,"Буздякский муниципальный район","Копей-Кубовский сельский совет","80617422"]
[null,null,null,null,"Буздякский муниципальный район","Кузеевский сельский совет","80617425"]
[null,null,null,null,"Буздякский муниципальный район","Сабаевский сельский совет","80617431"]
[null,null,null,null,"Буздякский муниципальный район","Тавларовский сельский совет","80617437"]
[null,null,null,null,"Буздякский муниципальный район","Тюрюшевский сельский совет","80617440"]
[null,null,null,null,"Буздякский муниципальный район","Уртакульский сельский совет","80617446"]
[null,null,null,null,"Бураевский муниципальный район","Азяковский сельский совет","80618404"]
[null,null,null,null,"Бураевский муниципальный район","Бадраковский сельский совет","80618407"]
[null,null,null,null,"Бураевский муниципальный район","Бураевский муниципальный район","80618000"]
[null,null,null,null,"Бураевский муниципальный район","Бураевский сельский совет","80618413"]
[null,null,null,null,"Бураевский муниципальный район","Ванышевский сельский совет","80618416"]
[null,null,null,null,"Бураевский муниципальный район","Вострецовский сельский совет","80618419"]
[null,null,null,null,"Бураевский муниципальный район","Каинлыковский сельский совет","80618422"]
[null,null,null,null,"Бураевский муниципальный район","Кашкалевский сельский совет","80618425"]
[null,null,null,null,"Бураевский муниципальный район","Кузбаевский сельский совет","80618431"]
[null,null,null,null,"Бураевский муниципальный район","Кушманаковский сельский совет","80618428"]
[null,null,null,null,"Бураевский муниципальный район","Тазларовский сельский совет","80618437"]
[null,null,null,null,"Бураевский муниципальный район","Тангатаровский сельский совет","80618440"]
[null,null,null,null,"Бураевский муниципальный район","Тепляковский сельский совет","80618443"]
[null,null,null,null,"Бураевский муниципальный район","Челкаковский сельский совет","80618446"]
[null,null,null,null,"Бурзянский муниципальный район","Аскаровский сельский совет","80619404"]
[null,null,null,null,"Бурзянский муниципальный район","Атиковский сельский совет","80619407"]
[null,null,null,null,"Бурзянский муниципальный район","Байгазинский сельский совет","80619409"]
[null,null,null,null,"Бурзянский муниципальный район","Байназаровский сельский совет","80619410"]
[null,null,null,null,"Бурзянский муниципальный район","Бурзянский муниципальный район","80619000"]
[null,null,null,null,"Бурзянский муниципальный район","Галиакберовский сельский совет","80619413"]
[null,null,null,null,"Бурзянский муниципальный район","Иргизлинский сельский совет","80619416"]
[null,null,null,null,"Бурзянский муниципальный район","Киекбаевский сельский совет","80619419"]
[null,null,null,null,"Бурзянский муниципальный район","Кипчакский сельский совет","80619420"]
[null,null,null,null,"Бурзянский муниципальный район","Кулганинский сельский совет","80619440"]
[null,null,null,null,"Бурзянский муниципальный район","Старомунасиповский сельский совет","80619422"]
[null,null,null,null,"Бурзянский муниципальный район","Старосубхангуловский сельский совет","80619425"]
[null,null,null,null,"Бурзянский муниципальный район","Тимировский сельский совет","80619430"]
[null,null,null,null,"Гафурийский муниципальный район","Белоозерский сельский совет","80621407"]
[null,null,null,null,"Гафурийский муниципальный район","Бельский сельский совет","80621410"]
[null,null,null,null,"Гафурийский муниципальный район","Бурлинский сельский совет","80621413"]
[null,null,null,null,"Гафурийский муниципальный район","Буруновский сельский совет","80621414"]
[null,null,null,null,"Гафурийский муниципальный район","Гафурийский муниципальный район","80621000"]
[null,null,null,null,"Гафурийский муниципальный район","Зилим-Карановский сельский совет","80621416"]
[null,null,null,null,"Гафурийский муниципальный район","Имендяшевский сельский совет","80621419"]
[null,null,null,null,"Гафурийский муниципальный район","Ковардинский сельский совет","80621422"]
[null,null,null,null,"Гафурийский муниципальный район","Красноусольский сельский совет","80621423"]
[null,null,null,null,"Гафурийский муниципальный район","Мраковский сельский совет","80621425"]
[null,null,null,null,"Гафурийский муниципальный район","Саитбабинский сельский совет","80621428"]
[null,null,null,null,"Гафурийский муниципальный район","Табынский сельский совет","80621431"]
[null,null,null,null,"Гафурийский муниципальный район","Ташбукановский сельский совет","80621434"]
[null,null,null,null,"Гафурийский муниципальный район","Ташлинский сельский совет","80621437"]
[null,null,null,null,"Гафурийский муниципальный район","Толпаровский сельский совет","80621440"]
[null,null,null,null,"Гафурийский муниципальный район","Утяковский сельский совет","80621443"]
[null,null,null,null,"Гафурийский муниципальный район","Янгискаинский сельский совет","80621446"]
[null,null,null,null,"Город Агидель","Город Агидель","80703000"]
[null,null,null,null,"Город Кумертау","Город Кумертау","80723000"]
[null,null,null,null,"Город Нефтекамск","Город Нефтекамск","80727000"]
[null,null,null,null,"Город Октябрьский","Город Октябрьский","80735000"]
[null,null,null,null,"Город Салават","Город Салават","80739000"]
[null,null,null,null,"Город Сибай","Город Сибай","80743000"]
[null,null,null,null,"Город Стерлитамак","Город Стерлитамак","80745000"]
[null,null,null,null,"Город Уфа","Город Уфа","80701000"]
[null,null,null,null,"Давлекановский муниципальный район","Алгинский сельский совет","80622404"]
[null,null,null,null,"Давлекановский муниципальный район","Бик-Кармалинский сельский совет","80622410"]
[null,null,null,null,"Давлекановский муниципальный район","Город Давлеканово","80622101"]
[null,null,null,null,"Давлекановский муниципальный район","Давлекановский муниципальный район","80622000"]
[null,null,null,null,"Давлекановский муниципальный район","Ивановский сельский совет","80622413"]
[null,null,null,null,"Давлекановский муниципальный район","Имай-Кармалинский сельский совет","80622416"]
[null,null,null,null,"Давлекановский муниципальный район","Кадыргуловский сельский совет","80622419"]
[null,null,null,null,"Давлекановский муниципальный район","Казангуловский сельский совет","80622422"]
[null,null,null,null,"Давлекановский муниципальный район","Кидрячевский сельский совет","80622425"]
[null,null,null,null,"Давлекановский муниципальный район","Курманкеевский сельский совет","80622428"]
[null,null,null,null,"Давлекановский муниципальный район","Микяшевский сельский совет","80622431"]
[null,null,null,null,"Давлекановский муниципальный район","Поляковский сельский совет","80622434"]
[null,null,null,null,"Давлекановский муниципальный район","Раевский сельский совет","80622437"]
[null,null,null,null,"Давлекановский муниципальный район","Рассветовский сельский совет","80622440"]
[null,null,null,null,"Давлекановский муниципальный район","Сергиопольский сельский совет","80622443"]
[null,null,null,null,"Давлекановский муниципальный район","Соколовский сельский совет","80622444"]
[null,null,null,null,"Давлекановский муниципальный район","Чуюнчинский сельский совет","80622446"]
[null,null,null,null,"Давлекановский муниципальный район","Шестаевский сельский совет","80622449"]
[null,null,null,null,"Дуванский муниципальный район","Ариевский сельский совет","80623404"]
[null,null,null,null,"Дуванский муниципальный район","Вознесенский сельский совет","80623406"]
[null,null,null,null,"Дуванский муниципальный район","Дуванский муниципальный район","80623000"]
[null,null,null,null,"Дуванский муниципальный район","Дуванский сельский совет","80623407"]
[null,null,null,null,"Дуванский муниципальный район","Заимкинский сельский совет","80623413"]
[null,null,null,null,"Дуванский муниципальный район","Лемазинский сельский совет","80623419"]
[null,null,null,null,"Дуванский муниципальный район","Месягутовский сельский совет","80623422"]
[null,null,null,null,"Дуванский муниципальный район","Метелинский сельский совет","80623425"]
[null,null,null,null,"Дуванский муниципальный район","Михайловский сельский совет","80623428"]
[null,null,null,null,"Дуванский муниципальный район","Рухтинский сельский совет","80623431"]
[null,null,null,null,"Дуванский муниципальный район","Сальевский сельский совет","80623433"]
[null,null,null,null,"Дуванский муниципальный район","Сикиязский сельский совет","80623434"]
[null,null,null,null,"Дуванский муниципальный район","Улькундинский сельский совет","80623440"]
[null,null,null,null,"Дуванский муниципальный район","Ярославский сельский совет","80623443"]
[null,null,null,null,"Дюртюлинский муниципальный район","Ангасякский сельский совет","80624404"]
[null,null,null,null,"Дюртюлинский муниципальный район","Асяновский сельский совет","80624407"]
[null,null,null,null,"Дюртюлинский муниципальный район","Город Дюртюли","80624101"]
[null,null,null,null,"Дюртюлинский муниципальный район","Дюртюлинский муниципальный район","80624000"]
[null,null,null,null,"Дюртюлинский муниципальный район","Исмаиловский сельский совет","80624410"]
[null,null,null,null,"Дюртюлинский муниципальный район","Куккуяновский сельский совет","80624413"]
[null,null,null,null,"Дюртюлинский муниципальный район","Маядыковский сельский совет","80624416"]
[null,null,null,null,"Дюртюлинский муниципальный район","Московский сельский совет","80624422"]
[null,null,null,null,"Дюртюлинский муниципальный район","Семилетовский сельский совет","80624430"]
[null,null,null,null,"Дюртюлинский муниципальный район","Старобаишевский сельский совет","80624431"]
[null,null,null,null,"Дюртюлинский муниципальный район","Староянтузовский сельский совет","80624434"]
[null,null,null,null,"Дюртюлинский муниципальный район","Суккуловский сельский совет","80624437"]
[null,null,null,null,"Дюртюлинский муниципальный район","Таймурзинский сельский совет","80624440"]
[null,null,null,null,"Дюртюлинский муниципальный район","Такарликовский сельский совет","80624443"]
[null,null,null,null,"Дюртюлинский муниципальный район","Учпилинский сельский совет","80624447"]
[null,null,null,null,"Дюртюлинский муниципальный район","Черлаковский сельский совет","80624449"]
[null,null,null,null,"Ермекеевский муниципальный район","Бекетовский сельский совет","80625402"]
[null,null,null,null,"Ермекеевский муниципальный район","Восьмомартовский сельский совет","80625404"]
[null,null,null,null,"Ермекеевский муниципальный район","Ермекеевский муниципальный район","80625000"]
[null,null,null,null,"Ермекеевский муниципальный район","Ермекеевский сельский совет","80625407"]
[null,null,null,null,"Ермекеевский муниципальный район","Кызыл-Ярский сельский совет","80625411"]
[null,null,null,null,"Ермекеевский муниципальный район","Нижнеулу-Елгинский сельский совет","80625413"]
[null,null,null,null,"Ермекеевский муниципальный район","Рятамакский сельский совет","80625416"]
[null,null,null,null,"Ермекеевский муниципальный район","Спартакский сельский совет","80625422"]
[null,null,null,null,"Ермекеевский муниципальный район","Среднекарамалинский сельский совет","80625425"]
[null,null,null,null,"Ермекеевский муниципальный район","Старосуллинский сельский совет","80625428"]
[null,null,null,null,"Ермекеевский муниципальный район","Старотураевский сельский совет","80625431"]
[null,null,null,null,"Ермекеевский муниципальный район","Суккуловский сельский совет","80625434"]
[null,null,null,null,"Ермекеевский муниципальный район","Тарказинский сельский совет","80625437"]
[null,null,null,null,"Ермекеевский муниципальный район","Усман-Ташлинский сельский совет","80625440"]
[null,null,null,null,"ЗАТО город Межгорье","ЗАТО город Межгорье","80707000"]
[null,null,null,null,"Зианчуринский муниципальный район","Абзановский сельский совет","80626404"]
[null,null,null,null,"Зианчуринский муниципальный район","Абуляисовский сельский совет","80626405"]
[null,null,null,null,"Зианчуринский муниципальный район","Баишевский сельский совет","80626406"]
[null,null,null,null,"Зианчуринский муниципальный район","Байдавлетовский сельский совет","80626407"]
[null,null,null,null,"Зианчуринский муниципальный район","Бикбауский сельский совет","80626410"]
[null,null,null,null,"Зианчуринский муниципальный район","Зианчуринский муниципальный район","80626000"]
[null,null,null,null,"Зианчуринский муниципальный район","Исянгуловский сельский совет","80626416"]
[null,null,null,null,"Зианчуринский муниципальный район","Казанбулакский сельский совет","80626419"]
[null,null,null,null,"Зианчуринский муниципальный район","Муйнакский сельский совет","80626422"]
[null,null,null,null,"Зианчуринский муниципальный район","Новопетровский сельский совет","80626425"]
[null,null,null,null,"Зианчуринский муниципальный район","Новочебенкинский сельский совет","80626428"]
[null,null,null,null,"Зианчуринский муниципальный район","Сакмарский сельский совет","80626431"]
[null,null,null,null,"Зианчуринский муниципальный район","Суренский сельский совет","80626434"]
[null,null,null,null,"Зианчуринский муниципальный район","Тазларовский сельский совет","80626437"]
[null,null,null,null,"Зианчуринский муниципальный район","Утягуловский сельский совет","80626440"]
[null,null,null,null,"Зианчуринский муниципальный район","Яныбаевский сельский совет","80626443"]
[null,null,null,null,"Зилаирский муниципальный район","Бердяшский сельский совет","80627404"]
[null,null,null,null,"Зилаирский муниципальный район","Верхнегалеевский сельский совет","80627410"]
[null,null,null,null,"Зилаирский муниципальный район","Дмитриевский сельский совет","80627413"]
[null,null,null,null,"Зилаирский муниципальный район","Зилаирский муниципальный район","80627000"]
[null,null,null,null,"Зилаирский муниципальный район","Зилаирский сельский совет","80627416"]
[null,null,null,null,"Зилаирский муниципальный район","Ивано-Кувалатский сельский совет","80627419"]
[null,null,null,null,"Зилаирский муниципальный район","Кананикольский сельский совет","80627421"]
[null,null,null,null,"Зилаирский муниципальный район","Канзафаровский сельский совет","80627422"]
[null,null,null,null,"Зилаирский муниципальный район","Кашкаровский сельский совет","80627423"]
[null,null,null,null,"Зилаирский муниципальный район","Матраевский сельский совет","80627425"]
[null,null,null,null,"Зилаирский муниципальный район","Сабыровский сельский совет","80627432"]
[null,null,null,null,"Зилаирский муниципальный район","Уркасский сельский совет","80627434"]
[null,null,null,null,"Зилаирский муниципальный район","Юлдыбаевский сельский совет","80627436"]
[null,null,null,null,"Зилаирский муниципальный район","Ямансазский сельский совет","80627442"]
[null,null,null,null,"Иглинский муниципальный район","Акбердинский сельский совет","80628403"]
[null,null,null,null,"Иглинский муниципальный район","Ауструмский сельский совет","80628405"]
[null,null,null,null,"Иглинский муниципальный район","Балтийский сельский совет","80628410"]
[null,null,null,null,"Иглинский муниципальный район","Ивано-Казанский сельский совет","80628415"]
[null,null,null,null,"Иглинский муниципальный район","Иглинский муниципальный район","80628000"]
[null,null,null,null,"Иглинский муниципальный район","Иглинский сельский совет","80628416"]
[null,null,null,null,"Иглинский муниципальный район","Калтымановский сельский совет","80628420"]
[null,null,null,null,"Иглинский муниципальный район","Кальтовский сельский совет","80628425"]
[null,null,null,null,"Иглинский муниципальный район","Красновосходский сельский совет","80628430"]
[null,null,null,null,"Иглинский муниципальный район","Кудеевский сельский совет","80628432"]
[null,null,null,null,"Иглинский муниципальный район","Лемезинский сельский совет","80628435"]
[null,null,null,null,"Иглинский муниципальный район","Майский сельский совет","80628440"]
[null,null,null,null,"Иглинский муниципальный район","Надеждинский сельский совет","80628445"]
[null,null,null,null,"Иглинский муниципальный район","Охлебининский сельский совет","80628450"]
[null,null,null,null,"Иглинский муниципальный район","Тавтимановский сельский совет","80628455"]
[null,null,null,null,"Иглинский муниципальный район","Турбаслинский сельский совет","80628460"]
[null,null,null,null,"Иглинский муниципальный район","Уктеевский сельский совет","80628470"]
[null,null,null,null,"Иглинский муниципальный район","Улу-Телякский сельский совет","80628472"]
[null,null,null,null,"Иглинский муниципальный район","Урманский сельский совет","80628474"]
[null,null,null,null,"Иглинский муниципальный район","Чуваш-Кубовский сельский совет","80628480"]
[null,null,null,null,"Илишевский муниципальный район","Аккузевский сельский совет","80630404"]
[null,null,null,null,"Илишевский муниципальный район","Андреевский сельский совет","80630408"]
[null,null,null,null,"Илишевский муниципальный район","Базитамакский сельский совет","80630412"]
[null,null,null,null,"Илишевский муниципальный район","Бишкураевский сельский совет","80630416"]
[null,null,null,null,"Илишевский муниципальный район","Дюмеевский сельский совет","80630424"]
[null,null,null,null,"Илишевский муниципальный район","Игметовский сельский совет","80630426"]
[null,null,null,null,"Илишевский муниципальный район","Илишевский муниципальный район","80630000"]
[null,null,null,null,"Илишевский муниципальный район","Исаметовский сельский совет","80630428"]
[null,null,null,null,"Илишевский муниципальный район","Исанбаевский сельский совет","80630432"]
[null,null,null,null,"Илишевский муниципальный район","Итеевский сельский совет","80630436"]
[null,null,null,null,"Илишевский муниципальный район","Ишкаровский сельский совет","80630440"]
[null,null,null,null,"Илишевский муниципальный район","Кадыровский сельский совет","80630444"]
[null,null,null,null,"Илишевский муниципальный район","Карабашевский сельский совет","80630448"]
[null,null,null,null,"Илишевский муниципальный район","Кужбахтинский сельский совет","80630452"]
[null,null,null,null,"Илишевский муниципальный район","Новомедведевский сельский совет","80630456"]
[null,null,null,null,"Илишевский муниципальный район","Рсаевский сельский совет","80630460"]
[null,null,null,null,"Илишевский муниципальный район","Старокуктовский сельский совет","80630464"]
[null,null,null,null,"Илишевский муниципальный район","Сюльтинский сельский совет","80630468"]
[null,null,null,null,"Илишевский муниципальный район","Урметовский сельский совет","80630472"]
[null,null,null,null,"Илишевский муниципальный район","Черекулевский сельский совет","80630476"]
[null,null,null,null,"Илишевский муниципальный район","Юнновский сельский совет","80630478"]
[null,null,null,null,"Илишевский муниципальный район","Ябалаковский сельский совет","80630480"]
[null,null,null,null,"Илишевский муниципальный район","Яркеевский сельский совет","80630484"]
[null,null,null,null,"Ишимбайский муниципальный район","Арметовский сельский совет","80631405"]
[null,null,null,null,"Ишимбайский муниципальный район","Байгузинский сельский совет","80631415"]
[null,null,null,null,"Ишимбайский муниципальный район","Верхоторский сельский совет","80631425"]
[null,null,null,null,"Ишимбайский муниципальный район","Город Ишимбай","80631101"]
[null,null,null,null,"Ишимбайский муниципальный район","Иткуловский сельский совет","80631430"]
[null,null,null,null,"Ишимбайский муниципальный район","Ишеевский сельский совет","80631435"]
[null,null,null,null,"Ишимбайский муниципальный район","Ишимбайский муниципальный район","80631000"]
[null,null,null,null,"Ишимбайский муниципальный район","Кузяновский сельский совет","80631440"]
[null,null,null,null,"Ишимбайский муниципальный район","Кулгунинский сельский совет","80631445"]
[null,null,null,null,"Ишимбайский муниципальный район","Макаровский сельский совет","80631450"]
[null,null,null,null,"Ишимбайский муниципальный район","Петровский сельский совет","80631455"]
[null,null,null,null,"Ишимбайский муниципальный район","Сайрановский сельский совет","80631460"]
[null,null,null,null,"Ишимбайский муниципальный район","Скворчихинский сельский совет","80631470"]
[null,null,null,null,"Ишимбайский муниципальный район","Урман-Бишкадакский сельский совет","80631475"]
[null,null,null,null,"Ишимбайский муниципальный район","Янурусовский сельский совет","80631480"]
[null,null,null,null,"Калтасинский муниципальный район","Амзибашевский сельский совет","80633403"]
[null,null,null,null,"Калтасинский муниципальный район","Большекачаковский сельский совет","80633405"]
[null,null,null,null,"Калтасинский муниципальный район","Калегинский сельский совет","80633415"]
[null,null,null,null,"Калтасинский муниципальный район","Калмиябашевский сельский совет","80633420"]
[null,null,null,null,"Калтасинский муниципальный район","Калтасинский муниципальный район","80633000"]
[null,null,null,null,"Калтасинский муниципальный район","Калтасинский сельский совет","80633425"]
[null,null,null,null,"Калтасинский муниципальный район","Кельтеевский сельский совет","80633430"]
[null,null,null,null,"Калтасинский муниципальный район","Краснохолмский сельский совет","80633447"]
[null,null,null,null,"Калтасинский муниципальный район","Нижнекачмашевский сельский совет","80633445"]
[null,null,null,null,"Калтасинский муниципальный район","Новокильбахтинский сельский совет","80633446"]
[null,null,null,null,"Калтасинский муниципальный район","Старояшевский сельский совет","80633452"]
[null,null,null,null,"Калтасинский муниципальный район","Тюльдинский сельский совет","80633450"]
[null,null,null,null,"Караидельский муниципальный район","Артакульский сельский совет","80634404"]
[null,null,null,null,"Караидельский муниципальный район","Байкибашевский сельский совет","80634412"]
[null,null,null,null,"Караидельский муниципальный район","Байкинский сельский совет","80634416"]
[null,null,null,null,"Караидельский муниципальный район","Верхнесуянский сельский совет","80634424"]
[null,null,null,null,"Караидельский муниципальный район","Караидельский муниципальный район","80634000"]
[null,null,null,null,"Караидельский муниципальный район","Караидельский сельский совет","80634432"]
[null,null,null,null,"Караидельский муниципальный район","Караярский сельский совет","80634436"]
[null,null,null,null,"Караидельский муниципальный район","Кирзинский сельский совет","80634440"]
[null,null,null,null,"Караидельский муниципальный район","Куртлыкульский сельский совет","80634444"]
[null,null,null,null,"Караидельский муниципальный район","Магинский сельский совет","80634445"]
[null,null,null,null,"Караидельский муниципальный район","Новобердяшский сельский совет","80634452"]
[null,null,null,null,"Караидельский муниципальный район","Новомуллакаевский сельский совет","80634456"]
[null,null,null,null,"Караидельский муниципальный район","Озеркинский сельский совет","80634460"]
[null,null,null,null,"Караидельский муниципальный район","Подлубовский сельский совет","80634464"]
[null,null,null,null,"Караидельский муниципальный район","Староакбуляковский сельский совет","80634472"]
[null,null,null,null,"Караидельский муниципальный район","Ургушевский сельский совет","80634480"]
[null,null,null,null,"Караидельский муниципальный район","Урюш-Битуллинский сельский совет","80634484"]
[null,null,null,null,"Караидельский муниципальный район","Явгильдинский сельский совет","80634488"]
[null,null,null,null,"Кармаскалинский муниципальный район","Адзитаровский сельский совет","80635405"]
[null,null,null,null,"Кармаскалинский муниципальный район","Бузовьязовский сельский совет","80635415"]
[null,null,null,null,"Кармаскалинский муниципальный район","Ефремкинский сельский совет","80635420"]
[null,null,null,null,"Кармаскалинский муниципальный район","Кабаковский сельский совет","80635423"]
[null,null,null,null,"Кармаскалинский муниципальный район","Камышлинский сельский совет","80635425"]
[null,null,null,null,"Кармаскалинский муниципальный район","Карламанский сельский совет","80635430"]
[null,null,null,null,"Кармаскалинский муниципальный район","Кармаскалинский муниципальный район","80635000"]
[null,null,null,null,"Кармаскалинский муниципальный район","Кармаскалинский сельский совет","80635435"]
[null,null,null,null,"Кармаскалинский муниципальный район","Николаевский сельский совет","80635440"]
[null,null,null,null,"Кармаскалинский муниципальный район","Новокиешкинский сельский совет","80635445"]
[null,null,null,null,"Кармаскалинский муниципальный район","Подлубовский сельский совет","80635450"]
[null,null,null,null,"Кармаскалинский муниципальный район","Прибельский сельский совет","80635451"]
[null,null,null,null,"Кармаскалинский муниципальный район","Савалеевский сельский совет","80635455"]
[null,null,null,null,"Кармаскалинский муниципальный район","Сахаевский сельский совет","80635475"]
[null,null,null,null,"Кармаскалинский муниципальный район","Старобабичевский сельский совет","80635465"]
[null,null,null,null,"Кармаскалинский муниципальный район","Старомусинский сельский совет","80635470"]
[null,null,null,null,"Кармаскалинский муниципальный район","Шаймуратовский сельский совет","80635480"]
[null,null,null,null,"Кигинский муниципальный район","Абзаевский сельский совет","80636405"]
[null,null,null,null,"Кигинский муниципальный район","Арслановский сельский совет","80636410"]
[null,null,null,null,"Кигинский муниципальный район","Верхнекигинский сельский совет","80636415"]
[null,null,null,null,"Кигинский муниципальный район","Душанбековский сельский совет","80636425"]
[null,null,null,null,"Кигинский муниципальный район","Еланлинский сельский совет","80636420"]
[null,null,null,null,"Кигинский муниципальный район","Ибраевский сельский совет","80636430"]
[null,null,null,null,"Кигинский муниципальный район","Кандаковский сельский совет","80636435"]
[null,null,null,null,"Кигинский муниципальный район","Кигинский муниципальный район","80636000"]
[null,null,null,null,"Кигинский муниципальный район","Леузинский сельский совет","80636440"]
[null,null,null,null,"Кигинский муниципальный район","Нижнекигинский сельский совет","80636445"]
[null,null,null,null,"Краснокамский муниципальный район","Арлановский сельский совет","80637405"]
[null,null,null,null,"Краснокамский муниципальный район","Кариевский сельский совет","80637410"]
[null,null,null,null,"Краснокамский муниципальный район","Краснокамский муниципальный район","80637000"]
[null,null,null,null,"Краснокамский муниципальный район","Куяновский сельский совет","80637412"]
[null,null,null,null,"Краснокамский муниципальный район","Музяковский сельский совет","80637415"]
[null,null,null,null,"Краснокамский муниципальный район","Николо-Березовский сельский совет","80637421"]
[null,null,null,null,"Краснокамский муниципальный район","Никольский сельский совет","80637420"]
[null,null,null,null,"Краснокамский муниципальный район","Новобуринский сельский совет","80637425"]
[null,null,null,null,"Краснокамский муниципальный район","Новокабановский сельский совет","80637430"]
[null,null,null,null,"Краснокамский муниципальный район","Новокаинлыковский сельский совет","80637435"]
[null,null,null,null,"Краснокамский муниципальный район","Новонагаевский сельский совет","80637440"]
[null,null,null,null,"Краснокамский муниципальный район","Новоянзигитовский сельский совет","80637461"]
[null,null,null,null,"Краснокамский муниципальный район","Раздольевский сельский совет","80637443"]
[null,null,null,null,"Краснокамский муниципальный район","Саузбашевский сельский совет","80637450"]
[null,null,null,null,"Краснокамский муниципальный район","Шушнурский сельский совет","80637465"]
[null,null,null,null,"Кугарчинский муниципальный район","Волостновский сельский совет","80638405"]
[null,null,null,null,"Кугарчинский муниципальный район","Зареченский сельский совет","80638410"]
[null,null,null,null,"Кугарчинский муниципальный район","Ибраевский сельский совет","80638415"]
[null,null,null,null,"Кугарчинский муниципальный район","Ижбердинский сельский совет","80638420"]
[null,null,null,null,"Кугарчинский муниципальный район","Иртюбякский сельский совет","80638425"]
[null,null,null,null,"Кугарчинский муниципальный район","Исимовский сельский совет","80638430"]
[null,null,null,null,"Кугарчинский муниципальный район","Кугарчинский муниципальный район","80638000"]
[null,null,null,null,"Кугарчинский муниципальный район","Кугарчинский сельский совет","80638440"]
[null,null,null,null,"Кугарчинский муниципальный район","Максютовский сельский совет","80638445"]
[null,null,null,null,"Кугарчинский муниципальный район","Мраковский сельский совет","80638450"]
[null,null,null,null,"Кугарчинский муниципальный район","Нижнебиккузинский сельский совет","80638455"]
[null,null,null,null,"Кугарчинский муниципальный район","Новопетровский сельский совет","80638460"]
[null,null,null,null,"Кугарчинский муниципальный район","Нукаевский сельский совет","80638463"]
[null,null,null,null,"Кугарчинский муниципальный район","Побоищенский сельский совет","80638470"]
[null,null,null,null,"Кугарчинский муниципальный район","Санзяповский сельский совет","80638473"]
[null,null,null,null,"Кугарчинский муниципальный район","Тляумбетовский сельский совет","80638475"]
[null,null,null,null,"Кугарчинский муниципальный район","Уральский сельский совет","80638480"]
[null,null,null,null,"Кугарчинский муниципальный район","Чапаевский сельский совет","80638483"]
[null,null,null,null,"Кугарчинский муниципальный район","Юлдыбаевский сельский совет","80638485"]
[null,null,null,null,"Кугарчинский муниципальный район","Юмагузинский сельский совет","80638487"]
[null,null,null,null,"Кугарчинский муниципальный район","Ялчинский сельский совет","80638495"]
[null,null,null,null,"Кушнаренковский муниципальный район","Ахметовский сельский совет","80640405"]
[null,null,null,null,"Кушнаренковский муниципальный район","Бакаевский сельский совет","80640410"]
[null,null,null,null,"Кушнаренковский муниципальный район","Горьковский сельский совет","80640415"]
[null,null,null,null,"Кушнаренковский муниципальный район","Карача-Елгинский сельский совет","80640430"]
[null,null,null,null,"Кушнаренковский муниципальный район","Кушнаренковский муниципальный район","80640000"]
[null,null,null,null,"Кушнаренковский муниципальный район","Кушнаренковский сельский совет","80640435"]
[null,null,null,null,"Кушнаренковский муниципальный район","Матвеевский сельский совет","80640440"]
[null,null,null,null,"Кушнаренковский муниципальный район","Расмекеевский сельский совет","80640465"]
[null,null,null,null,"Кушнаренковский муниципальный район","Старогумеровский сельский совет","80640470"]
[null,null,null,null,"Кушнаренковский муниципальный район","Старокамышлинский сельский совет","80640475"]
[null,null,null,null,"Кушнаренковский муниципальный район","Старокурмашевский сельский совет","80640477"]
[null,null,null,null,"Кушнаренковский муниципальный район","Старотукмаклинский сельский совет","80640480"]
[null,null,null,null,"Кушнаренковский муниципальный район","Шариповский сельский совет","80640490"]
[null,null,null,null,"Куюргазинский муниципальный район","Бахмутский сельский совет","80639410"]
[null,null,null,null,"Куюргазинский муниципальный район","Ермолаевский сельский совет","80639412"]
[null,null,null,null,"Куюргазинский муниципальный район","Зяк-Ишметовский сельский совет","80639417"]
[null,null,null,null,"Куюргазинский муниципальный район","Илькинеевский сельский совет","80639415"]
[null,null,null,null,"Куюргазинский муниципальный район","Кривле-Илюшкинский сельский совет","80639420"]
[null,null,null,null,"Куюргазинский муниципальный район","Куюргазинский муниципальный район","80639000"]
[null,null,null,null,"Куюргазинский муниципальный район","Ленинский сельский совет","80639425"]
[null,null,null,null,"Куюргазинский муниципальный район","Мурапталовский сельский совет","80639435"]
[null,null,null,null,"Куюргазинский муниципальный район","Отрадинский сельский совет","80639440"]
[null,null,null,null,"Куюргазинский муниципальный район","Свободинский сельский совет","80639450"]
[null,null,null,null,"Куюргазинский муниципальный район","Таймасовский сельский совет","80639455"]
[null,null,null,null,"Куюргазинский муниципальный район","Шабагишский сельский совет","80639460"]
[null,null,null,null,"Куюргазинский муниципальный район","Якшимбетовский сельский совет","80639465"]
[null,null,null,null,"Мелеузовский муниципальный район","Абитовский сельский совет","80641402"]
[null,null,null,null,"Мелеузовский муниципальный район","Александровский сельский совет","80641405"]
[null,null,null,null,"Мелеузовский муниципальный район","Аптраковский сельский совет","80641410"]
[null,null,null,null,"Мелеузовский муниципальный район","Араслановский сельский совет","80641415"]
[null,null,null,null,"Мелеузовский муниципальный район","Воскресенский сельский совет","80641422"]
[null,null,null,null,"Мелеузовский муниципальный район","Город Мелеуз","80641101"]
[null,null,null,null,"Мелеузовский муниципальный район","Денисовский сельский совет","80641435"]
[null,null,null,null,"Мелеузовский муниципальный район","Зирганский сельский совет","80641430"]
[null,null,null,null,"Мелеузовский муниципальный район","Иштугановский сельский совет","80641445"]
[null,null,null,null,"Мелеузовский муниципальный район","Корнеевский сельский совет","80641480"]
[null,null,null,null,"Мелеузовский муниципальный район","Мелеузовский муниципальный район","80641000"]
[null,null,null,null,"Мелеузовский муниципальный район","Мелеузовский сельский совет","80641450"]
[null,null,null,null,"Мелеузовский муниципальный район","Нордовский сельский совет","80641455"]
[null,null,null,null,"Мелеузовский муниципальный район","Нугушевский сельский совет","80641460"]
[null,null,null,null,"Мелеузовский муниципальный район","Партизанский сельский совет","80641465"]
[null,null,null,null,"Мелеузовский муниципальный район","Первомайский сельский совет","80641470"]
[null,null,null,null,"Мелеузовский муниципальный район","Сарышевский сельский совет","80641475"]
[null,null,null,null,"Мелеузовский муниципальный район","Шевченковский сельский совет","80641485"]
[null,null,null,null,"Мечетлинский муниципальный район","Абдуллинский сельский совет","80642401"]
[null,null,null,null,"Мечетлинский муниципальный район","Алегазовский сельский совет","80642405"]
[null,null,null,null,"Мечетлинский муниципальный район","Большеокинский сельский совет","80642410"]
[null,null,null,null,"Мечетлинский муниципальный район","Большеустьикинский сельский совет","80642415"]
[null,null,null,null,"Мечетлинский муниципальный район","Дуван-Мечетлинский сельский совет","80642420"]
[null,null,null,null,"Мечетлинский муниципальный район","Кургатовский сельский совет","80642423"]
[null,null,null,null,"Мечетлинский муниципальный район","Лемез-Тамакский сельский совет","80642425"]
[null,null,null,null,"Мечетлинский муниципальный район","Малоустьикинский сельский совет","80642430"]
[null,null,null,null,"Мечетлинский муниципальный район","Мечетлинский муниципальный район","80642000"]
[null,null,null,null,"Мечетлинский муниципальный район","Новомещеровский сельский совет","80642435"]
[null,null,null,null,"Мечетлинский муниципальный район","Новояушевский сельский совет","80642442"]
[null,null,null,null,"Мечетлинский муниципальный район","Ростовский сельский совет","80642445"]
[null,null,null,null,"Мечетлинский муниципальный район","Юнусовский сельский совет","80642450"]
[null,null,null,null,"Мишкинский муниципальный район","Акбулатовский сельский совет","80643405"]
[null,null,null,null,"Мишкинский муниципальный район","Баймурзинский сельский совет","80643410"]
[null,null,null,null,"Мишкинский муниципальный район","Большесухоязовский сельский совет","80643415"]
[null,null,null,null,"Мишкинский муниципальный район","Большешадинский сельский совет","80643420"]
[null,null,null,null,"Мишкинский муниципальный район","Ирсаевский сельский совет","80643425"]
[null,null,null,null,"Мишкинский муниципальный район","Кайраковский сельский совет","80643430"]
[null,null,null,null,"Мишкинский муниципальный район","Камеевский сельский совет","80643435"]
[null,null,null,null,"Мишкинский муниципальный район","Мавлютовский сельский совет","80643445"]
[null,null,null,null,"Мишкинский муниципальный район","Мишкинский муниципальный район","80643000"]
[null,null,null,null,"Мишкинский муниципальный район","Мишкинский сельский совет","80643450"]
[null,null,null,null,"Мишкинский муниципальный район","Новотроицкий сельский совет","80643455"]
[null,null,null,null,"Мишкинский муниципальный район","Староарзаматовский сельский совет","80643460"]
[null,null,null,null,"Мишкинский муниципальный район","Тынбаевский сельский совет","80643465"]
[null,null,null,null,"Мишкинский муниципальный район","Урьядинский сельский совет","80643470"]
[null,null,null,null,"Мишкинский муниципальный район","Чураевский сельский совет","80643480"]
[null,null,null,null,"Миякинский муниципальный район","Биккуловский сельский совет","80644405"]
[null,null,null,null,"Миякинский муниципальный район","Богдановский сельский совет","80644410"]
[null,null,null,null,"Миякинский муниципальный район","Большекаркалинский сельский совет","80644415"]
[null,null,null,null,"Миякинский муниципальный район","Енебей-Урсаевский сельский совет","80644420"]
[null,null,null,null,"Миякинский муниципальный район","Зильдяровский сельский совет","80644425"]
[null,null,null,null,"Миякинский муниципальный район","Ильчигуловский сельский совет","80644428"]
[null,null,null,null,"Миякинский муниципальный район","Карановский сельский совет","80644429"]
[null,null,null,null,"Миякинский муниципальный район","Качегановский сельский совет","80644430"]
[null,null,null,null,"Миякинский муниципальный район","Кожай-Семеновский сельский совет","80644435"]
[null,null,null,null,"Миякинский муниципальный район","Менеузтамакский сельский совет","80644440"]
[null,null,null,null,"Миякинский муниципальный район","Миякибашевский сельский совет","80644445"]
[null,null,null,null,"Миякинский муниципальный район","Миякинский муниципальный район","80644000"]
[null,null,null,null,"Миякинский муниципальный район","Миякинский сельский совет","80644450"]
[null,null,null,null,"Миякинский муниципальный район","Новокарамалинский сельский совет","80644460"]
[null,null,null,null,"Миякинский муниципальный район","Сатыевский сельский совет","80644465"]
[null,null,null,null,"Миякинский муниципальный район","Уршакбашкарамалинский сельский совет","80644470"]
[null,null,null,null,"Нуримановский муниципальный район","Байгильдинский сельский совет","80645405"]
[null,null,null,null,"Нуримановский муниципальный район","Баш-Шидинский сельский совет","80645410"]
[null,null,null,null,"Нуримановский муниципальный район","Красногорский сельский совет","80645415"]
[null,null,null,null,"Нуримановский муниципальный район","Красноключевский сельский совет","80645416"]
[null,null,null,null,"Нуримановский муниципальный район","Никольский сельский совет","80645420"]
[null,null,null,null,"Нуримановский муниципальный район","Новокулевский сельский совет","80645435"]
[null,null,null,null,"Нуримановский муниципальный район","Новосубаевский сельский совет","80645440"]
[null,null,null,null,"Нуримановский муниципальный район","Нуримановский муниципальный район","80645000"]
[null,null,null,null,"Нуримановский муниципальный район","Павловский сельский совет","80645444"]
[null,null,null,null,"Нуримановский муниципальный район","Первомайский сельский совет","80645445"]
[null,null,null,null,"Нуримановский муниципальный район","Сарвинский сельский совет","80645450"]
[null,null,null,null,"Нуримановский муниципальный район","Старобедеевский сельский совет","80645452"]
[null,null,null,null,"Нуримановский муниципальный район","Староисаевский сельский совет","80645455"]
[null,null,null,null,"Салаватский муниципальный район","Алькинский сельский совет","80647405"]
[null,null,null,null,"Салаватский муниципальный район","Аркауловский сельский совет","80647410"]
[null,null,null,null,"Салаватский муниципальный район","Ишимбаевский сельский совет","80647415"]
[null,null,null,null,"Салаватский муниципальный район","Лагеревский сельский совет","80647425"]
[null,null,null,null,"Салаватский муниципальный район","Лаклинский сельский совет","80647430"]
[null,null,null,null,"Салаватский муниципальный район","Малоязовский сельский совет","80647435"]
[null,null,null,null,"Салаватский муниципальный район","Мечетлинский сельский совет","80647440"]
[null,null,null,null,"Салаватский муниципальный район","Мещегаровский сельский совет","80647445"]
[null,null,null,null,"Салаватский муниципальный район","Мурсалимкинский сельский совет","80647447"]
[null,null,null,null,"Салаватский муниципальный район","Насибашевский сельский совет","80647450"]
[null,null,null,null,"Салаватский муниципальный район","Первомайский сельский совет","80647476"]
[null,null,null,null,"Салаватский муниципальный район","Салаватский муниципальный район","80647000"]
[null,null,null,null,"Салаватский муниципальный район","Салаватский сельский совет","80647453"]
[null,null,null,null,"Салаватский муниципальный район","Таймеевский сельский совет","80647455"]
[null,null,null,null,"Салаватский муниципальный район","Терменевский сельский совет","80647460"]
[null,null,null,null,"Салаватский муниципальный район","Турналинский сельский совет","80647465"]
[null,null,null,null,"Салаватский муниципальный район","Янгантауский сельский совет","80647475"]
[null,null,null,null,"Стерлибашевский муниципальный район","Айдаралинский сельский совет","80648405"]
[null,null,null,null,"Стерлибашевский муниципальный район","Аллагуватский сельский совет","80648402"]
[null,null,null,null,"Стерлибашевский муниципальный район","Бакеевский сельский совет","80648410"]
[null,null,null,null,"Стерлибашевский муниципальный район","Бузатовский сельский совет","80648415"]
[null,null,null,null,"Стерлибашевский муниципальный район","Кабакушский сельский совет","80648418"]
[null,null,null,null,"Стерлибашевский муниципальный район","Карагушский сельский совет","80648420"]
[null,null,null,null,"Стерлибашевский муниципальный район","Куганакбашевский сельский совет","80648425"]
[null,null,null,null,"Стерлибашевский муниципальный район","Кундрякский сельский совет","80648430"]
[null,null,null,null,"Стерлибашевский муниципальный район","Сарайсинский сельский совет","80648435"]
[null,null,null,null,"Стерлибашевский муниципальный район","Старокалкашевский сельский совет","80648440"]
[null,null,null,null,"Стерлибашевский муниципальный район","Стерлибашевский муниципальный район","80648000"]
[null,null,null,null,"Стерлибашевский муниципальный район","Стерлибашевский сельский совет","80648445"]
[null,null,null,null,"Стерлибашевский муниципальный район","Тятер-Араслановский сельский совет","80648455"]
[null,null,null,null,"Стерлибашевский муниципальный район","Халикеевский сельский совет","80648460"]
[null,null,null,null,"Стерлибашевский муниципальный район","Янгурчинский сельский совет","80648465"]
[null,null,null,null,"Стерлибашевский муниципальный район","Яшергановский сельский совет","80648470"]
[null,null,null,null,"Стерлитамакский муниципальный район","Айгулевский сельский совет","80649404"]
[null,null,null,null,"Стерлитамакский муниципальный район","Алатанинский сельский совет","80649412"]
[null,null,null,null,"Стерлитамакский муниципальный район","Ашкадарский сельский совет","80649416"]
[null,null,null,null,"Стерлитамакский муниципальный район","Аючевский сельский совет","80649418"]
[null,null,null,null,"Стерлитамакский муниципальный район","Буриказгановский сельский совет","80649428"]
[null,null,null,null,"Стерлитамакский муниципальный район","Казадаевский сельский совет","80649436"]
[null,null,null,null,"Стерлитамакский муниципальный район","Константиноградовский сельский совет","80649420"]
[null,null,null,null,"Стерлитамакский муниципальный район","Красноярский сельский совет","80649444"]
[null,null,null,null,"Стерлитамакский муниципальный район","Куганакский сельский совет","80649440"]
[null,null,null,null,"Стерлитамакский муниципальный район","Максимовский сельский совет","80649424"]
[null,null,null,null,"Стерлитамакский муниципальный район","Наумовский сельский совет","80649448"]
[null,null,null,null,"Стерлитамакский муниципальный район","Николаевский сельский совет","80649452"]
[null,null,null,null,"Стерлитамакский муниципальный район","Октябрьский сельский совет","80649460"]
[null,null,null,null,"Стерлитамакский муниципальный район","Отрадовский сельский совет","80649456"]
[null,null,null,null,"Стерлитамакский муниципальный район","Первомайский сельский совет","80649464"]
[null,null,null,null,"Стерлитамакский муниципальный район","Подлесненский сельский совет","80649468"]
[null,null,null,null,"Стерлитамакский муниципальный район","Рощинский сельский совет","80649478"]
[null,null,null,null,"Стерлитамакский муниципальный район","Рязановский сельский совет","80649480"]
[null,null,null,null,"Стерлитамакский муниципальный район","Стерлитамакский муниципальный район","80649000"]
[null,null,null,null,"Стерлитамакский муниципальный район","Тюрюшлинский сельский совет","80649488"]
[null,null,null,null,"Стерлитамакский муниципальный район","Услинский сельский совет","80649492"]
[null,null,null,null,"Татышлинский муниципальный район","Акбулатовский сельский совет","80650405"]
[null,null,null,null,"Татышлинский муниципальный район","Аксаитовский сельский совет","80650410"]
[null,null,null,null,"Татышлинский муниципальный район","Бадряшевский сельский совет","80650415"]
[null,null,null,null,"Татышлинский муниципальный район","Буль-Кайпановский сельский совет","80650420"]
[null,null,null,null,"Татышлинский муниципальный район","Верхнетатышлинский сельский совет","80650425"]
[null,null,null,null,"Татышлинский муниципальный район","Кальмияровский сельский совет","80650430"]
[null,null,null,null,"Татышлинский муниципальный район","Кальтяевский сельский совет","80650435"]
[null,null,null,null,"Татышлинский муниципальный район","Кудашевский сельский совет","80650440"]
[null,null,null,null,"Татышлинский муниципальный район","Курдымский сельский совет","80650445"]
[null,null,null,null,"Татышлинский муниципальный район","Нижнебалтачевский сельский совет","80650450"]
[null,null,null,null,"Татышлинский муниципальный район","Новотатышлинский сельский совет","80650455"]
[null,null,null,null,"Татышлинский муниципальный район","Татышлинский муниципальный район","80650000"]
[null,null,null,null,"Татышлинский муниципальный район","Шулгановский сельский совет","80650460"]
[null,null,null,null,"Татышлинский муниципальный район","Ялгыз-Наратский сельский совет","80650465"]
[null,null,null,null,"Туймазинский муниципальный район","Бишкураевский сельский совет","80651405"]
[null,null,null,null,"Туймазинский муниципальный район","Верхнебишиндинский сельский совет","80651410"]
[null,null,null,null,"Туймазинский муниципальный район","Верхнетроицкий сельский совет","80651415"]
[null,null,null,null,"Туймазинский муниципальный район","Гафуровский сельский совет","80651417"]
[null,null,null,null,"Туймазинский муниципальный район","Город Туймазы","80651101"]
[null,null,null,null,"Туймазинский муниципальный район","Ильчимбетовский сельский совет","80651420"]
[null,null,null,null,"Туймазинский муниципальный район","Какрыбашевский сельский совет","80651425"]
[null,null,null,null,"Туймазинский муниципальный район","Кандринский сельский совет","80651427"]
[null,null,null,null,"Туймазинский муниципальный район","Карамалы-Губеевский сельский совет","80651430"]
[null,null,null,null,"Туймазинский муниципальный район","Каратовский сельский совет","80651435"]
[null,null,null,null,"Туймазинский муниципальный район","Нижнетроицкий сельский совет","80651439"]
[null,null,null,null,"Туймазинский муниципальный район","Николаевский сельский совет","80651440"]
[null,null,null,null,"Туймазинский муниципальный район","Сайрановский сельский совет","80651445"]
[null,null,null,null,"Туймазинский муниципальный район","Серафимовский сельский совет","80651447"]
[null,null,null,null,"Туймазинский муниципальный район","Старотуймазинский сельский совет","80651455"]
[null,null,null,null,"Туймазинский муниципальный район","Субханкуловский сельский совет","80651461"]
[null,null,null,null,"Туймазинский муниципальный район","Татар-Улкановский сельский совет","80651465"]
[null,null,null,null,"Туймазинский муниципальный район","Туймазинский муниципальный район","80651000"]
[null,null,null,null,"Туймазинский муниципальный район","Тюменяковский сельский совет","80651470"]
[null,null,null,null,"Туймазинский муниципальный район","Чукадыбашевский сельский совет","80651475"]
[null,null,null,null,"Уфимский муниципальный район","Авдонский сельский совет","80652405"]
[null,null,null,null,"Уфимский муниципальный район","Алексеевский сельский совет","80652403"]
[null,null,null,null,"Уфимский муниципальный район","Булгаковский сельский совет","80652410"]
[null,null,null,null,"Уфимский муниципальный район","Дмитриевский сельский совет","80652415"]
[null,null,null,null,"Уфимский муниципальный район","Жуковский сельский совет","80652418"]
[null,null,null,null,"Уфимский муниципальный район","Зубовский сельский совет","80652420"]
[null,null,null,null,"Уфимский муниципальный район","Кармасанский сельский совет","80652423"]
[null,null,null,null,"Уфимский муниципальный район","Кирилловский сельский совет","80652425"]
[null,null,null,null,"Уфимский муниципальный район","Красноярский сельский совет","80652430"]
[null,null,null,null,"Уфимский муниципальный район","Миловский сельский совет","80652435"]
[null,null,null,null,"Уфимский муниципальный район","Михайловский сельский совет","80652440"]
[null,null,null,null,"Уфимский муниципальный район","Николаевский сельский совет","80652450"]
[null,null,null,null,"Уфимский муниципальный район","Ольховский сельский совет","80652452"]
[null,null,null,null,"Уфимский муниципальный район","Русско-Юрмашский сельский совет","80652455"]
[null,null,null,null,"Уфимский муниципальный район","Таптыковский сельский совет","80652460"]
[null,null,null,null,"Уфимский муниципальный район","Уфимский муниципальный район","80652000"]
[null,null,null,null,"Уфимский муниципальный район","Черкасский сельский совет","80652472"]
[null,null,null,null,"Уфимский муниципальный район","Чесноковский сельский совет","80652473"]
[null,null,null,null,"Уфимский муниципальный район","Шемякский сельский совет","80652475"]
[null,null,null,null,"Уфимский муниципальный район","Юматовский сельский совет","80652480"]
[null,null,null,null,"Учалинский муниципальный район","Амангильдинский сельский совет","80653410"]
[null,null,null,null,"Учалинский муниципальный район","Ахуновский сельский совет","80653415"]
[null,null,null,null,"Учалинский муниципальный район","Буйдинский сельский совет","80653416"]
[null,null,null,null,"Учалинский муниципальный район","Город Учалы","80653101"]
[null,null,null,null,"Учалинский муниципальный район","Ильчигуловский сельский совет","80653420"]
[null,null,null,null,"Учалинский муниципальный район","Ильчинский сельский совет","80653425"]
[null,null,null,null,"Учалинский муниципальный район","Имангуловский сельский совет","80653430"]
[null,null,null,null,"Учалинский муниципальный район","Кирябинский сельский совет","80653440"]
[null,null,null,null,"Учалинский муниципальный район","Кунакбаевский сельский совет","80653445"]
[null,null,null,null,"Учалинский муниципальный район","Мансуровский сельский совет","80653449"]
[null,null,null,null,"Учалинский муниципальный район","Миндякский сельский совет","80653448"]
[null,null,null,null,"Учалинский муниципальный район","Наурузовский сельский совет","80653450"]
[null,null,null,null,"Учалинский муниципальный район","Новобайрамгуловский сельский совет","80653455"]
[null,null,null,null,"Учалинский муниципальный район","Поляковский сельский совет","80653465"]
[null,null,null,null,"Учалинский муниципальный район","Сафаровский сельский совет","80653470"]
[null,null,null,null,"Учалинский муниципальный район","Тунгатаровский сельский совет","80653484"]
[null,null,null,null,"Учалинский муниципальный район","Уразовский сельский совет","80653488"]
[null,null,null,null,"Учалинский муниципальный район","Уральский сельский совет","80653491"]
[null,null,null,null,"Учалинский муниципальный район","Учалинский муниципальный район","80653000"]
[null,null,null,null,"Учалинский муниципальный район","Учалинский сельский совет","80653496"]
[null,null,null,null,"Федоровский муниципальный район","Бала-Четырманский сельский совет","80654405"]
[null,null,null,null,"Федоровский муниципальный район","Балыклинский сельский совет","80654410"]
[null,null,null,null,"Федоровский муниципальный район","Булякаевский сельский совет","80654415"]
[null,null,null,null,"Федоровский муниципальный район","Верхнеяушевский сельский совет","80654416"]
[null,null,null,null,"Федоровский муниципальный район","Гончаровский сельский совет","80654417"]
[null,null,null,null,"Федоровский муниципальный район","Дедовский сельский совет","80654420"]
[null,null,null,null,"Федоровский муниципальный район","Денискинский сельский совет","80654425"]
[null,null,null,null,"Федоровский муниципальный район","Каралачикский сельский совет","80654427"]
[null,null,null,null,"Федоровский муниципальный район","Михайловский сельский совет","80654430"]
[null,null,null,null,"Федоровский муниципальный район","Покровский сельский совет","80654440"]
[null,null,null,null,"Федоровский муниципальный район","Пугачевский сельский совет","80654445"]
[null,null,null,null,"Федоровский муниципальный район","Разинский сельский совет","80654450"]
[null,null,null,null,"Федоровский муниципальный район","Теняевский сельский совет","80654455"]
[null,null,null,null,"Федоровский муниципальный район","Федоровский муниципальный район","80654000"]
[null,null,null,null,"Федоровский муниципальный район","Федоровский сельский совет","80654460"]
[null,null,null,null,"Хайбуллинский муниципальный район","Абишевский сельский совет","80655405"]
[null,null,null,null,"Хайбуллинский муниципальный район","Акъюловский сельский совет","80655410"]
[null,null,null,null,"Хайбуллинский муниципальный район","Акъярский сельский совет","80655415"]
[null,null,null,null,"Хайбуллинский муниципальный район","Антинганский сельский совет","80655420"]
[null,null,null,null,"Хайбуллинский муниципальный район","Бурибайский сельский совет","80655424"]
[null,null,null,null,"Хайбуллинский муниципальный район","Ивановский сельский совет","80655425"]
[null,null,null,null,"Хайбуллинский муниципальный район","Маканский сельский совет","80655430"]
[null,null,null,null,"Хайбуллинский муниципальный район","Новозирганский сельский совет","80655432"]
[null,null,null,null,"Хайбуллинский муниципальный район","Самарский сельский совет","80655433"]
[null,null,null,null,"Хайбуллинский муниципальный район","Таналыкский сельский совет","80655440"]
[null,null,null,null,"Хайбуллинский муниципальный район","Татыр-Узякский сельский совет","80655435"]
[null,null,null,null,"Хайбуллинский муниципальный район","Уфимский сельский совет","80655445"]
[null,null,null,null,"Хайбуллинский муниципальный район","Федоровский сельский совет","80655450"]
[null,null,null,null,"Хайбуллинский муниципальный район","Хайбуллинский муниципальный район","80655000"]
[null,null,null,null,"Хайбуллинский муниципальный район","Целинный сельский совет","80655455"]
[null,null,null,null,"Чекмагушевский муниципальный район","Башировский сельский совет","80656410"]
[null,null,null,null,"Чекмагушевский муниципальный район","Имянликулевский сельский совет","80656415"]
[null,null,null,null,"Чекмагушевский муниципальный район","Калмашбашевский сельский совет","80656420"]
[null,null,null,null,"Чекмагушевский муниципальный район","Новобалтачевский сельский совет","80656425"]
[null,null,null,null,"Чекмагушевский муниципальный район","Новокутовский сельский совет","80656435"]
[null,null,null,null,"Чекмагушевский муниципальный район","Рапатовский сельский совет","80656440"]
[null,null,null,null,"Чекмагушевский муниципальный район","Резяповский сельский совет","80656445"]
[null,null,null,null,"Чекмагушевский муниципальный район","Старокалмашевский сельский совет","80656450"]
[null,null,null,null,"Чекмагушевский муниципальный район","Тайняшевский сельский совет","80656455"]
[null,null,null,null,"Чекмагушевский муниципальный район","Тузлукушевский сельский совет","80656460"]
[null,null,null,null,"Чекмагушевский муниципальный район","Урнякский сельский совет","80656465"]
[null,null,null,null,"Чекмагушевский муниципальный район","Чекмагушевский муниципальный район","80656000"]
[null,null,null,null,"Чекмагушевский муниципальный район","Чекмагушевский сельский совет","80656470"]
[null,null,null,null,"Чекмагушевский муниципальный район","Юмашевский сельский совет","80656475"]
[null,null,null,null,"Чишминский муниципальный район","Алкинский сельский совет","80657405"]
[null,null,null,null,"Чишминский муниципальный район","Аровский сельский совет","80657410"]
[null,null,null,null,"Чишминский муниципальный район","Арслановский сельский совет","80657415"]
[null,null,null,null,"Чишминский муниципальный район","Дмитриевский сельский совет","80657420"]
[null,null,null,null,"Чишминский муниципальный район","Дурасовский сельский совет","80657425"]
[null,null,null,null,"Чишминский муниципальный район","Енгалышевский сельский совет","80657430"]
[null,null,null,null,"Чишминский муниципальный район","Еремеевский сельский совет","80657435"]
[null,null,null,null,"Чишминский муниципальный район","Ибрагимовский сельский совет","80657440"]
[null,null,null,null,"Чишминский муниципальный район","Кара-Якуповский сельский совет","80657445"]
[null,null,null,null,"Чишминский муниципальный район","Лесной сельский совет","80657446"]
[null,null,null,null,"Чишминский муниципальный район","Новотроицкий сельский совет","80657450"]
[null,null,null,null,"Чишминский муниципальный район","Сафаровский сельский совет","80657455"]
[null,null,null,null,"Чишминский муниципальный район","Чишминский муниципальный район","80657000"]
[null,null,null,null,"Чишминский муниципальный район","Чишминский поссовет","80657151"]
[null,null,null,null,"Чишминский муниципальный район","Чишминский сельский совет","80657465"]
[null,null,null,null,"Чишминский муниципальный район","Чувалкиповский сельский совет","80657470"]
[null,null,null,null,"Чишминский муниципальный район","Шингак-Кульский сельский совет","80657475"]
[null,null,null,null,"Шаранский муниципальный район","Акбарисовский сельский совет","80658405"]
[null,null,null,null,"Шаранский муниципальный район","Базгиевский сельский совет","80658410"]
[null,null,null,null,"Шаранский муниципальный район","Дмитриево-Полянский сельский совет","80658415"]
[null,null,null,null,"Шаранский муниципальный район","Дюртюлинский сельский совет","80658420"]
[null,null,null,null,"Шаранский муниципальный район","Зириклинский сельский совет","80658425"]
[null,null,null,null,"Шаранский муниципальный район","Мичуринский сельский совет","80658430"]
[null,null,null,null,"Шаранский муниципальный район","Нижнезаитовский сельский совет","80658435"]
[null,null,null,null,"Шаранский муниципальный район","Нижнеташлинский сельский совет","80658440"]
[null,null,null,null,"Шаранский муниципальный район","Нуреевский сельский совет","80658445"]
[null,null,null,null,"Шаранский муниципальный район","Писаревский сельский совет","80658455"]
[null,null,null,null,"Шаранский муниципальный район","Старотумбагушевский сельский совет","80658465"]
[null,null,null,null,"Шаранский муниципальный район","Чалмалинский сельский совет","80658475"]
[null,null,null,null,"Шаранский муниципальный район","Шаранский муниципальный район","80658000"]
[null,null,null,null,"Шаранский муниципальный район","Шаранский сельский совет","80658485"]
[null,null,null,null,"Янаульский муниципальный район","Асавдыбашский сельский совет","80659410"]
[null,null,null,null,"Янаульский муниципальный район","Байгузинский сельский совет","80659415"]
[null,null,null,null,"Янаульский муниципальный район","Воядинский сельский совет","80659420"]
[null,null,null,null,"Янаульский муниципальный район","Город Янаул","80659101"]
[null,null,null,null,"Янаульский муниципальный район","Ижболдинский сельский совет","80659430"]
[null,null,null,null,"Янаульский муниципальный район","Истякский сельский совет","80659435"]
[null,null,null,null,"Янаульский муниципальный район","Иткинеевский сельский совет","80659440"]
[null,null,null,null,"Янаульский муниципальный район","Кармановский сельский совет","80659445"]
[null,null,null,null,"Янаульский муниципальный район","Кисак-Каинский сельский совет","80659450"]
[null,null,null,null,"Янаульский муниципальный район","Максимовский сельский совет","80659453"]
[null,null,null,null,"Янаульский муниципальный район","Месягутовский сельский совет","80659455"]
[null,null,null,null,"Янаульский муниципальный район","Новоартаульский сельский совет","80659460"]
[null,null,null,null,"Янаульский муниципальный район","Орловский сельский совет","80659465"]
[null,null,null,null,"Янаульский муниципальный район","Первомайский сельский совет","80659470"]
[null,null,null,null,"Янаульский муниципальный район","Сандугачевский сельский совет","80659475"]
[null,null,null,null,"Янаульский муниципальный район","Староваряшский сельский совет","80659480"]
[null,null,null,null,"Янаульский муниципальный район","Старокудашевский сельский совет","80659485"]
[null,null,null,null,"Янаульский муниципальный район","Шудекский сельский совет","80659490"]
[null,null,null,null,"Янаульский муниципальный район","Ямадинский сельский совет","80659495"]
[null,null,null,null,"Янаульский муниципальный район","Янаульский муниципальный район","80659000"]

{"sheet":"SheetList","index":26,"n_rows":23,"n_cols":2,"rows_kept":23,"cut":false,"hidden":true,"merged":[]}
["Расчетные листы","Скрытые листы"]
["Инструкция","Columns"]
["Титульный","Rows"]
["Параметры","Reference"]
["Форма 1. Актив","RegistryMunicipal"]
["Форма 1. Пассив","SheetList"]
["Форма1. Расшифровка показателей"]
["Форма 2. Доходы-расходы"]
["Форма2. Расшифровка показателей"]
["Форма 3. Движение капитала"]
["Форма 3. Корректировки"]
["Форма 3. Чистые активы"]
["Форма 4. Отчет о ДДС"]
["Форма4. Расшифровка показателей"]
["Форма 5. НА и НИОКР"]
["Форма 5. Основные средства"]
["Форма 5. Фин.вложения и запасы"]
["Форма 5. ДиКЗ и запасы"]
["Форма 5. Обязательства"]
["Форма 5. Гос.помощь"]
["Форма 6. Отчет о ЦИС"]
["Комментарий"]
["Ошибки и предупреждения"]